Workbook

Sheet Contents
D3: Distribution Future Electricity Scenarios 2023 Data Workbook
D9: This workbook is an accompaniment to our 2023 DFES. It contains detailed datasets and interactive tools which allow our customers to understand what our Distribution Future Electricity Scenarios mean to them. Please refer to our main DFES report for a full description of our forecasts and scenarios. Our forecasts are not precise predictions of what the future is likely to be, but instead frame the uncertainty within our planning as explained in the main report.
B20: OUR DISTRIBUTION FUTURE ELECTRICITY SCENARIOS
B22: Best View | D22: Highest certainty scenario in 1 to 10 years horizon
B23: Falling Short | D23: Slow decarbonisation not meeting net zero carbon, limited efficiencies
B24: System Transformation | D24: Hydrogen helps to meet net zero carbon beyond 2040, limited efficiencies
B25: Consumer Transformation | D25: Electric transport and heating and renewable DG to meet zero carbon, high efficiencies
B26: Leading the Way | D26: Net zero carbon before 2050, early electrification of transport and heating
B29: CONTENTS
B31: Section | C31: Tab | D31: Description
B32: USEFUL INFORMATION | C32: Geographical Information | D32: A tool to locate the nearest 10 substations to a specified location and maps showing supply areas
C33: LCT Profiles | D33: Charts which show electric vehicle (EV) and heat pump (HP) profiles adopted in the forecasts
B34: INTERACTIVE GRAPH TOOLS | C34: Single Primary Charts | D34: Charts which plot minimum/maximum demand, DG/storage capacity and EV/HP volumes for a single primary substation supply area
C35: Single Local Authority Charts | D35: Charts which plot number of EV, HP, energy from domestic, I&C, EV,HP, Renewable generation, non-renewable generation and the installed capacity for renewable and non-renewable generation. All data is provides per individual local authority
C36: Single BSP Charts | D36: Charts which plot minimum/maximum demand, DG/storage capacity and EV/HP volumes for a single bulk supply point (BSP) supply area
C37: Multiple Primary Charts | D37: Charts which plot aggregated minimum/maximum demand, DG/storage capacity and EV/HP volumes for multiple primary substation supply areas
C39: Multiple BSP Charts | D39: Charts which plot aggregated minimum/maximum demand, DG/storage capacity and EV/HP volumes for multiple BSP supply areas
B40: BSP AND PRIMARY SUBSTATION DATASETS | C40: Maximum Demand | D40: Data table containing maximum demand values for each BSP and primary substation
C41: Minimum Demand | D41: Data table containing minimum demand values for each BSP and primary substation
C42: Generation | D42: Data table containing DG capacity values for each BSP and primary substation
C43: Electric Vehicle uptake | D43: Data table containing the number of EVs per BSP and primary substation
C44: Heat Pump Uptake | D44: Data table containing the number of HPs per BSP and primary substation
C45: Storage | D45: Data table containing battery storage capacity values per BSP and primary substation
C46: Energy Demand | D46: Data table containing energy demand consumption per BSP and primary substation
C47: Demand - Flexibility Service | D47: Data table containing the maximum flexibility service requirement in MW per primary and BSP
C48: Energy - Flexibility Service | D48: Data table containing the flexibility service requirement in MWh per primary and BSP
B49: LOCAL AUTHORITY AND COUNTY DATA | C49: Heat Pump Uptake | D49: Data table containing the number of HPs per Local Authority and County
C50: Energy Demand | D50: Data table containing the total energy demand per Local Authority and County
C51: Wind Uptake | D51: Data table containing the total wind installed capacity per Local Authority and County
C52: PV Uptake | D52: Data table containing the total PV installed capacity per Local Authority and County
C53: PV Energy | D53: Data table containing the total PV energy generated per Local Authority and County
C54: Wind Energy | D54: Data table containing the total wind energy generated per Local Authority and County
C55: I&C Energy | D55: Data table containing the total energy demand from Industrial and Commercial customers per Local Authority and County
C56: Domestic Energy | D56: Data table containing the total energy demand from domestic customers per Local Authority and County
C57: HP Energy | D57: Data table containing the total energy demand from heat pumps per Local Authority and County
C58: EV Energy | D58: Data table containing the total energy demand from electric vehicles per Local Authority and County
C59: Battey Storage | D59: Data table containing the total battery storage installed capacity per Local Authority and County
C60: EV Uptake | D60: Data table containing the number of Evs uptake per Local Authority and County
C61: Generation Uptake | D61: Data table containing the total generation installed capacity per Local Authority and County
C62: Carbon Savings | D62: Data table containing the total carbon savings per Local Authority and County due to low carbon technologies and renewable generation
B63: ENTIRE ENWL NETWORK DATASETS | C63: LCT Seasonal Demand | D63: Data table containing the demand in winter and summer day for low carbon technologies and air conditioning
C64: Annual Energy Demand & Generation | D64: Data table containing energy for demand and distributed generation for the entire ENWL network broken down by technology
C65: DG and Storage Breakdown | D65: Data table containing DG and storage capacity values for the entire ENWL network with breakdown per technology
C66: Total Transport | D66: Data table containing the number of EV per type for the entire ENWL area

Sheet Geographical Information
H2: Geographical Information
E6: This worksheet contains geographical information to allow users to better understand the locations of our substations. Maps are provided for each of our supply regions and show the BSP and primary supply areas on our network. A helpful tool is also provided which allows you to locate the ten nearest BSP and primary substations by entering co-ordinates.
C14: Locate the nearest BSP and primary substations | L14: Maps
B16: To locate the nearest BSP or primary substations, enter the co-ordinates of your point of interest in the grey boxes below. If you are unsure of the co-ordinates, there are many tools available online that will allow you to obtain co-ordinates from a post code. | L16: The maps below show the BSP and primary supply areas on our network. To open a map, double click on the icon for the area you wish to view below.
L18: Primary Supply Areas
B20: Easting | D20: 371044 | F20: Northing | H20: 396180
B24: 10 NEAREST PRIMARY SUBSTATIONS | F24: 10 NEAREST BSP SUBSTATIONS
B25: No | C25: Distance (km) | D25: Primary Substation | F25: No | G25: Distance (km) | H25: BSP Substation
B27: 1 | C27: =IF(OR(ISBLANK($D$20),ISBLANK($H$20)),"-",'Substation Location'!F383) -> 2.890829639 | D27: =IF(OR(ISBLANK($D$20),ISBLANK($H$20)),"",'Substation Location'!E383) -> IRLAM | F27: 1 | G27: =IF(OR(ISBLANK($D$20),ISBLANK($H$20)),"-",'Substation Location'!M383) -> 3.775441166 | H27: =IF(OR(ISBLANK($D$20),ISBLANK($H$20)),"",'Substation Location'!L383) -> CARRINGTON BSP
B28: 2 | C28: =IF(OR(ISBLANK($D$20),ISBLANK($H$20)),"-",'Substation Location'!F384) -> 4.375365813 | D28: =IF(OR(ISBLANK($D$20),ISBLANK($H$20)),"",'Substation Location'!E384) -> NWGB PARTINGTON | F28: 2 | G28: =IF(OR(ISBLANK($D$20),ISBLANK($H$20)),"-",'Substation Location'!M384) -> 5.7998131 | H28: =IF(OR(ISBLANK($D$20),ISBLANK($H$20)),"",'Substation Location'!L384) -> BARTON | L28: BSP supply areas
B29: 3 | C29: =IF(OR(ISBLANK($D$20),ISBLANK($H$20)),"-",'Substation Location'!F385) -> 4.81814622 | D29: =IF(OR(ISBLANK($D$20),ISBLANK($H$20)),"",'Substation Location'!E385) -> CHASSEN RD | F29: 3 | G29: =IF(OR(ISBLANK($D$20),ISBLANK($H$20)),"-",'Substation Location'!M385) -> 7.671746868 | H29: =IF(OR(ISBLANK($D$20),ISBLANK($H$20)),"",'Substation Location'!L385) -> ATHERTON
B30: 4 | C30: =IF(OR(ISBLANK($D$20),ISBLANK($H$20)),"-",'Substation Location'!F386) -> 5.389403678 | D30: =IF(OR(ISBLANK($D$20),ISBLANK($H$20)),"",'Substation Location'!E386) -> MOUNT ST | F30: 4 | G30: =IF(OR(ISBLANK($D$20),ISBLANK($H$20)),"-",'Substation Location'!M386) -> 8.356079703 | H30: =IF(OR(ISBLANK($D$20),ISBLANK($H$20)),"",'Substation Location'!L386) -> SALE
B31: 5 | C31: =IF(OR(ISBLANK($D$20),ISBLANK($H$20)),"-",'Substation Location'!F387) -> 5.67270588 | D31: =IF(OR(ISBLANK($D$20),ISBLANK($H$20)),"",'Substation Location'!E387) -> CULCHETH | F31: 5 | G31: =IF(OR(ISBLANK($D$20),ISBLANK($H$20)),"-",'Substation Location'!M387) -> 8.936057296 | H31: =IF(OR(ISBLANK($D$20),ISBLANK($H$20)),"",'Substation Location'!L387) -> ALTRINCHAM
B32: 6 | C32: =IF(OR(ISBLANK($D$20),ISBLANK($H$20)),"-",'Substation Location'!F388) -> 5.808752448 | D32: =IF(OR(ISBLANK($D$20),ISBLANK($H$20)),"",'Substation Location'!E388) -> DUMPLINGTON | F32: 6 | G32: =IF(OR(ISBLANK($D$20),ISBLANK($H$20)),"-",'Substation Location'!M388) -> 9.088916382 | H32: =IF(OR(ISBLANK($D$20),ISBLANK($H$20)),"",'Substation Location'!L388) -> STRETFORD
B33: 7 | C33: =IF(OR(ISBLANK($D$20),ISBLANK($H$20)),"-",'Substation Location'!F389) -> 6.047000248 | D33: =IF(OR(ISBLANK($D$20),ISBLANK($H$20)),"",'Substation Location'!E389) -> BEDFORD | F33: 7 | G33: =IF(OR(ISBLANK($D$20),ISBLANK($H$20)),"-",'Substation Location'!M389) -> 10.11030811 | H33: =IF(OR(ISBLANK($D$20),ISBLANK($H$20)),"",'Substation Location'!L389) -> KEARSLEY LOCAL
B34: 8 | C34: =IF(OR(ISBLANK($D$20),ISBLANK($H$20)),"-",'Substation Location'!F390) -> 6.091237149 | D34: =IF(OR(ISBLANK($D$20),ISBLANK($H$20)),"",'Substation Location'!E390) -> URMSTON | F34: 8 | G34: =IF(OR(ISBLANK($D$20),ISBLANK($H$20)),"-",'Substation Location'!M390) -> 10.54566589 | H34: =IF(OR(ISBLANK($D$20),ISBLANK($H$20)),"",'Substation Location'!L390) -> GOLBORNE
B35: 9 | C35: =IF(OR(ISBLANK($D$20),ISBLANK($H$20)),"-",'Substation Location'!F391) -> 6.231318079 | D35: =IF(OR(ISBLANK($D$20),ISBLANK($H$20)),"",'Substation Location'!E391) -> MONTON | F35: 9 | G35: =IF(OR(ISBLANK($D$20),ISBLANK($H$20)),"-",'Substation Location'!M391) -> 10.88312464 | H35: =IF(OR(ISBLANK($D$20),ISBLANK($H$20)),"",'Substation Location'!L391) -> AGECROFT
B36: 10 | C36: =IF(OR(ISBLANK($D$20),ISBLANK($H$20)),"-",'Substation Location'!F392) -> 6.382263705 | D36: =IF(OR(ISBLANK($D$20),ISBLANK($H$20)),"",'Substation Location'!E392) -> LEIGH | F36: 10 | G36: =IF(OR(ISBLANK($D$20),ISBLANK($H$20)),"-",'Substation Location'!M392) -> 11.18073795 | H36: =IF(OR(ISBLANK($D$20),ISBLANK($H$20)),"",'Substation Location'!L392) -> FREDERICK RD

Sheet LCT Profiles
A8: EV Charging Demand Profiles
F11: 00:00:00 | G11: 00:30:00 | H11: 01:00:00 | I11: 01:30:00 | J11: 02:00:00 | K11: 02:30:00 | L11: 03:00:00 | M11: 03:30:00 | N11: 04:00:00 | O11: 04:30:00 | P11: 05:00:00 | Q11: 05:30:00 | R11: 06:00:00 | S11: 06:30:00 | T11: 07:00:00 | U11: 07:30:00 | V11: 08:00:00 | W11: 08:30:00 | X11: 09:00:00 | Y11: 09:30:00 | Z11: 10:00:00 | AA11: 10:30:00 | AB11: 11:00:00 | AC11: 11:30:00 | AD11: 12:00:00 | AE11: 12:30:00 | AF11: 13:00:00 | AG11: 13:30:00 | AH11: 14:00:00 | AI11: 14:30:00 | AJ11: 15:00:00 | AK11: 15:30:00 | AL11: 16:00:00 | AM11: 16:30:00 | AN11: 17:00:00 | AO11: 17:30:00 | AP11: 18:00:00 | AQ11: 18:30:00 | AR11: 19:00:00 | AS11: 19:30:00 | AT11: 20:00:00 | AU11: 20:30:00 | AV11: 21:00:00 | AW11: 21:30:00 | AX11: 22:00:00 | AY11: 22:30:00 | AZ11: 23:00:00 | BA11: 23:30:00
E12: 2023 | F12: 44.15897597 | G12: 39.44169164 | H12: 33.937679 | I12: 28.66300116 | J12: 24.58779378 | K12: 20.65045674 | L12: 17.72140498 | M12: 14.65413885 | N12: 12.42871398 | O12: 10.2289265 | P12: 8.568235056 | Q12: 7.639852283 | R12: 7.381477494 | S12: 7.152304727 | T12: 8.114755319 | U12: 9.239904654 | V12: 10.74215651 | W12: 13.13187527 | X12: 15.68155841 | Y12: 17.80230922 | Z12: 18.94422959 | AA12: 20.28196104 | AB12: 21.72885058 | AC12: 23.28236381 | AD12: 24.98572873 | AE12: 26.43723714 | AF12: 27.58091015 | AG12: 28.64896183 | AH12: 29.22886603 | AI12: 30.38305399 | AJ12: 32.80057579 | AK12: 36.69996353 | AL12: 42.97315717 | AM12: 49.78449553 | AN12: 57.75488841 | AO12: 65.68376441 | AP12: 73.42924604 | AQ12: 78.86516951 | AR12: 80.41648778 | AS12: 80.30418917 | AT12: 77.79564158 | AU12: 75.08076086 | AV12: 71.26056063 | AW12: 67.31935661 | AX12: 63.32852476 | AY12: 58.83695812 | AZ12: 53.7712002 | BA12: 48.53142028
E13: 2030 | F13: 47.6712061 | G13: 53.01506835 | H13: 51.04376691 | I13: 47.21056547 | J13: 43.66877386 | K13: 38.22134727 | L13: 33.97426938 | M13: 29.01893359 | N13: 25.11695356 | O13: 20.26056931 | P13: 15.80474692 | Q13: 13.38788469 | R13: 11.84577164 | S13: 9.600635666 | T13: 9.614351866 | U13: 9.319189938 | V13: 8.221309914 | W13: 9.630240152 | X13: 10.25301148 | Y13: 10.91910419 | Z13: 11.42869977 | AA13: 12.27586098 | AB13: 12.80205937 | AC13: 13.50800304 | AD13: 14.34404997 | AE13: 14.76960368 | AF13: 15.13869638 | AG13: 15.79582461 | AH13: 15.83312575 | AI13: 15.74580717 | AJ13: 16.02631297 | AK13: 15.18821271 | AL13: 15.30219271 | AM13: 18.54490981 | AN13: 21.73355413 | AO13: 25.09545005 | AP13: 28.39538512 | AQ13: 33.31254651 | AR13: 37.92717568 | AS13: 37.76989532 | AT13: 37.58580908 | AU13: 37.98437914 | AV13: 37.71483202 | AW13: 37.27580134 | AX13: 37.05016424 | AY13: 36.70669079 | AZ13: 38.46845176 | BA13: 39.42398717
E14: 2050 | F14: 42.29563024 | G14: 47.82570997 | H14: 46.40394661 | I14: 43.07761519 | J14: 39.90213536 | K14: 34.81769153 | L14: 30.93501813 | M14: 26.41470439 | N14: 22.89826883 | O14: 18.43698281 | P14: 14.34855241 | Q14: 12.09167545 | R14: 10.64295013 | S14: 8.503815775 | T14: 8.423308182 | U14: 8.008217112 | V14: 6.862726938 | W14: 7.967037856 | X14: 8.363164608 | Y14: 8.898116992 | Z14: 9.293295295 | AA14: 9.973589167 | AB14: 10.36072072 | AC14: 10.89924833 | AD14: 11.55676102 | AE14: 11.8698833 | AF14: 12.13211381 | AG14: 12.69277453 | AH14: 12.68359922 | AI14: 12.41614769 | AJ14: 12.46623098 | AK14: 11.02341849 | AL14: 10.46618031 | AM14: 12.92158363 | AN14: 15.32285013 | AO14: 17.9029027 | AP14: 20.42092102 | AQ14: 25.12061569 | AR14: 29.53996433 | AS14: 29.59927112 | AT14: 29.61483186 | AU14: 30.24492688 | AV14: 30.30192768 | AW14: 30.2249677 | AX14: 30.36165406 | AY14: 30.49705548 | AZ14: 32.62182601 | BA14: 33.98328829
A35: Further References
A36: EV Charging Behaviour Study - Element Energy
A37: REFLECT NIA project documentation - Electricity North West
A39: Heat Pump Demand Profiles
F43: 00:00:00 | G43: 00:30:00 | H43: 01:00:00 | I43: 01:30:00 | J43: 02:00:00 | K43: 02:30:00 | L43: 03:00:00 | M43: 03:30:00 | N43: 04:00:00 | O43: 04:30:00 | P43: 05:00:00 | Q43: 05:30:00 | R43: 06:00:00 | S43: 06:30:00 | T43: 07:00:00 | U43: 07:30:00 | V43: 08:00:00 | W43: 08:30:00 | X43: 09:00:00 | Y43: 09:30:00 | Z43: 10:00:00 | AA43: 10:30:00 | AB43: 11:00:00 | AC43: 11:30:00 | AD43: 12:00:00 | AE43: 12:30:00 | AF43: 13:00:00 | AG43: 13:30:00 | AH43: 14:00:00 | AI43: 14:30:00 | AJ43: 15:00:00 | AK43: 15:30:00 | AL43: 16:00:00 | AM43: 16:30:00 | AN43: 17:00:00 | AO43: 17:30:00 | AP43: 18:00:00 | AQ43: 18:30:00 | AR43: 19:00:00 | AS43: 19:30:00 | AT43: 20:00:00 | AU43: 20:30:00 | AV43: 21:00:00 | AW43: 21:30:00 | AX43: 22:00:00 | AY43: 22:30:00 | AZ43: 23:00:00 | BA43: 23:30:00
E44: 2023 | F44: 68.87411143 | G44: 68.87411143 | H44: 68.87411143 | I44: 68.96091689 | J44: 69.13867533 | K44: 69.26321273 | L44: 71.56123664 | M44: 69.80366806 | N44: 70.96372223 | O44: 72.42932068 | P44: 81.99101178 | Q44: 91.55708286 | R44: 101.0369133 | S44: 108.2004794 | T44: 107.1135844 | U44: 106.9687699 | V44: 101.3882051 | W44: 93.4004578 | X44: 86.18345496 | Y44: 77.69913773 | Z44: 74.91677624 | AA44: 75.33627233 | AB44: 74.66102959 | AC44: 74.22212199 | AD44: 73.73996899 | AE44: 73.6428616 | AF44: 73.5866948 | AG44: 74.10928219 | AH44: 80.32302564 | AI44: 87.37815164 | AJ44: 94.22208668 | AK44: 100.6580557 | AL44: 101.1266787 | AM44: 103.4862507 | AN44: 106.0782851 | AO44: 106.1253159 | AP44: 103.9098291 | AQ44: 99.3018951 | AR44: 96.78029198 | AS44: 95.53687925 | AT44: 97.25644563 | AU44: 99.15473359 | AV44: 98.33526314 | AW44: 97.13974925 | AX44: 90.28907959 | AY44: 82.58785539 | AZ44: 75.38551035 | BA44: 68.87411143
E45: 2030 | F45: 57.49300198 | G45: 57.49300198 | H45: 57.49300198 | I45: 57.99113292 | J45: 57.99567433 | K45: 58.1679581 | L45: 59.28494301 | M45: 58.69873981 | N45: 59.65429243 | O45: 61.16164921 | P45: 68.35895251 | Q45: 72.68024676 | R45: 79.15812738 | S45: 84.93236564 | T45: 84.71242004 | U45: 87.88169599 | V45: 83.62890322 | W45: 77.13089291 | X45: 71.22049305 | Y45: 64.76942322 | Z45: 63.22399818 | AA45: 63.40601299 | AB45: 63.02549723 | AC45: 62.40144879 | AD45: 62.24363549 | AE45: 62.36658182 | AF45: 62.18054398 | AG45: 62.93612201 | AH45: 68.59545018 | AI45: 74.96701743 | AJ45: 81.55957082 | AK45: 87.09321551 | AL45: 87.334938 | AM45: 88.26961302 | AN45: 89.12608696 | AO45: 88.24415941 | AP45: 86.61979105 | AQ45: 83.52959463 | AR45: 81.91538647 | AS45: 80.71082794 | AT45: 81.05159105 | AU45: 81.98232712 | AV45: 81.09160362 | AW45: 80.96509205 | AX45: 75.29965069 | AY45: 69.03576787 | AZ45: 63.00467614 | BA45: 57.49300198
E46: 2050 | F46: 56.68154226 | G46: 56.68154226 | H46: 56.68154226 | I46: 57.13893315 | J46: 57.15439298 | K46: 57.31875339 | L46: 58.478612 | M46: 57.83568024 | N46: 58.77727937 | O46: 60.23972035 | P46: 67.40589011 | Q46: 71.9632989 | R46: 78.47086259 | S46: 84.17732205 | T46: 83.89105756 | U46: 86.75893606 | V46: 82.5281005 | W46: 76.1124263 | X46: 70.28266248 | Y46: 63.86140009 | Z46: 62.27309464 | AA46: 62.4657655 | AB46: 62.07648341 | AC46: 61.48182113 | AD46: 61.307542 | AE46: 61.41280226 | AF46: 61.24062002 | AG46: 61.95937244 | AH46: 67.49687209 | AI46: 73.73269025 | AJ46: 80.15500136 | AK46: 85.59164747 | AL46: 85.84136585 | AM46: 86.86380208 | AN46: 87.82782778 | AO46: 87.02802608 | AP46: 85.41151957 | AQ46: 82.29842887 | AR46: 80.6756191 | AS46: 79.50406375 | AT46: 79.92180766 | AU46: 80.88318045 | AV46: 80.02463264 | AW46: 79.84490873 | AX46: 74.26179123 | AY46: 68.07688558 | AZ46: 62.11346621 | BA46: 56.68154226
A68: Further References
A69: Demand Scenario NIA project documentation - Electricity North West

Sheet INTERACTIVE GRAPH TOOLS >>>>
B3: Interactive Graph Tools
B11: CONTENTS
B13: Section | C13: Tab | D13: Short Description
B14: CHARTS | C14: Single Primary Charts | D14: Charts which plot minimum/maximum demand, DG/storage capacity and EV/HP volumes for a single primary substation supply area
C15: Single BSP Charts | D15: Charts which plot minimum/maximum demand, DG/storage capacity and EV/HP volumes for a single BSP supply area
C16: Multiple Primary Charts | D16: Charts which plot aggregated minimum/maximum demand, DG/storage capacity and EV/HP volumes for multiple primary substation supply areas
C18: Multiple BSP Charts | D18: Charts which plot aggregated minimum/maximum demand, DG/storage capacity and EV/HP volumes for multiple BSP supply areas
C19: Local Authority Charts | D19: Charts which plot aggregated minimum/maximum demand, DG/storage capacity and EV/HP volumes, carbon saving per Local Authority

Sheet Single BSP charts
B2: Bulk Supply Point Forecast Charts
B5: These charts show the forecasts for a single bulk supply point (BSP). You can choose a BSP to view by using the drop down box below. If you would like to understand more about which BSPs are located in the area you are interested in, head to our geographical information worksheet. This charts plot our DFES forecast charts for minimum demand, maximum demand, installed distributed generation capacity, installed storage capacity, uptake of electric vehicles and uptake of heat pumps.
B8: Select BSP | D8: Select a BSP
B122: Select a BSP
B123: Adswood
B124: Agecroft
B125: Altrincham
B126: Atherton
B127: Barrow & Sandgate
B128: Barton
B129: Belfield
B130: Bispham
B131: Blackburn
B132: Blackpool
B133: Bloom St
B134: Bolton
B135: Burnley
B136: Bury
B137: Buxton
B138: Carlisle
B139: Carlisle North
B140: Carrington BSP
B141: Castleton
B142: Chadderton
B143: Droylsden
B144: Egremont
B145: Frederick Rd
B146: Golborne
B147: Greenhill
B148: Hartshead-Heyrod
B149: Hazel Grove
B150: Huncoat
B151: Hyde
B152: Kendal (Parkside Rd)
B153: Lancaster
B154: Leyland
B155: Longsight
B156: Lower Darwen
B157: Lytham
B158: Moss Nook
B159: Moss Nook Primary
B160: Nelson
B161: New Mills
B162: Orrell
B163: Padiham
B164: Peel
B165: Penrith & Shap
B166: Preston East
B167: Radcliffe
B168: Red Bank
B169: Ribble
B170: Risley
B171: Rochdale Central
B172: Rossendale
B173: Royton
B174: Sale
B175: Skelmersdale
B176: Spadeadam 11/33kV
B177: Spadeadam 132/11kV
B178: Stainburn & Siddick
B179: Stretford
B180: Stuart St
B181: Thornton
B182: Trimpell
B183: Ulverston
B184: Vernon Park
B185: West Didsbury
B186: Westhoughton
B187: Wigan
B188: Wrightington

Sheet Single Primary charts
B3: Primary Substation Forecast Charts
B7: These charts show the forecasts for a single primary substation. You can choose a primary substation to view by using the drop down box below. If you would like to understand more about which primary substations are located in the area you are interested in, head to our geographical information worksheet. The charts plot our DFES charts for minimum and maximum demand, installed distributed generation capacity, installed storage capacity, uptake of electric vehicles and uptake of heat pumps.
B11: Select Primary Substation | D11: Select a Primary
B125: Select a Primary
B126: Albion St
B127: Alderley & Chelford
B128: Alston
B129: Ambleside
B130: Ancoats North T11 & T12
B131: Ancoats North T14
B132: Annie Pit
B133: Ansdell
B134: Ardwick
B135: Arnside
B136: Ashton (Golborne)
B137: Ashton (Ribble)
B138: Ashton On Mersey
B139: Ashton Under Lyne T11 & T12
B140: Ashton Under Lyne T13
B141: Ashwood Dale
B142: Askam & Dalton
B143: Askerton Castle
B144: Aspatria
B145: Atherton Town Centre
B146: Athletic St
B147: Avenham
B148: Baguley
B149: Bamber Bridge
B150: Barbara St
B151: Barrow
B152: Barton Dock Rd
B153: Bedford
B154: Belgrave
B155: Benchill
B156: Bentham
B157: Bispham
B158: Blackbull
B159: Blackburn
B160: Blackburn Rd Clayton
B161: Blackfriars
B162: Blackley
B163: Blackpool
B164: Bollington
B165: Bolton By Bowland
B166: Bolton Le Sands
B167: Botany Bay
B168: Bow Lane
B169: Bowaters
B170: Bowdon
B171: Bradford
B172: Bradshawgate
B173: Bramhall
B174: Bridgewater
B175: Brinksway
B176: Broadheath
B177: Broadway
B178: Buckshaw
B179: Burnley
B180: Burnley Centre
B181: Burnley North
B182: Burrow Beck
B183: Burscough Bridge
B184: Bury Town Centre
B185: Campbell St
B186: Cannon St
B187: Capontree
B188: Carleton
B189: Carlisle North
B190: Carr St
B191: Castleton
B192: Catterall Waterworks
B193: Cecil St
B194: Central Manchester
B195: Chadderton
B196: Chamberhall
B197: Chapel Wharf
B198: Chassen Rd
B199: Chatsworth St
B200: Cheadle Heath
B201: Cheadle Hulme
B202: Cheetham Hill
B203: Chester Rd T11 & T12
B204: Chester Rd T13
B205: Chorley South
B206: Chorlton
B207: Church
B208: Circle Square
B209: Clarendon Rd
B210: Claughton
B211: Cleveleys
B212: Clifton Junction
B213: Clover Hill
B214: Cog Lane
B215: Coniston
B216: Copse Rd
B217: Cox Green
B218: Craggs Row & Bushell St
B219: Crown Lane
B220: Culcheth
B221: Cutacre
B222: Deansgate
B223: Denton East
B224: Denton West
B225: Dickinson St
B226: Didsbury
B227: Dodgson Rd
B228: Douglas St
B229: Droylsden East
B230: Dukinfield
B231: Dumers Lane
B232: Dumplington
B233: Eastlands
B234: Easton
B235: Egremont
B236: Embleton
B237: Exchange St
B238: Failsworth
B239: Fallowfield
B240: Farnworth
B241: Feniscowles
B242: Ferodo
B243: Flat Lane
B244: Frederick Rd
B245: Fusehill
B246: Gale
B247: Garstang
B248: Gatley
B249: Gidlow
B250: Gillsrow
B251: Glaxo
B252: Glossop
B253: Golborne
B254: Gowhole
B255: Grane Rd & Prinny Hill
B256: Grange
B257: Great Harwood
B258: Green Lane (Altrincham)
B259: Green Lane (Hazel Grove)
B260: Green St T11
B261: Green St T12 & T13
B262: Greenfield
B263: Greenhill
B264: Griffin
B265: Hadfield
B266: Hall Cross
B267: Handforth
B268: Hanging Bridge
B269: Hareholme
B270: Harpurhey
B271: Harwood
B272: Hattersley
B273: Haverthwaite
B274: Hawk Green
B275: Haydock
B276: HDA No1 & HDA No2
B277: Heady Hill
B278: Heap Bridge
B279: Heasandford
B280: Heaton Moor
B281: Heaton Norris
B282: Helwith Bridge
B283: Hensingham
B284: Heyrod
B285: Heyside
B286: Heywood
B287: Higher Mill
B288: Higher Walton
B289: Hill Top T11 & T12
B290: Hill Top T13
B291: Hindley Green
B292: Hollinwood
B293: Holme Rd
B294: Holt St
B295: Hurst
B296: Hutton End & Skelton C
B297: Hyde
B298: Hyndburn Rd
B299: India St
B300: Ingleton
B301: Irlam
B302: James St
B303: Kay St
B304: Kendal
B305: Keswick
B306: Kingsway
B307: Kinkry Hill
B308: Kirkby Lonsdale
B309: Kirkby Moor
B310: Kirkby Stephen
B311: Kirkby Thore
B312: Kirkhall Lane
B313: Kitt Green
B314: Knott Mill
B315: Lamberhead
B316: Lancaster
B317: Langley
B318: Langroyd Rd
B319: Leigh
B320: Levenshulme
B321: Leyland National
... 170 more rows

Sheet Multiple BSP charts
D2: Multiple Bulk Supply Points Forecast Charts
B4: These charts aggregate the forecasts for multiple bulk supply points (BSP). You can choose multiple BSPs to view by using the drop down boxes below. You can also choose whether to include a BSP in the charts by selecting "yes" or "no" in the box to the right of the BSP name. If you would like to understand more about which primary substations are located in the area you are interested in, head to our geographical information worksheet. The charts plot our DFES charts for minimum demand, maximum demand, installed distributed generation capacity, installed storage capacity, uptake of electric vehicles and uptake of heat pumps.
D7: Select BSP | E7: BSP Included
D8: Select a BSP | E8: No
B9: =IF(AND(COUNTIF(D8:D17,D9)>1,D9<>"Select a BSP"),"Duplicate BSP entered","") ->  | D9: Select a BSP | E9: No
B10: =IF(AND(COUNTIF(D8:D17,D10)>1,D10<>"Select a BSP"),"Duplicate BSP entered","") ->  | D10: Select a BSP | E10: No
B11: =IF(AND(COUNTIF(D8:D17,D11)>1,D11<>"Select a BSP"),"Duplicate BSP entered","") ->  | D11: Select a BSP | E11: No
B12: =IF(AND(COUNTIF(D8:D17,D12)>1,D12<>"Select a BSP"),"Duplicate BSP entered","") ->  | D12: Select a BSP | E12: No
B13: =IF(AND(COUNTIF(D8:D17,D13)>1,D13<>"Select a BSP"),"Duplicate BSP entered","") ->  | D13: Select a BSP | E13: No
B14: =IF(AND(COUNTIF(D8:D17,D14)>1,D14<>"Select a BSP"),"Duplicate BSP entered","") ->  | D14: Select a BSP | E14: No
B15: =IF(AND(COUNTIF(D8:D17,D15)>1,D15<>"Select a BSP"),"Duplicate BSP entered","") ->  | D15: Select a BSP | E15: No
B16: =IF(AND(COUNTIF(D8:D17,D16)>1,D16<>"Select a BSP"),"Duplicate BSP entered","") ->  | D16: Select a BSP | E16: No
B17: =IF(AND(COUNTIF(D8:D17,D17)>1,D17<>"Select a BSP"),"Duplicate BSP entered","") ->  | D17: Select a BSP | E17: No
AK133: Select a BSP
AK134: Adswood
AK135: Agecroft
AK136: Altrincham
AK137: Atherton
AK138: Barrow & Sandgate
AK139: Barton
AK140: Belfield
AK141: Bispham
AK142: Blackburn
AK143: Blackpool
AK144: Bloom St
AK145: Bolton
AK146: Burnley
AK147: Bury
AK148: Buxton
AK149: Carlisle
AK150: Carlisle North
AK151: Carrington BSP
AK152: Castleton
AK153: Chadderton
AK154: Droylsden
AK155: Egremont
AK156: Frederick Rd
AK157: Golborne
AK158: Greenhill
AK159: Hartshead-Heyrod
AK160: Hazel Grove
AK161: Huncoat
AK162: Hyde
AK163: Kendal (Parkside Rd)
AK164: Lancaster
AK165: Leyland
AK166: Longsight
AK167: Lower Darwen
AK168: Lytham
AK169: Moss Nook
AK170: Moss Nook Primary
AK171: Nelson
AK172: New Mills
AK173: Orrell
AK174: Padiham
AK175: Peel
AK176: Penrith & Shap
AK177: Preston East
AK178: Radcliffe
AK179: Red Bank
AK180: Ribble
AK181: Risley
AK182: Rochdale Central
AK183: Rossendale
AK184: Royton
AK185: Sale
AK186: Skelmersdale
AK187: Spadeadam 11/33kV
AK188: Spadeadam 132/11kV
AK189: Stainburn & Siddick
AK190: Stretford
AK191: Stuart St
AK192: Thornton
AK193: Trimpell
AK194: Ulverston
AK195: Vernon Park
AK196: West Didsbury
AK197: Westhoughton
AK198: Wigan
AK199: Wrightington

Sheet Multiple Primary charts
D2: Multiple Primary Substation Forecast Charts
B4: These charts aggregate the forecasts for multiple primary substations. You can choose multiple primary substations to view by using the drop down boxes below. You can also choose whether to include a primary substation in the charts by selecting "yes" or "no" in the box to the right of the primary name. If you would like to understand more about which primary substations are located in the area you are interested in, head to our geographical information worksheet. The charts plot our DFES charts for minimum demand, maximum demand, installed distributed generation capacity, installed storage capacity, uptake of electric vehicles and uptake of heat pumps.
D7: Select Primary Substation | E7: Primary Included | F7: #
D8: Select a Primary | E8: No
B9: =IF(AND(COUNTIF($D$8:$D$17,D9)>1,D9<>"Select a Primary"),"Duplicate primary entered","") ->  | D9: Select a Primary | E9: No
B10: =IF(AND(COUNTIF($D$8:$D$17,D10)>1,D10<>"Select a Primary"),"Duplicate primary entered","") ->  | D10: Select a Primary | E10: No
D11: Select a Primary | E11: No
D12: Select a Primary | E12: No
D13: Select a Primary | E13: No
D14: Select a Primary | E14: No
D15: Select a Primary | E15: No
D16: Select a Primary | E16: No
B17: =IF(AND(COUNTIF($D$8:$D$17,D17)>1,D17<>"Select a Primary"),"Duplicate primary entered","") ->  | D17: Select a Primary | E17: No
AK135: PRIMARY LIST - DO NOT MODIFY
AK136: Albion St
AK137: Alderley & Chelford
AK138: Alston
AK139: Ambleside
AK140: Ancoats North T11 & T12
AK141: Ancoats North T14
AK142: Annie Pit
AK143: Ansdell
AK144: Ardwick
AK145: Arnside
AK146: Ashton (Golborne)
AK147: Ashton (Ribble)
AK148: Ashton On Mersey
AK149: Ashton Under Lyne T11 & T12
AK150: Ashton Under Lyne T13
AK151: Ashwood Dale
AK152: Askam & Dalton
AK153: Askerton Castle
AK154: Aspatria
AK155: Atherton Town Centre
AK156: Athletic St
AK157: Avenham
AK158: Baguley
AK159: Bamber Bridge
AK160: Barbara St
AK161: Barrow
AK162: Barton Dock Rd
AK163: Bedford
AK164: Belgrave
AK165: Benchill
AK166: Bentham
AK167: Bispham
AK168: Blackbull
AK169: Blackburn
AK170: Blackburn Rd Clayton
AK171: Blackfriars
AK172: Blackley
AK173: Blackpool
AK174: Bollington
AK175: Bolton By Bowland
AK176: Bolton Le Sands
AK177: Botany Bay
AK178: Bow Lane
AK179: Bowaters
AK180: Bowdon
AK181: Bradford
AK182: Bradshawgate
AK183: Bramhall
AK184: Bridgewater
AK185: Brinksway
AK186: Broadheath
AK187: Broadway
AK188: Buckshaw
AK189: Burnley
AK190: Burnley Centre
AK191: Burnley North
AK192: Burrow Beck
AK193: Burscough Bridge
AK194: Bury Town Centre
AK195: Campbell St
AK196: Cannon St
AK197: Capontree
AK198: Carleton
AK199: Carlisle North
AK200: Carr St
AK201: Castleton
AK202: Catterall Waterworks
AK203: Cecil St
AK204: Central Manchester
AK205: Chadderton
AK206: Chamberhall
AK207: Chapel Wharf
AK208: Chassen Rd
AK209: Chatsworth St
AK210: Cheadle Heath
AK211: Cheadle Hulme
AK212: Cheetham Hill
AK213: Chester Rd T11 & T12
AK214: Chester Rd T13
AK215: Chorley South
AK216: Chorlton
AK217: Church
AK218: Circle Square
AK219: Clarendon Rd
AK220: Claughton
AK221: Cleveleys
AK222: Clifton Junction
AK223: Clover Hill
AK224: Cog Lane
AK225: Coniston
AK226: Copse Rd
AK227: Cox Green
AK228: Craggs Row & Bushell St
AK229: Crown Lane
AK230: Culcheth
AK231: Cutacre
AK232: Deansgate
AK233: Denton East
AK234: Denton West
AK235: Dickinson St
AK236: Didsbury
AK237: Dodgson Rd
AK238: Douglas St
AK239: Droylsden East
AK240: Dukinfield
AK241: Dumers Lane
AK242: Dumplington
AK243: Eastlands
AK244: Easton
AK245: Egremont
AK246: Embleton
AK247: Exchange St
AK248: Failsworth
AK249: Fallowfield
AK250: Farnworth
AK251: Feniscowles
AK252: Ferodo
AK253: Flat Lane
AK254: Frederick Rd
AK255: Fusehill
AK256: Gale
AK257: Garstang
AK258: Gatley
AK259: Gidlow
AK260: Gillsrow
AK261: Glaxo
AK262: Glossop
AK263: Golborne
AK264: Gowhole
AK265: Grane Rd & Prinny Hill
AK266: Grange
AK267: Great Harwood
AK268: Green Lane (Altrincham)
AK269: Green Lane (Hazel Grove)
AK270: Green St T11
AK271: Green St T12 & T13
AK272: Greenfield
AK273: Greenhill
AK274: Griffin
AK275: Hadfield
AK276: Hall Cross
AK277: Handforth
AK278: Hanging Bridge
AK279: Hareholme
AK280: Harpurhey
AK281: Harwood
AK282: Hattersley
AK283: Haverthwaite
AK284: Hawk Green
AK285: Haydock
AK286: HDA No1 & HDA No2
AK287: Heady Hill
AK288: Heap Bridge
AK289: Heasandford
AK290: Heaton Moor
AK291: Heaton Norris
AK292: Helwith Bridge
AK293: Hensingham
AK294: Heyrod
AK295: Heyside
AK296: Heywood
AK297: Higher Mill
AK298: Higher Walton
AK299: Hill Top T11 & T12
AK300: Hill Top T13
AK301: Hindley Green
AK302: Hollinwood
AK303: Holme Rd
AK304: Holt St
AK305: Hurst
AK306: Hutton End & Skelton C
AK307: Hyde
AK308: Hyndburn Rd
AK309: India St
AK310: Ingleton
AK311: Irlam
AK312: James St
AK313: Kay St
AK314: Kendal
AK315: Keswick
AK316: Kingsway
AK317: Kinkry Hill
AK318: Kirkby Lonsdale
AK319: Kirkby Moor
AK320: Kirkby Stephen
AK321: Kirkby Thore
... 180 more rows

Sheet Local Authority charts
B3: Local Authority Forecast Charts
B7: These charts show the forecasts for a single Local Authority. You can choose a Local Authority to view by using the drop down box below.
B11: Select Local Authority | D11: Select a LA | K11: Select DFES Scenario | M11: Consumer Transformation
K12: Select LCT or Generation | M12: Domestic Energy
J33: The numerical data shown in the graph above are reported also below for easy access
J34: Year | K34: 2022 | L34: 2023 | M34: 2024 | N34: 2025 | O34: 2026 | P34: 2027 | Q34: 2028 | R34: 2029 | S34: 2030 | T34: 2031 | U34: 2032 | V34: 2033 | W34: 2034 | X34: 2035 | Y34: 2036 | Z34: 2037 | AA34: 2038 | AB34: 2039 | AC34: 2040 | AD34: 2041 | AE34: 2042 | AF34: 2043 | AG34: 2044 | AH34: 2045 | AI34: 2046 | AJ34: 2047 | AK34: 2048 | AL34: 2049
J35: =Single_LA_Chart_Data_Names!G6 -> Energy [GWh] | K35: =Single_LA_Chart_Data_Names!F15 ->  | L35: =Single_LA_Chart_Data_Names!G15 ->  | M35: =Single_LA_Chart_Data_Names!H15 ->  | N35: =Single_LA_Chart_Data_Names!I15 ->  | O35: =Single_LA_Chart_Data_Names!J15 ->  | P35: =Single_LA_Chart_Data_Names!K15 ->  | Q35: =Single_LA_Chart_Data_Names!L15 ->  | R35: =Single_LA_Chart_Data_Names!M15 ->  | S35: =Single_LA_Chart_Data_Names!N15 ->  | T35: =Single_LA_Chart_Data_Names!O15 ->  | U35: =Single_LA_Chart_Data_Names!P15 ->  | V35: =Single_LA_Chart_Data_Names!Q15 ->  | W35: =Single_LA_Chart_Data_Names!R15 ->  | X35: =Single_LA_Chart_Data_Names!S15 ->  | Y35: =Single_LA_Chart_Data_Names!T15 ->  | Z35: =Single_LA_Chart_Data_Names!U15 ->  | AA35: =Single_LA_Chart_Data_Names!V15 ->  | AB35: =Single_LA_Chart_Data_Names!W15 ->  | AC35: =Single_LA_Chart_Data_Names!X15 ->  | AD35: =Single_LA_Chart_Data_Names!Y15 ->  | AE35: =Single_LA_Chart_Data_Names!Z15 ->  | AF35: =Single_LA_Chart_Data_Names!AA15 ->  | AG35: =Single_LA_Chart_Data_Names!AB15 ->  | AH35: =Single_LA_Chart_Data_Names!AC15 ->  | AI35: =Single_LA_Chart_Data_Names!AD15 ->  | AJ35: =Single_LA_Chart_Data_Names!AE15 ->  | AK35: =Single_LA_Chart_Data_Names!AF15 ->  | AL35: =Single_LA_Chart_Data_Names!AG15 -> 
B127: Select a Primary
B128: Albion St
B129: Alderley & Chelford
B130: Alston
B131: Ambleside
B132: Ancoats North T11 & T12
B133: Ancoats North T14
B134: Annie Pit
B135: Ansdell
B136: Ardwick
B137: Arnside
B138: Ashton (Golborne)
B139: Ashton (Ribble)
B140: Ashton On Mersey
B141: Ashton Under Lyne T11 & T12
B142: Ashton Under Lyne T13
B143: Ashwood Dale
B144: Askam & Dalton
B145: Askerton Castle
B146: Aspatria
B147: Atherton Town Centre
B148: Athletic St
B149: Avenham
B150: Baguley
B151: Bamber Bridge
B152: Barbara St
B153: Barrow
B154: Barton Dock Rd
B155: Bedford
B156: Belgrave
B157: Benchill
B158: Bentham
B159: Bispham
B160: Blackbull
B161: Blackburn
B162: Blackburn Rd Clayton
B163: Blackfriars
B164: Blackley
B165: Blackpool
B166: Bollington
B167: Bolton By Bowland
B168: Bolton Le Sands
B169: Botany Bay
B170: Bow Lane
B171: Bowaters
B172: Bowdon
B173: Bradford
B174: Bradshawgate
B175: Bramhall
B176: Bridgewater
B177: Brinksway
B178: Broadheath
B179: Broadway
B180: Buckshaw
B181: Burnley
B182: Burnley Centre
B183: Burnley North
B184: Burrow Beck
B185: Burscough Bridge
B186: Bury Town Centre
B187: Campbell St
B188: Cannon St
B189: Capontree
B190: Carleton
B191: Carlisle North
B192: Carr St
B193: Castleton
B194: Catterall Waterworks
B195: Cecil St
B196: Central Manchester
B197: Chadderton
B198: Chamberhall
B199: Chapel Wharf
B200: Chassen Rd
B201: Chatsworth St
B202: Cheadle Heath
B203: Cheadle Hulme
B204: Cheetham Hill
B205: Chester Rd T11 & T12
B206: Chester Rd T13
B207: Chorley South
B208: Chorlton
B209: Church
B210: Circle Square
B211: Clarendon Rd
B212: Claughton
B213: Cleveleys
B214: Clifton Junction
B215: Clover Hill
B216: Cog Lane
B217: Coniston
B218: Copse Rd
B219: Cox Green
B220: Craggs Row & Bushell St
B221: Crown Lane
B222: Culcheth
B223: Cutacre
B224: Deansgate
B225: Denton East
B226: Denton West
B227: Dickinson St
B228: Didsbury
B229: Dodgson Rd
B230: Douglas St
B231: Droylsden East
B232: Dukinfield
B233: Dumers Lane
B234: Dumplington
B235: Eastlands
B236: Easton
B237: Egremont
B238: Embleton
B239: Exchange St
B240: Failsworth
B241: Fallowfield
B242: Farnworth
B243: Feniscowles
B244: Ferodo
B245: Flat Lane
B246: Frederick Rd
B247: Fusehill
B248: Gale
B249: Garstang
B250: Gatley
B251: Gidlow
B252: Gillsrow
B253: Glaxo
B254: Glossop
B255: Golborne
B256: Gowhole
B257: Grane Rd & Prinny Hill
B258: Grange
B259: Great Harwood
B260: Green Lane (Altrincham)
B261: Green Lane (Hazel Grove)
B262: Green St T11
B263: Green St T12 & T13
B264: Greenfield
B265: Greenhill
B266: Griffin
B267: Hadfield
B268: Hall Cross
B269: Handforth
B270: Hanging Bridge
B271: Hareholme
B272: Harpurhey
B273: Harwood
B274: Hattersley
B275: Haverthwaite
B276: Hawk Green
B277: Haydock
B278: HDA No1 & HDA No2
B279: Heady Hill
B280: Heap Bridge
B281: Heasandford
B282: Heaton Moor
B283: Heaton Norris
B284: Helwith Bridge
B285: Hensingham
B286: Heyrod
B287: Heyside
B288: Heywood
B289: Higher Mill
B290: Higher Walton
B291: Hill Top T11 & T12
B292: Hill Top T13
B293: Hindley Green
B294: Hollinwood
B295: Holme Rd
B296: Holt St
B297: Hurst
B298: Hutton End & Skelton C
B299: Hyde
B300: Hyndburn Rd
B301: India St
B302: Ingleton
B303: Irlam
B304: James St
B305: Kay St
B306: Kendal
B307: Keswick
B308: Kingsway
B309: Kinkry Hill
B310: Kirkby Lonsdale
B311: Kirkby Moor
B312: Kirkby Stephen
B313: Kirkby Thore
B314: Kirkhall Lane
B315: Kitt Green
B316: Knott Mill
B317: Lamberhead
B318: Lancaster
B319: Langley
... 174 more rows

Sheet Single_LA_Chart_Data_Names (hidden)
C2: Names of variable extracted for each LA | D2: Y Axis | E2: Scenario Names | F2: Values DYNAMICALLY updated
C3: Number of EV | D3: EV Number (thousands) | E3: Best View
C4: Number of HP | D4: HP Number (thousands) | E4: System Transformation | F4: Selected LCT row | G4: =MATCH('Local Authority charts'!$M$12,Single_LA_Chart_Data!$B$1:$B$218,0) -> 50
C5: Generation Installed Capacity | D5: Installed Capacity [MW] | E5: Consumer Transformation | F5: Auto Selected Row where to extract data in tab "Single LA Chart Data" | G5: =MATCH('Local Authority charts'!$M$11,INDIRECT(CONCATENATE("Single_LA_Chart_Data!B",G4+1,":","B",G4+5)),0)+G4 -> 54
C6: Domestic Energy | D6: Energy [GWh] | E6: Leading the Way | F6: Y axis name | G6: =VLOOKUP('Local Authority charts'!M12,Single_LA_Chart_Data_Names!$C$3:$D$16,2,0) -> Energy [GWh]
C7: I&C Energy | D7: Energy [GWh] | E7: Falling Short | F7: Variable Chosen | G7: ='Local Authority charts'!$M$12 -> Domestic Energy
C8: EV Energy | D8: Energy [GWh] | F8: Chart Title | G8: =CONCATENATE(G7, " in ", 'Local Authority charts'!$M$11) -> Domestic Energy in Consumer Transformation
C9: HP Energy | D9: Energy [GWh] | E9: Does the value need a rescaling for better visualization | F9: =OR(ISNUMBER(SEARCH("MW",$G$6)),ISNUMBER(SEARCH("tons",$G$6))) -> FALSE
C10: PV Energy | D10: Energy [GWh]
C11: Wind Energy | D11: Energy [GWh] | F11: 3 | G11: =F11+1 -> 4 | H11: 5 | I11: 6 | J11: 7 | K11: 8 | L11: 9 | M11: 10 | N11: 11 | O11: 12 | P11: 13 | Q11: 14 | R11: 15 | S11: 16 | T11: 17 | U11: 18 | V11: 19 | W11: 20 | X11: 21 | Y11: 22 | Z11: 23 | AA11: 24 | AB11: 25 | AC11: 26 | AD11: 27 | AE11: 28 | AF11: 29 | AG11: 30
C12: PV Capacity | D12: Capacity [MW] | F12: 2022 | G12: 2023 | H12: 2024 | I12: 2025 | J12: 2026 | K12: 2027 | L12: 2028 | M12: 2029 | N12: 2030 | O12: 2031 | P12: 2032 | Q12: 2033 | R12: 2034 | S12: 2035 | T12: 2036 | U12: 2037 | V12: 2038 | W12: 2039 | X12: 2040 | Y12: 2041 | Z12: 2042 | AA12: 2043 | AB12: 2044 | AC12: 2045 | AD12: 2046 | AE12: 2047 | AF12: 2048 | AG12: 2049
C13: Wind Capacity | D13: Capacity [MW] | F13: =INDEX(Single_LA_Chart_Data!$A:$AE,Single_LA_Chart_Data_Names!$G$5,Single_LA_Chart_Data_Names!F$11) ->  | G13: =INDEX(Single_LA_Chart_Data!$A:$AE,Single_LA_Chart_Data_Names!$G$5,Single_LA_Chart_Data_Names!G$11) ->  | H13: =INDEX(Single_LA_Chart_Data!$A:$AE,Single_LA_Chart_Data_Names!$G$5,Single_LA_Chart_Data_Names!H$11) ->  | I13: =INDEX(Single_LA_Chart_Data!$A:$AE,Single_LA_Chart_Data_Names!$G$5,Single_LA_Chart_Data_Names!I$11) ->  | J13: =INDEX(Single_LA_Chart_Data!$A:$AE,Single_LA_Chart_Data_Names!$G$5,Single_LA_Chart_Data_Names!J$11) ->  | K13: =INDEX(Single_LA_Chart_Data!$A:$AE,Single_LA_Chart_Data_Names!$G$5,Single_LA_Chart_Data_Names!K$11) ->  | L13: =INDEX(Single_LA_Chart_Data!$A:$AE,Single_LA_Chart_Data_Names!$G$5,Single_LA_Chart_Data_Names!L$11) ->  | M13: =INDEX(Single_LA_Chart_Data!$A:$AE,Single_LA_Chart_Data_Names!$G$5,Single_LA_Chart_Data_Names!M$11) ->  | N13: =INDEX(Single_LA_Chart_Data!$A:$AE,Single_LA_Chart_Data_Names!$G$5,Single_LA_Chart_Data_Names!N$11) ->  | O13: =INDEX(Single_LA_Chart_Data!$A:$AE,Single_LA_Chart_Data_Names!$G$5,Single_LA_Chart_Data_Names!O$11) ->  | P13: =INDEX(Single_LA_Chart_Data!$A:$AE,Single_LA_Chart_Data_Names!$G$5,Single_LA_Chart_Data_Names!P$11) ->  | Q13: =INDEX(Single_LA_Chart_Data!$A:$AE,Single_LA_Chart_Data_Names!$G$5,Single_LA_Chart_Data_Names!Q$11) ->  | R13: =INDEX(Single_LA_Chart_Data!$A:$AE,Single_LA_Chart_Data_Names!$G$5,Single_LA_Chart_Data_Names!R$11) ->  | S13: =INDEX(Single_LA_Chart_Data!$A:$AE,Single_LA_Chart_Data_Names!$G$5,Single_LA_Chart_Data_Names!S$11) ->  | T13: =INDEX(Single_LA_Chart_Data!$A:$AE,Single_LA_Chart_Data_Names!$G$5,Single_LA_Chart_Data_Names!T$11) ->  | U13: =INDEX(Single_LA_Chart_Data!$A:$AE,Single_LA_Chart_Data_Names!$G$5,Single_LA_Chart_Data_Names!U$11) ->  | V13: =INDEX(Single_LA_Chart_Data!$A:$AE,Single_LA_Chart_Data_Names!$G$5,Single_LA_Chart_Data_Names!V$11) ->  | W13: =INDEX(Single_LA_Chart_Data!$A:$AE,Single_LA_Chart_Data_Names!$G$5,Single_LA_Chart_Data_Names!W$11) ->  | X13: =INDEX(Single_LA_Chart_Data!$A:$AE,Single_LA_Chart_Data_Names!$G$5,Single_LA_Chart_Data_Names!X$11) ->  | Y13: =INDEX(Single_LA_Chart_Data!$A:$AE,Single_LA_Chart_Data_Names!$G$5,Single_LA_Chart_Data_Names!Y$11) ->  | Z13: =INDEX(Single_LA_Chart_Data!$A:$AE,Single_LA_Chart_Data_Names!$G$5,Single_LA_Chart_Data_Names!Z$11) ->  | AA13: =INDEX(Single_LA_Chart_Data!$A:$AE,Single_LA_Chart_Data_Names!$G$5,Single_LA_Chart_Data_Names!AA$11) ->  | AB13: =INDEX(Single_LA_Chart_Data!$A:$AE,Single_LA_Chart_Data_Names!$G$5,Single_LA_Chart_Data_Names!AB$11) ->  | AC13: =INDEX(Single_LA_Chart_Data!$A:$AE,Single_LA_Chart_Data_Names!$G$5,Single_LA_Chart_Data_Names!AC$11) ->  | AD13: =INDEX(Single_LA_Chart_Data!$A:$AE,Single_LA_Chart_Data_Names!$G$5,Single_LA_Chart_Data_Names!AD$11) ->  | AE13: =INDEX(Single_LA_Chart_Data!$A:$AE,Single_LA_Chart_Data_Names!$G$5,Single_LA_Chart_Data_Names!AE$11) ->  | AF13: =INDEX(Single_LA_Chart_Data!$A:$AE,Single_LA_Chart_Data_Names!$G$5,Single_LA_Chart_Data_Names!AF$11) ->  | AG13: =INDEX(Single_LA_Chart_Data!$A:$AE,Single_LA_Chart_Data_Names!$G$5,Single_LA_Chart_Data_Names!AG$11) -> 
C14: Carbon Savings | D14: Carbon emission [tons] | E14: To use in the graph only - to show the right value in the y axis considering a 1000 multiplier | F14: =IF($F$9,F13*1000,F13) ->  | G14: =IF($F$9,G13*1000,G13) -> 
C15: Total Generation Capacity | D15: Capacity [MW] | E15: To show below the graph in Single LA Chart Data | F15: =F14/1000 ->  | G15: =G14/1000 -> 
C16: Total Energy Demand | D16: Energy [GWh]
C17: Other variable if you want to
C28: LCT row
C29: Final Row

Sheet LA Energy Demand
B8: * includes energy consumption from all the demand types (i.e., domestic, I&C, all heat pumps types, all air conditioning types, all EV types, large industry and connections)
C10: Best View | AG10: Falling Short | BK10: System Transformation | CO10: Consumer Transformation | DS10: Leading the Way
A11: County | B11: Local Authority List | C11: (Years as financial years, ie 2051 is FY2050/51) | D11: 2023 | E11: 2024 | F11: 2025 | G11: 2026 | H11: 2027 | I11: 2028 | J11: 2029 | K11: 2030 | L11: 2031 | M11: 2032 | N11: 2033 | O11: 2034 | P11: 2035 | Q11: 2036 | R11: 2037 | S11: 2038 | T11: 2039 | U11: 2040 | V11: 2041 | W11: 2042 | X11: 2043 | Y11: 2044 | Z11: 2045 | AA11: 2046 | AB11: 2047 | AC11: 2048 | AD11: 2049 | AE11: 2050 | AF11: 2051 | AG11: (Years as financial years, ie 2051 is FY2050/51) | AH11: 2023 | AI11: 2024 | AJ11: 2025 | AK11: 2026 | AL11: 2027 | AM11: 2028 | AN11: 2029 | AO11: 2030 | AP11: 2031 | AQ11: 2032 | AR11: 2033 | AS11: 2034 | AT11: 2035 | AU11: 2036 | AV11: 2037 | AW11: 2038 | AX11: 2039 | AY11: 2040 | AZ11: 2041 | BA11: 2042 | BB11: 2043 | BC11: 2044 | BD11: 2045 | BE11: 2046 | BF11: 2047 | BG11: 2048 | BH11: 2049 | BI11: 2050 | BJ11: 2051 | BK11: (Years as financial years, ie 2051 is FY2050/51) | BL11: 2023 | BM11: 2024 | BN11: 2025 | BO11: 2026 | BP11: 2027 | BQ11: 2028 | BR11: 2029 | BS11: 2030 | BT11: 2031 | BU11: 2032 | BV11: 2033 | BW11: 2034 | BX11: 2035 | BY11: 2036 | BZ11: 2037 | CA11: 2038 | CB11: 2039 | CC11: 2040 | CD11: 2041 | CE11: 2042 | CF11: 2043 | CG11: 2044 | CH11: 2045 | CI11: 2046 | CJ11: 2047 | CK11: 2048 | CL11: 2049 | CM11: 2050 | CN11: 2051 | CO11: (Years as financial years, ie 2051 is FY2050/51) | CP11: 2023 | CQ11: 2024 | CR11: 2025 | CS11: 2026 | CT11: 2027 | CU11: 2028 | CV11: 2029 | CW11: 2030 | CX11: 2031 | CY11: 2032 | CZ11: 2033 | DA11: 2034 | DB11: 2035 | DC11: 2036 | DD11: 2037 | DE11: 2038 | DF11: 2039 | DG11: 2040 | DH11: 2041 | DI11: 2042 | DJ11: 2043 | DK11: 2044 | DL11: 2045 | DM11: 2046 | DN11: 2047 | DO11: 2048 | DP11: 2049 | DQ11: 2050 | DR11: 2051 | DS11: (Years as financial years, ie 2051 is FY2050/51) | DT11: 2023 | DU11: 2024 | DV11: 2025 | DW11: 2026 | DX11: 2027 | DY11: 2028 | DZ11: 2029 | EA11: 2030 | EB11: 2031 | EC11: 2032 | ED11: 2033 | EE11: 2034 | EF11: 2035 | EG11: 2036 | EH11: 2037 | EI11: 2038 | EJ11: 2039 | EK11: 2040 | EL11: 2041 | EM11: 2042 | EN11: 2043 | EO11: 2044 | EP11: 2045 | EQ11: 2046 | ER11: 2047 | ES11: 2048 | ET11: 2049 | EU11: 2050 | EV11: 2051
A12: Cumberland** | B12: Allerdale | D12: 544003.8891 | E12: 569663.0546 | F12: 592500.6391 | G12: 615419.002 | H12: 641024.7557 | I12: 677501.4332 | J12: 699636.1289 | K12: 726038.9719 | L12: 751368.7554 | M12: 771783.4249 | N12: 793803.2558 | O12: 811185.1641 | P12: 835699.0792 | Q12: 882051.5663 | R12: 935458.4824 | S12: 966343.7136 | T12: 996578.9083 | U12: 1027478.33 | V12: 1058611.123 | W12: 1080206.943 | X12: 1106618.463 | Y12: 1123776.902 | Z12: 1141095.915 | AA12: 1162253.459 | AB12: 1179261.369 | AC12: 1196502.019 | AD12: 1215191.786 | AE12: 1230698.823 | AF12: 1234407.385 | AH12: 544174.7457 | AI12: 547139.8368 | AJ12: 550332.241 | AK12: 560308.4878 | AL12: 568483.0076 | AM12: 576795.7922 | AN12: 586263.4876 | AO12: 600706.0131 | AP12: 618157.0902 | AQ12: 627876.9982 | AR12: 636414.5782 | AS12: 644836.9091 | AT12: 653688.3309 | AU12: 664206.2021 | AV12: 674437.3918 | AW12: 683408.2927 | AX12: 691667.3261 | AY12: 699954.4931 | AZ12: 707103.6336 | BA12: 713972.6046 | BB12: 720582.7434 | BC12: 726861.836 | BD12: 733130.7904 | BE12: 739350.9054 | BF12: 744942.2165 | BG12: 750167.5446 | BH12: 755059.4981 | BI12: 759030.5622 | BJ12: 760798.94 | BL12: 544003.8891 | BM12: 548951.5568 | BN12: 566791.8486 | BO12: 587621.2542 | BP12: 610455.7291 | BQ12: 642731.3001 | BR12: 660055.4086 | BS12: 682375.6585 | BT12: 706909.5933 | BU12: 727342.4434 | BV12: 749901.3792 | BW12: 768359.7468 | BX12: 790487.4811 | BY12: 820762.0415 | BZ12: 857947.0921 | CA12: 873130.335 | CB12: 887810.4597 | CC12: 903033.8311 | CD12: 918791.1668 | CE12: 926742.7427 | CF12: 941558.6869 | CG12: 948381.7504 | CH12: 955269.7496 | CI12: 963900.6429 | CJ12: 967069.8122 | CK12: 969327.7823 | CL12: 971824.6398 | CM12: 973392.5719 | CN12: 974625.4364 | CP12: 543992.8248 | CQ12: 580170.6103 | CR12: 604536.0941 | CS12: 629058.1049 | CT12: 657321.278 | CU12: 696357.1753 | CV12: 720874.4385 | CW12: 749142.4026 | CX12: 784275.6975 | CY12: 808800.4016 | CZ12: 834121.2779 | DA12: 875189.5618 | DB12: 907047.0049 | DC12: 1007437.537 | DD12: 1054208.897 | DE12: 1087724.138 | DF12: 1118178.661 | DG12: 1145472.111 | DH12: 1174257.675 | DI12: 1196123.663 | DJ12: 1215514.281 | DK12: 1232469.624 | DL12: 1249267.792 | DM12: 1264315.939 | DN12: 1279058.492 | DO12: 1293361.905 | DP12: 1307881.495 | DQ12: 1317980.463 | DR12: 1315363.277 | DT12: 543992.8248 | DU12: 584517.0421 | DV12: 608921.8237 | DW12: 634179.4592 | DX12: 680865.9647 | DY12: 742399.9445 | DZ12: 778525.9733 | EA12: 807404.1883 | EB12: 856339.4169 | EC12: 937878.7943 | ED12: 975116.0053 | EE12: 1015478.389 | EF12: 1050769.238 | EG12: 1087300.28 | EH12: 1120834.858 | EI12: 1150496.766 | EJ12: 1178046.492 | EK12: 1202363.961 | EL12: 1224274.215 | EM12: 1243285.508 | EN12: 1260079.742 | EO12: 1274687.349 | EP12: 1287616.626 | EQ12: 1287364.572 | ER12: 1286062.596 | ES12: 1284108.752 | ET12: 1281732.95 | EU12: 1278897.519 | EV12: 1275784.585
A13: Westmorland and Furness** | B13: Barrow-in-Furness | D13: 416426.1064 | E13: 436067.7792 | F13: 453549.5778 | G13: 471093.2109 | H13: 490693.9978 | I13: 518616.2997 | J13: 535560.0483 | K13: 555770.994 | L13: 575160.5303 | M13: 590787.6269 | N13: 607643.4484 | O13: 620949.0157 | P13: 639714.018 | Q13: 675196.0911 | R13: 716078.2145 | S13: 739720.3554 | T13: 762864.9039 | U13: 786517.9076 | V13: 810349.5524 | W13: 826880.8006 | X13: 847098.3884 | Y13: 860232.8939 | Z13: 873490.3157 | AA13: 889686.0706 | AB13: 902705.3484 | AC13: 915902.7854 | AD13: 930209.4971 | AE13: 942079.881 | AF13: 944918.7246 | AH13: 416556.8944 | AI13: 418826.6233 | AJ13: 421270.3567 | AK13: 428907.0109 | AL13: 435164.4725 | AM13: 441527.7735 | AN13: 448775.14 | AO13: 459830.6578 | AP13: 473189.1727 | AQ13: 480629.6038 | AR13: 487164.9821 | AS13: 493612.1391 | AT13: 500387.7581 | AU13: 508439.017 | AV13: 516270.8259 | AW13: 523137.9043 | AX13: 529460.0596 | AY13: 535803.7509 | AZ13: 541276.3013 | BA13: 546534.3866 | BB13: 551594.3401 | BC13: 556400.8831 | BD13: 561199.6655 | BE13: 565961.062 | BF13: 570241.1195 | BG13: 574241.023 | BH13: 577985.7336 | BI13: 581025.5185 | BJ13: 582379.1828 | BL13: 416426.1064 | BM13: 420213.4654 | BN13: 433869.9179 | BO13: 449814.4882 | BP13: 467293.9064 | BQ13: 492000.3298 | BR13: 505261.6522 | BS13: 522347.4396 | BT13: 541127.7667 | BU13: 556768.7802 | BV13: 574037.2778 | BW13: 588166.8572 | BX13: 605105.2769 | BY13: 628279.9592 | BZ13: 656744.5091 | CA13: 668367.034 | CB13: 679604.4301 | CC13: 691257.6726 | CD13: 703319.6562 | CE13: 709406.4579 | CF13: 720747.8215 | CG13: 725970.7654 | CH13: 731243.4165 | CI13: 737850.2246 | CJ13: 740276.172 | CK13: 742004.6113 | CL13: 743915.915 | CM13: 745116.1414 | CN13: 746059.8791 | CP13: 416417.6369 | CQ13: 444111.1418 | CR13: 462762.5223 | CS13: 481533.7218 | CT13: 503168.7199 | CU13: 533050.0628 | CV13: 551817.628 | CW13: 573456.2936 | CX13: 600350.2579 | CY13: 619123.5189 | CZ13: 638506.2369 | DA13: 669943.3386 | DB13: 694329.6918 | DC13: 771177.0074 | DD13: 806979.7204 | DE13: 832635.091 | DF13: 855947.532 | DG13: 876840.2225 | DH13: 898875.1024 | DI13: 915613.1602 | DJ13: 930456.3617 | DK13: 943435.4006 | DL13: 956294.1239 | DM13: 967813.2347 | DN13: 979098.4194 | DO13: 990047.4482 | DP13: 1001161.958 | DQ13: 1008892.553 | DR13: 1006889.14 | DT13: 416417.6369 | DU13: 447438.2645 | DV13: 466119.7268 | DW13: 485454.0349 | DX13: 521191.7937 | DY13: 568295.0518 | DZ13: 595948.9378 | EA13: 618054.7405 | EB13: 655513.86 | EC13: 717930.9238 | ED13: 746435.4016 | EE13: 777332.1484 | EF13: 804346.7176 | EG13: 832310.6349 | EH13: 857980.8074 | EI13: 880686.514 | EJ13: 901775.3802 | EK13: 920390.0064 | EL13: 937161.9485 | EM13: 951714.7832 | EN13: 964570.4954 | EO13: 975752.3807 | EP13: 985649.5309 | EQ13: 985456.5875 | ER13: 984459.9463 | ES13: 982964.3107 | ET13: 981145.673 | EU13: 978975.1965 | EV13: 976592.2962
A14: Lancashire | B14: Blackburn with Darwen | D14: 605194.0378 | E14: 680883.0175 | F14: 709629.3759 | G14: 733582.4252 | H14: 759830.5818 | I14: 802582.7556 | J14: 844479.3072 | K14: 870421.5089 | L14: 893162.1285 | M14: 914616.7682 | N14: 933340.9687 | O14: 956622.5903 | P14: 977753.9703 | Q14: 1018407.332 | R14: 1055045.591 | S14: 1091887.07 | T14: 1133157.129 | U14: 1166227.563 | V14: 1198881.631 | W14: 1227288.37 | X14: 1253237.229 | Y14: 1284665.187 | Z14: 1307944.339 | AA14: 1329934.973 | AB14: 1352134.183 | AC14: 1374687.454 | AD14: 1397870.722 | AE14: 1417025.473 | AF14: 1420768.551 | AH14: 605348.6886 | AI14: 635698.45 | AJ14: 638952.4311 | AK14: 648130.2635 | AL14: 655982.2902 | AM14: 673026.1798 | AN14: 697496.453 | AO14: 713972.955 | AP14: 733716.8333 | AQ14: 744986.9096 | AR14: 755725.533 | AS14: 766104.9965 | AT14: 776350.6733 | AU14: 786986.0529 | AV14: 797187.3916 | AW14: 806138.3857 | AX14: 814326.5499 | AY14: 822102.4485 | AZ14: 828594.0902 | BA14: 834643.9125 | BB14: 840292.7026 | BC14: 845484.6534 | BD14: 850494.8931 | BE14: 855359.1933 | BF14: 859509.4575 | BG14: 863284.9661 | BH14: 866743.7539 | BI14: 869705.6946 | BJ14: 871688.6786 | BL14: 605194.0378 | BM14: 644674.7414 | BN14: 665772.1566 | BO14: 688631.5739 | BP14: 713407.8686 | BQ14: 753658.9162 | BR14: 792457.106 | BS14: 815830.2171 | BT14: 837729.1842 | BU14: 858943.2044 | BV14: 877843.1359 | BW14: 901896.4431 | BX14: 919142.986 | BY14: 938629.6563 | BZ14: 954348.5262 | CA14: 970056.3714 | CB14: 990418.9507 | CC14: 1002780.182 | CD14: 1014571.031 | CE14: 1023594.462 | CF14: 1031869.379 | CG14: 1046811.127 | CH14: 1053748.208 | CI14: 1058739.153 | CJ14: 1063081.268 | CK14: 1067006.382 | CL14: 1070576.837 | CM14: 1073699.001 | CN14: 1076397.757 | CP14: 605184.0034 | CQ14: 703318.7884 | CR14: 735771.7599 | CS14: 760399.614 | CT14: 788959.3303 | CU14: 835841.0164 | CV14: 880774.0933 | CW14: 908415.1124 | CX14: 934498.8963 | CY14: 959930.7998 | CZ14: 982600.9362 | DA14: 1016787.542 | DB14: 1042617.493 | DC14: 1097069.307 | DD14: 1147289.865 | DE14: 1185902.245 | DF14: 1221793.571 | DG14: 1255464.153 | DH14: 1288693.068 | DI14: 1317241.133 | DJ14: 1343082.014 | DK14: 1366817.112 | DL14: 1389718.223 | DM14: 1411151.98 | DN14: 1431845.716 | DO14: 1451873.878 | DP14: 1471470.207 | DQ14: 1486060.005 | DR14: 1484488.081 | DT14: 605184.0034 | DU14: 713306.8856 | DV14: 746225.6112 | DW14: 770069.0903 | DX14: 807834.5 | DY14: 866099.6619 | DZ14: 918725.1948 | EA14: 949974.0319 | EB14: 1003168.71 | EC14: 1048943.339 | ED14: 1096746.205 | EE14: 1140098.767 | EF14: 1182006.96 | EG14: 1224238.474 | EH14: 1263459.784 | EI14: 1299436.379 | EJ14: 1333039.954 | EK14: 1363872.01 | EL14: 1392844.991 | EM14: 1418264.074 | EN14: 1441230.372 | EO14: 1461938.058 | EP14: 1479092.299 | EQ14: 1479519.922 | ER14: 1479089.971 | ES14: 1478012.268 | ET14: 1476439.733 | EU14: 1474501.495 | EV14: 1472202.695
A15: Lancashire | B15: Blackpool | D15: 645558.4995 | E15: 697767.7281 | F15: 731290.7216 | G15: 762957.572 | H15: 798154.4655 | I15: 844846.6237 | J15: 884841.217 | K15: 913753.518 | L15: 943451.0597 | M15: 967355.1832 | N15: 1000363.532 | O15: 1020536.966 | P15: 1048947.498 | Q15: 1091216.638 | R15: 1132883.654 | S15: 1171749.314 | T15: 1208947.335 | U15: 1244427.836 | V15: 1287100.828 | W15: 1317877.403 | X15: 1345704.893 | Y15: 1371430.964 | Z15: 1396925.633 | AA15: 1421019.001 | AB15: 1445280.805 | AC15: 1470140.443 | AD15: 1496008.762 | AE15: 1517344.866 | AF15: 1521386.208 | AH15: 645742.0332 | AI15: 669128.1427 | AJ15: 677431.9582 | AK15: 691560.7288 | AL15: 708224.6023 | AM15: 734982.7257 | AN15: 760591.8277 | AO15: 781730.5795 | AP15: 805814.5324 | AQ15: 819748.668 | AR15: 832957.2464 | AS15: 845681.7967 | AT15: 858213.4681 | AU15: 871227.444 | AV15: 883676.3259 | AW15: 894607.5418 | AX15: 904690.6428 | AY15: 914424.9467 | AZ15: 922533.7828 | BA15: 930032.0153 | BB15: 936970.7146 | BC15: 943276.4054 | BD15: 949482.8448 | BE15: 955438.1296 | BF15: 960600.2956 | BG15: 965386.2178 | BH15: 969870.7275 | BI15: 973808.3882 | BJ15: 976532.8892 | BL15: 645558.4995 | BM15: 676291.8438 | BN15: 704728.8076 | BO15: 734946.7896 | BP15: 768046.1053 | BQ15: 811302.8669 | BR15: 847190.4774 | BS15: 872660.3672 | BT15: 901168.5306 | BU15: 924841.9193 | BV15: 958327.9554 | BW15: 979881.2734 | BX15: 1004587.075 | BY15: 1024044.871 | BZ15: 1043098.526 | CA15: 1059619.391 | CB15: 1074832.405 | CC15: 1088549.211 | CD15: 1109317.181 | CE15: 1119939.366 | CF15: 1129579.926 | CG15: 1138335.764 | CH15: 1146815.979 | CI15: 1152642.1 | CJ15: 1157493.974 | CK15: 1161948.614 | CL15: 1166168.174 | CM15: 1169797.151 | CN15: 1173017.687 | CP15: 645546.6058 | CQ15: 712758.5206 | CR15: 748710.5214 | CS15: 781241.9754 | CT15: 820128.3729 | CU15: 873837.707 | CV15: 918731.5793 | CW15: 955282.1581 | CX15: 1010001.64 | CY15: 1037982.421 | CZ15: 1077043.933 | DA15: 1111243.143 | DB15: 1139414.173 | DC15: 1190152.175 | DD15: 1243674.228 | DE15: 1284643.399 | DF15: 1323390.629 | DG15: 1359756.091 | DH15: 1397652.262 | DI15: 1428497.215 | DJ15: 1456182.602 | DK15: 1481573.964 | DL15: 1506532.994 | DM15: 1529939.926 | DN15: 1552522.77 | DO15: 1574824.024 | DP15: 1597192.81 | DQ15: 1614206.347 | DR15: 1613337.722 | DT15: 645546.6058 | DU15: 718781.7859 | DV15: 760317.2905 | DW15: 797660.7085 | DX15: 841501.787 | DY15: 900587.0212 | DZ15: 954255.6713 | EA15: 994281.705 | EB15: 1064490.415 | EC15: 1138977.179 | ED15: 1205308.27 | EE15: 1253039.46 | EF15: 1299162.061 | EG15: 1347450.881 | EH15: 1390622.128 | EI15: 1429565.49 | EJ15: 1465887.617 | EK15: 1499113.722 | EL15: 1529577.64 | EM15: 1557109.139 | EN15: 1582070.915 | EO15: 1604609.046 | EP15: 1624396.124 | EQ15: 1625638.219 | ER15: 1625571.553 | ES15: 1624949.233 | ET15: 1623941.85 | EU15: 1622685.446 | EV15: 1621137.352
A16: Greater Manchester | B16: Bolton | D16: 1149362.056 | E16: 1238322.283 | F16: 1291517.063 | G16: 1393217.659 | H16: 1454575.635 | I16: 1529893.663 | J16: 1582940.188 | K16: 1636934.938 | L16: 1701733.081 | M16: 1744661.938 | N16: 1782361.133 | O16: 1817240.582 | P16: 1859735.873 | Q16: 1935800.255 | R16: 2008427.457 | S16: 2079371.443 | T16: 2147632.826 | U16: 2213227.667 | V16: 2279345.953 | W16: 2337165.69 | X16: 2390162.323 | Y16: 2439523.029 | Z16: 2487996.023 | AA16: 2534027.631 | AB16: 2580106.571 | AC16: 2626888.488 | AD16: 2675039.862 | AE16: 2715014.947 | AF16: 2724261.87 | AH16: 1149636.568 | AI16: 1196197.835 | AJ16: 1211894.721 | AK16: 1284595.894 | AL16: 1305706.157 | AM16: 1324755.468 | AN16: 1350467.687 | AO16: 1387867.788 | AP16: 1430868.404 | AQ16: 1457785.173 | AR16: 1481045.876 | AS16: 1503568.994 | AT16: 1525665.053 | AU16: 1547972.153 | AV16: 1569590.518 | AW16: 1589121.202 | AX16: 1607222.894 | AY16: 1624493.538 | AZ16: 1639196.639 | BA16: 1653073.342 | BB16: 1666073.496 | BC16: 1677904.224 | BD16: 1689735.134 | BE16: 1701213.785 | BF16: 1711328.419 | BG16: 1720758.77 | BH16: 1729622.891 | BI16: 1737671.376 | BJ16: 1744181.714 | BL16: 1149362.056 | BM16: 1203952.446 | BN16: 1251362.68 | BO16: 1351118.876 | BP16: 1409810.924 | BQ16: 1480547.075 | BR16: 1527967.773 | BS16: 1577379.855 | BT16: 1640344.889 | BU16: 1682608.359 | BV16: 1720514.27 | BW16: 1756959.304 | BX16: 1791777.291 | BY16: 1826096.688 | BZ16: 1857932.651 | CA16: 1886983.243 | CB16: 1913886.742 | CC16: 1938723.874 | CD16: 1963822.725 | CE16: 1983608.231 | CF16: 2001799.099 | CG16: 2018578.118 | CH16: 2034629.31 | CI16: 2047416.565 | CJ16: 2058658.652 | CK16: 2069142.208 | CL16: 2078956.411 | CM16: 2087771.481 | CN16: 2095776.523 | CP16: 1149344.257 | CQ16: 1263783.33 | CR16: 1319037.839 | CS16: 1422377.791 | CT16: 1489712.538 | CU16: 1573699.066 | CV16: 1631050.451 | CW16: 1685655.825 | CX16: 1755415.394 | CY16: 1805791.558 | CZ16: 1850657.185 | DA16: 1895324.949 | DB16: 1945488.121 | DC16: 2031437.186 | DD16: 2112675.839 | DE16: 2188059.453 | DF16: 2259459.583 | DG16: 2326995.985 | DH16: 2392161.815 | DI16: 2450135.302 | DJ16: 2502857.677 | DK16: 2551413.098 | DL16: 2598830.993 | DM16: 2643510.349 | DN16: 2686515.742 | DO16: 2728466.478 | DP16: 2769949.148 | DQ16: 2801574.523 | DR16: 2801191.28 | DT16: 1149344.257 | DU16: 1272615.296 | DV16: 1325652.088 | DW16: 1426292.264 | DX16: 1498215.859 | DY16: 1583412.652 | DZ16: 1637929.353 | EA16: 1698485.157 | EB16: 1809260.551 | EC16: 1903501.748 | ED16: 1992496.182 | EE16: 2078566.847 | EF16: 2161763.162 | EG16: 2244292.873 | EH16: 2321709.302 | EI16: 2393705.997 | EJ16: 2461080.636 | EK16: 2523582.215 | EL16: 2581498.995 | EM16: 2633835.117 | EN16: 2681313.915 | EO16: 2724298.317 | EP16: 2760692.542 | EQ16: 2763853.598 | ER16: 2765013.378 | ES16: 2765106.604 | ET16: 2764433.656 | EU16: 2763212.463 | EV16: 2761790.313
A17: Lancashire | B17: Burnley | D17: 392113.27 | E17: 420648.5678 | F17: 438932.2534 | G17: 459414.2508 | H17: 482822.964 | I17: 500110.0528 | J17: 515614.4628 | K17: 537781.5136 | L17: 552472.4657 | M17: 565587.5845 | N17: 582593.1203 | O17: 593799.3501 | P17: 607697.3328 | Q17: 634751.4515 | R17: 663539.1687 | S17: 687193.8471 | T17: 710023.2874 | U17: 732846.1285 | V17: 763966.719 | W17: 783133.8864 | X17: 800737.5732 | Y17: 817114.4198 | Z17: 833286.6953 | AA17: 848407.3291 | AB17: 863479.6882 | AC17: 878664.7123 | AD17: 894133.8479 | AE17: 906730.4459 | AF17: 908692.2426 | AH17: 392216.7151 | AI17: 405234.9259 | AJ17: 406804.434 | AK17: 412600.6526 | AL17: 417952.4797 | AM17: 423395.5084 | AN17: 430769.0467 | AO17: 441987.6507 | AP17: 455316.5845 | AQ17: 462708.2675 | AR17: 469702.9683 | AS17: 476493.2961 | AT17: 483130.9591 | AU17: 489893.7832 | AV17: 496387.9966 | AW17: 502159.1704 | AX17: 507497.2485 | AY17: 512557.9029 | AZ17: 516799.578 | BA17: 520720.6866 | BB17: 524363.5095 | BC17: 527679.1461 | BD17: 530926.2915 | BE17: 534043.8543 | BF17: 536722.7862 | BG17: 539176.4715 | BH17: 541442.0151 | BI17: 543421.9621 | BJ17: 544850.7996 | BL17: 392113.27 | BM17: 409312.9139 | BN17: 425320.0529 | BO17: 445122.8326 | BP17: 467633.1545 | BQ17: 483408.4669 | BR17: 497045.6871 | BS17: 517702.5649 | BT17: 531834.5985 | BU17: 544755.3581 | BV17: 561824.6674 | BW17: 573472.0863 | BX17: 584554.932 | BY17: 596802.0053 | BZ17: 611052.8927 | CA17: 620057.356 | CB17: 628461.93 | CC17: 637097.0764 | CD17: 654012.6857 | CE17: 659892.381 | CF17: 665264.6855 | CG17: 670167.832 | CH17: 674965.4657 | CI17: 678435.7275 | CJ17: 681446.5111 | CK17: 684203.6091 | CL17: 686745.7624 | CM17: 689018.5489 | CN17: 691034.0633 | CP17: 392106.5644 | CQ17: 427593.6874 | CR17: 446543.3683 | CS17: 467714.9474 | CT17: 492395.1764 | CU17: 510840.4986 | CV17: 527172.9142 | CW17: 549381.1731 | CX17: 566760.6869 | CY17: 581796.5074 | CZ17: 599456.2736 | DA17: 617251.755 | DB17: 633425.4298 | DC17: 674927.8434 | DD17: 703268.5431 | DE17: 728191.8174 | DF17: 752072.2039 | DG17: 774355.3912 | DH17: 797630.3756 | DI17: 816663.9697 | DJ17: 833995.963 | DK17: 849974.1247 | DL17: 865603.3953 | DM17: 880098.0592 | DN17: 894048.8517 | DO17: 907554.5424 | DP17: 920761.3188 | DQ17: 930561.9647 | DR17: 929339.9987 | DT17: 392106.5644 | DU17: 430219.2185 | DV17: 448491.0879 | DW17: 468719.2373 | DX17: 494218.9658 | DY17: 519986.1471 | DZ17: 536911.44 | EA17: 555731.0349 | EB17: 587395.522 | EC17: 618463.609 | ED17: 658526.6184 | EE17: 690378.7164 | EF17: 717930.1782 | EG17: 748111.6598 | EH17: 773611.5718 | EI17: 797026.7282 | EJ17: 819034.735 | EK17: 839474.0122 | EL17: 858436.3558 | EM17: 875602.7204 | EN17: 891252.0266 | EO17: 905410.3263 | EP17: 917052.8233 | EQ17: 917140.6549 | ER17: 916614.6103 | ES17: 915713.0049 | ET17: 914528.7482 | EU17: 913127.99 | EV17: 911509.4607
A18: Greater Manchester | B18: Bury | D18: 769463.149 | E18: 829546.3373 | F18: 865261.5361 | G18: 933013.1424 | H18: 974081.3342 | I18: 1024165.802 | J18: 1059574.571 | K18: 1095852.489 | L18: 1138979.367 | M18: 1167651.413 | N18: 1193034.821 | O18: 1216330.683 | P18: 1244710.065 | Q18: 1295609.5 | R18: 1344309.056 | S18: 1391703.765 | T18: 1437300.367 | U18: 1481104.467 | V18: 1525620.501 | W18: 1564229.221 | X18: 1599618.047 | Y18: 1632578.169 | Z18: 1664958.157 | AA18: 1695701.722 | AB18: 1726470.341 | AC18: 1757699.264 | AD18: 1789832.361 | AE18: 1816488.778 | AF18: 1822573.715 | AH18: 769647.4929 | AI18: 801028.812 | AJ18: 811539.672 | AK18: 859659.7626 | AL18: 873915.8434 | AM18: 886649.9304 | AN18: 903828.8273 | AO18: 928825.0056 | AP18: 957583.3327 | AQ18: 975530.5396 | AR18: 991056.1655 | AS18: 1006083.976 | AT18: 1020821.304 | AU18: 1035701.095 | AV18: 1050116.834 | AW18: 1063137.134 | AX18: 1075202.717 | AY18: 1086712.778 | AZ18: 1096511.867 | BA18: 1105753.82 | BB18: 1114406.887 | BC18: 1122274.841 | BD18: 1130140.965 | BE18: 1137768.38 | BF18: 1144487.4 | BG18: 1150751.909 | BH18: 1156641.024 | BI18: 1161987.093 | BJ18: 1166305.43 | BL18: 769463.149 | BM18: 806232.5732 | BN18: 838027.6997 | BO18: 904474.6383 | BP18: 943752.5441 | BQ18: 990765.7969 | BR18: 1022406.192 | BS18: 1055618.428 | BT18: 1097518.803 | BU18: 1125749.276 | BV18: 1151277.614 | BW18: 1175629.208 | BX18: 1198885.335 | BY18: 1221861.745 | BZ18: 1243284.776 | CA18: 1262678.007 | CB18: 1280638.902 | CC18: 1297214.639 | CD18: 1314335.539 | CE18: 1327534.6 | CF18: 1339664.794 | CG18: 1350845.924 | CH18: 1361545.981 | CI18: 1370048.346 | CJ18: 1377522.092 | CK18: 1384491.433 | CL18: 1391016.394 | CM18: 1396878.343 | CN18: 1402202.329 | CP18: 769451.1965 | CQ18: 846683.7492 | CR18: 883790.2836 | CS18: 952638.5072 | CT18: 997667.2724 | CU18: 1053465.566 | CV18: 1091705.728 | CW18: 1128359.934 | CX18: 1174803.363 | CY18: 1208382.281 | CZ18: 1238429.605 | DA18: 1268335.687 | DB18: 1301755.116 | DC18: 1359582.39 | DD18: 1413796.557 | DE18: 1464082.392 | DF18: 1511717.906 | DG18: 1556762.92 | DH18: 1600303.398 | DI18: 1638971.056 | DJ18: 1674137.139 | DK18: 1706525.145 | DL18: 1738167.235 | DM18: 1767977.585 | DN18: 1796681.832 | DO18: 1824689.645 | DP18: 1852391.845 | DQ18: 1873511.34 | DR18: 1873220.98 | DT18: 769451.1965 | DU18: 852658.5173 | DV18: 888288.2036 | DW18: 955319.9576 | DX18: 1003325.439 | DY18: 1060133.574 | DZ18: 1096460.164 | EA18: 1136872.386 | EB18: 1210698.219 | EC18: 1273614.841 | ED18: 1333431.595 | EE18: 1391000.548 | EF18: 1446511.686 | EG18: 1501689.994 | EH18: 1553322.352 | EI18: 1601335.075 | EJ18: 1646268.925 | EK18: 1687954.237 | EL18: 1726582.128 | EM18: 1761499.723 | EN18: 1793186.267 | EO18: 1821878.734 | EP18: 1846177.558 | EQ18: 1848246.617 | ER18: 1848985.781 | ES18: 1849017.943 | ET18: 1848542.673 | EU18: 1847703.99 | EV18: 1846728.739
A19: Cumberland** | B19: Carlisle | D19: 592656.3878 | E19: 620610.3578 | F19: 645490.4011 | G19: 670458.4472 | H19: 698354.2285 | I19: 738093.1648 | J19: 762207.4571 | K19: 790971.6146 | L19: 818566.7446 | M19: 840807.1817 | N19: 864796.3364 | O19: 883732.78 | P19: 910439.075 | Q19: 960937.0552 | R19: 1019120.371 | S19: 1052767.795 | T19: 1085707.047 | U19: 1119369.931 | V19: 1153287.057 | W19: 1176814.28 | X19: 1205587.89 | Y19: 1224280.879 | Z19: 1243148.802 | AA19: 1266198.552 | AB19: 1284727.549 | AC19: 1303510.102 | AD19: 1323871.371 | AE19: 1340765.266 | AF19: 1344805.5 | AH19: 592842.5249 | AI19: 596072.7962 | AJ19: 599550.7103 | AK19: 610419.1737 | AL19: 619324.7744 | AM19: 628381.0053 | AN19: 638695.4356 | AO19: 654429.6154 | AP19: 673441.4138 | AQ19: 684030.6131 | AR19: 693331.7439 | AS19: 702507.3183 | AT19: 712150.3591 | AU19: 723608.8866 | AV19: 734755.0937 | AW19: 744528.299 | AX19: 753525.9716 | AY19: 762554.294 | AZ19: 770342.8114 | BA19: 777826.1026 | BB19: 785027.4133 | BC19: 791868.0709 | BD19: 798697.6836 | BE19: 805474.0889 | BF19: 811565.4539 | BG19: 817258.1046 | BH19: 822587.5655 | BI19: 826913.7782 | BJ19: 828840.3092 | BL19: 592656.3878 | BM19: 598046.5458 | BN19: 617482.368 | BO19: 640174.6328 | BP19: 665051.2884 | BQ19: 700213.3962 | BR19: 719086.8706 | BS19: 743403.3121 | BT19: 770131.4173 | BU19: 792391.6609 | BV19: 816968.1349 | BW19: 837077.31 | BX19: 861184.0183 | BY19: 894166.1568 | BZ19: 934676.819 | CA19: 951217.9616 | CB19: 967210.9901 | CC19: 983795.8499 | CD19: 1000962.429 | CE19: 1009625.147 | CF19: 1025766.142 | CG19: 1033199.42 | CH19: 1040703.441 | CI19: 1050106.23 | CJ19: 1053558.831 | CK19: 1056018.741 | CL19: 1058738.903 | CM19: 1060447.061 | CN19: 1061790.186 | CP19: 592644.3341 | CQ19: 632057.6473 | CR19: 658602.2362 | CS19: 685317.351 | CT19: 716108.2156 | CU19: 758635.2533 | CV19: 785345.1959 | CW19: 816141.28 | CX19: 854416.6895 | CY19: 881134.7384 | CZ19: 908720.1645 | DA19: 953461.3535 | DB19: 988167.9384 | DC19: 1097536.808 | DD19: 1148491.122 | DE19: 1185003.768 | DF19: 1218181.965 | DG19: 1247916.379 | DH19: 1279276.354 | DI19: 1303097.908 | DJ19: 1324222.708 | DK19: 1342694.437 | DL19: 1360994.934 | DM19: 1377388.898 | DN19: 1393449.939 | DO19: 1409032.564 | DP19: 1424850.701 | DQ19: 1435852.861 | DR19: 1433001.609 | DT19: 592644.3341 | DU19: 636792.7983 | DV19: 663380.1995 | DW19: 690896.729 | DX19: 741758.6002 | DY19: 808795.8161 | DZ19: 848152.7439 | EA19: 879613.6561 | EB19: 932925.3628 | EC19: 1021757.141 | ED19: 1062324.629 | EE19: 1106296.786 | EF19: 1144743.84 | EG19: 1184542.004 | EH19: 1221075.716 | EI19: 1253390.41 | EJ19: 1283404.021 | EK19: 1309896.301 | EL19: 1333766.079 | EM19: 1354477.63 | EN19: 1372773.841 | EO19: 1388687.867 | EP19: 1402773.461 | EQ19: 1402498.865 | ER19: 1401080.448 | ES19: 1398951.864 | ET19: 1396363.584 | EU19: 1393274.568 | EV19: 1389883.232
A20: Cheshire | B20: Cheshire East | D20: 585565.9711 | E20: 619766.1325 | F20: 639831.6383 | G20: 663855.2815 | H20: 688868.8013 | I20: 718341.084 | J20: 743246.4052 | K20: 769293.4066 | L20: 793444.1333 | M20: 814348.5846 | N20: 833076.6882 | O20: 850422.9831 | P20: 876656.1925 | Q20: 912999.0754 | R20: 977011.3204 | S20: 1035108.388 | T20: 1066445.681 | U20: 1095337.791 | V20: 1125677.931 | W20: 1152616.316 | X20: 1175569.872 | Y20: 1196887.262 | Z20: 1217929.366 | AA20: 1238644.368 | AB20: 1258336.329 | AC20: 1278268.142 | AD20: 1298887.442 | AE20: 1315369.093 | AF20: 1317067.884 | AH20: 585684.7155 | AI20: 610445.4062 | AJ20: 616735.5552 | AK20: 627955.5921 | AL20: 639299.2841 | AM20: 651131.8858 | AN20: 666831.6099 | AO20: 687182.5664 | AP20: 708900.4298 | AQ20: 721282.2014 | AR20: 732682.4247 | AS20: 743509.6144 | AT20: 753986.9685 | AU20: 764694.4275 | AV20: 774907.1731 | AW20: 783913.1435 | AX20: 792227.6273 | AY20: 800208.8262 | AZ20: 806955.78 | BA20: 813171.8922 | BB20: 818874.3348 | BC20: 823968.001 | BD20: 828882.2608 | BE20: 833525.0597 | BF20: 837546.0401 | BG20: 841314.4194 | BH20: 844900.8789 | BI20: 848110.0114 | BJ20: 850427.7757 | BL20: 585565.9711 | BM20: 610911.1204 | BN20: 629016.5214 | BO20: 651859.187 | BP20: 675137.2257 | BQ20: 701853.3479 | BR20: 723506.184 | BS20: 746967.3047 | BT20: 770033.1867 | BU20: 790576.3921 | BV20: 809523.3002 | BW20: 827912.3451 | BX20: 850896.0715 | BY20: 867883.4638 | BZ20: 913108.2385 | CA20: 952348.4717 | CB20: 965263.4268 | CC20: 976142.6048 | CD20: 988520.1097 | CE20: 998790.9274 | CF20: 1006524.594 | CG20: 1013468.45 | CH20: 1019938.886 | CI20: 1025199.495 | CJ20: 1028840.647 | CK20: 1032214.298 | CL20: 1035498.281 | CM20: 1038291.582 | CN20: 1040822.245 | CP20: 585558.2676 | CQ20: 623982.157 | CR20: 644499.5885 | CS20: 669671.1107 | CT20: 697743.2828 | CU20: 730990.848 | CV20: 757075.2259 | CW20: 782676.7851 | CX20: 809538.824 | CY20: 834868.0146 | CZ20: 856005.1257 | DA20: 908459.8661 | DB20: 932978.2064 | DC20: 1142222.261 | DD20: 1208557.603 | DE20: 1241290.596 | DF20: 1271855.57 | DG20: 1300618.67 | DH20: 1327232.792 | DI20: 1352052.592 | DJ20: 1374508.322 | DK20: 1395251.989 | DL20: 1415629.424 | DM20: 1434896.757 | DN20: 1453426.609 | DO20: 1471834.694 | DP20: 1490459.774 | DQ20: 1504678.025 | DR20: 1503991.053 | DT20: 585558.2676 | DU20: 624630.209 | DV20: 643533.6087 | DW20: 666522.5913 | DX20: 696767.2047 | DY20: 730094.4693 | DZ20: 754854.5615 | EA20: 785291.0996 | EB20: 864972.7682 | EC20: 919815.6495 | ED20: 1014352.799 | EE20: 1053454.96 | EF20: 1090033.563 | EG20: 1150346.335 | EH20: 1183940.263 | EI20: 1214657.414 | EJ20: 1243668.495 | EK20: 1270400.997 | EL20: 1294959.325 | EM20: 1317531.274 | EN20: 1338765.57 | EO20: 1357643.194 | EP20: 1373869.036 | EQ20: 1374588.195 | ER20: 1374287.96 | ES20: 1373677.307 | ET20: 1372971.89 | EU20: 1372072.568 | EV20: 1371038.125
A21: Lancashire | B21: Chorley | D21: 420502.1047 | E21: 454561.0602 | F21: 476362.3836 | G21: 497691.2721 | H21: 520652.6049 | I21: 551047.242 | J21: 576893.7189 | K21: 595780.6515 | L21: 615317.1652 | M21: 630894.576 | N21: 652127.4222 | O21: 665248.4834 | P21: 683643.9721 | Q21: 711175.4255 | R21: 738281.6483 | S21: 763601.5541 | T21: 787837.8495 | U21: 810959.4867 | V21: 838620.2058 | W21: 858686.3407 | X21: 876838.6913 | Y21: 893624.802 | Z21: 910255.0216 | AA21: 925974.3013 | AB21: 941799.0562 | AC21: 958007.4171 | AD21: 974865.9579 | AE21: 988771.4766 | AF21: 991414.9972 | AH21: 420621.1208 | AI21: 435915.684 | AJ21: 441357.493 | AK21: 451277.8 | AL21: 462038.9865 | AM21: 479123.6827 | AN21: 495562.0277 | AO21: 509336.2015 | AP21: 525034.6448 | AQ21: 534140.7353 | AR21: 542737.7435 | AS21: 551019.7403 | AT21: 559173.7845 | AU21: 567632.5277 | AV21: 575726.849 | AW21: 582840.857 | AX21: 589403.8291 | AY21: 595737.5039 | AZ21: 601017.2451 | BA21: 605902.2887 | BB21: 610423.918 | BC21: 614531.8244 | BD21: 618577.1965 | BE21: 622459.836 | BF21: 625827.0307 | BG21: 628949.5826 | BH21: 631876.0918 | BI21: 634449.1475 | BJ21: 636240.748 | BL21: 420502.1047 | BM21: 440546.3812 | BN21: 459066.9492 | BO21: 479460.0803 | BP21: 501068.3224 | BQ21: 529245.2603 | BR21: 552439.4627 | BS21: 569105.3343 | BT21: 587872.132 | BU21: 603297.8344 | BV21: 624835.8916 | BW21: 638846.8563 | BX21: 654819.7082 | BY21: 667486.001 | BZ21: 679864.1642 | CA21: 690614.6458 | CB21: 700515.7837 | CC21: 709449.9895 | CD21: 722832.4012 | CE21: 729756.897 | CF21: 736043.3333 | CG21: 741755.0568 | CH21: 747284.0783 | CI21: 751102.1269 | CJ21: 754288.676 | CK21: 757216.4384 | CL21: 759988.5953 | CM21: 762377.4749 | CN21: 764499.9003 | CP21: 420494.3919 | CQ21: 464370.2108 | CR21: 487732.107 | CS21: 509625.4659 | CT21: 534987.099 | CU21: 569913.7491 | CV21: 598897.5344 | CW21: 622592.7558 | CX21: 657923.5416 | CY21: 676149.098 | CZ21: 701268.1103 | DA21: 723327.9401 | DB21: 741653.4402 | DC21: 774623.1218 | DD21: 809281.3497 | DE21: 835965.5873 | DF21: 861202.7944 | DG21: 884893.9588 | DH21: 909523.5355 | DI21: 929625.5229 | DJ21: 947676.8004 | DK21: 964234.5113 | DL21: 980507.8333 | DM21: 995772.2226 | DN21: 1010499.559 | DO21: 1025038.684 | DP21: 1039616.396 | DQ21: 1050705.619 | DR21: 1050150.555 | DT21: 420494.3919 | DU21: 468296.9339 | DV21: 495146.7915 | DW21: 520031.856 | DX21: 548576.187 | DY21: 586900.7015 | DZ21: 621356.6504 | EA21: 647300.6786 | EB21: 692871.4893 | EC21: 740890.6133 | ED21: 783705.7245 | EE21: 814781.2177 | EF21: 844808.0703 | EG21: 876193.4189 | EH21: 904290.3609 | EI21: 929659.4834 | EJ21: 953323.1226 | EK21: 974979.1838 | EL21: 994841.5841 | EM21: 1012792.596 | EN21: 1029069.263 | EO21: 1043767.493 | EP21: 1056656.267 | EQ21: 1057468.402 | ER21: 1057433.823 | ES21: 1057038.023 | ET21: 1056391.878 | EU21: 1055583.435 | EV21: 1054590.696
A22: Cumberland** | B22: Copeland | D22: 407116.4571 | E22: 426319.0194 | F22: 443409.9937 | G22: 460561.4202 | H22: 479724.0106 | I22: 507022.0797 | J22: 523587.0327 | K22: 543346.1413 | L22: 562302.2038 | M22: 577579.94 | N22: 594058.9316 | O22: 607067.0388 | P22: 625412.5295 | Q22: 660101.363 | R22: 700069.523 | S22: 723183.1186 | T22: 745810.2461 | U22: 768934.4617 | V22: 792233.3246 | W22: 808394.9992 | X22: 828160.6013 | Y22: 841001.4709 | Z22: 853962.5089 | AA22: 869796.1905 | AB22: 882524.4084 | AC22: 895426.8026 | AD22: 909413.6725 | AE22: 921018.6814 | AF22: 923794.0596 | AH22: 407244.3212 | AI22: 409463.3078 | AJ22: 411852.409 | AK22: 419318.3376 | AL22: 425435.9071 | AM22: 431656.9497 | AN22: 438742.2936 | AO22: 449550.6535 | AP22: 462610.5245 | AQ22: 469884.6169 | AR22: 476273.8898 | AS22: 482576.9137 | AT22: 489201.0566 | AU22: 497072.321 | AV22: 504729.0415 | AW22: 511442.599 | AX22: 517623.4158 | AY22: 523825.2871 | AZ22: 529175.4929 | BA22: 534316.028 | BB22: 539262.8609 | BC22: 543961.9485 | BD22: 548653.4489 | BE22: 553308.3994 | BF22: 557492.7717 | BG22: 561403.2531 | BH22: 565064.2467 | BI22: 568036.0739 | BJ22: 569359.4756 | BL22: 407116.4571 | BM22: 410819.1456 | BN22: 424170.2935 | BO22: 439758.406 | BP22: 456847.0532 | BQ22: 481001.1381 | BR22: 493965.9896 | BS22: 510669.806 | BT22: 529030.2788 | BU22: 544321.6208 | BV22: 561204.0627 | BW22: 575017.7603 | BX22: 591577.5037 | BY22: 614234.0913 | BZ22: 642062.2858 | CA22: 653424.9768 | CB22: 664411.1489 | CC22: 675803.8708 | CD22: 687596.1958 | CE22: 693546.9206 | CF22: 704634.736 | CG22: 709740.9154 | CH22: 714895.6907 | CI22: 721354.7966 | CJ22: 723726.5094 | CK22: 725416.3076 | CL22: 727284.882 | CM22: 728458.2761 | CN22: 729380.9155 | CP22: 407108.177 | CQ22: 434182.564 | CR22: 452416.973 | CS22: 470768.5223 | CT22: 491919.847 | CU22: 521133.1606 | CV22: 539481.1569 | CW22: 560636.0671 | CX22: 586928.7882 | CY22: 605282.353 | CZ22: 624231.7496 | DA22: 654966.0413 | DB22: 678807.2116 | DC22: 753936.5237 | DD22: 788938.8289 | DE22: 814020.6463 | DF22: 836811.9129 | DG22: 857237.525 | DH22: 878779.7917 | DI22: 895143.6523 | DJ22: 909655.0183 | DK22: 922343.897 | DL22: 934915.1497 | DM22: 946176.7386 | DN22: 957209.6309 | DO22: 967913.8826 | DP22: 978779.9158 | DQ22: 986337.6849 | DR22: 984379.0605 | DT22: 407108.177 | DU22: 437435.3053 | DV22: 455699.1236 | DW22: 474601.1927 | DX22: 509539.9957 | DY22: 555590.2103 | DZ22: 582625.8642 | EA22: 604237.4682 | EB22: 640859.1491 | EC22: 701880.813 | ED22: 729748.0428 | EE22: 759954.0599 | EF22: 786364.6897 | EG22: 813703.4438 | EH22: 838799.7322 | EI22: 860997.8286 | EJ22: 881615.2307 | EK22: 899813.7071 | EL22: 916210.6945 | EM22: 930438.1851 | EN22: 943006.4941 | EO22: 953938.3965 | EP22: 963614.2854 | EQ22: 963425.6554 | ER22: 962451.2952 | ES22: 960989.0961 | ET22: 959211.116 | EU22: 957089.1629 | EV22: 954759.5348
A23: North Yorkshire | B23: Craven | D23: 83750.86211 | E23: 88417.74482 | F23: 91637.87575 | G23: 95311.06334 | H23: 98925.40369 | I23: 103615.1434 | J23: 106900.4579 | K23: 112190.4489 | L23: 115692.1272 | M23: 118633.5462 | N23: 122831.0791 | O23: 125296.446 | P23: 128587.5293 | Q23: 135218.3186 | R23: 142929.3304 | S23: 147748.4321 | T23: 152433.6078 | U23: 157040.5183 | V23: 164241.937 | W23: 167864.7006 | X23: 171668.698 | Y23: 174658.6048 | Z23: 177665.259 | AA23: 180809.4232 | AB23: 183647.9438 | AC23: 186516.7307 | AD23: 189520.6845 | AE23: 191967.4532 | AF23: 192355.7008 | AH23: 83775.38127 | AI23: 85385.60425 | AJ23: 85754.01864 | AK23: 87119.7861 | AL23: 88411.69096 | AM23: 89875.8415 | AN23: 91391.8452 | AO23: 93705.85614 | AP23: 96483.65992 | AQ23: 97958.25962 | AR23: 99297.0774 | AS23: 100600.9432 | AT23: 101916.8503 | AU23: 103373.3241 | AV23: 104773.9787 | AW23: 106003.5672 | AX23: 107136.7957 | AY23: 108247.6889 | AZ23: 109191.6963 | BA23: 110077.9397 | BB23: 110915.861 | BC23: 111695.8374 | BD23: 112464.8303 | BE23: 113216.697 | BF23: 113874.9222 | BG23: 114483.4426 | BH23: 115048.6719 | BI23: 115513.6403 | BJ23: 115748.595 | BL23: 83750.86211 | BM23: 85695.80092 | BN23: 88267.28769 | BO23: 91700.58595 | BP23: 94997.19133 | BQ23: 99194.64412 | BR23: 101907.1842 | BS23: 106719.209 | BT23: 110106.0225 | BU23: 113037.944 | BV23: 117295.722 | BW23: 119901.9806 | BX23: 122708.8307 | BY23: 126490.6845 | BZ23: 131370.4395 | CA23: 133413.719 | CB23: 135365.5907 | CC23: 137258.5627 | CD23: 141777.7826 | CE23: 142945.6638 | CF23: 144562.7867 | CG23: 145543.0158 | CH23: 146541.9177 | CI23: 147477.4598 | CJ23: 147965.25 | CK23: 148360.3315 | CL23: 148751.7483 | CM23: 149049.8926 | CN23: 149297.3545 | CP23: 83749.27336 | CQ23: 89863.73229 | CR23: 93278.60057 | CS23: 97214.78903 | CT23: 101231.9872 | CU23: 106299.4524 | CV23: 109919.6928 | CW23: 115372.4497 | CX23: 120001.5675 | CY23: 123396.4624 | CZ23: 127665.309 | DA23: 133232.3415 | DB23: 137279.5747 | DC23: 150976.8111 | DD23: 157479.1102 | DE23: 162591.703 | DF23: 167398.735 | DG23: 171754.9867 | DH23: 176684.4825 | DI23: 180269.8145 | DJ23: 183487.7865 | DK23: 186379.8112 | DL23: 189248.8844 | DM23: 191840.3597 | DN23: 194367.4838 | DO23: 196820.9822 | DP23: 199261.8401 | DQ23: 201002.6622 | DR23: 200581.8435 | DT23: 83749.27336 | DU23: 90425.10545 | DV23: 93771.06674 | DW23: 97654.15124 | DX23: 102989.327 | DY23: 111386.6345 | DZ23: 115783.1267 | EA23: 120322.5333 | EB23: 127507.4666 | EC23: 136959.4217 | ED23: 145643.6132 | EE23: 152557.9651 | EF23: 158130.4599 | EG23: 164605.6206 | EH23: 169792.2739 | EI23: 174422.9 | EJ23: 178752.4675 | EK23: 182677.14 | EL23: 186246.4052 | EM23: 189429.6397 | EN23: 192294.1169 | EO23: 194832.9305 | EP23: 196976.3616 | EQ23: 196858.6187 | ER23: 196600.3154 | ES23: 196259.2754 | ET23: 195862.6806 | EU23: 195413.5843 | EV23: 194925.0439
A24: Derbyshire | B24: Derbyshire Dales | D24: 66.91535798 | E24: 71.93056028 | F24: 75.3945096 | G24: 79.29869571 | H24: 82.93565332 | I24: 86.67565939 | J24: 89.11500163 | K24: 91.45093704 | L24: 94.87456177 | M24: 98.60776615 | N24: 100.4896509 | O24: 102.2059225 | P24: 104.3070218 | Q24: 109.5234371 | R24: 113.2015634 | S24: 116.9962867 | T24: 120.3997073 | U24: 123.6500296 | V24: 126.9798955 | W24: 129.8394281 | X24: 132.454592 | Y24: 134.8813594 | Z24: 137.2794773 | AA24: 139.5765559 | AB24: 141.8630672 | AC24: 144.1459647 | AD24: 146.4936423 | AE24: 148.3853904 | AF24: 148.6160019 | AH24: 66.93304311 | AI24: 69.99527674 | AJ24: 71.30703522 | AK24: 73.29886996 | AL24: 75.1493216 | AM24: 76.84879589 | AN24: 78.04520452 | AO24: 79.76924998 | AP24: 81.83951646 | AQ24: 83.07064926 | AR24: 84.17312019 | AS24: 85.22856645 | AT24: 86.25472991 | AU24: 87.29763222 | AV24: 88.30078179 | AW24: 89.18614621 | AX24: 89.99577711 | AY24: 90.76474754 | AZ24: 91.40779885 | BA24: 92.00152898 | BB24: 92.54164611 | BC24: 93.01736624 | BD24: 93.48654278 | BE24: 93.93044107 | BF24: 94.31007137 | BG24: 94.65951868 | BH24: 94.98520985 | BI24: 95.27247954 | BJ24: 95.47974809 | BL24: 66.91535798 | BM24: 70.24018766 | BN24: 73.40783304 | BO24: 77.19334008 | BP24: 80.66554675 | BQ24: 84.13794585 | BR24: 86.25307756 | BS24: 88.33184847 | BT24: 91.64940262 | BU24: 95.35018469 | BV24: 97.25526457 | BW24: 99.07311757 | BX24: 100.7976451 | BY24: 103.8121367 | BZ24: 105.3568988 | CA24: 106.9841595 | CB24: 108.2631408 | CC24: 109.430481 | CD24: 110.6766609 | CE24: 111.5854454 | CF24: 112.4050875 | CG24: 113.1395412 | CH24: 113.8360295 | CI24: 114.3608924 | CJ24: 114.8076295 | CK24: 115.1940006 | CL24: 115.5638193 | CM24: 115.8825232 | CN24: 116.1666181 | CP24: 66.9142148 | CQ24: 72.7868729 | CR24: 76.28307487 | CS24: 80.21975145 | CT24: 84.02151239 | CU24: 87.82584948 | CV24: 90.27043362 | CW24: 92.50400544 | CX24: 95.71327685 | CY24: 99.30962738 | CZ24: 101.3020661 | DA24: 103.2550451 | DB24: 106.5690269 | DC24: 111.5631817 | DD24: 115.4815407 | DE24: 119.1413631 | DF24: 122.6264204 | DG24: 125.8922889 | DH24: 129.1208367 | DI24: 131.9202897 | DJ24: 134.4611268 | DK24: 136.800492 | DL24: 139.0968955 | DM24: 141.2596057 | DN24: 143.3552027 | DO24: 145.4152781 | DP24: 147.476656 | DQ24: 149.0288519 | DR24: 148.9044916 | DT24: 66.9142148 | DU24: 73.08733034 | DV24: 76.44594987 | DW24: 80.28405828 | DX24: 83.91818386 | DY24: 87.61522111 | DZ24: 91.02643422 | EA24: 93.46231038 | EB24: 98.74174155 | EC24: 104.5963656 | ED24: 109.8728053 | EE24: 114.091603 | EF24: 118.1490715 | EG24: 122.423135 | EH24: 126.1464851 | EI24: 129.5786249 | EJ24: 132.8035541 | EK24: 135.8010077 | EL24: 138.5897008 | EM24: 141.1210669 | EN24: 143.4260478 | EO24: 145.5215239 | EP24: 147.3171342 | EQ24: 147.348793 | ER24: 147.2906188 | ES24: 147.1838719 | ET24: 147.0445421 | EU24: 146.8820107 | EV24: 146.6925134
A25: Westmorland and Furness** | B25: Eden | D25: 303745.6278 | E25: 318072.4726 | F25: 330823.8823 | G25: 343620.3947 | H25: 357917.417 | I25: 378284.2408 | J25: 390643.1911 | K25: 405385.2697 | L25: 419528.2035 | M25: 430926.7739 | N25: 443221.5892 | O25: 452926.8114 | P25: 466614.2035 | Q25: 492495.2047 | R25: 522315.06 | S25: 539559.8888 | T25: 556441.7685 | U25: 573694.5208 | V25: 591077.5758 | W25: 603135.644 | X25: 617882.5674 | Y25: 627463.0153 | Z25: 637133.1196 | AA25: 648946.4754 | AB25: 658442.8749 | AC25: 668069.2257 | AD25: 678504.6933 | AE25: 687163.0775 | AF25: 689233.7602 | AH25: 303841.0259 | AI25: 305496.5902 | AJ25: 307279.0754 | AK25: 312849.3321 | AL25: 317413.5911 | AM25: 322055.0505 | AN25: 327341.3567 | AO25: 335405.3688 | AP25: 345149.2116 | AQ25: 350576.3411 | AR25: 355343.3155 | AS25: 360045.9403 | AT25: 364988.1488 | AU25: 370860.8226 | AV25: 376573.4273 | AW25: 381582.3472 | AX25: 386193.7945 | AY25: 390820.9503 | AZ25: 394812.6868 | BA25: 398647.9901 | BB25: 402338.774 | BC25: 405844.7175 | BD25: 409345.0003 | BE25: 412818.0136 | BF25: 415939.933 | BG25: 418857.5052 | BH25: 421588.9369 | BI25: 423806.1882 | BJ25: 424793.5654 | BL25: 303745.6278 | BM25: 306508.1676 | BN25: 316469.3292 | BO25: 328099.4683 | BP25: 340849.1416 | BQ25: 358870.2694 | BR25: 368543.219 | BS25: 381005.7739 | BT25: 394704.344 | BU25: 406113.0655 | BV25: 418708.8912 | BW25: 429015.1566 | BX25: 441370.22 | BY25: 458274.0795 | BZ25: 479036.4248 | CA25: 487514.0179 | CB25: 495710.6941 | CC25: 504210.693 | CD25: 513008.832 | CE25: 517448.6098 | CF25: 525721.121 | CG25: 529530.7918 | CH25: 533376.7195 | CI25: 538195.7956 | CJ25: 539965.3074 | CK25: 541226.0494 | CL25: 542620.1746 | CM25: 543495.6325 | CN25: 544184.0049 | CP25: 303739.45 | CQ25: 323939.3868 | CR25: 337543.902 | CS25: 351235.8143 | CT25: 367016.6119 | CU25: 388812.381 | CV25: 402501.6425 | CW25: 418285.1151 | CX25: 437901.8585 | CY25: 451595.2747 | CZ25: 465733.2351 | DA25: 488663.7912 | DB25: 506451.4564 | DC25: 562504.7052 | DD25: 588619.5846 | DE25: 607332.8845 | DF25: 624337.2268 | DG25: 639576.5772 | DH25: 655649.0528 | DI25: 667857.97 | DJ25: 678684.759 | DK25: 688151.8079 | DL25: 697531.0973 | DM25: 705933.2592 | DN25: 714164.7928 | DO25: 722151.1308 | DP25: 730258.1725 | DQ25: 735896.9505 | DR25: 734435.6399 | DT25: 303739.45 | DU25: 326366.2254 | DV25: 339992.6826 | DW25: 354095.3324 | DX25: 380162.8334 | DY25: 414520.4505 | DZ25: 434691.4889 | EA25: 450815.6963 | EB25: 478138.7762 | EC25: 523666.4459 | ED25: 544457.915 | EE25: 566994.3304 | EF25: 586699.0443 | EG25: 607096.2228 | EH25: 625820.3194 | EI25: 642382.1032 | EJ25: 657764.5463 | EK25: 671342.2524 | EL25: 683575.8853 | EM25: 694190.8775 | EN25: 703567.9706 | EO25: 711724.1566 | EP25: 718943.2432 | EQ25: 718802.5082 | ER25: 718075.5476 | ES25: 716984.615 | ET25: 715658.0813 | EU25: 714074.9128 | EV25: 712336.8
A26: Lancashire | B26: Fylde | D26: 333042.4064 | E26: 360643.3178 | F26: 377872.1867 | G26: 394045.5693 | H26: 412034.4282 | I26: 436098.4066 | J26: 456847.8319 | K26: 471732.4722 | L26: 486920.651 | M26: 499228.7894 | N26: 515960.4304 | O26: 526477.5575 | P26: 541000.5693 | Q26: 562832.6733 | R26: 584268.7394 | S26: 604329.5188 | T26: 623679.4156 | U26: 641978.6819 | V26: 663813.2604 | W26: 679679.1878 | X26: 694031.1238 | Y26: 707484.767 | Z26: 720621.2209 | AA26: 733035.3412 | AB26: 745537.7503 | AC26: 758343.6106 | AD26: 771662.1872 | AE26: 782648.1321 | AF26: 784731.6584 | AH26: 333136.6724 | AI26: 345410.0948 | AJ26: 349580.1683 | AK26: 356746.8956 | AL26: 365152.7475 | AM26: 378766.9868 | AN26: 391997.6728 | AO26: 402819.6801 | AP26: 415173.5595 | AQ26: 422316.622 | AR26: 429090.1458 | AS26: 435616.3109 | AT26: 442044.2139 | AU26: 448719.6604 | AV26: 455105.8563 | AW26: 460713.1435 | AX26: 465883.6483 | AY26: 470872.1426 | AZ26: 475027.8872 | BA26: 478871.7919 | BB26: 482430.0826 | BC26: 485665.251 | BD26: 488846.9429 | BE26: 491901.2718 | BF26: 494547.1314 | BG26: 496998.3238 | BH26: 499293.1565 | BI26: 501306.1834 | BJ26: 502697.0339 | BL26: 333042.4064 | BM26: 349163.4141 | BN26: 363695.5482 | BO26: 379127.8288 | BP26: 396046.4967 | BQ26: 418355.5114 | BR26: 437004.2224 | BS26: 450128.7105 | BT26: 464709.9569 | BU26: 476898.4922 | BV26: 493869.959 | BW26: 505086.2134 | BX26: 517687.9853 | BY26: 527757.4452 | BZ26: 537534.3019 | CA26: 546063.2702 | CB26: 554064.1963 | CC26: 561128.3268 | CD26: 571654.2801 | CE26: 577110.819 | CF26: 582065.1814 | CG26: 586750.1469 | CH26: 591099.6776 | CI26: 594092.9781 | CJ26: 596590.1684 | CK26: 598881.3138 | CL26: 601047.9058 | CM26: 602912.3989 | CN26: 604565.1781 | CP26: 333036.2973 | CQ26: 368585.0776 | CR26: 387103.4061 | CS26: 403719.3752 | CT26: 423583.1147 | CU26: 451207.3748 | CV26: 474447.1307 | CW26: 493141.1101 | CX26: 520751.3176 | CY26: 535166.7413 | CZ26: 554979.9492 | DA26: 572682.5299 | DB26: 587202.2424 | DC26: 613550.8709 | DD26: 641170.1246 | DE26: 662311.2711 | DF26: 682290.1611 | DG26: 701040.4707 | DH26: 720535.1951 | DI26: 736438.6044 | DJ26: 750718.1328 | DK26: 763815.2722 | DL26: 776678.7473 | DM26: 788741.1487 | DN26: 800379.2186 | DO26: 811862.1432 | DP26: 823367.7216 | DQ26: 832110.8942 | DR26: 831643.6224 | DT26: 333036.2973 | DU26: 371800.7888 | DV26: 393085.1579 | DW26: 412055.7928 | DX26: 434590.9203 | DY26: 465149.3969 | DZ26: 492910.102 | EA26: 513406.7217 | EB26: 549317.4025 | EC26: 587159.889 | ED26: 621031.888 | EE26: 645621.6823 | EF26: 669383.5782 | EG26: 694221.6652 | EH26: 716463.199 | EI26: 736540.7459 | EJ26: 755268.0378 | EK26: 772401.082 | EL26: 788127.1816 | EM26: 802320.3927 | EN26: 815186.8032 | EO26: 826803.1892 | EP26: 836976.5395 | EQ26: 837598.9326 | ER26: 837555.1773 | ES26: 837221.5729 | ET26: 836685.961 | EU26: 836018.5827 | EV26: 835198.3812
A27: Derbyshire | B27: High Peak | D27: 405807.0459 | E27: 436235.004 | F27: 457235.7354 | G27: 480920.1488 | H27: 503023.9951 | I27: 525808.8421 | J27: 540635.9708 | K27: 554813.9247 | L27: 575574.7471 | M27: 598190.9659 | N27: 609598.372 | O27: 620018.3838 | P27: 632772.513 | Q27: 664397.5085 | R27: 686706.4463 | S27: 709709.9177 | T27: 730354.5199 | U27: 750061.0985 | V27: 770247.9027 | W27: 787584.8582 | X27: 803440.2359 | Y27: 818153.4767 | Z27: 832692.6388 | AA27: 846631.3222 | AB27: 860492.6847 | AC27: 874332.4143 | AD27: 888566.6477 | AE27: 900033.8363 | AF27: 901428.3126 | AH27: 405914.2184 | AI27: 424484.3486 | AJ27: 432437.3664 | AK27: 444512.1846 | AL27: 455733.2213 | AM27: 466047.1108 | AN27: 473320.8043 | AO27: 483792.0389 | AP27: 496355.6568 | AQ27: 503822.2533 | AR27: 510506.4611 | AS27: 516905.4418 | AT27: 523126.8073 | AU27: 529449.5402 | AV27: 535531.0455 | AW27: 540898.6419 | AX27: 545807.1702 | AY27: 550469.0444 | AZ27: 554367.6419 | BA27: 557967.1052 | BB27: 561241.5979 | BC27: 564125.5877 | BD27: 566969.5782 | BE27: 569660.2298 | BF27: 571961.2156 | BG27: 574079.2399 | BH27: 576053.282 | BI27: 577794.4195 | BJ27: 579050.599 | BL27: 405807.0459 | BM27: 425973.1183 | BN27: 445176.0083 | BO27: 468141.1387 | BP27: 489246.2358 | BQ27: 510408.7062 | BR27: 523270.2755 | BS27: 535889.2202 | BT27: 556006.7081 | BU27: 578426.0259 | BV27: 589973.7693 | BW27: 601009.5781 | BX27: 611479.7317 | BY27: 629752.4269 | BZ27: 639124.6924 | CA27: 648984.9559 | CB27: 656747.2358 | CC27: 663822.9524 | CD27: 671374.8083 | CE27: 676883.0705 | CF27: 681850.9494 | CG27: 686302.27 | CH27: 690523 | CI27: 693715.5264 | CJ27: 696421.5087 | CK27: 698762.0544 | CL27: 701004.0729 | CM27: 702934.1555 | CN27: 704654.4894 | CP27: 405800.1182 | CQ27: 441434.3182 | CR27: 462631.8004 | CS27: 486513.2034 | CT27: 509615.1172 | CU27: 532790.2377 | CV27: 547663.2977 | CW27: 561220.3205 | CX27: 580690.1251 | CY27: 602482.8092 | CZ27: 614562.1428 | DA27: 626449.6952 | DB27: 646520.5269 | DC27: 676829.4569 | DD27: 700595.8507 | DE27: 722785.4763 | DF27: 743915.4917 | DG27: 763715.8781 | DH27: 783286.7835 | DI27: 800259.3549 | DJ27: 815664.0873 | DK27: 829847.4246 | DL27: 843769.99 | DM27: 856882.167 | DN27: 869586.9231 | DO27: 882076.3885 | DP27: 894574.5867 | DQ27: 903984.3465 | DR27: 903228.974 | DT27: 405800.1182 | DU27: 443259.2624 | DV27: 463622.4901 | DW27: 486892.7587 | DX27: 509039.2453 | DY27: 531592.0176 | DZ27: 552285.0455 | EA27: 567066.8195 | EB27: 599124.7078 | EC27: 634625.1673 | ED27: 666593.9881 | EE27: 692170.1905 | EF27: 716768.6541 | EG27: 742677.1173 | EH27: 765250.5708 | EI27: 786060.147 | EJ27: 805613.789 | EK27: 823787.2527 | EL27: 840695.9104 | EM27: 856043.4771 | EN27: 870019.0975 | EO27: 882724.305 | EP27: 893610.2457 | EQ27: 893800.3401 | ER27: 893445.3823 | ES27: 892795.9992 | ET27: 891949.2123 | EU27: 890961.7076 | EV27: 889810.922
A28: Lancashire | B28: Hyndburn | D28: 371807.3112 | E28: 397436.0252 | F28: 410927.4481 | G28: 427578.802 | H28: 442408.0752 | I28: 460276.5648 | J28: 475391.9929 | K28: 502746.758 | L28: 516666.2161 | M28: 528988.7951 | N28: 549990.1067 | O28: 560454.5157 | P28: 573139.0699 | Q28: 600325.6859 | R28: 631656.3443 | S28: 653395.2227 | T28: 674709.5452 | U28: 694594.3402 | V28: 734432.7219 | W28: 751733.2105 | X28: 767568.8425 | Y28: 782659.4582 | Z28: 797344.7287 | AA28: 810844.0019 | AB28: 824346.0297 | AC28: 837969.0994 | AD28: 851848.9335 | AE28: 863007.1731 | AF28: 864104.711 | AH28: 371908.3817 | AI28: 384320.9517 | AJ28: 385524.2582 | AK28: 390870.526 | AL28: 396644.86 | AM28: 404178.7189 | AN28: 411857.7503 | AO28: 422446.8746 | AP28: 435093.2017 | AQ28: 441587.0216 | AR28: 447675.2914 | AS28: 453539.2832 | AT28: 459245.6558 | AU28: 465114.8288 | AV28: 470691.3101 | AW28: 475592.1603 | AX28: 480110.5535 | AY28: 484417.9649 | AZ28: 488011.1219 | BA28: 491292.4895 | BB28: 494325.3931 | BC28: 497073.54 | BD28: 499732.4154 | BE28: 502278.6682 | BF28: 504418.8837 | BG28: 506362.0812 | BH28: 508142.4921 | BI28: 509643.101 | BJ28: 510561.5684 | BL28: 371807.3112 | BM28: 386176.4679 | BN28: 397070.7607 | BO28: 412992.8648 | BP28: 426857.5808 | BQ28: 443167.1961 | BR28: 456414.7694 | BS28: 482250.4728 | BT28: 495687.7678 | BU28: 507913.6828 | BV28: 529084.5871 | BW28: 540069.4407 | BX28: 550151.973 | BY28: 563280.1668 | BZ28: 580783.9958 | CA28: 588818.9736 | CB28: 596687.2149 | CC28: 603355.1195 | CD28: 630043.3656 | CE28: 635049.3719 | CF28: 639593.3469 | CG28: 644112.0546 | CH28: 648302.5384 | CI28: 650907.0073 | CJ28: 653113.4779 | CK28: 655097.4908 | CL28: 656898.3626 | CM28: 658480.9648 | CN28: 659838.8307 | CP28: 371800.7577 | CQ28: 403866.6371 | CR28: 418198.4814 | CS28: 436011.6645 | CT28: 452572.9363 | CU28: 472131.2135 | CV28: 488649.5226 | CW28: 516297.4578 | CX28: 533558.3109 | CY28: 547269.5394 | CZ28: 567156.1839 | DA28: 588775.8037 | DB28: 603395.2704 | DC28: 655361.5481 | DD28: 681832.8221 | DE28: 704444.5327 | DF28: 726283.5488 | DG28: 746308.555 | DH28: 769905.4923 | DI28: 786770.339 | DJ28: 802052.1673 | DK28: 816081.158 | DL28: 829976.9566 | DM28: 842638.5746 | DN28: 854936.0548 | DO28: 866877.0568 | DP28: 878573.8111 | DQ28: 887093.6542 | DR28: 885235.4087 | DT28: 371800.7577 | DU28: 406281.5543 | DV28: 420083.9391 | DW28: 437026.5726 | DX28: 453821.8984 | DY28: 487012.2919 | DZ28: 503366.7145 | EA28: 523781.0093 | EB28: 554448.3435 | EC28: 583752.2797 | ED28: 632420.3696 | EE28: 665352.5063 | EF28: 690692.2817 | EG28: 722341.0566 | EH28: 745547.2851 | EI28: 766473.9462 | EJ28: 786142.7112 | EK28: 804364.3443 | EL28: 821102.6474 | EM28: 836308.2052 | EN28: 850174.0702 | EO28: 862639.7377 | EP28: 872806.6618 | EQ28: 872058.7843 | ER28: 870773.3496 | ES28: 869182.829 | ET28: 867375.2463 | EU28: 865402.5827 | EV28: 863262.4199
A29: Lancashire | B29: Lancaster | D29: 618222.3337 | E29: 641915.4322 | F29: 678886.9288 | G29: 751797.5403 | H29: 817867.9964 | I29: 885443.304 | J29: 931934.0383 | K29: 970678.8268 | L29: 1020959.332 | M29: 1042591.474 | N29: 1062294.254 | O29: 1080655.527 | P29: 1103309.854 | Q29: 1144025.269 | R29: 1184647.646 | S29: 1560600.602 | T29: 1602093.25 | U29: 1628564.181 | V29: 1651363.271 | W29: 1677675.089 | X29: 1707864.658 | Y29: 1728151.926 | Z29: 1755189.556 | AA29: 1776391.072 | AB29: 1794977.86 | AC29: 1819378.47 | AD29: 1837221.609 | AE29: 1849578.28 | AF29: 1853044.273 | AH29: 618413.4121 | AI29: 607465.2327 | AJ29: 615402.5002 | AK29: 632887.665 | AL29: 651104.6201 | AM29: 668368.4084 | AN29: 686139.5276 | AO29: 705521.0505 | AP29: 726030.0536 | AQ29: 737971.3189 | AR29: 749412.4465 | AS29: 760548.8997 | AT29: 771807.5836 | AU29: 784077.0919 | AV29: 796026.5624 | AW29: 806605.2785 | AX29: 816299.2046 | AY29: 825747.091 | AZ29: 834002.0743 | BA29: 842029.5349 | BB29: 849797.6499 | BC29: 857214.1575 | BD29: 864640.3564 | BE29: 872089.1265 | BF29: 878788.7336 | BG29: 885021.6168 | BH29: 890821.319 | BI29: 895865.7011 | BJ29: 899417.6653 | BL29: 618222.3337 | BM29: 618615.1994 | BN29: 650278.5058 | BO29: 721531.4522 | BP29: 785382.4825 | BQ29: 849338.395 | BR29: 891445.1335 | BS29: 926284.4217 | BT29: 975315.2914 | BU29: 996576.1757 | BV29: 1016524.833 | BW29: 1035905.542 | BX29: 1054917.388 | BY29: 1074092.322 | BZ29: 1092979.662 | CA29: 1447357.71 | CB29: 1467306.785 | CC29: 1472034.492 | CD29: 1473058.467 | CE29: 1479638.173 | CF29: 1492353.521 | CG29: 1496766.243 | CH29: 1508272.266 | CI29: 1512791.159 | CJ29: 1513129.665 | CK29: 1517831.677 | CL29: 1514298.458 | CM29: 1508277.027 | CN29: 1508416.563 | CP29: 618209.9884 | CQ29: 655845.1332 | CR29: 694928.2797 | CS29: 767655.1438 | CT29: 835165.9692 | CU29: 904682.8639 | CV29: 962757.7515 | CW29: 1002206.684 | CX29: 1056320.723 | CY29: 1082171.647 | CZ29: 1107198.169 | DA29: 1136621.228 | DB29: 1166175.077 | DC29: 1223552.266 | DD29: 1282059.942 | DE29: 1324820.907 | DF29: 1365314.181 | DG29: 1723534.339 | DH29: 1748223.04 | DI29: 1775726.339 | DJ29: 1802475.104 | DK29: 1823252.256 | DL29: 1850313.461 | DM29: 1871014.501 | DN29: 1887953.908 | DO29: 1908977.313 | DP29: 1921839.589 | DQ29: 1927609.251 | DR29: 1921958.396 | DT29: 618209.9884 | DU29: 661652.9395 | DV29: 700658.3779 | DW29: 759726.1708 | DX29: 859051.4218 | DY29: 953362.9131 | DZ29: 1010311.924 | EA29: 1051482.174 | EB29: 1106131.929 | EC29: 1157292.304 | ED29: 1204996.034 | EE29: 1252589.208 | EF29: 1646363.916 | EG29: 1687694.646 | EH29: 1727917.603 | EI29: 1763620.688 | EJ29: 1797357.29 | EK29: 1822951.966 | EL29: 1844839.392 | EM29: 1868438.526 | EN29: 1891593.462 | EO29: 1908617.51 | EP29: 1929989.112 | EQ29: 1929350.428 | ER29: 1924466.722 | ES29: 1923512.738 | ET29: 1914187.86 | EU29: 1902473.607 | EV29: 1895770.859
A30: Greater Manchester | B30: Manchester | D30: 2364374.565 | E30: 2522157.957 | F30: 2606729.846 | G30: 2713855.944 | H30: 2817405.057 | I30: 2935790.382 | J30: 3019454.47 | K30: 3110970.629 | L30: 3196343.423 | M30: 3275746.463 | N30: 3341092.632 | O30: 3404094.292 | P30: 3498653.003 | Q30: 3630059.029 | R30: 3761483.273 | S30: 3887830.721 | T30: 3995477.191 | U30: 4094312.944 | V30: 4205340.688 | W30: 4300862.497 | X30: 4380721.818 | Y30: 4454831.85 | Z30: 4527913.997 | AA30: 4599893.027 | AB30: 4668211.626 | AC30: 4737251.609 | AD30: 4808838.763 | AE30: 4866645.932 | AF30: 4874411.841 | AH30: 2364851.937 | AI30: 2450311.554 | AJ30: 2470262.98 | AK30: 2515178.243 | AL30: 2553513.323 | AM30: 2585594.732 | AN30: 2627443.824 | AO30: 2686757.632 | AP30: 2753841.895 | AQ30: 2791689.447 | AR30: 2826330.559 | AS30: 2859469.488 | AT30: 2891650.341 | AU30: 2924264.974 | AV30: 2955582.546 | AW30: 2983541.587 | AX30: 3009137.417 | AY30: 3033268.497 | AZ30: 3053705.251 | BA30: 3072643.56 | BB30: 3090055.008 | BC30: 3105502.204 | BD30: 3120729.931 | BE30: 3135184.165 | BF30: 3147629.31 | BG30: 3159099.552 | BH30: 3169789.757 | BI30: 3179275.873 | BJ30: 3186400.903 | BL30: 2364374.565 | BM30: 2459063.355 | BN30: 2533241.803 | BO30: 2636588.061 | BP30: 2734774.019 | BQ30: 2844563.637 | BR30: 2917838.844 | BS30: 3000934.276 | BT30: 3081939.749 | BU30: 3159243.097 | BV30: 3224372.514 | BW30: 3290024.373 | BX30: 3373067.591 | BY30: 3438390.383 | BZ30: 3505777.646 | CA30: 3566784.202 | CB30: 3610255.135 | CC30: 3646093.674 | CD30: 3694097.863 | CE30: 3731075.813 | CF30: 3757317.628 | CG30: 3780959.774 | CH30: 3803355.119 | CI30: 3823034.867 | CJ30: 3836865.466 | CK30: 3849417.506 | CL30: 3861439.465 | CM30: 3871399.532 | CN30: 3880198.977 | CP30: 2364343.624 | CQ30: 2556536.5 | CR30: 2643714.428 | CS30: 2752404.396 | CT30: 2865967.703 | CU30: 2999678.98 | CV30: 3086628.653 | CW30: 3175843.431 | CX30: 3265955.398 | CY30: 3351007.803 | CZ30: 3422780.36 | DA30: 3517878.599 | DB30: 3607990.685 | DC30: 3804531.931 | DD30: 3959788.529 | DE30: 4075974.992 | DF30: 4181724.188 | DG30: 4280582.157 | DH30: 4375286.636 | DI30: 4461043.4 | DJ30: 4538778.983 | DK30: 4610309.166 | DL30: 4680356.496 | DM30: 4746315.919 | DN30: 4808895.832 | DO30: 4870419.458 | DP30: 4932196.631 | DQ30: 4978622.333 | DR30: 4974144.294 | DT30: 2364343.624 | DU30: 2569564.815 | DV30: 2653000.655 | DW30: 2757983.256 | DX30: 2883444.815 | DY30: 3026448.947 | DZ30: 3118034.708 | EA30: 3222919.415 | EB30: 3420551.73 | EC30: 3618542.399 | ED30: 3765480.764 | EE30: 3897364.519 | EF30: 4020027.462 | EG30: 4142747.732 | EH30: 4256502.341 | EI30: 4362573.804 | EJ30: 4462088.756 | EK30: 4553872.46 | EL30: 4639222.439 | EM30: 4717099.391 | EN30: 4787946.26 | EO30: 4852190.5 | EP30: 4907552.406 | EQ30: 4909750.417 | ER30: 4908091.285 | ES30: 4904871.444 | ET30: 4900632.714 | EU30: 4895452.364 | EV30: 4889487.966
A31: Northumberland | B31: Northumberland | D31: 25.69938508 | E31: 26.91155431 | F31: 27.99042873 | G31: 29.07311921 | H31: 30.2827652 | I31: 32.00596645 | J31: 33.05163557 | K31: 34.298937 | L31: 35.49554584 | M31: 36.4599589 | N31: 37.50020167 | O31: 38.3213435 | P31: 39.47940976 | Q31: 41.6691559 | R31: 44.19216157 | S31: 45.65121631 | T31: 47.07956256 | U31: 48.53928768 | V31: 50.01003749 | W31: 51.0302495 | X31: 52.27796083 | Y31: 53.08854574 | Z31: 53.90671631 | AA31: 54.90622363 | AB31: 55.70969735 | AC31: 56.52416602 | AD31: 57.40709263 | AE31: 58.13966334 | AF31: 58.31486018 | AH31: 25.70745655 | AI31: 25.84753094 | AJ31: 25.99834389 | AK31: 26.46963354 | AL31: 26.8558075 | AM31: 27.24851324 | AN31: 27.69577834 | AO31: 28.37806027 | AP31: 29.20246972 | AQ31: 29.66164964 | AR31: 30.06497498 | AS31: 30.46285582 | AT31: 30.88100742 | AU31: 31.37788406 | AV31: 31.86121752 | AW31: 32.28501346 | AX31: 32.67517993 | AY31: 33.06667547 | AZ31: 33.4044093 | BA31: 33.72890759 | BB31: 34.04117834 | BC31: 34.33781007 | BD31: 34.63396287 | BE31: 34.92780843 | BF31: 35.19194856 | BG31: 35.43879923 | BH31: 35.66990087 | BI31: 35.85749863 | BJ31: 35.94103888 | BL31: 25.69938508 | BM31: 25.93311873 | BN31: 26.77591515 | BO31: 27.75992083 | BP31: 28.83864834 | BQ31: 30.36338437 | BR31: 31.18179568 | BS31: 32.2362306 | BT31: 33.39524261 | BU31: 34.36051453 | BV31: 35.42622526 | BW31: 36.2982203 | BX31: 37.34356056 | BY31: 38.77376649 | BZ31: 40.53043212 | CA31: 41.24770641 | CB31: 41.94121281 | CC31: 42.66038282 | CD31: 43.40477794 | CE31: 43.78041976 | CF31: 44.48034243 | CG31: 44.80267199 | CH31: 45.12806919 | CI31: 45.53580277 | CJ31: 45.68551806 | CK31: 45.79218724 | CL31: 45.91014173 | CM31: 45.98421268 | CN31: 46.04245466 | CP31: 25.69886239 | CQ31: 27.40794363 | CR31: 28.55899781 | CS31: 29.71744651 | CT31: 31.05263213 | CU31: 32.89673394 | CV31: 34.05495836 | CW31: 35.39037031 | CX31: 37.05010858 | CY31: 38.20868451 | CZ31: 39.40487256 | DA31: 41.34498671 | DB31: 42.84996988 | DC31: 47.592537 | DD31: 49.80207116 | DE31: 51.38537066 | DF31: 52.82407825 | DG31: 54.11345298 | DH31: 55.47331696 | DI31: 56.50629204 | DJ31: 57.42232768 | DK31: 58.22331809 | DL31: 59.01688332 | DM31: 59.72777551 | DN31: 60.42423114 | DO31: 61.0999412 | DP31: 61.78586378 | DQ31: 62.2629509 | DR31: 62.13931198 | DT31: 25.69886239 | DU31: 27.61327419 | DV31: 28.76618484 | DW31: 29.95938532 | DX31: 32.16491089 | DY31: 35.07184864 | DZ31: 36.77848483 | EA31: 38.14272575 | EB31: 40.45448364 | EC31: 44.30649996 | ED31: 46.06562971 | EE31: 47.97239632 | EF31: 49.63957762 | EG31: 51.36534713 | EH31: 52.94956012 | EI31: 54.35082361 | EJ31: 55.65230516 | EK31: 56.80109107 | EL31: 57.8361573 | EM31: 58.73427318 | EN31: 59.52765259 | EO31: 60.21773319 | EP31: 60.82852745 | EQ31: 60.81662011 | ER31: 60.75511324 | ES31: 60.66281135 | ET31: 60.55057567 | EU31: 60.41662655 | EV31: 60.26956787
A32: Greater Manchester | B32: Oldham | D32: 902630.8285 | E32: 988054.1104 | F32: 1032238.228 | G32: 1084803.166 | H32: 1129314.449 | I32: 1164547.149 | J32: 1199180.604 | K32: 1233365.733 | L32: 1270313.877 | M32: 1303972.489 | N32: 1332438.902 | O32: 1358558.542 | P32: 1390251.866 | Q32: 1449478.07 | R32: 1504049.693 | S32: 1558041.412 | T32: 1609423.401 | U32: 1658657.288 | V32: 1706100.49 | W32: 1749714.977 | X32: 1789689.049 | Y32: 1826902.742 | Z32: 1863763.257 | AA32: 1898887.309 | AB32: 1933876.937 | AC32: 1969121.319 | AD32: 2005188.237 | AE32: 2034736.475 | AF32: 2040137.638 | AH32: 902848.4268 | AI32: 953649.5639 | AJ32: 966987.162 | AK32: 989177.4765 | AL32: 1011882.645 | AM32: 1024088.768 | AN32: 1042379.034 | AO32: 1068907.395 | AP32: 1100080.011 | AQ32: 1118413.811 | AR32: 1135741.915 | AS32: 1152464.09 | AT32: 1168831.642 | AU32: 1185569.146 | AV32: 1201725.708 | AW32: 1216261.418 | AX32: 1229646.804 | AY32: 1242299.555 | AZ32: 1253147.903 | BA32: 1263224.518 | BB32: 1272540.517 | BC32: 1280883.185 | BD32: 1289206.91 | BE32: 1297149.707 | BF32: 1304167.219 | BG32: 1310727.349 | BH32: 1316922.703 | BI32: 1322536.998 | BJ32: 1326979.647 | BL32: 902630.8285 | BM32: 956749.9395 | BN32: 995852.0943 | BO32: 1046813.299 | BP32: 1089046.932 | BQ32: 1120419.256 | BR32: 1150284.104 | BS32: 1180727.28 | BT32: 1215942.928 | BU32: 1248903.664 | BV32: 1277463.544 | BW32: 1304861.493 | BX32: 1330988.45 | BY32: 1358444.809 | BZ32: 1382388.661 | CA32: 1404613.15 | CB32: 1424763.215 | CC32: 1443334.081 | CD32: 1460011.278 | CE32: 1474884.383 | CF32: 1488484.623 | CG32: 1500819.003 | CH32: 1512617.674 | CI32: 1521816.011 | CJ32: 1529909.443 | CK32: 1537435.266 | CL32: 1544530.885 | CM32: 1550935.958 | CN32: 1556813.621 | CP32: 902616.7275 | CQ32: 1004625.195 | CR32: 1049844.372 | CS32: 1102900.295 | CT32: 1149173.866 | CU32: 1185571.895 | CV32: 1220427.862 | CW32: 1253954.209 | CX32: 1293608.354 | CY32: 1330605.949 | CZ32: 1362557.957 | DA32: 1392328.886 | DB32: 1429532.174 | DC32: 1492171.406 | DD32: 1550597.544 | DE32: 1606035.278 | DF32: 1658643.784 | DG32: 1708471.358 | DH32: 1755806.35 | DI32: 1799072.14 | DJ32: 1838475.426 | DK32: 1874909.114 | DL32: 1910759.547 | DM32: 1944657.281 | DN32: 1977505.069 | DO32: 2009741.412 | DP32: 2041835.395 | DQ32: 2066544.986 | DR32: 2066559.415 | DT32: 902616.7275 | DU32: 1010896.445 | DV32: 1054240.207 | DW32: 1105175.925 | DX32: 1149765.52 | DY32: 1184397.509 | DZ32: 1220006.829 | EA32: 1257405.548 | EB32: 1327815.034 | EC32: 1397749.927 | ED32: 1464702.685 | EE32: 1527593.514 | EF32: 1588132.153 | EG32: 1647357.03 | EH32: 1703308.401 | EI32: 1756015.841 | EJ32: 1805545.438 | EK32: 1851736.433 | EL32: 1894849.707 | EM32: 1934213.317 | EN32: 1970225.663 | EO32: 2003117.317 | EP32: 2031508.596 | EQ32: 2034360.42 | ER32: 2035830.65 | ES32: 2036539.118 | ET32: 2036681.939 | EU32: 2036388.767 | EV32: 2035625.749
A33: Lancashire | B33: Pendle | D33: 324896.3896 | E33: 345792.1474 | F33: 357558.1581 | G33: 372509.9697 | H33: 385936.3389 | I33: 400805.9071 | J33: 413164.3099 | K33: 437456.2239 | L33: 449633.8213 | M33: 460347.0902 | N33: 479049.0019 | O33: 487908.8227 | P33: 499008.8172 | Q33: 522815.0915 | R33: 550555.6185 | S33: 569535.8967 | T33: 587873.1694 | U33: 605349.6296 | V33: 640877.5085 | W33: 656051.2674 | X33: 669947.0625 | Y33: 682840.4846 | Z33: 695752.9136 | AA33: 707613.5248 | AB33: 719463.1247 | AC33: 731410.0944 | AD33: 743572.5911 | AE33: 753337.7684 | AF33: 754264.2842 | AH33: 324984.9336 | AI33: 335348.3089 | AJ33: 336369.0372 | AK33: 341075.3009 | AL33: 346145.1336 | AM33: 352319.5041 | AN33: 358408.9238 | AO33: 367705.5568 | AP33: 378799.0214 | AQ33: 384483.9 | AR33: 389808.401 | AS33: 394938.8352 | AT33: 399926.6248 | AU33: 405047.1255 | AV33: 409912.8396 | AW33: 414194.629 | AX33: 418146.6289 | AY33: 421913.5297 | AZ33: 425057.1916 | BA33: 427925.9444 | BB33: 430576.159 | BC33: 432975.0576 | BD33: 435299.7032 | BE33: 437523.3609 | BF33: 439393.9556 | BG33: 441093.7012 | BH33: 442652.4826 | BI33: 443969.4939 | BJ33: 444784.0354 | BL33: 324896.3896 | BM33: 336840.2365 | BN33: 346534.0101 | BO33: 360850.7694 | BP33: 373438.3039 | BQ33: 386953.613 | BR33: 397690.1369 | BS33: 420665.9979 | BT33: 432421.2169 | BU33: 443047.2288 | BV33: 461893.7917 | BW33: 471204.3891 | BX33: 480009.3581 | BY33: 491452.1394 | BZ33: 507039.7831 | CA33: 513976.1458 | CB33: 520500.5778 | CC33: 526372.4584 | CD33: 550360.0941 | CE33: 554738.3558 | CF33: 558711.1272 | CG33: 562309.4973 | CH33: 565994.535 | CI33: 568289.1581 | CJ33: 570233.029 | CK33: 571983.7483 | CL33: 573575.5365 | CM33: 574978.0457 | CN33: 576185.4269 | CP33: 324890.6487 | CQ33: 350859.767 | CR33: 363232.9401 | CS33: 379218.3462 | CT33: 394143.41 | CU33: 410382.1543 | CV33: 423884.0413 | CW33: 448354.2796 | CX33: 463487.6119 | CY33: 475366.7286 | CZ33: 492957.4796 | DA33: 511523.4487 | DB33: 524257.5162 | DC33: 570100.0121 | DD33: 592919.6142 | DE33: 612671.1774 | DF33: 631799.9298 | DG33: 649332.473 | DH33: 670077.1635 | DI33: 684853.5244 | DJ33: 698250.4225 | DK33: 710553.2902 | DL33: 722753.8973 | DM33: 733863.0019 | DN33: 744649.2624 | DO33: 755123.2993 | DP33: 765382.8942 | DQ33: 772854.772 | DR33: 771217.9542 | DT33: 324890.6487 | DU33: 352689.3273 | DV33: 364527.7807 | DW33: 379720.3903 | DX33: 394473.3744 | DY33: 422606.9289 | DZ33: 435638.5651 | EA33: 453376.5212 | EB33: 479981.9235 | EC33: 505693.3665 | ED33: 548869.5483 | EE33: 577917.092 | EF33: 600089.03 | EG33: 627946.8142 | EH33: 648231.6309 | EI33: 666526.224 | EJ33: 683730.9585 | EK33: 699687.7199 | EL33: 714328.1535 | EM33: 727666.4782 | EN33: 739839.3396 | EO33: 750786.6888 | EP33: 759710.3779 | EQ33: 759044.3857 | ER33: 757904.3323 | ES33: 756501.0546 | ET33: 754911.025 | EU33: 753178.3785 | EV33: 751300.9358
A34: Lancashire | B34: Preston | D34: 595027.4028 | E34: 670176.3972 | F34: 698415.2031 | G34: 720971.7322 | H34: 746552.1436 | I34: 788599.0018 | J34: 830180.2036 | K34: 855565.3877 | L34: 877554.4484 | M34: 898615.8283 | N34: 916980.6763 | O34: 940024.5052 | P34: 960778.5755 | Q34: 1000774.892 | R34: 1036751.926 | S34: 1072983.406 | T34: 1113740.03 | U34: 1146238.152 | V34: 1178255.762 | W34: 1206150.752 | X34: 1231629.128 | Y34: 1262708.381 | Z34: 1285550.413 | AA34: 1307124.963 | AB34: 1328911.283 | AC34: 1351047.035 | AD34: 1373801.773 | AE34: 1392603.35 | AF34: 1396271.78 | AH34: 595179.5875 | AI34: 625195.6629 | AJ34: 628231.3378 | AK34: 636294.0877 | AL34: 643905.5435 | AM34: 660852.8825 | AN34: 685228.0965 | AO34: 701327.7833 | AP34: 720647.0875 | AQ34: 731643.591 | AR34: 742165.0183 | AS34: 752335.6446 | AT34: 762378.9464 | AU34: 772815.0171 | AV34: 782822.7304 | AW34: 791595.9495 | AX34: 799618.2033 | AY34: 807235.1266 | AZ34: 813590.147 | BA34: 819510.9143 | BB34: 825039.5939 | BC34: 830124.5806 | BD34: 835025.8833 | BE34: 839785.2254 | BF34: 843841.8899 | BG34: 847528.8941 | BH34: 850903.1321 | BI34: 853786.0021 | BJ34: 855700.3701 | BL34: 595027.4028 | BM34: 634134.2717 | BN34: 654729.6061 | BO34: 676208.9248 | BP34: 700340.5006 | BQ34: 739924.6856 | BR34: 778453.3828 | BS34: 801305.7527 | BT34: 822468.9216 | BU34: 843294.6053 | BV34: 861831.5312 | BW34: 885629.9607 | BX34: 902564.6135 | BY34: 921765.7331 | BZ34: 937182.6439 | CA34: 952649.0698 | CB34: 972859.7422 | CC34: 985002.149 | CD34: 996510.2671 | CE34: 1005350.75 | CF34: 1013458.499 | CG34: 1028337.426 | CH34: 1035123.699 | CI34: 1039991.407 | CJ34: 1044224.899 | CK34: 1048047.12 | CL34: 1051519.749 | CM34: 1054552.763 | CN34: 1057168.751 | CP34: 595017.5283 | CQ34: 692432.6188 | CR34: 724384.3668 | CS34: 747597.4315 | CT34: 775421.366 | CU34: 821507.7379 | CV34: 866095.8272 | CW34: 893198.0477 | CX34: 918506.2997 | CY34: 943493.3872 | CZ34: 965764.3808 | DA34: 999690.9944 | DB34: 1025102.49 | DC34: 1078886.103 | DD34: 1128515.963 | DE34: 1166490.363 | DF34: 1201769.312 | DG34: 1234859.768 | DH34: 1267524.605 | DI34: 1295572.11 | DJ34: 1320956.146 | DK34: 1344270.098 | DL34: 1366754.568 | DM34: 1387794.265 | DN34: 1408107.394 | DO34: 1427760.47 | DP34: 1446981.487 | DQ34: 1461280.921 | DR34: 1459703.494 | DT34: 595017.5283 | DU34: 702378.2886 | DV34: 734832.8084 | DW34: 757296.4247 | DX34: 794363.3088 | DY34: 851927.4351 | DZ34: 904362.427 | EA34: 935059.8943 | EB34: 987203.9319 | EC34: 1032126.58 | ED34: 1079145.944 | EE34: 1121735.989 | EF34: 1162923.253 | EG34: 1204429.593 | EH34: 1242987.218 | EI34: 1278344.427 | EJ34: 1311368.118 | EK34: 1341659.188 | EL34: 1370136.964 | EM34: 1395098.175 | EN34: 1417646.796 | EO34: 1437974.832 | EP34: 1454802.839 | EQ34: 1455201.282 | ER34: 1454760.053 | ES34: 1453677.359 | ET34: 1452103.658 | EU34: 1450166.687 | EV34: 1447865.914
A35: Lancashire | B35: Ribble Valley | D35: 230251.5668 | E35: 250072.9007 | F35: 259196.9908 | G35: 269035.2272 | H35: 278432.4024 | I35: 291054.337 | J35: 302427.3822 | K35: 317239.3078 | L35: 325825.9963 | M35: 333612.2082 | N35: 344853.6342 | O35: 352062.6956 | P35: 359970.4142 | Q35: 376400.0623 | R35: 394163.4904 | S35: 407792.6552 | T35: 421761.2242 | U35: 434153.5372 | V35: 455151.9046 | W35: 465889.7412 | X35: 475712.0637 | Y35: 485859.177 | Z35: 494877.0695 | AA35: 503233.4637 | AB35: 511615.5589 | AC35: 520090.6282 | AD35: 528748.7773 | AE35: 535768.0703 | AF35: 536668.9865 | AH35: 230313.0504 | AI35: 239174.6301 | AJ35: 240048.1756 | AK35: 243301.8487 | AL35: 246689.0822 | AM35: 251920.3903 | AN35: 258074.3351 | AO35: 264533.9001 | AP35: 272259.0426 | AQ35: 276350.3786 | AR35: 280210.6981 | AS35: 283933.069 | AT35: 287572.2861 | AU35: 291327.6212 | AV35: 294906.3356 | AW35: 298048.9184 | AX35: 300938.5833 | AY35: 303689.7591 | AZ35: 305984.8668 | BA35: 308094.3818 | BB35: 310050.6723 | BC35: 311832.0128 | BD35: 313553.3452 | BE35: 315209.3633 | BF35: 316607.8149 | BG35: 317877.9674 | BH35: 319041.2638 | BI35: 320026.2425 | BJ35: 320646.4513 | BL35: 230251.5668 | BM35: 241014.4385 | BN35: 248126.6427 | BO35: 257523.6728 | BP35: 266334.4979 | BQ35: 277994.7822 | BR35: 288203.8 | BS35: 302063.2407 | BT35: 310345.063 | BU35: 318062.0403 | BV35: 329396.9931 | BW35: 336919.2858 | BX35: 343255.5209 | BY35: 351176.2252 | BZ35: 360558.4445 | CA35: 365836.0437 | CB35: 371590.3165 | CC35: 375889.8362 | CD35: 388806.5943 | CE35: 392002.6133 | CF35: 394913.2832 | CG35: 398596.6018 | CH35: 401200.9085 | CI35: 402894.7407 | CJ35: 404342.4211 | CK35: 405645.9441 | CL35: 406829.5125 | CM35: 407867.4639 | CN35: 408759.6028 | CP35: 230247.5794 | CQ35: 255439.8325 | CR35: 265358.3988 | CS35: 275776.9468 | CT35: 286185.5598 | CU35: 300008.4074 | CV35: 312338.3471 | CW35: 327476.1398 | CX35: 337897.0919 | CY35: 346740.3636 | CZ35: 357949.8804 | DA35: 371260.6046 | DB35: 380547.2509 | DC35: 409329.0775 | DD35: 426562.9032 | DE35: 440772.6341 | DF35: 454335.0367 | DG35: 466856.7514 | DH35: 480879.7489 | DI35: 491446.1244 | DJ35: 501017.1276 | DK35: 509804.7472 | DL35: 518438.5615 | DM35: 526369.4462 | DN35: 534058.1882 | DO35: 541515.8027 | DP35: 548817.3889 | DQ35: 554170.4074 | DR35: 553181.2131 | DT35: 230247.5794 | DU35: 257639.0335 | DV35: 267385.8723 | DW35: 277339.7224 | DX35: 288919.5248 | DY35: 309988.2194 | DZ35: 323154.9929 | EA35: 335568.7141 | EB35: 354914.7612 | EC35: 372833.199 | ED35: 399400.2829 | EE35: 418624.1242 | EF35: 434389.8393 | EG35: 452931.1582 | EH35: 467466.4313 | EI35: 480641.8389 | EJ35: 493001.1852 | EK35: 504416.1432 | EL35: 514977.3856 | EM35: 524466.3502 | EN35: 533094.5944 | EO35: 540858.0715 | EP35: 547218.6656 | EQ35: 546940.109 | ER35: 546331.0467 | ES35: 545515.321 | ET35: 544548.5524 | EU35: 543468.0863 | EV35: 542272.8118
A36: North Yorkshire | B36: Richmondshire | D36: 305.3577886 | E36: 319.7606747 | F36: 332.5797638 | G36: 345.444195 | H36: 359.8171002 | I36: 380.2920229 | J36: 392.7165696 | K36: 407.5368933 | L36: 421.7548922 | M36: 433.2139616 | N36: 445.5740329 | O36: 455.3307666 | P36: 469.090806 | Q36: 495.1091732 | R36: 525.0873004 | S36: 542.4236579 | T36: 559.3951399 | U36: 576.7394629 | V36: 594.2147802 | W36: 606.3368478 | X36: 621.162042 | Y36: 630.7933391 | Z36: 640.5147685 | AA36: 652.3908249 | AB36: 661.9376276 | AC36: 671.6150712 | AD36: 682.1059261 | AE36: 690.8102655 | AF36: 692.8919386 | AH36: 305.4536931 | AI36: 307.1180445 | AJ36: 308.9099904 | AK36: 314.5098118 | AL36: 319.0982961 | AM36: 323.7643905 | AN36: 329.0787543 | AO36: 337.185567 | AP36: 346.9811262 | AQ36: 352.4370607 | AR36: 357.2293363 | AS36: 361.9569208 | AT36: 366.9253606 | AU36: 372.8292042 | AV36: 378.5721291 | AW36: 383.6076344 | AX36: 388.2435574 | AY36: 392.8952724 | AZ36: 396.9081954 | BA36: 400.7638549 | BB36: 404.474228 | BC36: 407.9987797 | BD36: 411.5176406 | BE36: 415.0090873 | BF36: 418.1475766 | BG36: 421.080634 | BH36: 423.8265631 | BI36: 426.0555827 | BJ36: 427.0482005 | BL36: 305.3577886 | BM36: 308.134991 | BN36: 318.1490224 | BO36: 329.8408896 | BP36: 342.6582332 | BQ36: 360.7750099 | BR36: 370.4992997 | BS36: 383.0280008 | BT36: 396.7992776 | BU36: 408.268552 | BV36: 420.9312313 | BW36: 431.2921982 | BX36: 443.7128374 | BY36: 460.7064159 | BZ36: 481.5789594 | CA36: 490.1015482 | CB36: 498.3417291 | CC36: 506.8868426 | CD36: 515.7316786 | CE36: 520.195021 | CF36: 528.5114395 | CG36: 532.3413304 | CH36: 536.2076708 | CI36: 541.0523246 | CJ36: 542.8312283 | CK36: 544.0986618 | CL36: 545.5001865 | CM36: 546.380291 | CN36: 547.0723169 | CP36: 305.3515781 | CQ36: 325.6587281 | CR36: 339.3354506 | CS36: 353.1000342 | CT36: 368.96459 | CU36: 390.8760423 | CV36: 404.637961 | CW36: 420.505206 | CX36: 440.2260673 | CY36: 453.9921626 | CZ36: 468.2051617 | DA36: 491.2574241 | DB36: 509.1394991 | DC36: 565.4902562 | DD36: 591.743743 | DE36: 610.5563657 | DF36: 627.6509602 | DG36: 642.971195 | DH36: 659.128977 | DI36: 671.4026942 | DJ36: 682.2869475 | DK36: 691.8042438 | DL36: 701.2333147 | DM36: 709.6800719 | DN36: 717.9552952 | DO36: 725.9840215 | DP36: 734.1340921 | DQ36: 739.8027985 | DR36: 738.3337319 | DT36: 305.3515781 | DU36: 328.0984474 | DV36: 341.7972284 | DW36: 355.9747295 | DX36: 382.1805864 | DY36: 416.7205601 | DZ36: 436.9986582 | EA36: 453.2084465 | EB36: 480.6765464 | EC36: 526.4458589 | ED36: 547.3476808 | EE36: 570.0037106 | EF36: 589.8130093 | EG36: 610.3184478 | EH36: 629.1419245 | EI36: 645.7916116 | EJ36: 661.2556986 | EK36: 674.9054698 | EL36: 687.2040339 | EM36: 697.8753663 | EN36: 707.3022293 | EO36: 715.5017051 | EP36: 722.7591077 | EQ36: 722.6176258 | ER36: 721.8868067 | ES36: 720.7900839 | ET36: 719.4565095 | EU36: 717.8649381 | EV36: 716.1176001
A37: Greater Manchester | B37: Rochdale | D37: 856151.5894 | E37: 927923.7855 | F37: 973821.4336 | G37: 1023292.55 | H37: 1082058.558 | I37: 1117545.648 | J37: 1152073.967 | K37: 1187024.461 | L37: 1219592.672 | M37: 1248719.434 | N37: 1275923.066 | O37: 1301272.618 | P37: 1332358.097 | Q37: 1388082.185 | R37: 1442050.113 | S37: 1494721.767 | T37: 1545454.641 | U37: 1597107.116 | V37: 1643602.742 | W37: 1686685.012 | X37: 1726303.222 | Y37: 1763225.936 | Z37: 1799415.243 | AA37: 1833747.633 | AB37: 1867922.727 | AC37: 1902347.906 | AD37: 1937464.123 | AE37: 1966346.606 | AF37: 1972071.999 | AH37: 856367.4654 | AI37: 890389.3553 | AJ37: 896318.4271 | AK37: 911213.6989 | AL37: 924068.3403 | AM37: 932795.4095 | AN37: 949307.5136 | AO37: 974084.9871 | AP37: 1003339.917 | AQ37: 1020578.645 | AR37: 1036992.714 | AS37: 1052972.033 | AT37: 1068645.38 | AU37: 1084565.608 | AV37: 1099959.876 | AW37: 1113758.997 | AX37: 1126525.929 | AY37: 1138586.466 | AZ37: 1148780.57 | BA37: 1158279.867 | BB37: 1167123.866 | BC37: 1175168.132 | BD37: 1183125.387 | BE37: 1190769.942 | BF37: 1197455.745 | BG37: 1203635.226 | BH37: 1209392.636 | BI37: 1214549.745 | BJ37: 1218598.04 | BL37: 856151.5894 | BM37: 901019.1654 | BN37: 942257.1987 | BO37: 990356.3087 | BP37: 1047269.395 | BQ37: 1079532.041 | BR37: 1109991.128 | BS37: 1141683.979 | BT37: 1172856.433 | BU37: 1201373.213 | BV37: 1228545.605 | BW37: 1254773.304 | BX37: 1279836.82 | BY37: 1303834.526 | BZ37: 1326809.451 | CA37: 1347687.148 | CB37: 1367046.256 | CC37: 1387828.265 | CD37: 1403267.638 | CE37: 1417312.46 | CF37: 1430198.957 | CG37: 1441992.789 | CH37: 1453201.209 | CI37: 1462085.684 | CJ37: 1469904.382 | CK37: 1477152.525 | CL37: 1483906.817 | CM37: 1490000.381 | CN37: 1495514.264 | CP37: 856137.597 | CQ37: 944547.2904 | CR37: 991719.4888 | CS37: 1041691.718 | CT37: 1102240.302 | CU37: 1139289.275 | CV37: 1174516.061 | CW37: 1209179.195 | CX37: 1245818.958 | CY37: 1279785.497 | CZ37: 1311677.638 | DA37: 1341837.507 | DB37: 1378018.195 | DC37: 1442156.22 | DD37: 1503816.931 | DE37: 1559509.176 | DF37: 1612411.265 | DG37: 1662483.004 | DH37: 1709629.726 | DI37: 1752903.178 | DJ37: 1792409.444 | DK37: 1828936.742 | DL37: 1864440.375 | DM37: 1897859.395 | DN37: 1929918.479 | DO37: 1960999.339 | DP37: 1991488.643 | DQ37: 2014567.451 | DR37: 2013621.087 | DT37: 856137.597 | DU37: 950982.3825 | DV37: 996559.7325 | DW37: 1044476.096 | DX37: 1107475.095 | DY37: 1146685.456 | DZ37: 1184239.966 | EA37: 1220666.239 | EB37: 1288721.173 | EC37: 1355982.936 | ED37: 1421135.366 | EE37: 1484165.35 | EF37: 1544979.518 | EG37: 1603942.886 | EH37: 1660615.663 | EI37: 1713536.669 | EJ37: 1763257.746 | EK37: 1809517.086 | EL37: 1852765.383 | EM37: 1891857.792 | EN37: 1927505.416 | EO37: 1959939.034 | EP37: 1987049.923 | EQ37: 1989136.01 | ER37: 1989824.91 | ES37: 1989633.669 | ET37: 1988761.614 | EU37: 1987366.125 | EV37: 1985441.987
A38: Lancashire | B38: Rossendale | D38: 313920.1378 | E38: 334424.2781 | F38: 346175.1291 | G38: 360865.1642 | H38: 374509.6118 | I38: 388824.942 | J38: 400823.9925 | K38: 423624.5588 | L38: 435397.8228 | M38: 445767.9039 | N38: 463314.3191 | O38: 471923.3295 | P38: 482695.4545 | Q38: 505539.535 | R38: 531900.6538 | S38: 550309.5754 | T38: 568092.6175 | U38: 585139.3661 | V38: 618360.8246 | W38: 633101.7402 | X38: 646605.8652 | Y38: 659140.0332 | Z38: 671671.1141 | AA38: 683206.4779 | AB38: 694727.971 | AC38: 706343.1759 | AD38: 718168.9961 | AE38: 727680.5187 | AF38: 728655.2314 | AH38: 314005.3655 | AI38: 324069.0481 | AJ38: 325090.7158 | AK38: 329668.7216 | AL38: 334497.6229 | AM38: 340277.1894 | AN38: 346164.7524 | AO38: 355148.7225 | AP38: 365863.2379 | AQ38: 371407.2865 | AR38: 376605.7544 | AS38: 381619.425 | AT38: 386497.0675 | AU38: 391499.5913 | AV38: 396259.59 | AW38: 400453.7032 | AX38: 404325.8524 | AY38: 408014.1179 | AZ38: 411093.9299 | BA38: 413909.1978 | BB38: 416511.9246 | BC38: 418869.5122 | BD38: 421157.3853 | BE38: 423346.9647 | BF38: 425194.2289 | BG38: 426874.644 | BH38: 428417.186 | BI38: 429726.7287 | BJ38: 430555.9881 | BL38: 313920.1378 | BM38: 325722.6739 | BN38: 335492.2391 | BO38: 349576.8366 | BP38: 362421.4192 | BQ38: 375439.6701 | BR38: 385880.0571 | BS38: 407416.3261 | BT38: 418776.868 | BU38: 429054.3389 | BV38: 446730.2291 | BW38: 455765.3201 | BX38: 464316.0039 | BY38: 475225.6706 | BZ38: 489857.429 | CA38: 496619.256 | CB38: 502973.462 | CC38: 508791.2686 | CD38: 530837.0482 | CE38: 535123.6572 | CF38: 539016.7476 | CG38: 542546.5771 | CH38: 546140.2558 | CI38: 548423.4259 | CJ38: 550364.2757 | CK38: 552116.5876 | CL38: 553713.181 | CM38: 555123.0224 | CN38: 556342.2924 | CP38: 313914.6122 | CQ38: 339401.3193 | CR38: 351732.8245 | CS38: 367369.319 | CT38: 382412.4543 | CU38: 398006.4072 | CV38: 411059.3849 | CW38: 434016.0562 | CX38: 448561.9927 | CY38: 460106.8361 | CZ38: 476767.3163 | DA38: 494272.9068 | DB38: 506652.2056 | DC38: 549643.3932 | DD38: 571765.6142 | DE38: 590951.1667 | DF38: 609507.4686 | DG38: 626552.5026 | DH38: 646430.2458 | DI38: 660819.4547 | DJ38: 673872.3571 | DK38: 685865.0467 | DL38: 697737.8786 | DM38: 708573.3714 | DN38: 719082.5576 | DO38: 729283.8191 | DP38: 739274.309 | DQ38: 746567.5059 | DR38: 745057.2329 | DT38: 313914.6122 | DU38: 341209.1554 | DV38: 353020.9966 | DW38: 367892.7093 | DX38: 382866.5005 | DY38: 409290.4371 | DZ38: 421995.8303 | EA38: 438894.6458 | EB38: 464565.5391 | EC38: 489412.2462 | ED38: 529995.3334 | EE38: 557759.2227 | EF38: 579256.1124 | EG38: 605849.0324 | EH38: 625543.7163 | EI38: 643345.2423 | EJ38: 660085.0343 | EK38: 675613.1097 | EL38: 689879.7257 | EM38: 702867.2282 | EN38: 714718.272 | EO38: 725384.114 | EP38: 734088.133 | EQ38: 733528.5746 | ER38: 732507.0541 | ES38: 731225.8471 | ET38: 729758.9036 | EU38: 728150.0722 | EV38: 726397.4932
A39: Greater Manchester | B39: Salford | D39: 1014071.293 | E39: 1077436.338 | F39: 1113272.345 | G39: 1170136.774 | H39: 1217860.565 | I39: 1283677.361 | J39: 1321891.236 | K39: 1362781.009 | L39: 1405714.264 | M39: 1444467.698 | N39: 1482458.821 | O39: 1524591.777 | P39: 1558204.818 | Q39: 1624031.689 | R39: 1686059.811 | S39: 1773463.798 | T39: 1828061.411 | U39: 1880491.252 | V39: 1934114.92 | W39: 1980726.451 | X39: 2023400.818 | Y39: 2063116.308 | Z39: 2102004.196 | AA39: 2138864.487 | AB39: 2175705.208 | AC39: 2213298.401 | AD39: 2252219.979 | AE39: 2284815.046 | AF39: 2293084.384 | AH39: 1014282.713 | AI39: 1049355.531 | AJ39: 1057963.338 | AK39: 1093430.561 | AL39: 1107504.445 | AM39: 1120104.39 | AN39: 1139240.635 | AO39: 1167212.485 | AP39: 1199294.968 | AQ39: 1219280.867 | AR39: 1237537.787 | AS39: 1255359.863 | AT39: 1272982.921 | AU39: 1290880.806 | AV39: 1308246.128 | AW39: 1323991.209 | AX39: 1338630.792 | AY39: 1352566.302 | AZ39: 1364478.188 | BA39: 1375786.209 | BB39: 1386508.088 | BC39: 1396473.855 | BD39: 1406425.72 | BE39: 1416162.506 | BF39: 1424761.545 | BG39: 1432749.292 | BH39: 1440209.774 | BI39: 1446936.735 | BJ39: 1452357.468 | BL39: 1014071.293 | BM39: 1053877.777 | BN39: 1085578.746 | BO39: 1140861.335 | BP39: 1186456.568 | BQ39: 1248536.64 | BR39: 1282108.397 | BS39: 1319114.534 | BT39: 1360322.088 | BU39: 1398221.396 | BV39: 1436012.867 | BW39: 1479039.194 | BX39: 1506199.678 | BY39: 1538508.293 | BZ39: 1567666.678 | CA39: 1620997.205 | CB39: 1641779.954 | CC39: 1660723.002 | CD39: 1680535.012 | CE39: 1695927.054 | CF39: 1710186.735 | CG39: 1723435.199 | CH39: 1736135.681 | CI39: 1746411.491 | CJ39: 1755170.421 | CK39: 1763259.511 | CL39: 1770739.177 | CM39: 1777325.79 | CN39: 1783193.924 | CP39: 1014057.584 | CQ39: 1093227.728 | CR39: 1130241.133 | CS39: 1188347.443 | CT39: 1239865.265 | CU39: 1310656.028 | CV39: 1351770.146 | CW39: 1393651.72 | CX39: 1441893.996 | CY39: 1487139.094 | CZ39: 1531495.951 | DA39: 1581223.024 | DB39: 1622662.761 | DC39: 1737161.041 | DD39: 1811736.421 | DE39: 1873248.217 | DF39: 1931800.236 | DG39: 1987050.818 | DH39: 2041653.533 | DI39: 2089399.813 | DJ39: 2132766.147 | DK39: 2172712.498 | DL39: 2211493.429 | DM39: 2247942.422 | DN39: 2282556.262 | DO39: 2316117.05 | DP39: 2349131.413 | DQ39: 2374084.773 | DR39: 2373313.22 | DT39: 1014057.584 | DU39: 1098628.289 | DV39: 1134592.783 | DW39: 1198434.224 | DX39: 1258891.748 | DY39: 1346262.355 | DZ39: 1388212.006 | EA39: 1438982.573 | EB39: 1532331.112 | EC39: 1608582.27 | ED39: 1693840.121 | EE39: 1763631.644 | EF39: 1831336.047 | EG39: 1899879.933 | EH39: 1963664.057 | EI39: 2022446.709 | EJ39: 2077689.743 | EK39: 2129064.766 | EL39: 2176636.888 | EM39: 2219545.925 | EN39: 2258313.126 | EO39: 2293300.17 | EP39: 2322775.305 | EQ39: 2325545.429 | ER39: 2326666.406 | ES39: 2326764.313 | ET39: 2326278.952 | EU39: 2325048.427 | EV39: 2323426.233
A40: Merseyside | B40: Sefton | D40: 10.68160815 | E40: 11.46376218 | F40: 11.83824464 | G40: 12.24235015 | H40: 12.70061063 | I40: 13.137998 | J40: 13.56227449 | K40: 13.98517379 | L40: 14.40119513 | M40: 15.19843565 | N40: 15.5019214 | O40: 15.78212969 | P40: 16.54154637 | Q40: 17.18585786 | R40: 17.80914294 | S40: 18.42427443 | T40: 19.0171063 | U40: 19.58217081 | V40: 20.2071392 | W40: 20.71276679 | X40: 21.17296744 | Y40: 21.60070109 | Z40: 22.01833724 | AA40: 22.41325311 | AB40: 22.80122213 | AC40: 23.19880142 | AD40: 23.61094926 | AE40: 23.9527734 | AF40: 24.01707164 | AH40: 10.68470457 | AI40: 11.07583436 | AJ40: 11.08983195 | AK40: 11.21387872 | AL40: 11.33324035 | AM40: 11.4259099 | AN40: 11.59882461 | AO40: 11.87640367 | AP40: 12.20238406 | AQ40: 12.3830127 | AR40: 12.55417189 | AS40: 12.71963741 | AT40: 12.88319458 | AU40: 13.05341614 | AV40: 13.21561867 | AW40: 13.35715835 | AX40: 13.4866398 | AY40: 13.61037798 | AZ40: 13.71207109 | BA40: 13.80606058 | BB40: 13.89394138 | BC40: 13.97618491 | BD40: 14.054722 | BE40: 14.13141583 | BF40: 14.19525418 | BG40: 14.25223562 | BH40: 14.30326678 | BI40: 14.34512446 | BJ40: 14.36918328 | BL40: 10.68160815 | BM40: 11.11787347 | BN40: 11.43433374 | BO40: 11.81843935 | BP40: 12.2499975 | BQ40: 12.64049821 | BR40: 13.00708737 | BS40: 13.38161982 | BT40: 13.78090671 | BU40: 14.57352969 | BV40: 14.88044545 | BW40: 15.17541959 | BX40: 15.86791934 | BY40: 16.13388474 | BZ40: 16.38632393 | CA40: 16.6179913 | CB40: 16.8304531 | CC40: 17.01704055 | CD40: 17.26013311 | CE40: 17.41226922 | CF40: 17.55214733 | CG40: 17.68185552 | CH40: 17.80342942 | CI40: 17.89021084 | CJ40: 17.9505042 | CK40: 18.00317664 | CL40: 18.04913306 | CM40: 18.08616252 | CN40: 18.1186408 | CP40: 10.68140723 | CQ40: 11.64666849 | CR40: 12.03229691 | CS40: 12.44320175 | CT40: 12.924171 | CU40: 13.3856043 | CV40: 13.8254973 | CW40: 14.25369747 | CX40: 14.73560151 | CY40: 15.59688261 | CZ40: 15.96852155 | DA40: 16.3262541 | DB40: 17.15911829 | DC40: 17.98142068 | DD40: 19.06025035 | DE40: 19.72488072 | DF40: 20.35332798 | DG40: 20.93832894 | DH40: 21.48726077 | DI40: 21.99871599 | DJ40: 22.45978342 | DK40: 22.88385322 | DL40: 23.29357949 | DM40: 23.67719633 | DN40: 24.029549 | DO40: 24.37152636 | DP40: 24.70730396 | DQ40: 24.95357728 | DR40: 24.90436562 | DT40: 10.68140723 | DU40: 11.72035438 | DV40: 12.09122542 | DW40: 12.48622557 | DX40: 12.97132044 | DY40: 13.42713943 | DZ40: 13.87254194 | EA40: 14.36769715 | EB40: 16.24973673 | EC40: 17.02713896 | ED40: 17.78583799 | EE40: 18.53318199 | EF40: 19.26052226 | EG40: 19.9722576 | EH40: 20.65291752 | EI40: 21.28860618 | EJ40: 21.88099544 | EK40: 22.42174101 | EL40: 22.92054678 | EM40: 23.37625606 | EN40: 23.78635279 | EO40: 24.15641237 | EP40: 24.46828707 | EQ40: 24.47314242 | ER40: 24.44665363 | ES40: 24.40882646 | ET40: 24.36252014 | EU40: 24.31023049 | EV40: 24.25208498
A41: Westmorland and Furness** | B41: South Lakeland | D41: 661128.2451 | E41: 692311.844 | F41: 720066.3738 | G41: 747919.0736 | H41: 779037.7612 | I41: 823367.8887 | J41: 850268.1973 | K41: 882355.5879 | L41: 913138.8887 | M41: 937948.8485 | N41: 964709.5618 | O41: 985833.8051 | P41: 1015625.58 | Q41: 1071957.785 | R41: 1136863.242 | S41: 1174398.081 | T41: 1211142.931 | U41: 1248695.017 | V41: 1286530.717 | W41: 1312776.13 | X41: 1344874.066 | Y41: 1365726.727 | Z41: 1386774.533 | AA41: 1412487.309 | AB41: 1433157.032 | AC41: 1454109.605 | AD41: 1476823.289 | AE41: 1495669.001 | AF41: 1500176.018 | AH41: 661335.8873 | AI41: 664939.3641 | AJ41: 668819.0949 | AK41: 680943.2335 | AL41: 690877.7322 | AM41: 700980.2641 | AN41: 712486.36 | AO41: 730038.3697 | AP41: 751246.6738 | AQ41: 763059.2837 | AR41: 773435.0097 | AS41: 783670.6734 | AT41: 794427.8115 | AU41: 807210.1865 | AV41: 819644.1574 | AW41: 830546.4985 | AX41: 840583.7066 | AY41: 850655.1055 | AZ41: 859343.4602 | BA41: 867691.3246 | BB41: 875724.6302 | BC41: 883355.6151 | BD41: 890974.2791 | BE41: 898533.5884 | BF41: 905328.7121 | BG41: 911679.0565 | BH41: 917624.2504 | BI41: 922450.2869 | BJ41: 924599.3975 | BL41: 661128.2451 | BM41: 667141.1485 | BN41: 688822.4656 | BO41: 714136.4545 | BP41: 741887.2051 | BQ41: 781111.7256 | BR41: 802165.7247 | BS41: 829291.5375 | BT41: 859107.6429 | BU41: 883939.6975 | BV41: 911355.5855 | BW41: 933788.0504 | BX41: 960679.8989 | BY41: 997472.5899 | BZ41: 1042663.604 | CA41: 1061115.808 | CB41: 1078956.572 | CC41: 1097457.544 | CD41: 1116607.443 | CE41: 1126270.998 | CF41: 1144276.824 | CG41: 1152568.897 | CH41: 1160939.886 | CI41: 1171429.016 | CJ41: 1175280.509 | CK41: 1178024.622 | CL41: 1181059.054 | CM41: 1182964.563 | CN41: 1184462.864 | CP41: 661114.7987 | CQ41: 705081.6826 | CR41: 734693.0693 | CS41: 764494.6835 | CT41: 798842.9342 | CU41: 846283.2831 | CV41: 876079.1275 | CW41: 910433.2008 | CX41: 953130.7146 | CY41: 982935.6019 | CZ41: 1013708.078 | DA41: 1063618.387 | DB41: 1102334.756 | DC41: 1224339.429 | DD41: 1281180.69 | DE41: 1321911.782 | DF41: 1358923.182 | DG41: 1392092.927 | DH41: 1427076.04 | DI41: 1453649.789 | DJ41: 1477215.218 | DK41: 1497821.057 | DL41: 1518235.879 | DM41: 1536523.901 | DN41: 1554440.535 | DO41: 1571823.48 | DP41: 1589469.148 | DQ41: 1601742.428 | DR41: 1598561.761 | DT41: 661114.7987 | DU41: 710363.9037 | DV41: 740023.049 | DW41: 770718.6682 | DX41: 827456.8058 | DY41: 902239.0875 | DZ41: 946143.0715 | EA41: 981238.7831 | EB41: 1040709.795 | EC41: 1139804.648 | ED41: 1185059.053 | EE41: 1234111.481 | EF41: 1277000.471 | EG41: 1321396.668 | EH41: 1362151.26 | EI41: 1398199.394 | EJ41: 1431680.592 | EK41: 1461233.627 | EL41: 1487861.171 | EM41: 1510965.606 | EN41: 1531375.649 | EO41: 1549128.282 | EP41: 1564841.24 | EQ41: 1564534.918 | ER41: 1562952.626 | ES41: 1560578.119 | ET41: 1557690.805 | EU41: 1554244.904 | EV41: 1550461.753
A42: Lancashire | B42: South Ribble | D42: 466020.2197 | E42: 515624.0509 | F42: 538651.1159 | G42: 558587.4439 | H42: 580970.7354 | I42: 614240.5409 | J42: 645191.6963 | K42: 665505.8672 | L42: 684570.6254 | M42: 701398.3454 | N42: 719910.0599 | O42: 736434.5576 | P42: 754548.7614 | Q42: 785518.9315 | R42: 814527.196 | S42: 842763.6876 | T42: 872468.8892 | U42: 897991.3606 | V42: 925571.5308 | W42: 947580.4131 | X42: 967593.3642 | Y42: 989412.3891 | Z42: 1007526.998 | AA42: 1024640.665 | AB42: 1041900.84 | AC42: 1059503.704 | AD42: 1077697.732 | AE42: 1092718.894 | AF42: 1095611.345 | AH42: 466145.2234 | AI42: 486757.1874 | AJ42: 490715.6761 | AK42: 498728.3823 | AL42: 507342.0662 | AM42: 523256.6587 | AN42: 542083.2831 | AO42: 555851.0372 | AP42: 571967.5027 | AQ42: 581212.1456 | AR42: 590018.4062 | AS42: 598517.284 | AT42: 606899.1691 | AU42: 615606.3947 | AV42: 623946.4669 | AW42: 631263.4216 | AX42: 637981.6955 | AY42: 644411.2182 | AZ42: 649771.5243 | BA42: 654747.7177 | BB42: 659374.5019 | BC42: 663605.9421 | BD42: 667725.0868 | BE42: 671702.3979 | BF42: 675119.6695 | BG42: 678255.2546 | BH42: 681157.8477 | BI42: 683671.266 | BJ42: 685374.9149 | BL42: 466020.2197 | BM42: 492958.2447 | BN42: 511010.8098 | BO42: 530015.0679 | BP42: 551097.7623 | BQ42: 582197.8798 | BR42: 610507.4048 | BS42: 628618.7524 | BT42: 646944.1152 | BU42: 663595.1214 | BV42: 682333.4274 | BW42: 699626.0041 | BX42: 714887.4095 | BY42: 729492.0255 | BZ42: 742300.8399 | CA42: 754332.2813 | CB42: 768042.5532 | CC42: 777723.7939 | CD42: 789350.3464 | CE42: 796599.4424 | CF42: 803215.7666 | CG42: 812538.0141 | CH42: 818205.6243 | CI42: 822189.9525 | CJ42: 825587.2688 | CK42: 828677.9308 | CL42: 831540.2972 | CM42: 834022.504 | CN42: 836191.9835 | CP42: 466012.1135 | CQ42: 530165.9878 | CR42: 555596.3666 | CS42: 576094.9489 | CT42: 600631.4971 | CU42: 637896.3471 | CV42: 671719.0254 | CW42: 695200.3549 | CX42: 723623.8645 | CY42: 743468.5997 | CZ42: 765612.3765 | DA42: 791360.3001 | DB42: 811452.1683 | DC42: 851172.785 | DD42: 889940.695 | DE42: 919609.3037 | DF42: 947388.4998 | DG42: 973451.3454 | DH42: 999809.5589 | DI42: 1021907.254 | DJ42: 1041833.775 | DK42: 1060123.834 | DL42: 1077911.794 | DM42: 1094573.071 | DN42: 1110654.003 | DO42: 1126355.096 | DP42: 1141887.023 | DQ42: 1153559.452 | DR42: 1152589.952 | DT42: 466012.1135 | DU42: 536451.1548 | DV42: 563865.0129 | DW42: 585551.5766 | DX42: 615726.3125 | DY42: 659747.4817 | DZ42: 699798.2987 | EA42: 725961.2542 | EB42: 771102.8899 | EC42: 814410.8652 | ED42: 856069.7239 | EE42: 889906.8532 | EF42: 922617.9851 | EG42: 956153.3159 | EH42: 986773.8885 | EI42: 1014649.473 | EJ42: 1040669.212 | EK42: 1064507.342 | EL42: 1086674.49 | EM42: 1106366.05 | EN42: 1124183.157 | EO42: 1140256.553 | EP42: 1153918.879 | EQ42: 1154486.467 | ER42: 1154270.914 | ES42: 1153597.237 | ET42: 1152585.596 | EU42: 1151335.229 | EV42: 1149832.438
A43: Merseyside | B43: St. Helens | D43: 221690.4431 | E43: 244102.0454 | F43: 253095.983 | G43: 262148.3937 | H43: 273742.2969 | I43: 287430.311 | J43: 300693.6518 | K43: 312638.4653 | L43: 321925.5157 | M43: 332117.6159 | N43: 339681.9684 | O43: 346824.6278 | P43: 357410.0129 | Q43: 372017.5089 | R43: 386340.9411 | S43: 400276.7175 | T43: 413791.2875 | U43: 426843.4115 | V43: 439760.7117 | W43: 451389.1308 | X43: 462020.9116 | Y43: 471879.4806 | Z43: 481551.9846 | AA43: 490701.8073 | AB43: 499972.6734 | AC43: 509538.879 | AD43: 519496.3506 | AE43: 528077.7828 | AF43: 531157.7445 | AH43: 221738.4764 | AI43: 231417.5958 | AJ43: 232243.6954 | AK43: 235389.0779 | AL43: 240472.5549 | AM43: 247064.1667 | AN43: 255113.1164 | AO43: 264067.5269 | AP43: 271451.6901 | AQ43: 276094.9769 | AR43: 280598.3685 | AS43: 285013.4476 | AT43: 289435.0848 | AU43: 293995.1437 | AV43: 298435.8687 | AW43: 302374.8105 | AX43: 306058.131 | AY43: 309646.4024 | AZ43: 312657.2924 | BA43: 315560.044 | BB43: 318347.1541 | BC43: 321002.8733 | BD43: 323672.8696 | BE43: 326335.9058 | BF43: 328690.8105 | BG43: 330865.884 | BH43: 332879.4578 | BI43: 334673.3448 | BJ43: 336072.2686 | BL43: 221690.4431 | BM43: 232936.9227 | BN43: 240239.1944 | BO43: 248925.9078 | BP43: 260052.8568 | BQ43: 272857.6916 | BR43: 285023.6689 | BS43: 296005.212 | BT43: 305031.7389 | BU43: 315181.0313 | BV43: 322829.5133 | BW43: 330233.2436 | BX43: 339320.9277 | BY43: 346190.4289 | BZ43: 352801.5195 | CA43: 358775.3443 | CB43: 364342.2315 | CC43: 369454.2927 | CD43: 374245.5128 | CE43: 378395.7515 | CF43: 382288.6861 | CG43: 385954.8233 | CH43: 389557.1163 | CI43: 392457.2701 | CJ43: 394943.9447 | CK43: 397235.4134 | CL43: 399354.7228 | CM43: 401267.5915 | CN43: 402981.3676 | CP43: 221687.3264 | CQ43: 250023.6334 | CR43: 259492.0341 | CS43: 268730.499 | CT43: 280933.4869 | CU43: 295355.6072 | CV43: 309235.5205 | CW43: 321572.3422 | CX43: 332566.6602 | CY43: 344768.2819 | CZ43: 354449.4713 | DA43: 363882.8178 | DB43: 376901.1855 | DC43: 394656.3079 | DD43: 413237.3681 | DE43: 428871.7767 | DF43: 443681.1848 | DG43: 457639.2074 | DH43: 470704.737 | DI43: 482699.8793 | DJ43: 493548.6723 | DK43: 503489.6323 | DL43: 513121.4095 | DM43: 522135.2659 | DN43: 530654.4108 | DO43: 538867.2384 | DP43: 546850.0175 | DQ43: 552877.6202 | DR43: 552895.6405 | DT43: 221687.3264 | DU43: 252658.7503 | DV43: 261996.8473 | DW43: 270967.3714 | DX43: 283384.7317 | DY43: 297913.7692 | DZ43: 312198.4601 | EA43: 326320.2551 | EB43: 350240.6277 | EC43: 368654.1646 | ED43: 386738.7611 | EE43: 404438.8098 | EF43: 421731.868 | EG43: 438662.6457 | EH43: 455006.8261 | EI43: 469983.2329 | EJ43: 483917.106 | EK43: 496715.5708 | EL43: 508513.6873 | EM43: 519137.2898 | EN43: 528655.1015 | EO43: 537165.2236 | EP43: 544344.6784 | EQ43: 545333.5011 | ER43: 545757.5104 | ES43: 545884.7864 | ET43: 545788.2931 | EU43: 545536.1071 | EV43: 545131.9609
A44: Staffordshire | B44: Staffordshire Moorlands | D44: 23.91115146 | E44: 25.25108659 | F44: 26.17479629 | G44: 27.16739551 | H44: 28.19417521 | I44: 29.32851916 | J44: 30.53997607 | K44: 31.74707162 | L44: 32.99334362 | M44: 34.08756591 | N44: 35.08813244 | O44: 35.99732059 | P44: 37.08133242 | Q44: 38.96949088 | R44: 43.33107353 | S44: 47.47775235 | T44: 49.10176538 | U44: 50.64774051 | V44: 52.09673331 | W44: 53.43599703 | X44: 54.65098718 | Y44: 55.78117618 | Z44: 56.89861013 | AA44: 57.96230791 | AB44: 59.01799214 | AC44: 60.08623366 | AD44: 61.18187216 | AE44: 62.06097239 | AF44: 62.15298412 | AH44: 23.9166548 | AI44: 25.27037475 | AJ44: 25.68716135 | AK44: 26.28733442 | AL44: 26.9412723 | AM44: 27.65760229 | AN44: 28.57607596 | AO44: 29.72124906 | AP44: 30.92368203 | AQ44: 31.63486702 | AR44: 32.29749485 | AS44: 32.9260705 | AT44: 33.53483302 | AU44: 34.16134161 | AV44: 34.75773271 | AW44: 35.28055698 | AX44: 35.76721958 | AY44: 36.2409307 | AZ44: 36.64183304 | BA44: 37.0109578 | BB44: 37.35023266 | BC44: 37.65652885 | BD44: 37.9498251 | BE44: 38.22752345 | BF44: 38.47085267 | BG44: 38.70198308 | BH44: 38.92516615 | BI44: 39.12694643 | BJ44: 39.27224119 | BL44: 23.91115146 | BM44: 25.20543037 | BN44: 26.07339297 | BO44: 27.00264971 | BP44: 27.93486921 | BQ44: 28.91764627 | BR44: 29.95253785 | BS44: 31.02191694 | BT44: 32.22574579 | BU44: 33.31719354 | BV44: 34.34476307 | BW44: 35.32026725 | BX44: 36.23658265 | BY44: 37.0982587 | BZ44: 40.46224446 | CA44: 43.61625516 | CB44: 44.27368989 | CC44: 44.87675211 | CD44: 45.38635004 | CE44: 45.85294691 | CF44: 46.27249267 | CG44: 46.65001389 | CH44: 46.99929015 | CI44: 47.22989906 | CJ44: 47.42183622 | CK44: 47.60255435 | CL44: 47.77612104 | CM44: 47.93534272 | CN44: 48.08380596 | CP44: 23.91079437 | CQ44: 25.2260096 | CR44: 26.15696736 | CS44: 27.23812517 | CT44: 28.39553102 | CU44: 29.61365118 | CV44: 30.86280039 | CW44: 32.06453444 | CX44: 33.48859662 | CY44: 34.92030172 | CZ44: 36.0713708 | DA44: 39.70620204 | DB44: 40.91104231 | DC44: 58.34327053 | DD44: 62.55741557 | DE44: 64.22587781 | DF44: 65.85378651 | DG44: 67.40045808 | DH44: 68.81600869 | DI44: 70.14369381 | DJ44: 71.34476754 | DK44: 72.45892406 | DL44: 73.55688097 | DM44: 74.59889247 | DN44: 75.61908492 | DO44: 76.6384856 | DP44: 77.66998429 | DQ44: 78.47281162 | DR44: 78.48290637 | DT44: 23.91079437 | DU44: 25.12548286 | DV44: 25.95634617 | DW44: 26.95998996 | DX44: 28.04194029 | DY44: 29.1618306 | DZ44: 30.32249973 | EA44: 31.76170134 | EB44: 36.6078526 | EC44: 39.05545768 | ED44: 46.38612397 | EE44: 48.47764519 | EF44: 50.47642605 | EG44: 54.76007625 | EH44: 56.58270949 | EI44: 58.21631765 | EJ44: 59.76867912 | EK44: 61.20608256 | EL44: 62.51259825 | EM44: 63.71937076 | EN44: 64.88373911 | EO44: 65.90519775 | EP44: 66.78044157 | EQ44: 66.83629868 | ER44: 66.85123184 | ES44: 66.85544665 | ET44: 66.86357745 | EU44: 66.86396214 | EV44: 66.86037732
A45: Greater Manchester | B45: Stockport | D45: 1360061.233 | E45: 1468679.055 | F45: 1528838.004 | G45: 1609588.776 | H45: 1717741.624 | I45: 1874012.146 | J45: 1950029.8 | K45: 2007972.084 | L45: 2071632.462 | M45: 2121894.507 | N45: 2155137.132 | O45: 2198598.714 | P45: 2254047.491 | Q45: 2345078.437 | R45: 2422109.168 | S45: 2488441.483 | T45: 2559160.969 | U45: 2618630 | V45: 2679592.433 | W45: 2733014.88 | X45: 2780666.724 | Y45: 2824943.666 | Z45: 2868378.703 | AA45: 2919929.451 | AB45: 2960231.876 | AC45: 3000778.465 | AD45: 3043987.896 | AE45: 3076626.562 | AF45: 3077814.087 | AH45: 1360338.173 | AI45: 1418387.048 | AJ45: 1439856.921 | AK45: 1472882.785 | AL45: 1506083.222 | AM45: 1543280.295 | AN45: 1581824.686 | AO45: 1629012.135 | AP45: 1676812.567 | AQ45: 1701219.851 | AR45: 1721482.249 | AS45: 1740766.957 | AT45: 1759436.158 | AU45: 1778301.933 | AV45: 1796259.103 | AW45: 1812250.177 | AX45: 1826922.041 | AY45: 1840717.73 | AZ45: 1852355.035 | BA45: 1863006.331 | BB45: 1872747.926 | BC45: 1881250.535 | BD45: 1889364.988 | BE45: 1896948.997 | BF45: 1903339.956 | BG45: 1909202.211 | BH45: 1914664.771 | BI45: 1919456.035 | BJ45: 1922860.585 | BL45: 1360061.233 | BM45: 1426052.521 | BN45: 1479557.644 | BO45: 1558302.465 | BP45: 1663465.231 | BQ45: 1814835.224 | BR45: 1884908.524 | BS45: 1938172.744 | BT45: 1999538.428 | BU45: 2048795.847 | BV45: 2082115.232 | BW45: 2127330.242 | BX45: 2175218.562 | BY45: 2224300.607 | BZ45: 2260599.361 | CA45: 2285743.416 | CB45: 2316085.398 | CC45: 2336018.473 | CD45: 2357586.874 | CE45: 2374306.642 | CF45: 2388171.067 | CG45: 2400413.754 | CH45: 2411619.902 | CI45: 2429891.681 | CJ45: 2435968.582 | CK45: 2441444.569 | CL45: 2448087.518 | CM45: 2452100.487 | CN45: 2455534.72 | CP45: 1360043.277 | CQ45: 1491098.332 | CR45: 1552980.158 | CS45: 1634397.078 | CT45: 1745477.818 | CU45: 1905124.017 | CV45: 1992893.417 | CW45: 2048732.415 | CX45: 2116482.739 | CY45: 2170179.902 | CZ45: 2207035.984 | DA45: 2284461.084 | DB45: 2327303.816 | DC45: 2447207.087 | DD45: 2531592.874 | DE45: 2599489.365 | DF45: 2663369.152 | DG45: 2722622.03 | DH45: 2778202.8 | DI45: 2829087.72 | DJ45: 2875329.033 | DK45: 2917968.164 | DL45: 2959566.965 | DM45: 2998866.194 | DN45: 3036345.865 | DO45: 3073253.878 | DP45: 3110904.23 | DQ45: 3138214.007 | DR45: 3134624.133 | DT45: 1360043.277 | DU45: 1499566.274 | DV45: 1558833.206 | DW45: 1627115.355 | DX45: 1785577.514 | DY45: 1966499.375 | DZ45: 2036951.598 | EA45: 2096257.851 | EB45: 2237429.888 | EC45: 2352575.242 | ED45: 2429681.828 | EE45: 2505685.91 | EF45: 2578345.231 | EG45: 2651656.062 | EH45: 2718905.407 | EI45: 2782355.167 | EJ45: 2842273.909 | EK45: 2897103.973 | EL45: 2948829.562 | EM45: 2995169.863 | EN45: 3037844.866 | EO45: 3076503.788 | EP45: 3108782.714 | EQ45: 3107920.48 | ER45: 3104920.817 | ES45: 3101079.745 | ET45: 3096749.751 | EU45: 3091941.214 | EV45: 3086814.27
A46: Greater Manchester | B46: Tameside | D46: 1057156.446 | E46: 1136407.462 | F46: 1191125.732 | G46: 1252812.369 | H46: 1310311.228 | I46: 1369483.997 | J46: 1408052.545 | K46: 1444968.103 | L46: 1499050.863 | M46: 1558001.932 | N46: 1587729.229 | O46: 1614855.195 | P46: 1648061.275 | Q46: 1730459.248 | R46: 1788572.401 | S46: 1848515.556 | T46: 1902290.434 | U46: 1953638.037 | V46: 2006239.264 | W46: 2051413.155 | X46: 2092726.627 | Y46: 2131063.996 | Z46: 2168948.463 | AA46: 2205247.477 | AB46: 2241367.736 | AC46: 2277431.273 | AD46: 2314519.681 | AE46: 2344403.139 | AF46: 2348043.694 | AH46: 1057435.764 | AI46: 1105817.21 | AJ46: 1126537.337 | AK46: 1157999.225 | AL46: 1187231.664 | AM46: 1214083.172 | AN46: 1233001.508 | AO46: 1260254.045 | AP46: 1292969.829 | AQ46: 1312420.809 | AR46: 1329837.525 | AS46: 1346511.294 | AT46: 1362722.431 | AU46: 1379197.941 | AV46: 1395045.272 | AW46: 1409032.127 | AX46: 1421822.655 | AY46: 1433970.68 | AZ46: 1444129.66 | BA46: 1453509.379 | BB46: 1462042.231 | BC46: 1469557.699 | BD46: 1476969.534 | BE46: 1483981.963 | BF46: 1489979.114 | BG46: 1495499.475 | BH46: 1500644.588 | BI46: 1505182.769 | BJ46: 1508457.208 | BL46: 1057156.446 | BM46: 1109689.469 | BN46: 1159725.374 | BO46: 1219537.466 | BP46: 1274433.839 | BQ46: 1329379.211 | BR46: 1362826.138 | BS46: 1395679.301 | BT46: 1448086.133 | BU46: 1506524.634 | BV46: 1536617.998 | BW46: 1565348.537 | BX46: 1592604.96 | BY46: 1640216.331 | BZ46: 1664625.964 | CA46: 1690326.86 | CB46: 1710539.137 | CC46: 1728979.14 | CD46: 1748661.773 | CE46: 1763017.418 | CF46: 1775964.922 | CG46: 1787566.598 | CH46: 1798568.161 | CI46: 1806869.461 | CJ46: 1813925.099 | CK46: 1820027.728 | CL46: 1825870.43 | CM46: 1830903.857 | CN46: 1835390.617 | CP46: 1057138.39 | CQ46: 1149943.334 | CR46: 1205172.407 | CS46: 1267372.319 | CT46: 1327473.4 | CU46: 1387662.736 | CV46: 1426326.776 | CW46: 1461625.299 | CX46: 1512331.743 | CY46: 1569128.465 | CZ46: 1600604.425 | DA46: 1631498.755 | DB46: 1683827.635 | DC46: 1762745.126 | DD46: 1824654.32 | DE46: 1882471.317 | DF46: 1937527.343 | DG46: 1989120.278 | DH46: 2040120.026 | DI46: 2084344.905 | DJ46: 2124484.394 | DK46: 2161441.231 | DL46: 2197719.134 | DM46: 2231885.187 | DN46: 2264990.533 | DO46: 2297534.758 | DP46: 2330100.244 | DQ46: 2354620.804 | DR46: 2352655.7 | DT46: 1057138.39 | DU46: 1154693.463 | DV46: 1207749.044 | DW46: 1268379.5 | DX46: 1325887.04 | DY46: 1384406.403 | DZ46: 1438299.296 | EA46: 1476792.456 | EB46: 1560235.247 | EC46: 1652721.231 | ED46: 1736052.149 | EE46: 1802697.072 | EF46: 1866793.753 | EG46: 1934307.498 | EH46: 1993126.718 | EI46: 2047347.473 | EJ46: 2098295.096 | EK46: 2145648.278 | EL46: 2189704.36 | EM46: 2229694.497 | EN46: 2266108.853 | EO46: 2299213.364 | EP46: 2327579.638 | EQ46: 2328079.039 | ER46: 2327158.921 | ES46: 2325471.519 | ET46: 2323269.483 | EU46: 2320700.841 | EV46: 2317706.365
A47: Greater Manchester | B47: Trafford | D47: 1324547.639 | E47: 1400364.631 | F47: 1434015.291 | G47: 1470692.836 | H47: 1528244.202 | I47: 1623079.875 | J47: 1658928.242 | K47: 1704303.364 | L47: 1738572.228 | M47: 1787324.889 | N47: 1841093.811 | O47: 1910730.394 | P47: 1948306.088 | Q47: 2021774.553 | R47: 2092391.188 | S47: 2237924.81 | T47: 2288400.32 | U47: 2335680.515 | V47: 2390539.259 | W47: 2435161.725 | X47: 2474058.383 | Y47: 2510169.107 | Z47: 2545456.031 | AA47: 2578992.273 | AB47: 2611750.121 | AC47: 2645302.345 | AD47: 2680319.859 | AE47: 2709433.697 | AF47: 2714899.049 | AH47: 1324781.741 | AI47: 1356278.362 | AJ47: 1360593.047 | AK47: 1373932.671 | AL47: 1385312.203 | AM47: 1394994.772 | AN47: 1412938.597 | AO47: 1439536.127 | AP47: 1469796.941 | AQ47: 1487264.762 | AR47: 1503935.652 | AS47: 1520079.964 | AT47: 1535921.361 | AU47: 1551893.482 | AV47: 1567255.714 | AW47: 1581215.613 | AX47: 1594203.444 | AY47: 1606505.952 | AZ47: 1617066.09 | BA47: 1627049.358 | BB47: 1636531.394 | BC47: 1645357.081 | BD47: 1654091.275 | BE47: 1662626.321 | BF47: 1670076.972 | BG47: 1676949.427 | BH47: 1683321.496 | BI47: 1689000.149 | BJ47: 1693478.676 | BL47: 1324547.639 | BM47: 1363965.329 | BN47: 1391980.008 | BO47: 1426880.684 | BP47: 1482033.93 | BQ47: 1572916.965 | BR47: 1603988.818 | BS47: 1645261.939 | BT47: 1677351.506 | BU47: 1724835.121 | BV47: 1778092.085 | BW47: 1848507.339 | BX47: 1880081.167 | BY47: 1921387.6 | BZ47: 1960502.659 | CA47: 2073649.122 | CB47: 2092021.172 | CC47: 2107515.638 | CD47: 2130424.253 | CE47: 2145605.117 | CF47: 2157706.773 | CG47: 2168842.042 | CH47: 2179424.241 | CI47: 2187944.33 | CJ47: 2194217.717 | CK47: 2199842.227 | CL47: 2204888.782 | CM47: 2208993.442 | CN47: 2212397.337 | CP47: 1324532.461 | CQ47: 1422162.284 | CR47: 1457772.228 | CS47: 1495507.244 | CT47: 1556904.043 | CU47: 1657018.982 | CV47: 1694358.922 | CW47: 1739994.286 | CX47: 1779483.185 | CY47: 1832884.266 | CZ47: 1890789.13 | DA47: 1969551.412 | DB47: 2010193.38 | DC47: 2219805.805 | DD47: 2313518.637 | DE47: 2369946.779 | DF47: 2422831.524 | DG47: 2471991.589 | DH47: 2524012.151 | DI47: 2567075.468 | DJ47: 2606055.866 | DK47: 2641882.257 | DL47: 2676529.963 | DM47: 2709010.179 | DN47: 2739046.872 | DO47: 2768244.708 | DP47: 2797195.558 | DQ47: 2818690.153 | DR47: 2815333.983 | DT47: 1324532.461 | DU47: 1431239.183 | DV47: 1467845.252 | DW47: 1526385.206 | DX47: 1608925.292 | DY47: 1756815.027 | DZ47: 1798968.028 | EA47: 1860324.239 | EB47: 1974049.688 | EC47: 2058252.504 | ED47: 2165436.059 | EE47: 2230486.49 | EF47: 2292485.256 | EG47: 2358899.305 | EH47: 2418136.485 | EI47: 2471087.451 | EJ47: 2521165.6 | EK47: 2567604.635 | EL47: 2610355.237 | EM47: 2649069.994 | EN47: 2683915.04 | EO47: 2715262.78 | EP47: 2741778.002 | EQ47: 2742424.07 | ER47: 2741525.752 | ES47: 2739701.901 | ET47: 2737740.536 | EU47: 2734723.64 | EV47: 2731245.709
A48: Cheshire | B48: Warrington | D48: 117085.0618 | E48: 129894.1073 | F48: 134700.3882 | G48: 139480.3295 | H48: 144377.4126 | I48: 149824.9455 | J48: 155198.4782 | K48: 160262.5911 | L48: 164775.4592 | M48: 168725.2789 | N48: 172473.8787 | O48: 176022.0386 | P48: 180203.4025 | Q48: 187451.3737 | R48: 194533.7381 | S48: 201519.0669 | T48: 208767.9831 | U48: 215382.9887 | V48: 221772.102 | W48: 227691.1104 | X48: 233153.984 | Y48: 238246.1796 | Z48: 243219.6001 | AA48: 247943.2925 | AB48: 252745.9298 | AC48: 257699.7496 | AD48: 262857.8899 | AE48: 267410.2122 | AF48: 269042.2993 | AH48: 117127.5751 | AI48: 122102.3571 | AJ48: 122355.6925 | AK48: 123916.3327 | AL48: 125489.7973 | AM48: 127228.3289 | AN48: 129986.3353 | AO48: 133652.4691 | AP48: 137346.7339 | AQ48: 139518.2801 | AR48: 141607.3093 | AS48: 143655.1888 | AT48: 145676.3456 | AU48: 147704.3221 | AV48: 149658.2763 | AW48: 151438.269 | AX48: 153101.4536 | AY48: 154688.6173 | AZ48: 156052.4432 | BA48: 157356.8074 | BB48: 158615.2238 | BC48: 159814.5245 | BD48: 161011.9062 | BE48: 162207.7708 | BF48: 163243.9072 | BG48: 164188.4504 | BH48: 165048.8525 | BI48: 165801.9331 | BJ48: 166385.293 | BL48: 117085.0618 | BM48: 123915.763 | BN48: 127866.5693 | BO48: 132449.7594 | BP48: 137128.7929 | BQ48: 142180.0035 | BR48: 147067.4004 | BS48: 151694.3571 | BT48: 156101.5863 | BU48: 160030.569 | BV48: 163802.6996 | BW48: 167449.3706 | BX48: 170941.9389 | BY48: 174264.0189 | BZ48: 177433.0409 | CA48: 180341.7121 | CB48: 183490.5463 | CC48: 185974.9591 | CD48: 188169.0116 | CE48: 190192.8143 | CF48: 192095.8381 | CG48: 193889.2305 | CH48: 195630.5772 | CI48: 197046.5073 | CJ48: 198272.2309 | CK48: 199395.4811 | CL48: 200427.2746 | CM48: 201348.6555 | CN48: 202159.2379 | CP48: 117082.3034 | CQ48: 133807.6229 | CR48: 138944.7617 | CS48: 143815.7414 | CT48: 149034.0396 | CU48: 154865.6741 | CV48: 160548.6959 | CW48: 165784.5875 | CX48: 171149.5567 | CY48: 176143.4391 | CZ48: 180975.5119 | DA48: 185688.2591 | DB48: 191118.2754 | DC48: 199745.0661 | DD48: 208069.8372 | DE48: 215871.562 | DF48: 223649.4258 | DG48: 230664.6161 | DH48: 237253.8035 | DI48: 243274.3983 | DJ48: 248760.2763 | DK48: 253804.4964 | DL48: 258666.7884 | DM48: 263230.2167 | DN48: 267563.8012 | DO48: 271736.3334 | DP48: 275790.6518 | DQ48: 278938.8053 | DR48: 278931.0514 | DT48: 117082.3034 | DU48: 135621.7135 | DV48: 140732.2717 | DW48: 145456.5363 | DX48: 150798.1366 | DY48: 157226.5508 | DZ48: 163088.9811 | EA48: 169132.2847 | EB48: 178600.8179 | EC48: 187902.5458 | ED48: 197020.4171 | EE48: 205945.5624 | EF48: 214647.2198 | EG48: 223146.9376 | EH48: 231302.0128 | EI48: 238840.5529 | EJ48: 245877.8708 | EK48: 252393.5129 | EL48: 258404.5603 | EM48: 263795.8918 | EN48: 268641.7425 | EO48: 272984.3927 | EP48: 276672.0725 | EQ48: 277111.2612 | ER48: 277283.8371 | ES48: 277308.3453 | ET48: 277221.1778 | EU48: 277054.0208 | EV48: 276817.6945
A49: Lancashire | B49: West Lancashire | D49: 394354.8602 | E49: 424160.4278 | F49: 440034.9904 | G49: 456317.1415 | H49: 474647.0168 | I49: 494606.4123 | J49: 512970.7278 | K49: 529214.7681 | L49: 545430.829 | M49: 570296.3323 | N49: 584260.2305 | O49: 595214.5929 | P49: 619961.6297 | Q49: 644375.3837 | R49: 668138.6638 | S49: 691166.5705 | T49: 713311.0027 | U49: 734422.8852 | V49: 758418.4412 | W49: 777126.7937 | X49: 794119.7122 | Y49: 809887.7843 | Z49: 825354.3465 | AA49: 839976.7978 | AB49: 854453.4602 | AC49: 869288.1277 | AD49: 884684.7741 | AE49: 897432.0604 | AF49: 899835.1256 | AH49: 394468.4992 | AI49: 408861.1551 | AJ49: 410781.0988 | AK49: 416608.5401 | AL49: 422793.2547 | AM49: 430195.2295 | AN49: 439431.1372 | AO49: 450499.9481 | AP49: 463359.4527 | AQ49: 470595.8375 | AR49: 477453.7844 | AS49: 484075.2003 | AT49: 490611.5718 | AU49: 497408.9501 | AV49: 503895.1367 | AW49: 509567.8824 | AX49: 514772.9927 | AY49: 519765.7482 | AZ49: 523889.4673 | BA49: 527701.49 | BB49: 531252.1729 | BC49: 534539.7357 | BD49: 537713.9322 | BE49: 540793.7828 | BF49: 543395.9773 | BG49: 545752.2015 | BH49: 547899.6975 | BI49: 549709.9401 | BJ49: 550837.2034 | BL49: 394354.8602 | BM49: 411283.0001 | BN49: 424718.2851 | BO49: 440216.8766 | BP49: 457469.9053 | BQ49: 475585.0756 | BR49: 491702.8726 | BS49: 506063.552 | BT49: 521628.3016 | BU49: 546332.4232 | BV49: 560473.8271 | BW49: 572065.0496 | BX49: 594405.4507 | BY49: 604861.289 | BZ49: 614895.5193 | CA49: 623922.5331 | CB49: 632212.8128 | CC49: 639560.5444 | CD49: 649678.5274 | CE49: 655563.8495 | CF49: 660951.3131 | CG49: 665912.4969 | CH49: 670614.0069 | CI49: 673927.2755 | CJ49: 676380.5219 | CK49: 678564.3294 | CL49: 680532.3257 | CM49: 682161.1386 | CN49: 683596.8305 | CP49: 394347.4894 | CQ49: 431653.8085 | CR49: 448270.1385 | CS49: 464888.6718 | CT49: 484492.8806 | CU49: 506386.8601 | CV49: 526071.9291 | CW49: 543888.5093 | CX49: 566495.534 | CY49: 593764.1644 | CZ49: 610608.1313 | DA49: 626181.9918 | DB49: 652760.4168 | DC49: 683314.8954 | DD49: 720946.9851 | DE49: 745635.2648 | DF49: 768981.0829 | DG49: 790768.8071 | DH49: 811923.0279 | DI49: 830793.1306 | DJ49: 847781.4577 | DK49: 863392.951 | DL49: 878556.6518 | DM49: 892761.2831 | DN49: 906012.1232 | DO49: 918944.9132 | DP49: 931732.0165 | DQ49: 941224.88 | DR49: 939804.1838 | DT49: 394347.4894 | DU49: 434669.6023 | DV49: 451959.4226 | DW49: 469076.9729 | DX49: 489718.7878 | DY49: 512480.7868 | DZ49: 533957.5544 | EA49: 554138.6065 | EB49: 615430.7678 | EC49: 649306.3679 | ED49: 681169.6769 | EE49: 709243.3862 | EF49: 736503.3872 | EG49: 763772.2761 | EH49: 789284.3937 | EI49: 812852.1178 | EJ49: 834820.4462 | EK49: 854886.8683 | EL49: 873362.1106 | EM49: 890184.5931 | EN49: 905358.275 | EO49: 919053.0816 | EP49: 930743.7713 | EQ49: 931101.5119 | ER49: 930412.229 | ES49: 929328.7268 | ET49: 927956.1501 | EU49: 926383.8577 | EV49: 924607.0786
A50: Greater Manchester | B50: Wigan | D50: 1340636.365 | E50: 1448745.233 | F50: 1505156.482 | G50: 1587514.358 | H50: 1654410.398 | I50: 1730666.42 | J50: 1793446.737 | K50: 1854077.92 | L50: 1917743.001 | M50: 1988935.043 | N50: 2032308.384 | O50: 2071151.192 | P50: 2140993.195 | Q50: 2226328.868 | R50: 2308619.408 | S50: 2388968.411 | T50: 2466360.909 | U50: 2540498.037 | V50: 2618768.74 | W50: 2684503.298 | X50: 2744528.403 | Y50: 2800331.457 | Z50: 2855044.714 | AA50: 2906882.048 | AB50: 2958506.46 | AC50: 3011239.383 | AD50: 3065770.821 | AE50: 3111228.711 | AF50: 3121639.665 | AH50: 1340985.036 | AI50: 1393487.712 | AJ50: 1403802.388 | AK50: 1451168.667 | AL50: 1473752.049 | AM50: 1496603.608 | AN50: 1527515.311 | AO50: 1569338.716 | AP50: 1615278.697 | AQ50: 1642716.288 | AR50: 1667613.957 | AS50: 1691721.752 | AT50: 1715490.669 | AU50: 1739840.993 | AV50: 1763291.739 | AW50: 1784127.77 | AX50: 1803374.853 | AY50: 1821829.226 | AZ50: 1837298.564 | BA50: 1851823.129 | BB50: 1865453.463 | BC50: 1878042.834 | BD50: 1890448.38 | BE50: 1902551.847 | BF50: 1913024.312 | BG50: 1922645.926 | BH50: 1931543.251 | BI50: 1939361.011 | BJ50: 1945102.87 | BL50: 1340636.365 | BM50: 1401927.611 | BN50: 1450503.64 | BO50: 1530461.937 | BP50: 1594113.917 | BQ50: 1664719.174 | BR50: 1720573.01 | BS50: 1775431.101 | BT50: 1837056.735 | BU50: 1907671.606 | BV50: 1951481.635 | BW50: 1992231.056 | BX50: 2053471.904 | BY50: 2091071.795 | BZ50: 2126506.208 | CA50: 2158742.546 | CB50: 2188509.232 | CC50: 2215451.781 | CD50: 2246085.076 | CE50: 2267730.13 | CF50: 2287661.742 | CG50: 2306109.193 | CH50: 2323718.792 | CI50: 2337127.995 | CJ50: 2348043.282 | CK50: 2358019.102 | CL50: 2367183.534 | CM50: 2375198.332 | CN50: 2382395.137 | CP50: 1340613.749 | CQ50: 1477826.194 | CR50: 1536597.759 | CS50: 1620338.512 | CT50: 1692262.525 | CU50: 1775511.06 | CV50: 1842281.926 | CW50: 1904697.211 | CX50: 1978455.099 | CY50: 2058377.726 | CZ50: 2110860.894 | DA50: 2161771.706 | DB50: 2240610.288 | DC50: 2342878.121 | DD50: 2456442.707 | DE50: 2542773.833 | DF50: 2624465.106 | DG50: 2701175.833 | DH50: 2774527.608 | DI50: 2840776.38 | DJ50: 2900730.624 | DK50: 2955858.35 | DL50: 3009458.151 | DM50: 3059785.372 | DN50: 3107302.865 | DO50: 3153553.52 | DP50: 3199127.385 | DQ50: 3233353.05 | DR50: 3230596.77 | DT50: 1340613.749 | DU50: 1489122.405 | DV50: 1546781.305 | DW50: 1628821.291 | DX50: 1704101.388 | DY50: 1788448.505 | DZ50: 1855386.93 | EA50: 1925652.602 | EB50: 2100069.891 | EC50: 2207804.271 | ED50: 2310657.981 | EE50: 2408806.901 | EF50: 2504043.891 | EG50: 2598246.037 | EH50: 2687247.676 | EI50: 2769762.78 | EJ50: 2846763.583 | EK50: 2917577.784 | EL50: 2982979.917 | EM50: 3042302.71 | EN50: 3095869.173 | EO50: 3144217.157 | EP50: 3185166.401 | EQ50: 3187746.655 | ER50: 3187223.931 | ES50: 3185346.331 | ET50: 3182476.8 | EU50: 3178911.587 | EV50: 3174829.001
A51: Lancashire | B51: Wyre | D51: 461028.4073 | E51: 498905.2883 | F51: 522791.2211 | G51: 545309.2436 | H51: 570329.5394 | I51: 603682.3247 | J51: 632365.3133 | K51: 652998.3207 | L51: 674111.2075 | M51: 691158.3096 | N51: 714437.4632 | O51: 728945.9479 | P51: 749103.8759 | Q51: 779313.9802 | R51: 809014.0637 | S51: 837224.9044 | T51: 863947.3615 | U51: 889271.231 | V51: 919553.9096 | W51: 941518.3958 | X51: 961391.9923 | Y51: 979929.2609 | Z51: 998124.9756 | AA51: 1015314.207 | AB51: 1032621.717 | AC51: 1050358.424 | AD51: 1068798.369 | AE51: 1084005.241 | AF51: 1086889.522 | AH51: 461159.1051 | AI51: 478013.3965 | AJ51: 483837.1524 | AK51: 493817.9947 | AL51: 505542.9387 | AM51: 524464.1613 | AN51: 542762.8872 | AO51: 557780.133 | AP51: 574910.1105 | AQ51: 584816.8644 | AR51: 594210.2349 | AS51: 603260.3241 | AT51: 612174.1914 | AU51: 621431.9255 | AV51: 630288.5089 | AW51: 638065.1505 | AX51: 645236.7225 | AY51: 652157.3527 | AZ51: 657923.0697 | BA51: 663256.1438 | BB51: 668192.829 | BC51: 672680.9975 | BD51: 677096.2863 | BE51: 681334.6142 | BF51: 685007.1989 | BG51: 688410.4229 | BH51: 691597.4005 | BI51: 694393.8677 | BJ51: 696327.0683 | BL51: 461028.4073 | BM51: 483189.3273 | BN51: 503374.2272 | BO51: 524863.2145 | BP51: 548396.5151 | BQ51: 579311.8307 | BR51: 605078.2515 | BS51: 623266.9313 | BT51: 643536.5056 | BU51: 660418.0815 | BV51: 684031.8905 | BW51: 699513.4806 | BX51: 717016.1255 | BY51: 730940.8954 | BZ51: 744497.7685 | CA51: 756746.5896 | CB51: 767760.9719 | CC51: 777533.982 | CD51: 792164.4327 | CE51: 799723.7076 | CF51: 806594.6297 | CG51: 812999.8154 | CH51: 819036.6592 | CI51: 823184.1168 | CJ51: 826637.9991 | CK51: 829813.4313 | CL51: 832807.348 | CM51: 835379.424 | CN51: 837667.4831 | CP51: 461019.9374 | CQ51: 509805.6544 | CR51: 535460.0974 | CS51: 558590.9382 | CT51: 586216.6512 | CU51: 624518.6431 | CV51: 656674.7962 | CW51: 682631.3567 | CX51: 721131.9039 | CY51: 741094.616 | CZ51: 768657.5127 | DA51: 793131.2668 | DB51: 813239.6719 | DC51: 849643.677 | DD51: 887882.9547 | DE51: 917150.8813 | DF51: 944816.9447 | DG51: 971202.8825 | DH51: 998199.2482 | DI51: 1020216.098 | DJ51: 1039985.25 | DK51: 1058112.218 | DL51: 1075929.26 | DM51: 1092631.167 | DN51: 1108741.373 | DO51: 1124646.963 | DP51: 1140578.535 | DQ51: 1152683.378 | DR51: 1152038.907 | DT51: 461019.9374 | DU51: 514208.8468 | DV51: 543736.6901 | DW51: 570160.4456 | DX51: 601467.1009 | DY51: 643783.4796 | DZ51: 682187.7572 | EA51: 710633.4522 | EB51: 760467.0879 | EC51: 813085.6794 | ED51: 860110.6689 | EE51: 894168.1008 | EF51: 927535.8867 | EG51: 961946.0307 | EH51: 992747.1863 | EI51: 1020544.481 | EJ51: 1046472.424 | EK51: 1070185.372 | EL51: 1091941.235 | EM51: 1111590.067 | EN51: 1129405.357 | EO51: 1145485.104 | EP51: 1159587.016 | EQ51: 1160454.511 | ER51: 1160391.887 | ES51: 1159935.329 | ET51: 1159190.124 | EU51: 1158261.181 | EV51: 1157128.687
B52: County | C52: (Years as financial years, ie 2051 is FY2050/51) | D52: 2023 | E52: 2024 | F52: 2025 | G52: 2026 | H52: 2027 | I52: 2028 | J52: 2029 | K52: 2030 | L52: 2031 | M52: 2032 | N52: 2033 | O52: 2034 | P52: 2035 | Q52: 2036 | R52: 2037 | S52: 2038 | T52: 2039 | U52: 2040 | V52: 2041 | W52: 2042 | X52: 2043 | Y52: 2044 | Z52: 2045 | AA52: 2046 | AB52: 2047 | AC52: 2048 | AD52: 2049 | AE52: 2050 | AF52: 2051 | AG52: (Years as financial years, ie 2051 is FY2050/51) | AH52: 2023 | AI52: 2024 | AJ52: 2025 | AK52: 2026 | AL52: 2027 | AM52: 2028 | AN52: 2029 | AO52: 2030 | AP52: 2031 | AQ52: 2032 | AR52: 2033 | AS52: 2034 | AT52: 2035 | AU52: 2036 | AV52: 2037 | AW52: 2038 | AX52: 2039 | AY52: 2040 | AZ52: 2041 | BA52: 2042 | BB52: 2043 | BC52: 2044 | BD52: 2045 | BE52: 2046 | BF52: 2047 | BG52: 2048 | BH52: 2049 | BI52: 2050 | BJ52: 2051 | BK52: (Years as financial years, ie 2051 is FY2050/51) | BL52: 2023 | BM52: 2024 | BN52: 2025 | BO52: 2026 | BP52: 2027 | BQ52: 2028 | BR52: 2029 | BS52: 2030 | BT52: 2031 | BU52: 2032 | BV52: 2033 | BW52: 2034 | BX52: 2035 | BY52: 2036 | BZ52: 2037 | CA52: 2038 | CB52: 2039 | CC52: 2040 | CD52: 2041 | CE52: 2042 | CF52: 2043 | CG52: 2044 | CH52: 2045 | CI52: 2046 | CJ52: 2047 | CK52: 2048 | CL52: 2049 | CM52: 2050 | CN52: 2051 | CO52: (Years as financial years, ie 2051 is FY2050/51) | CP52: 2023 | CQ52: 2024 | CR52: 2025 | CS52: 2026 | CT52: 2027 | CU52: 2028 | CV52: 2029 | CW52: 2030 | CX52: 2031 | CY52: 2032 | CZ52: 2033 | DA52: 2034 | DB52: 2035 | DC52: 2036 | DD52: 2037 | DE52: 2038 | DF52: 2039 | DG52: 2040 | DH52: 2041 | DI52: 2042 | DJ52: 2043 | DK52: 2044 | DL52: 2045 | DM52: 2046 | DN52: 2047 | DO52: 2048 | DP52: 2049 | DQ52: 2050 | DR52: 2051 | DS52: (Years as financial years, ie 2051 is FY2050/51) | DT52: 2023 | DU52: 2024 | DV52: 2025 | DW52: 2026 | DX52: 2027 | DY52: 2028 | DZ52: 2029 | EA52: 2030 | EB52: 2031 | EC52: 2032 | ED52: 2033 | EE52: 2034 | EF52: 2035 | EG52: 2036 | EH52: 2037 | EI52: 2038 | EJ52: 2039 | EK52: 2040 | EL52: 2041 | EM52: 2042 | EN52: 2043 | EO52: 2044 | EP52: 2045 | EQ52: 2046 | ER52: 2047 | ES52: 2048 | ET52: 2049 | EU52: 2050 | EV52: 2051
B54: Cumberland** | D54: 1543776.734 | E54: 1616592.432 | F54: 1681401.034 | G54: 1746438.869 | H54: 1819102.995 | I54: 1922616.678 | J54: 1985430.619 | K54: 2060356.728 | L54: 2132237.704 | M54: 2190170.547 | N54: 2252658.524 | O54: 2301984.983 | P54: 2371550.684 | Q54: 2503089.985 | R54: 2654648.376 | S54: 2742294.627 | T54: 2828096.202 | U54: 2915782.723 | V54: 3004131.504 | W54: 3065416.222 | X54: 3140366.954 | Y54: 3189059.252 | Z54: 3238207.225 | AA54: 3298248.201 | AB54: 3346513.326 | AC54: 3395438.924 | AD54: 3448476.83 | AE54: 3492482.77 | AF54: 3503006.944 | AH54: 1544261.592 | AI54: 1552675.941 | AJ54: 1561735.36 | AK54: 1590045.999 | AL54: 1613243.689 | AM54: 1636833.747 | AN54: 1663701.217 | AO54: 1704686.282 | AP54: 1754209.028 | AQ54: 1781792.228 | AR54: 1806020.212 | AS54: 1829921.141 | AT54: 1855039.747 | AU54: 1884887.41 | AV54: 1913921.527 | AW54: 1939379.191 | AX54: 1962816.713 | AY54: 1986334.074 | AZ54: 2006621.938 | BA54: 2026114.735 | BB54: 2044873.018 | BC54: 2062691.855 | BD54: 2080481.923 | BE54: 2098133.394 | BF54: 2114000.442 | BG54: 2128828.902 | BH54: 2142711.31 | BI54: 2153980.414 | BJ54: 2158998.725 | BL54: 1543776.734 | BM54: 1557817.248 | BN54: 1608444.51 | BO54: 1667554.293 | BP54: 1732354.071 | BQ54: 1823945.834 | BR54: 1873108.269 | BS54: 1936448.777 | BT54: 2006071.289 | BU54: 2064055.725 | BV54: 2128073.577 | BW54: 2180454.817 | BX54: 2243249.003 | BY54: 2329162.29 | BZ54: 2434686.197 | CA54: 2477773.273 | CB54: 2519432.599 | CC54: 2562633.552 | CD54: 2607349.791 | CE54: 2629914.81 | CF54: 2671959.564 | CG54: 2691322.085 | CH54: 2710868.881 | CI54: 2735361.67 | CJ54: 2744355.153 | CK54: 2750762.831 | CL54: 2757848.425 | CM54: 2762297.909 | CN54: 2765796.538 | CP54: 1543745.336 | CQ54: 1646410.822 | CR54: 1715555.303 | CS54: 1785143.978 | CT54: 1865349.341 | CU54: 1976125.589 | CV54: 2045700.791 | CW54: 2125919.75 | CX54: 2225621.175 | CY54: 2295217.493 | CZ54: 2367073.192 | DA54: 2483616.957 | DB54: 2574022.155 | DC54: 2858910.869 | DD54: 2991638.848 | DE54: 3086748.553 | DF54: 3173172.539 | DG54: 3250626.015 | DH54: 3332313.821 | DI54: 3394365.224 | DJ54: 3449392.007 | DK54: 3497507.959 | DL54: 3545177.875 | DM54: 3587881.575 | DN54: 3629718.062 | DO54: 3670308.351 | DP54: 3711512.112 | DQ54: 3740171.008 | DR54: 3732743.947 | DT54: 1543745.336 | DU54: 1658745.146 | DV54: 1728001.147 | DW54: 1799677.381 | DX54: 1932164.561 | DY54: 2106785.971 | DZ54: 2209304.581 | EA54: 2291255.313 | EB54: 2430123.929 | EC54: 2661516.748 | ED54: 2767188.677 | EE54: 2881729.235 | EF54: 2981877.768 | EG54: 3085545.728 | EH54: 3180710.307 | EI54: 3264885.004 | EJ54: 3343065.744 | EK54: 3412073.97 | EL54: 3474250.989 | EM54: 3528201.323 | EN54: 3575860.077 | EO54: 3617313.612 | EP54: 3654004.372 | EQ54: 3653289.092 | ER54: 3649594.339 | ES54: 3644049.712 | ET54: 3637307.65 | EU54: 3629261.25 | EV54: 3620427.351
B55: Westmorland and Furness** | D55: 1381299.979 | E55: 1446452.096 | F55: 1504439.834 | G55: 1562632.679 | H55: 1627649.176 | I55: 1720268.429 | J55: 1776471.437 | K55: 1843511.852 | L55: 1907827.622 | M55: 1959663.249 | N55: 2015574.599 | O55: 2059709.632 | P55: 2121953.802 | Q55: 2239649.081 | R55: 2375256.516 | S55: 2453678.325 | T55: 2530449.604 | U55: 2608907.445 | V55: 2687957.846 | W55: 2742792.575 | X55: 2809855.022 | Y55: 2853422.636 | Z55: 2897397.969 | AA55: 2951119.855 | AB55: 2994305.255 | AC55: 3038081.616 | AD55: 3085537.48 | AE55: 3124911.959 | AF55: 3134328.503 | AH55: 1381733.808 | AI55: 1389262.578 | AJ55: 1397368.527 | AK55: 1422699.576 | AL55: 1443455.796 | AM55: 1464563.088 | AN55: 1488602.857 | AO55: 1525274.396 | AP55: 1569585.058 | AQ55: 1594265.229 | AR55: 1615943.307 | AS55: 1637328.753 | AT55: 1659803.718 | AU55: 1686510.026 | AV55: 1712488.411 | AW55: 1735266.75 | AX55: 1756237.561 | AY55: 1777279.807 | AZ55: 1795432.448 | BA55: 1812873.701 | BB55: 1829657.744 | BC55: 1845601.216 | BD55: 1861518.945 | BE55: 1877312.664 | BF55: 1891509.765 | BG55: 1904777.585 | BH55: 1917198.921 | BI55: 1927281.994 | BJ55: 1931772.146 | BL55: 1381299.979 | BM55: 1393862.782 | BN55: 1439161.713 | BO55: 1492050.411 | BP55: 1550030.253 | BQ55: 1631982.325 | BR55: 1675970.596 | BS55: 1732644.751 | BT55: 1794939.754 | BU55: 1846821.543 | BV55: 1904101.754 | BW55: 1950970.064 | BX55: 2007155.396 | BY55: 2084026.629 | BZ55: 2178444.538 | CA55: 2216996.86 | CB55: 2254271.696 | CC55: 2292925.91 | CD55: 2332935.931 | CE55: 2353126.066 | CF55: 2390745.766 | CG55: 2408070.454 | CH55: 2425560.022 | CI55: 2447475.036 | CJ55: 2455521.989 | CK55: 2461255.282 | CL55: 2467595.144 | CM55: 2471576.337 | CN55: 2474706.748 | CP55: 1381271.886 | CQ55: 1473132.211 | CR55: 1534999.494 | CS55: 1597264.22 | CT55: 1669028.266 | CU55: 1768145.727 | CV55: 1830398.398 | CW55: 1902174.609 | CX55: 1991382.831 | CY55: 2053654.395 | CZ55: 2117947.55 | DA55: 2222225.517 | DB55: 2303115.905 | DC55: 2558021.142 | DD55: 2676779.995 | DE55: 2761879.758 | DF55: 2839207.941 | DG55: 2908509.727 | DH55: 2981600.195 | DI55: 3037120.919 | DJ55: 3086356.338 | DK55: 3129408.265 | DL55: 3172061.1 | DM55: 3210270.395 | DN55: 3247703.747 | DO55: 3284022.06 | DP55: 3320889.278 | DQ55: 3346531.932 | DR55: 3339886.541 | DT55: 1381271.886 | DU55: 1484168.394 | DV55: 1546135.458 | DW55: 1610268.036 | DX55: 1728811.433 | DY55: 1885054.59 | DZ55: 1976783.498 | EA55: 2050109.22 | EB55: 2174362.431 | EC55: 2381402.018 | ED55: 2475952.369 | EE55: 2578437.96 | EF55: 2668046.232 | EG55: 2760803.525 | EH55: 2845952.387 | EI55: 2921268.011 | EJ55: 2991220.518 | EK55: 3052965.885 | EL55: 3108599.005 | EM55: 3156871.267 | EN55: 3199514.115 | EO55: 3236604.82 | EP55: 3269434.014 | EQ55: 3268794.014 | ER55: 3265488.12 | ES55: 3260527.044 | ET55: 3254494.559 | EU55: 3247295.013 | EV55: 3239390.849
B56: Lancashire | D56: 6171938.948 | E56: 6693010.639 | F56: 6986724.106 | G56: 7310663.354 | H56: 7645148.904 | I56: 8062218.415 | J56: 8423126.195 | K56: 8744499.683 | L56: 9021473.769 | M56: 9250459.188 | N56: 9519475.219 | O56: 9716309.441 | P56: 9961559.795 | Q56: 10377472.35 | R56: 10795374.4 | S56: 11504533.82 | T56: 11881642.11 | U56: 12212164.38 | V56: 12634368.52 | W56: 12923492.59 | X56: 13192982.2 | Y56: 13454909.03 | Z56: 13700425.03 | AA56: 13926716.12 | AB56: 14151249.33 | AC56: 14385232.4 | AD56: 14619085.03 | AE56: 14808651.75 | AF56: 14842338.91 | AH56: 6173642.788 | AI56: 6380592.871 | AJ56: 6430126.437 | AK56: 6543569.407 | AL56: 6664016.228 | AM56: 6845128.227 | AN56: 7046567.721 | AO56: 7230662.073 | AP56: 7443984.865 | AQ56: 7563969.547 | AR56: 7677773.672 | AS56: 7787684.105 | AT56: 7896026.196 | AU56: 8008788.014 | AV56: 8116833.9 | AW56: 8211846.192 | AX56: 8299232.355 | AY56: 8383046.853 | AZ56: 8453295.976 | BA56: 8518638.509 | BB56: 8579601.824 | BC56: 8635552.816 | BD56: 8690272.563 | BE56: 8743265.789 | BF56: 8788975.054 | BG56: 8830972.345 | BH56: 8869858.566 | BI56: 8903483.719 | BJ56: 8926215.414 | BL56: 6171938.948 | BM56: 6449923.154 | BN56: 6689918.601 | BO56: 7001068.785 | BP56: 7317940.915 | BQ56: 7705884.15 | BR56: 8031512.764 | BS56: 8323362.642 | BT56: 8590438.453 | BU56: 8817030.506 | BV56: 9089002.719 | BW56: 9295881.346 | BX56: 9502316.529 | BY56: 9697006.446 | BZ56: 9895994.496 | CA56: 10386669.64 | CB56: 10548227.7 | CC56: 10665268.43 | CD56: 10873196.72 | CE56: 10964083.85 | CF56: 11053630.74 | CG56: 11147938.65 | CH56: 11226803.9 | CI56: 11277610.33 | CJ56: 11316914.16 | CK56: 11357034.62 | CL56: 11386242.04 | CM56: 11408646.93 | CN56: 11433682.35 | CP56: 6171828.518 | CQ56: 6846097.044 | CR56: 7163023.057 | CS56: 7495904.789 | CT56: 7857295.818 | CU56: 8317160.98 | CV56: 8719273.877 | CW56: 9072081.196 | CX56: 9459519.416 | CY56: 9724501.45 | CZ56: 10028020.63 | DA56: 10354111.46 | DB56: 10627894.85 | DC56: 11221327.08 | DD56: 11727111.6 | DE56: 12119560.55 | DF56: 12490945.36 | DG56: 13158377.49 | DH56: 13507006.57 | DI56: 13796570.82 | DJ56: 14059879.32 | DK56: 14297870.58 | DL56: 14537414.22 | DM56: 14755922.02 | DN56: 14963490.98 | DO56: 15170638.01 | DP56: 15367475.51 | DQ56: 15510689.05 | DR56: 15489746.72 | DT56: 6171828.518 | DU56: 6909585.515 | DV56: 7243336.84 | DW56: 7572327.67 | DX56: 8007130.59 | DY56: 8588922.902 | DZ56: 9038933.122 | EA56: 9389590.444 | EB56: 9991490.713 | EC56: 10552347.52 | ED56: 11157496.29 | EE56: 11631216.33 | EF56: 12413662.54 | EG56: 12873280.02 | EH56: 13274946.4 | EI56: 13639227.27 | EJ56: 13980200.85 | EK56: 14288112.06 | EL56: 14571069.86 | EM56: 14829074.6 | EN56: 15064822.7 | EO56: 15273583.8 | EP56: 15457039.51 | EQ56: 15459532.18 | ER56: 15448082.72 | ES56: 15435410.54 | ET56: 15410605.29 | EU56: 15380736.63 | EV56: 15353077.22
B57: Greater Manchester | D57: 12138455.16 | E57: 13037637.19 | F57: 13541975.96 | G57: 14238927.57 | H57: 14886003.05 | I57: 15652862.44 | J57: 16145572.36 | K57: 16638250.73 | L57: 17159675.24 | M57: 17641375.81 | N57: 18023577.93 | O57: 18417423.99 | P57: 18875321.77 | Q57: 19646701.83 | R57: 20358071.57 | S57: 21148983.17 | T57: 21779562.47 | U57: 22373347.32 | V57: 22989264.99 | W57: 23523476.91 | X57: 24001875.41 | Y57: 24446686.26 | Z57: 24883878.78 | AA57: 25312173.06 | AB57: 25724149.6 | AC57: 26141358.45 | AD57: 26573181.58 | AE57: 26925739.89 | AF57: 26988937.94 | AH57: 12141175.32 | AI57: 12614902.98 | AJ57: 12745755.99 | AK57: 13109238.99 | AL57: 13328969.89 | AM57: 13522950.54 | AN57: 13767947.62 | AO57: 14111796.32 | AP57: 14499866.56 | AQ57: 14726900.19 | AR57: 14931574.4 | AS57: 15128998.41 | AT57: 15322167.26 | AU57: 15518188.13 | AV57: 15707073.44 | AW57: 15876437.23 | AX57: 16032689.55 | AY57: 16180950.72 | AZ57: 16306669.77 | BA57: 16424149.51 | BB57: 16533482.87 | BC57: 16632414.59 | BD57: 16730238.22 | BE57: 16824357.61 | BF57: 16906249.99 | BG57: 16982019.14 | BH57: 17052752.89 | BI57: 17115957.78 | BJ57: 17164722.54 | BL57: 12138455.16 | BM57: 12682530.19 | BN57: 13128086.89 | BO57: 13805395.07 | BP57: 14425157.3 | BQ57: 15146215.02 | BR57: 15582892.93 | BS57: 16030003.44 | BT57: 16530957.69 | BU57: 17003926.21 | BV57: 17386493.36 | BW57: 17794704.05 | BX57: 18182131.76 | BY57: 18564112.78 | BZ57: 18896094.05 | CA57: 19298204.9 | CB57: 19545525.14 | CC57: 19761882.57 | CD57: 19998828.03 | CE57: 20181001.85 | CF57: 20337156.34 | CG57: 20479562.39 | CH57: 20614816.07 | CI57: 20732646.43 | CJ57: 20820185.14 | CK57: 20900232.07 | CL57: 20976619.41 | CM57: 21041507.6 | CN57: 21099417.45 | CP57: 12138278.86 | CQ57: 13250433.94 | CR57: 13770870.1 | CS57: 14477975.3 | CT57: 15166744.73 | CU57: 15987677.6 | CV57: 16511959.94 | CW57: 17001693.52 | CX57: 17564248.23 | CY57: 18093282.54 | CZ57: 18526889.13 | DA57: 19044211.61 | DB57: 19547382.17 | DC57: 20639676.31 | DD57: 21478620.36 | DE57: 22161590.8 | DF57: 22803950.09 | DG57: 23407255.97 | DH57: 23991704.04 | DI57: 24512809.36 | DJ57: 24986024.73 | DK57: 25421955.77 | DL57: 25847322.29 | DM57: 26247809.88 | DN57: 26629759.35 | DO57: 27003020.25 | DP57: 27374320.49 | DQ57: 27653783.42 | DR57: 27635260.86 | DT57: 12138278.86 | DU57: 13329967.07 | DV57: 13833542.48 | DW57: 14538383.07 | DX57: 15325609.71 | DY57: 16243509.8 | DZ57: 16774488.88 | EA57: 17334358.47 | EB57: 18461162.53 | EC57: 19429327.37 | ED57: 20312914.73 | EE57: 21089998.8 | EF57: 21834418.16 | EG57: 22583019.35 | EH57: 23276538.4 | EI57: 23920166.97 | EJ57: 24524429.43 | EK57: 25083661.87 | EL57: 25603424.62 | EM57: 26074288.33 | EN57: 26502228.58 | EO57: 26889921.16 | EP57: 27219063.08 | EQ57: 27237062.73 | ER57: 27235241.83 | ES57: 27223532.59 | ET57: 27205568.12 | EU57: 27181449.42 | EV57: 27153096.33
B58: Other* | D58: 1414308.038 | E58: 1518845.101 | F58: 1576949.424 | G58: 1642181.275 | H58: 1709423.646 | I58: 1785532.438 | J58: 1847203.409 | K58: 1909746.109 | L58: 1971978.509 | M58: 2032599.472 | N58: 2078261.052 | O58: 2119196.119 | P58: 2176259.069 | Q58: 2272747.273 | R58: 2388222.066 | S58: 2495086.017 | T58: 2572538.971 | U58: 2645434.319 | V58: 2722491.996 | W58: 2787954.035 | X58: 2846680.769 | Y58: 2900665.368 | Z58: 2953912.568 | AA58: 3005599.5 | AB58: 3056077.872 | AC58: 3107251.399 | AD58: 3160238.633 | AE58: 3203779.666 | AF58: 3211975.781 | AH58: 1414649.145 | AI58: 1474249.349 | AJ58: 1489943.633 | AK58: 1519318.466 | AL58: 1549838.985 | AM58: 1581786.621 | AN58: 1617090.13 | AO58: 1662857.667 | AP58: 1711008.396 | AQ58: 1739153.524 | AR58: 1765175.662 | AS58: 1790175.004 | AT58: 1814639.001 | AU58: 1839721.316 | AV58: 1863818.292 | AW58: 1885146.868 | AX58: 1904855.579 | AY58: 1923790.916 | AZ58: 1939760.286 | BA58: 1954674.089 | BB58: 1968539.123 | BC58: 1981156.154 | BD58: 1993555.138 | BE58: 2005503.662 | BF58: 2015878.74 | BG58: 2025496.867 | BH58: 2034499.928 | BI58: 2042464.88 | BJ58: 2048257.369 | BL58: 1414308.038 | BM58: 1479848.152 | BN58: 1530995.348 | BO58: 1593523.191 | BP58: 1657026.715 | BQ58: 1726982.31 | BR58: 1781275.654 | BS58: 1837792.281 | BT58: 1897814.867 | BU58: 1957804.515 | BV58: 2003993.497 | BW58: 2047088.357 | BX58: 2095945.223 | BY58: 2145200.449 | BZ58: 2214481.783 | CA58: 2274519.154 | CB58: 2305874.408 | CC58: 2333329.366 | CD58: 2364774.298 | CE58: 2387901.201 | CF58: 2408025.804 | CG58: 2425865.755 | CH58: 2442904.472 | CI58: 2456615.098 | CJ58: 2467164.856 | CK58: 2476690.667 | CL58: 2485761.123 | CM58: 2493618.21 | CN58: 2500642.094 | CP58: 1414285.935 | CQ58: 1539548.964 | CR58: 1599302.995 | CS58: 1666420.824 | CT58: 1739054.877 | CU58: 1820826.804 | CV58: 1884985.222 | CW58: 1947189.138 | CX58: 2014534.459 | CY58: 2082266.114 | CZ58: 2134282.441 | DA58: 2218365.163 | DB58: 2285473.487 | DC58: 2565172.53 | DD58: 2688715.857 | DE58: 2772211.922 | DF58: 2851323.863 | DG58: 2925237.273 | DH58: 2996027.809 | DI58: 3059437.867 | DJ58: 3116865.774 | DK58: 3169683.065 | DL58: 3221359.137 | DM58: 3269919.111 | DN58: 3316544.992 | DO58: 3362292.507 | DP58: 3407904.974 | DQ58: 3442457.508 | DR58: 3440602.844 | DT58: 1414285.935 | DU58: 1547035.56 | DV58: 1604115.385 | DW58: 1667972.113 | DX58: 1743489.88 | DY58: 1828766.276 | DZ58: 1898788.851 | EA58: 1968732.174 | EB58: 2121082.511 | EC58: 2248649.325 | ED58: 2411070.651 | EE58: 2509318.088 | EF58: 2602088.627 | EG58: 2720242.735 | EH58: 2806120.838 | EI58: 2884815.257 | EJ58: 2958701.321 | EK58: 3026864.403 | EL58: 3089726.439 | EM58: 3146858.68 | EN58: 3199309.67 | EO58: 3246295.443 | EP58: 3286427.767 | EQ58: 3288647.172 | ER58: 3288329.385 | ES58: 3286878.759 | ET58: 3284744.668 | EU58: 3281987.461 | EV58: 3278671.078
B60: Lake District National Park Area | D60: 983839.8168 | E60: 1030244.832 | F60: 1071546.972 | G60: 1112995.202 | H60: 1159303.621 | I60: 1225272.281 | J60: 1265303.235 | K60: 1313053.203 | L60: 1358862.526 | M60: 1395782.785 | N60: 1435606.005 | O60: 1467041.467 | P60: 1511375.278 | Q60: 1595204.499 | R60: 1691791.769 | S60: 1747648.209 | T60: 1802329.046 | U60: 1858211.15 | V60: 1914515.307 | W60: 1953571.697 | X60: 2001337.357 | Y60: 2032368.672 | Z60: 2063690.386 | AA60: 2101954.146 | AB60: 2132713.225 | AC60: 2163893.221 | AD60: 2197693.965 | AE60: 2225738.692 | AF60: 2232445.686 | AH60: 984148.8138 | AI60: 989511.2289 | AJ60: 995284.7436 | AK60: 1013326.947 | AL60: 1028110.698 | AM60: 1043144.503 | AN60: 1060266.983 | AO60: 1086386.524 | AP60: 1117947.078 | AQ60: 1135525.689 | AR60: 1150966.04 | AS60: 1166197.962 | AT60: 1182205.901 | AU60: 1201227.641 | AV60: 1219730.913 | AW60: 1235954.932 | AX60: 1250891.527 | AY60: 1265879.002 | AZ60: 1278808.338 | BA60: 1291230.983 | BB60: 1303185.526 | BC60: 1314541.366 | BD60: 1325878.872 | BE60: 1337128.05 | BF60: 1347240.026 | BG60: 1356690.117 | BH60: 1365537.293 | BI60: 1372719.027 | BJ60: 1375917.167 | BL60: 983839.8168 | BM60: 992787.7538 | BN60: 1025052.21 | BO60: 1062722.526 | BP60: 1104019.042 | BQ60: 1162389.934 | BR60: 1193720.864 | BS60: 1234087.396 | BT60: 1278457.413 | BU60: 1315410.552 | BV60: 1356208.752 | BW60: 1389591.008 | BX60: 1429609.373 | BY60: 1484361.404 | BZ60: 1551611.168 | CA60: 1579070.308 | CB60: 1605619.551 | CC60: 1633151.264 | CD60: 1661648.66 | CE60: 1676029.213 | CF60: 1702824.088 | CG60: 1715163.708 | CH60: 1727620.766 | CI60: 1743229.876 | CJ60: 1748961.37 | CK60: 1753044.945 | CL60: 1757560.552 | CM60: 1760396.183 | CN60: 1762625.838 | CP60: 983819.807 | CQ60: 1049247.916 | CR60: 1093313.287 | CS60: 1137661.74 | CT60: 1188776.144 | CU60: 1259373.195 | CV60: 1303713.061 | CW60: 1354836.131 | CX60: 1418375.262 | CY60: 1462728.585 | CZ60: 1508521.799 | DA60: 1582794.453 | DB60: 1640409.153 | DC60: 1821967.053 | DD60: 1906553.811 | DE60: 1967166.666 | DF60: 2022244.163 | DG60: 2071604.807 | DH60: 2123663.964 | DI60: 2163208.958 | DJ60: 2198277.203 | DK60: 2228941.215 | DL60: 2259320.972 | DM60: 2286535.788 | DN60: 2313197.935 | DO60: 2339065.887 | DP60: 2365324.801 | DQ60: 2383588.947 | DR60: 2378855.725 | DT60: 983819.807 | DU60: 1057108.508 | DV60: 1101244.95 | DW60: 1146923.791 | DX60: 1231357.09 | DY60: 1342642.286 | DZ60: 1407976.793 | EA60: 1460203.511 | EB60: 1548703.662 | EC60: 1696168.942 | ED60: 1763513.04 | EE60: 1836509.063 | EF60: 1900333.133 | EG60: 1966400.113 | EH60: 2027047.938 | EI60: 2080691.977 | EJ60: 2130516.102 | EK60: 2174494.637 | EL60: 2214119.685 | EM60: 2248501.915 | EN60: 2278874.559 | EO60: 2305292.652 | EP60: 2328675.458 | EQ60: 2328219.613 | ER60: 2325864.969 | ES60: 2322331.411 | ET60: 2318034.735 | EU60: 2312906.811 | EV60: 2307277.02
B61: * includes Cheshire, North Yorkshire, Derbyshire, Northumberland, Merseyside, Straffordshire
B62: ** Originated from the split of Cumbria

Sheet LA Heat Pump Uptake
C9: Best View | BJ9: Falling Short | DQ9: System Transformation | FX9: Consumer Transformation | IE9: Leading the Way
A10: County | B10: Local Authority | C10: (Years as financial years, ie 2051 is FY2050/51) | D10: 2023 | F10: 2024 | H10: 2025 | J10: 2026 | L10: 2027 | N10: 2028 | P10: 2029 | R10: 2030 | T10: 2031 | V10: 2032 | X10: 2033 | Z10: 2034 | AB10: 2035 | AD10: 2036 | AF10: 2037 | AH10: 2038 | AJ10: 2039 | AL10: 2040 | AN10: 2041 | AP10: 2042 | AR10: 2043 | AT10: 2044 | AV10: 2045 | AX10: 2046 | AZ10: 2047 | BB10: 2048 | BD10: 2049 | BF10: 2050 | BH10: 2051 | BJ10: (Years as financial years, ie 2051 is FY2050/51) | BK10: 2023 | BM10: 2024 | BO10: 2025 | BQ10: 2026 | BS10: 2027 | BU10: 2028 | BW10: 2029 | BY10: 2030 | CA10: 2031 | CC10: 2032 | CE10: 2033 | CG10: 2034 | CI10: 2035 | CK10: 2036 | CM10: 2037 | CO10: 2038 | CQ10: 2039 | CS10: 2040 | CU10: 2041 | CW10: 2042 | CY10: 2043 | DA10: 2044 | DC10: 2045 | DE10: 2046 | DG10: 2047 | DI10: 2048 | DK10: 2049 | DM10: 2050 | DO10: 2051 | DQ10: (Years as financial years, ie 2051 is FY2050/51) | DR10: 2023 | DT10: 2024 | DV10: 2025 | DX10: 2026 | DZ10: 2027 | EB10: 2028 | ED10: 2029 | EF10: 2030 | EH10: 2031 | EJ10: 2032 | EL10: 2033 | EN10: 2034 | EP10: 2035 | ER10: 2036 | ET10: 2037 | EV10: 2038 | EX10: 2039 | EZ10: 2040 | FB10: 2041 | FD10: 2042 | FF10: 2043 | FH10: 2044 | FJ10: =FH10+1 -> 2045 | FL10: =FJ10+1 -> 2046 | FN10: =FL10+1 -> 2047 | FP10: =FN10+1 -> 2048 | FR10: =FP10+1 -> 2049 | FT10: =FR10+1 -> 2050 | FV10: =FT10+1 -> 2051 | FX10: (Years as financial years, ie 2051 is FY2050/51) | FY10: 2023 | GA10: =FY10+1 -> 2024 | GC10: =GA10+1 -> 2025 | GE10: =GC10+1 -> 2026 | GG10: =GE10+1 -> 2027 | GI10: =GG10+1 -> 2028 | GK10: =GI10+1 -> 2029 | GM10: =GK10+1 -> 2030 | GO10: =GM10+1 -> 2031 | GQ10: =GO10+1 -> 2032 | GS10: =GQ10+1 -> 2033 | GU10: =GS10+1 -> 2034 | GW10: =GU10+1 -> 2035 | GY10: =GW10+1 -> 2036 | HA10: =GY10+1 -> 2037 | HC10: =HA10+1 -> 2038 | HE10: =HC10+1 -> 2039 | HG10: =HE10+1 -> 2040 | HI10: =HG10+1 -> 2041 | HK10: =HI10+1 -> 2042 | HM10: =HK10+1 -> 2043 | HO10: =HM10+1 -> 2044 | HQ10: =HO10+1 -> 2045 | HS10: =HQ10+1 -> 2046 | HU10: =HS10+1 -> 2047 | HW10: =HU10+1 -> 2048 | HY10: =HW10+1 -> 2049 | IA10: =HY10+1 -> 2050 | IC10: =IA10+1 -> 2051 | IE10: (Years as financial years, ie 2051 is FY2050/51) | IF10: 2023 | IH10: =IF10+1 -> 2024 | IJ10: =IH10+1 -> 2025 | IL10: =IJ10+1 -> 2026 | IN10: =IL10+1 -> 2027 | IP10: =IN10+1 -> 2028 | IR10: =IP10+1 -> 2029 | IT10: =IR10+1 -> 2030 | IV10: =IT10+1 -> 2031 | IX10: =IV10+1 -> 2032 | IZ10: =IX10+1 -> 2033 | JB10: =IZ10+1 -> 2034 | JD10: =JB10+1 -> 2035 | JF10: =JD10+1 -> 2036 | JH10: =JF10+1 -> 2037 | JJ10: =JH10+1 -> 2038 | JL10: =JJ10+1 -> 2039 | JN10: =JL10+1 -> 2040 | JP10: =JN10+1 -> 2041 | JR10: =JP10+1 -> 2042 | JT10: =JR10+1 -> 2043 | JV10: =JT10+1 -> 2044 | JX10: =JV10+1 -> 2045 | JZ10: =JX10+1 -> 2046 | KB10: =JZ10+1 -> 2047 | KD10: =KB10+1 -> 2048 | KF10: =KD10+1 -> 2049 | KH10: =KF10+1 -> 2050 | KJ10: =KH10+1 -> 2051
D11: dom | E11: non-dom | F11: dom | G11: non-dom | H11: dom | I11: non-dom | J11: dom | K11: non-dom | L11: dom | M11: non-dom | N11: dom | O11: non-dom | P11: dom | Q11: non-dom | R11: dom | S11: non-dom | T11: dom | U11: non-dom | V11: dom | W11: non-dom | X11: dom | Y11: non-dom | Z11: dom | AA11: non-dom | AB11: dom | AC11: non-dom | AD11: dom | AE11: non-dom | AF11: dom | AG11: non-dom | AH11: dom | AI11: non-dom | AJ11: dom | AK11: non-dom | AL11: dom | AM11: non-dom | AN11: dom | AO11: non-dom | AP11: dom | AQ11: non-dom | AR11: dom | AS11: non-dom | AT11: dom | AU11: non-dom | AV11: dom | AW11: non-dom | AX11: dom | AY11: non-dom | AZ11: dom | BA11: non-dom | BB11: dom | BC11: non-dom | BD11: dom | BE11: non-dom | BF11: dom | BG11: non-dom | BH11: dom | BI11: non-dom | BK11: dom | BL11: non-dom | BM11: dom | BN11: non-dom | BO11: dom | BP11: non-dom | BQ11: dom | BR11: non-dom | BS11: dom | BT11: non-dom | BU11: dom | BV11: non-dom | BW11: dom | BX11: non-dom | BY11: dom | BZ11: non-dom | CA11: dom | CB11: non-dom | CC11: dom | CD11: non-dom | CE11: dom | CF11: non-dom | CG11: dom | CH11: non-dom | CI11: dom | CJ11: non-dom | CK11: dom | CL11: non-dom | CM11: dom | CN11: non-dom | CO11: dom | CP11: non-dom | CQ11: dom | CR11: non-dom | CS11: dom | CT11: non-dom | CU11: dom | CV11: non-dom | CW11: dom | CX11: non-dom | CY11: dom | CZ11: non-dom | DA11: dom | DB11: non-dom | DC11: dom | DD11: non-dom | DE11: dom | DF11: non-dom | DG11: dom | DH11: non-dom | DI11: dom | DJ11: non-dom | DK11: dom | DL11: non-dom | DM11: dom | DN11: non-dom | DO11: dom | DP11: non-dom | DR11: dom | DS11: non-dom | DT11: dom | DU11: non-dom | DV11: dom | DW11: non-dom | DX11: dom | DY11: non-dom | DZ11: dom | EA11: non-dom | EB11: dom | EC11: non-dom | ED11: dom | EE11: non-dom | EF11: dom | EG11: non-dom | EH11: dom | EI11: non-dom | EJ11: dom | EK11: non-dom | EL11: dom | EM11: non-dom | EN11: dom | EO11: non-dom | EP11: dom | EQ11: non-dom | ER11: dom | ES11: non-dom | ET11: dom | EU11: non-dom | EV11: dom | EW11: non-dom | EX11: dom | EY11: non-dom | EZ11: dom | FA11: non-dom | FB11: dom | FC11: non-dom | FD11: dom | FE11: non-dom | FF11: dom | FG11: non-dom | FH11: dom | FI11: non-dom | FJ11: dom | FK11: non-dom | FL11: dom | FM11: non-dom | FN11: dom | FO11: non-dom | FP11: dom | FQ11: non-dom | FR11: dom | FS11: non-dom | FT11: dom | FU11: non-dom | FV11: dom | FW11: non-dom | FY11: dom | FZ11: non-dom | GA11: dom | GB11: non-dom | GC11: dom | GD11: non-dom | GE11: dom | GF11: non-dom | GG11: dom | GH11: non-dom | GI11: dom | GJ11: non-dom | GK11: dom | GL11: non-dom | GM11: dom | GN11: non-dom | GO11: dom | GP11: non-dom | GQ11: dom | GR11: non-dom | GS11: dom | GT11: non-dom | GU11: dom | GV11: non-dom | GW11: dom | GX11: non-dom | GY11: dom | GZ11: non-dom | HA11: dom | HB11: non-dom | HC11: dom | HD11: non-dom | HE11: dom | HF11: non-dom | HG11: dom | HH11: non-dom | HI11: dom | HJ11: non-dom | HK11: dom | HL11: non-dom | HM11: dom | HN11: non-dom | HO11: dom | HP11: non-dom | HQ11: dom | HR11: non-dom | HS11: dom | HT11: non-dom | HU11: dom | HV11: non-dom | HW11: dom | HX11: non-dom | HY11: dom | HZ11: non-dom | IA11: dom | IB11: non-dom | IC11: dom | ID11: non-dom | IF11: dom | IG11: non-dom | IH11: dom | II11: non-dom | IJ11: dom | IK11: non-dom | IL11: dom | IM11: non-dom | IN11: dom | IO11: non-dom | IP11: dom | IQ11: non-dom | IR11: dom | IS11: non-dom | IT11: dom | IU11: non-dom | IV11: dom | IW11: non-dom | IX11: dom | IY11: non-dom | IZ11: dom | JA11: non-dom | JB11: dom | JC11: non-dom | JD11: dom | JE11: non-dom | JF11: dom | JG11: non-dom | JH11: dom | JI11: non-dom | JJ11: dom | JK11: non-dom | JL11: dom | JM11: non-dom | JN11: dom | JO11: non-dom | JP11: dom | JQ11: non-dom | JR11: dom | JS11: non-dom | JT11: dom | JU11: non-dom | JV11: dom | JW11: non-dom | JX11: dom | JY11: non-dom | JZ11: dom | KA11: non-dom | KB11: dom | KC11: non-dom | KD11: dom | KE11: non-dom | KF11: dom | KG11: non-dom | KH11: dom | KI11: non-dom | KJ11: dom | KK11: non-dom
A12: Cumberland** | B12: Allerdale | D12: 501.4063348 | E12: 111.5950135 | F12: 1341.935587 | G12: 183.8428357 | H12: 2288.29471 | I12: 212.5743447 | J12: 3423.123466 | K12: 241.7796893 | L12: 4736.902272 | M12: 271.2844357 | N12: 6342.756759 | O12: 301.1253333 | P12: 8073.604524 | Q12: 331.3539279 | R12: 9642.313963 | S12: 361.9470369 | T12: 11308.17307 | U12: 391.7735313 | V12: 12742.85637 | W12: 416.4797152 | X12: 14005.72603 | Y12: 440.8832923 | Z12: 15087.83399 | AA12: 464.9786197 | AB12: 16712.08891 | AC12: 488.7588777 | AD12: 19867.83937 | AE12: 708.457896 | AF12: 22902.7841 | AG12: 927.1747545 | AH12: 25588.82736 | AI12: 1144.927281 | AJ12: 28170.03155 | AK12: 1361.729917 | AL12: 30646.27773 | AM12: 1577.445659 | AN12: 33015.00976 | AO12: 1792.068741 | AP12: 35286.69315 | AQ12: 2005.594872 | AR12: 37364.66586 | AS12: 2218.208369 | AT12: 39320.66954 | AU12: 2429.872873 | AV12: 41484.47091 | AW12: 2640.414108 | AX12: 43570.70039 | AY12: 2849.991585 | AZ12: 45942.48089 | BA12: 3058.5727 | BB12: 48054.17828 | BC12: 3266.160936 | BD12: 49434.86322 | BE12: 3472.765327 | BF12: 50757.9384 | BG12: 3678.388595 | BH12: 51007.42715 | BI12: 3692.409729 | BK12: 501.4063348 | BL12: 111.5950135 | BM12: 979.4264814 | BN12: 143.3272685 | BO12: 1172.744234 | BP12: 156.9199237 | BQ12: 1605.435809 | BR12: 166.8854377 | BS12: 2067.851266 | BT12: 183.2389819 | BU12: 2557.22153 | BV12: 199.9664274 | BW12: 3062.309566 | BX12: 216.9190114 | BY12: 3586.087123 | BZ12: 234.2824572 | CA12: 4127.234288 | CB12: 253.7906158 | CC12: 4675.520709 | CD12: 266.7777478 | CE12: 5224.303181 | CF12: 279.6118676 | CG12: 5755.682916 | CH12: 292.2889912 | CI12: 6437.551436 | CJ12: 304.8065648 | CK12: 7569.476065 | CL12: 317.1875984 | CM12: 8712.606197 | CN12: 329.4109492 | CO12: 9582.437405 | CP12: 341.4935997 | CQ12: 10434.30234 | CR12: 353.4395398 | CS12: 11627.95407 | CT12: 365.2240546 | CU12: 12487.93572 | CV12: 376.855259 | CW12: 13345.17365 | CX12: 388.342155 | CY12: 14147.51983 | CZ12: 399.7238693 | DA12: 14335.70461 | DB12: 410.992952 | DC12: 14639.50079 | DD12: 422.126453 | DE12: 14942.91598 | DF12: 433.1506897 | DG12: 15245.18103 | DH12: 444.0640391 | DI12: 15544.8314 | DJ12: 454.8697177 | DK12: 15844.0643 | DL12: 465.5725691 | DM12: 16136.0878 | DN12: 476.1740503 | DO12: 16387.83718 | DP12: 486.678915 | DR12: 501.4063348 | DS12: 111.5950135 | DT12: 1061.133572 | DU12: 148.6838415 | DV12: 1736.287628 | DW12: 164.6945977 | DX12: 2547.082747 | DY12: 177.9910779 | DZ12: 3339.242128 | EA12: 196.5131552 | EB12: 4155.971202 | EC12: 215.494766 | ED12: 4989.434562 | EE12: 234.7143754 | EF12: 5796.887351 | EG12: 254.3543574 | EH12: 7436.73166 | EI12: 275.8012381 | EJ12: 9066.615476 | EK12: 293.7153483 | EL12: 10681.65839 | EM12: 311.4755709 | EN12: 12266.0629 | EO12: 329.0719018 | EP12: 13866.08291 | EQ12: 346.4970252 | ER12: 15539.47814 | ES12: 363.7821653 | ET12: 17328.99953 | EU12: 380.8973033 | EV12: 18725.45549 | EW12: 397.8592347 | EX12: 20075.79232 | EY12: 414.6762432 | EZ12: 21009.42652 | FA12: 431.3108537 | FB12: 21631.36958 | FC12: 447.7754086 | FD12: 22236.70318 | FE12: 464.0760442 | FF12: 22783.68189 | FG12: 480.2590952 | FH12: 23300.279 | FI12: 496.3172417 | FJ12: 23990.01828 | FK12: 512.214873 | FL12: 24118.22082 | FM12: 527.9892159 | FN12: 24253.89344 | FO12: 543.6359348 | FP12: 24392.73152 | FQ12: 559.1569253 | FR12: 24538.16845 | FS12: 574.555749 | FT12: 24704.20747 | FU12: 589.835931 | FV12: 24864.01189 | FW12: 604.9992907 | FY12: 501.4063348 | FZ12: 111.5950135 | GA12: 1341.935587 | GB12: 183.8428357 | GC12: 2288.29471 | GD12: 212.5743447 | GE12: 3423.123466 | GF12: 241.7796893 | GG12: 4736.902272 | GH12: 271.2844357 | GI12: 6342.756759 | GJ12: 301.1253333 | GK12: 8073.604524 | GL12: 331.3539279 | GM12: 9642.313963 | GN12: 361.9470369 | GO12: 11308.17307 | GP12: 391.7735313 | GQ12: 12742.85637 | GR12: 416.4797152 | GS12: 14005.72603 | GT12: 440.8832923 | GU12: 15087.83399 | GV12: 464.9786197 | GW12: 16712.08891 | GX12: 488.7588777 | GY12: 19867.83937 | GZ12: 708.457896 | HA12: 22902.7841 | HB12: 927.1747545 | HC12: 25588.82736 | HD12: 1144.927281 | HE12: 28170.03155 | HF12: 1361.729917 | HG12: 30646.27773 | HH12: 1577.445659 | HI12: 33015.00976 | HJ12: 1792.068741 | HK12: 35286.69315 | HL12: 2005.594872 | HM12: 37364.66586 | HN12: 2218.208369 | HO12: 39320.66954 | HP12: 2429.872873 | HQ12: 41484.47091 | HR12: 2640.414108 | HS12: 43570.70039 | HT12: 2849.991585 | HU12: 45942.48089 | HV12: 3058.5727 | HW12: 48054.17828 | HX12: 3266.160936 | HY12: 49434.86322 | HZ12: 3472.765327 | IA12: 50757.9384 | IB12: 3678.388595 | IC12: 51007.42715 | ID12: 3692.409729 | IF12: 501.4063348 | IG12: 111.5950135 | IH12: 1404.496515 | II12: 183.8428357 | IJ12: 2639.319093 | IK12: 212.5743447 | IL12: 4098.141245 | IM12: 241.7796893 | IN12: 5652.412607 | IO12: 271.2844357 | IP12: 7320.8922 | IQ12: 301.1253333 | IR12: 9067.994625 | IS12: 331.3539279 | IT12: 10702.07173 | IU12: 361.9470369 | IV12: 14185.85809 | IW12: 589.6231699 | IX12: 17676.90105 | IY12: 811.5055176 | IZ12: 21167.08721 | JA12: 1032.435119 | JB12: 24633.45165 | JC12: 1252.398682 | JD12: 27818.91862 | JE12: 1471.356679 | JF12: 30925.01228 | JG12: 1689.414153 | JH12: 33944.40363 | JI12: 1906.441632 | JJ12: 36630.75111 | JK12: 2122.490535 | JL12: 39158.02256 | JM12: 2337.587459 | JN12: 41413.98807 | JO12: 2551.506321 | JP12: 43601.10112 | JQ12: 2764.266825 | JR12: 45455.67555 | JS12: 2975.8807 | JT12: 46997.55088 | JU12: 3186.623645 | JV12: 48221.95412 | JW12: 3396.430461 | JX12: 49501.67405 | JY12: 3605.058364 | JZ12: 49766.72112 | KA12: 3620.182834 | KB12: 50030.02858 | KC12: 3635.069255 | KD12: 50291.07231 | KE12: 3649.725269 | KF12: 50552.08624 | KG12: 3664.163263 | KH12: 50453.89028 | KI12: 3678.388595 | KJ12: 50708.18968 | KK12: 3692.409729
A13: Westmorland and Furness** | B13: Barrow-in-Furness | D13: 203.1664418 | E13: 57.61714083 | F13: 510.8455744 | G13: 94.48388066 | H13: 853.7456856 | I13: 109.1709853 | J13: 1264.446406 | K13: 124.2173803 | L13: 1748.3982 | M13: 139.3309119 | N13: 2353.492463 | O13: 154.5416347 | P13: 3024.179166 | Q13: 169.9199877 | R13: 3613.00343 | S13: 185.4949574 | T13: 4251.774428 | U13: 200.6827865 | V13: 4771.471389 | W13: 213.180626 | X13: 5195.988992 | Y13: 225.5269947 | Z13: 5509.641064 | AA13: 237.689124 | AB13: 6290.640146 | AC13: 249.6757168 | AD13: 8569.840991 | AE13: 361.6298891 | AF13: 10902.40237 | AG13: 472.9318477 | AH13: 13015.89574 | AI13: 583.6558018 | AJ13: 15074.81584 | AK13: 693.7827785 | AL13: 17074.36695 | AM13: 803.2930584 | AN13: 19007.17156 | AO13: 912.1861171 | AP13: 20884.00899 | AQ13: 1020.486418 | AR13: 22643.44401 | AS13: 1128.152945 | AT13: 24342.35481 | AU13: 1235.203862 | AV13: 26137.69007 | AW13: 1341.265546 | AX13: 27890.18867 | AY13: 1446.735711 | AZ13: 29794.02991 | BA13: 1551.476615 | BB13: 31717.10178 | BC13: 1655.480196 | BD13: 33422.08464 | BE13: 1758.742208 | BF13: 34128.38297 | BG13: 1861.25612 | BH13: 34200.94738 | BI13: 1866.648919 | BK13: 203.1664418 | BL13: 57.61714083 | BM13: 380.9849866 | BN13: 73.66137757 | BO13: 441.7411065 | BP13: 80.3310265 | BQ13: 568.0048494 | BR13: 85.2062603 | BS13: 702.9741134 | BT13: 93.25834611 | BU13: 845.7818947 | BV13: 101.3958967 | BW13: 993.2262187 | BX13: 109.6744738 | BY13: 1146.086674 | BZ13: 118.2288635 | CA13: 1304.032683 | CB13: 127.9404485 | CC13: 1464.073654 | CD13: 134.3241946 | CE13: 1624.18693 | CF13: 140.6383168 | CG13: 1778.996263 | CH13: 146.8622041 | CI13: 1970.867446 | CJ13: 153.0023174 | CK13: 2273.549657 | CL13: 159.0557883 | CM13: 2596.412155 | CN13: 165.031529 | CO13: 2836.965086 | CP13: 170.9536227 | CQ13: 3072.298409 | CR13: 176.8087191 | CS13: 3387.298988 | CT13: 182.5941672 | CU13: 3602.626999 | CV13: 188.3105268 | CW13: 3817.501376 | CX13: 193.9649604 | CY13: 4017.616402 | CZ13: 199.550638 | DA13: 4142.387163 | DB13: 205.0726351 | DC13: 4285.74618 | DD13: 210.4756131 | DE13: 4428.835555 | DF13: 215.8270906 | DG13: 4571.489361 | DH13: 221.1078245 | DI13: 4712.354052 | DJ13: 226.3193013 | DK13: 4853.408156 | DL13: 231.4638368 | DM13: 4982.909759 | DN13: 236.54208 | DO13: 5061.887382 | DP13: 241.5563353 | DR13: 203.1664418 | DS13: 57.61714083 | DT13: 412.8771149 | DU13: 76.41432576 | DV13: 669.8102787 | DW13: 84.58156856 | DX13: 957.5767813 | DY13: 91.44517258 | DZ13: 1231.529323 | EA13: 100.9285956 | EB13: 1510.796069 | EC13: 110.5948578 | ED13: 1795.516434 | EE13: 120.3627313 | EF13: 2056.246404 | EG13: 130.3545709 | EH13: 2628.737645 | EI13: 141.2769281 | EJ13: 3195.288841 | EK13: 150.3420684 | EL13: 3755.366722 | EM13: 159.3304864 | EN13: 4305.499153 | EO13: 168.2159324 | EP13: 4859.071293 | EQ13: 177.0032159 | ER13: 5432.73496 | ES13: 185.6913514 | ET13: 6073.289064 | EU13: 194.2875004 | EV13: 6599.516955 | EW13: 202.8188642 | EX13: 7114.597206 | EY13: 211.2718775 | EZ13: 7555.755503 | FA13: 219.6392711 | FB13: 7874.408069 | FC13: 227.9234619 | FD13: 8186.938005 | FE13: 236.1310884 | FF13: 8473.391956 | FG13: 244.2537501 | FH13: 8751.618847 | FI13: 252.2983736 | FJ13: 9080.701633 | FK13: 260.1925809 | FL13: 9119.446106 | FM13: 268.0221435 | FN13: 9163.738753 | FO13: 275.7621031 | FP13: 9209.700932 | FQ13: 283.4132286 | FR13: 9259.606607 | FS13: 290.9771756 | FT13: 9323.204027 | FU13: 298.4556166 | FV13: 9382.499477 | FW13: 305.8493924 | FY13: 203.1664418 | FZ13: 57.61714083 | GA13: 510.8455744 | GB13: 94.48388066 | GC13: 853.7456856 | GD13: 109.1709853 | GE13: 1264.446406 | GF13: 124.2173803 | GG13: 1748.3982 | GH13: 139.3309119 | GI13: 2353.492463 | GJ13: 154.5416347 | GK13: 3024.179166 | GL13: 169.9199877 | GM13: 3613.00343 | GN13: 185.4949574 | GO13: 4251.774428 | GP13: 200.6827865 | GQ13: 4771.471389 | GR13: 213.180626 | GS13: 5195.988992 | GT13: 225.5269947 | GU13: 5509.641064 | GV13: 237.689124 | GW13: 6290.640146 | GX13: 249.6757168 | GY13: 8569.840991 | GZ13: 361.6298891 | HA13: 10902.40237 | HB13: 472.9318477 | HC13: 13015.89574 | HD13: 583.6558018 | HE13: 15074.81584 | HF13: 693.7827785 | HG13: 17074.36695 | HH13: 803.2930584 | HI13: 19007.17156 | HJ13: 912.1861171 | HK13: 20884.00899 | HL13: 1020.486418 | HM13: 22643.44401 | HN13: 1128.152945 | HO13: 24342.35481 | HP13: 1235.203862 | HQ13: 26137.69007 | HR13: 1341.265546 | HS13: 27890.18867 | HT13: 1446.735711 | HU13: 29794.02991 | HV13: 1551.476615 | HW13: 31717.10178 | HX13: 1655.480196 | HY13: 33422.08464 | HZ13: 1758.742208 | IA13: 34128.38297 | IB13: 1861.25612 | IC13: 34200.94738 | ID13: 1866.648919 | IF13: 203.1664418 | IG13: 57.61714083 | IH13: 533.080473 | II13: 94.48388066 | IJ13: 978.0405 | IK13: 109.1709853 | IL13: 1505.164448 | IM13: 124.2173803 | IN13: 2078.679415 | IO13: 139.3309119 | IP13: 2711.591873 | IQ13: 154.5416347 | IR13: 3392.67688 | IS13: 169.9199877 | IT13: 4169.647519 | IU13: 185.4949574 | IV13: 6457.03534 | IW13: 302.0296455 | IX13: 8746.692053 | IY13: 415.3797843 | IZ13: 11035.78731 | JA13: 528.126136 | JB13: 13316.21533 | JC13: 640.204803 | JD13: 15574.76333 | JE13: 751.6222218 | JF13: 17881.63572 | JG13: 862.3556264 | JH13: 20222.30156 | JI13: 972.434764 | JJ13: 22336.24142 | JK13: 1081.993534 | JL13: 24366.40946 | JM13: 1190.968857 | JN13: 26249.9788 | JO13: 1299.320394 | JP13: 28077.96167 | JQ13: 1407.047489 | JR13: 29831.64918 | JS13: 1514.187076 | JT13: 31494.76226 | JU13: 1620.676804 | JV13: 32995.23992 | JW13: 1726.544656 | JX13: 33753.42243 | JY13: 1831.281147 | JZ13: 33836.87201 | KA13: 1837.706403 | KB13: 33919.59063 | KC13: 1843.907436 | KD13: 34001.29779 | KE13: 1849.892893 | KF13: 34082.88287 | KG13: 1855.6735 | KH13: 34180.52199 | KI13: 1861.25612 | KJ13: 34259.09789 | KK13: 1866.648919
A14: Lancashire | B14: Blackburn with Darwen | D14: 475.531187 | E14: 109.6268869 | F14: 986.6586439 | G14: 180.3943094 | H14: 1523.989245 | I14: 208.0971855 | J14: 2183.707506 | K14: 236.0624739 | L14: 2945.153124 | M14: 264.2989694 | N14: 3882.52128 | O14: 292.8450143 | P14: 4916.268287 | Q14: 321.7521876 | R14: 5868.36987 | S14: 351.0442209 | T14: 6890.621633 | U14: 379.64062 | V14: 7782.108258 | W14: 403.2316132 | X14: 8563.954461 | Y14: 426.5623642 | Z14: 9182.628987 | AA14: 449.6549913 | AB14: 10642.92002 | AC14: 472.5070113 | AD14: 14840.79792 | AE14: 684.7196947 | AF14: 18988.65177 | AG14: 895.995263 | AH14: 22879.11999 | AI14: 1106.480965 | AJ14: 26697.15023 | AK14: 1316.327991 | AL14: 30430.12589 | AM14: 1525.488623 | AN14: 34065.17488 | AO14: 1734.017948 | AP14: 37636.71277 | AQ14: 1941.961455 | AR14: 41021.37721 | AS14: 2149.324971 | AT14: 44318.32241 | AU14: 2356.165717 | AV14: 47733.11228 | AW14: 2561.906261 | AX14: 51096.71321 | AY14: 2767.211823 | AZ14: 54584.71529 | BA14: 2971.886798 | BB14: 58260.97618 | BC14: 3175.93936 | BD14: 61929.85832 | BE14: 3379.38245 | BF14: 64099.15936 | BG14: 3582.222308 | BH14: 64331.81581 | BI14: 3598.679807 | BK14: 475.531187 | BL14: 109.6268869 | BM14: 845.7620735 | BN14: 140.6387337 | BO14: 1002.420594 | BP14: 153.7915246 | BQ14: 1359.988656 | BR14: 163.3057906 | BS14: 1741.976719 | BT14: 179.108734 | BU14: 2146.504327 | BV14: 195.3184731 | BW14: 2563.809224 | BX14: 211.7178881 | BY14: 2996.164109 | BZ14: 228.5055528 | CA14: 3442.708195 | CB14: 247.3706235 | CC14: 3895.016445 | CD14: 259.8532776 | CE14: 4348.158207 | CF14: 272.210386 | CG14: 4788.412175 | CH14: 284.4539573 | CI14: 5280.946296 | CJ14: 296.5824552 | CK14: 5930.409744 | CL14: 308.5811791 | CM14: 6565.319537 | CN14: 320.4621791 | CO14: 7005.969907 | CP14: 332.259461 | CQ14: 7433.693394 | CR14: 343.9898824 | CS14: 7909.240483 | CT14: 355.6272969 | CU14: 8247.505477 | CV14: 367.1757528 | CW14: 8589.310642 | CX14: 378.6411207 | CY14: 8910.839967 | CZ14: 390.0204983 | DA14: 9291.435796 | DB14: 401.3218141 | DC14: 9682.913904 | DD14: 412.4539014 | DE14: 10075.46122 | DF14: 423.5282548 | DG14: 10467.76658 | DH14: 434.5143247 | DI14: 10856.45719 | DJ14: 445.4151588 | DK14: 11246.16835 | DL14: 456.2353936 | DM14: 11605.41237 | DN14: 466.9763445 | DO14: 11831.54177 | DP14: 477.6425544 | DR14: 475.531187 | DS14: 109.6268869 | DT14: 843.7313351 | DU14: 145.894828 | DV14: 1172.709677 | DW14: 161.2258634 | DX14: 1673.458387 | DY14: 173.7822325 | DZ14: 2165.7803 | EA14: 191.4530197 | EB14: 2672.312368 | EC14: 209.5691092 | ED14: 3192.52342 | EE14: 227.912988 | EF14: 3744.63171 | EG14: 246.6925216 | EH14: 4650.295373 | EI14: 267.2598955 | EJ14: 5553.760227 | EK14: 284.3723461 | EL14: 6452.654397 | EM14: 301.3581104 | EN14: 7336.703376 | EO14: 318.2271548 | EP14: 8242.206497 | EQ14: 334.9755498 | ER14: 9216.590313 | ES14: 351.5929663 | ET14: 10194.95514 | EU14: 368.0883003 | EV14: 10955.8199 | EW14: 384.4992405 | EX14: 11722.67287 | EY14: 400.8503737 | EZ14: 12517.08444 | FA14: 417.1045746 | FB14: 13151.89137 | FC14: 433.2705424 | FD14: 13792.07462 | FE14: 449.3518619 | FF14: 14404.04629 | FG14: 465.3453119 | FH14: 15003.68029 | FI14: 481.2620788 | FJ14: 15591.36769 | FK14: 496.9851078 | FL14: 15806.46568 | FM14: 512.6534437 | FN14: 16030.15662 | FO14: 528.2282346 | FP14: 16255.87254 | FQ14: 543.7112629 | FR14: 16488.34452 | FS14: 559.1059089 | FT14: 16747.2633 | FU14: 574.4155017 | FV14: 16999.54391 | FW14: 589.641695 | FY14: 475.531187 | FZ14: 109.6268869 | GA14: 986.6586439 | GB14: 180.3943094 | GC14: 1523.989245 | GD14: 208.0971855 | GE14: 2183.707506 | GF14: 236.0624739 | GG14: 2945.153124 | GH14: 264.2989694 | GI14: 3882.52128 | GJ14: 292.8450143 | GK14: 4916.268287 | GL14: 321.7521876 | GM14: 5868.36987 | GN14: 351.0442209 | GO14: 6890.621633 | GP14: 379.64062 | GQ14: 7782.108258 | GR14: 403.2316132 | GS14: 8563.954461 | GT14: 426.5623642 | GU14: 9182.628987 | GV14: 449.6549913 | GW14: 10642.92002 | GX14: 472.5070113 | GY14: 14840.79792 | GZ14: 684.7196947 | HA14: 18988.65177 | HB14: 895.995263 | HC14: 22879.11999 | HD14: 1106.480965 | HE14: 26697.15023 | HF14: 1316.327991 | HG14: 30430.12589 | HH14: 1525.488623 | HI14: 34065.17488 | HJ14: 1734.017948 | HK14: 37636.71277 | HL14: 1941.961455 | HM14: 41021.37721 | HN14: 2149.324971 | HO14: 44318.32241 | HP14: 2356.165717 | HQ14: 47733.11228 | HR14: 2561.906261 | HS14: 51096.71321 | HT14: 2767.211823 | HU14: 54584.71529 | HV14: 2971.886798 | HW14: 58260.97618 | HX14: 3175.93936 | HY14: 61929.85832 | HZ14: 3379.38245 | IA14: 64099.15936 | IB14: 3582.222308 | IC14: 64331.81581 | ID14: 3598.679807 | IF14: 475.531187 | IG14: 109.6268869 | IH14: 1018.489045 | II14: 180.3943094 | IJ14: 1692.53334 | IK14: 208.0971855 | IL14: 2482.565505 | IM14: 236.0624739 | IN14: 3347.547503 | IO14: 264.2989694 | IP14: 4314.572212 | IQ14: 292.8450143 | IR14: 5371.505707 | IS14: 321.7521876 | IT14: 6813.462812 | IU14: 351.0442209 | IV14: 10919.0326 | IW14: 571.3630144 | IX14: 15031.45056 | IY14: 785.6917566 | IZ14: 19142.88216 | JA14: 998.8991935 | JB14: 23230.13536 | JC14: 1211.125189 | JD14: 27378.99394 | JE14: 1422.432162 | JF14: 31597.9198 | JG14: 1632.807185 | JH14: 35774.4026 | JI14: 1842.330869 | JJ14: 39665.02964 | JK14: 2051.217937 | JL14: 43444.9453 | JM14: 2259.649116 | JN14: 47027.35378 | JO14: 2467.466212 | JP14: 50507.79822 | JQ14: 2674.723452 | JR14: 54007.20307 | JS14: 2881.4621 | JT14: 57477.26032 | JU14: 3087.667447 | JV14: 60659.28195 | JW14: 3293.40399 | JX14: 62892.8709 | JY14: 3497.868597 | JZ14: 63159.19726 | KA14: 3515.032392 | KB14: 63423.48881 | KC14: 3532.044319 | KD14: 63684.67086 | KE14: 3548.908447 | KF14: 63945.34263 | KG14: 3565.633684 | KH14: 64193.89967 | KI14: 3582.222308 | KJ14: 64445.54253 | KK14: 3598.679807
A15: Lancashire | B15: Blackpool | D15: 524.199486 | E15: 157.1693646 | F15: 1178.088305 | G15: 258.5510277 | H15: 1746.944927 | I15: 297.5642416 | J15: 2420.916943 | K15: 336.6833477 | L15: 3209.496035 | M15: 376.2732965 | N15: 4206.897452 | O15: 416.3885042 | P15: 5302.684163 | Q15: 456.9879898 | R15: 6326.710934 | S15: 498.1331808 | T15: 7424.053106 | U15: 538.2907875 | V15: 8378.308809 | W15: 571.3717335 | X15: 9181.679774 | Y15: 604.0919405 | Z15: 9735.392352 | AA15: 636.5175524 | AB15: 11169.41305 | AC15: 668.6033712 | AD15: 15586.97949 | AE15: 968.5990192 | AF15: 20132.20489 | AG15: 1267.158719 | AH15: 24154.78261 | AI15: 1564.504649 | AJ15: 28088.59876 | AK15: 1860.759724 | AL15: 31922.08765 | AM15: 2155.872312 | AN15: 35640.85061 | AO15: 2449.783423 | AP15: 39311.39766 | AQ15: 2742.588617 | AR15: 42765.57381 | AS15: 3034.27938 | AT15: 46138.77735 | AU15: 3324.935712 | AV15: 49613.37682 | AW15: 3614.814193 | AX15: 53033.73562 | AY15: 3903.674207 | AZ15: 56653.68793 | BA15: 4191.642615 | BB15: 60679.49538 | BC15: 4478.748451 | BD15: 65555.01873 | BE15: 4765.025952 | BF15: 68722.38517 | BG15: 5050.498527 | BH15: 68980.80782 | BI15: 5073.275528 | BK15: 524.199486 | BL15: 157.1693646 | BM15: 1008.477228 | BN15: 201.5711542 | BO15: 1128.169296 | BP15: 220.3304006 | BQ15: 1360.563609 | BR15: 233.7865077 | BS15: 1609.050005 | BT15: 256.392193 | BU15: 1871.965229 | BV15: 279.7482324 | BW15: 2143.528052 | BX15: 303.2972723 | BY15: 2425.223199 | BZ15: 327.3148721 | CA15: 2716.444815 | CB15: 354.1971004 | CC15: 3011.689864 | CD15: 371.9568013 | CE15: 3307.37449 | CF15: 389.5428169 | CG15: 3593.615695 | CH15: 406.9930799 | CI15: 3931.073195 | CJ15: 424.2771865 | CK15: 4421.187621 | CL15: 441.3992882 | CM15: 4997.054398 | CN15: 458.3620207 | CO15: 5410.927525 | CP15: 475.2060543 | CQ15: 5816.895268 | CR15: 491.9254724 | CS15: 6323.786003 | CT15: 508.491737 | CU15: 6629.091967 | CV15: 524.8829062 | CW15: 6934.712625 | CX15: 541.1214862 | CY15: 7215.737371 | CZ15: 557.203863 | DA15: 7696.978236 | DB15: 573.1442186 | DC15: 8166.145305 | DD15: 588.9889539 | DE15: 8636.247575 | DF15: 604.6903827 | DG15: 9105.825467 | DH15: 620.2714515 | DI15: 9567.92758 | DJ15: 635.7369238 | DK15: 10030.10386 | DL15: 651.0937929 | DM15: 10437.15003 | DN15: 666.3442777 | DO15: 10608.9356 | DP15: 681.4951711 | DR15: 524.199486 | DS15: 157.1693646 | DT15: 1016.526095 | DU15: 209.104477 | DV15: 1375.089356 | DW15: 230.5415695 | DX15: 1792.54539 | DY15: 247.8563527 | DZ15: 2151.879844 | EA15: 272.5650388 | EB15: 2496.078462 | EC15: 297.9807189 | ED15: 2842.188078 | EE15: 323.7071952 | EF15: 3226.125399 | EG15: 350.0576941 | EH15: 3901.287626 | EI15: 378.9466459 | EJ15: 4578.281267 | EK15: 402.9503517 | EL15: 5255.190353 | EM15: 426.7793435 | EN15: 5924.531752 | EO15: 450.4724145 | EP15: 6611.254001 | EQ15: 473.9946213 | ER15: 7345.312552 | ES15: 497.360606 | ET15: 8139.261747 | EU15: 520.5678179 | EV15: 8771.736299 | EW15: 543.6612723 | EX15: 9419.659551 | EY15: 566.6416243 | EZ15: 10144.24698 | FA15: 589.4663454 | FB15: 10724.866 | FC15: 612.1153437 | FD15: 11313.12961 | FE15: 634.6095584 | FF15: 11880.59624 | FG15: 656.944717 | FH15: 12445.90383 | FI15: 679.1396126 | FJ15: 12972.82282 | FK15: 701.2390925 | FL15: 13165.37304 | FM15: 723.1943752 | FN15: 13360.29542 | FO15: 745.0297163 | FP15: 13553.44941 | FQ15: 766.7482595 | FR15: 13759.78083 | FS15: 788.3553296 | FT15: 14022.42019 | FU15: 809.856116 | FV15: 14278.38755 | FW15: 831.2533879 | FY15: 524.199486 | FZ15: 157.1693646 | GA15: 1178.088305 | GB15: 258.5510277 | GC15: 1746.944927 | GD15: 297.5642416 | GE15: 2420.916943 | GF15: 336.6833477 | GG15: 3209.496035 | GH15: 376.2732965 | GI15: 4206.897452 | GJ15: 416.3885042 | GK15: 5302.684163 | GL15: 456.9879898 | GM15: 6326.710934 | GN15: 498.1331808 | GO15: 7424.053106 | GP15: 538.2907875 | GQ15: 8378.308809 | GR15: 571.3717335 | GS15: 9181.679774 | GT15: 604.0919405 | GU15: 9735.392352 | GV15: 636.5175524 | GW15: 11169.41305 | GX15: 668.6033712 | GY15: 15586.97949 | GZ15: 968.5990192 | HA15: 20132.20489 | HB15: 1267.158719 | HC15: 24154.78261 | HD15: 1564.504649 | HE15: 28088.59876 | HF15: 1860.759724 | HG15: 31922.08765 | HH15: 2155.872312 | HI15: 35640.85061 | HJ15: 2449.783423 | HK15: 39311.39766 | HL15: 2742.588617 | HM15: 42765.57381 | HN15: 3034.27938 | HO15: 46138.77735 | HP15: 3324.935712 | HQ15: 49613.37682 | HR15: 3614.814193 | HS15: 53033.73562 | HT15: 3903.674207 | HU15: 56653.68793 | HV15: 4191.642615 | HW15: 60679.49538 | HX15: 4478.748451 | HY15: 65555.01873 | HZ15: 4765.025952 | IA15: 68722.38517 | IB15: 5050.498527 | IC15: 68980.80782 | ID15: 5073.275528 | IF15: 524.199486 | IG15: 157.1693646 | IH15: 1194.021634 | II15: 258.5510277 | IJ15: 1863.900221 | IK15: 297.5642416 | IL15: 2695.782505 | IM15: 336.6833477 | IN15: 3606.223601 | IO15: 376.2732965 | IP15: 4619.251939 | IQ15: 416.3885042 | IR15: 5728.934681 | IS15: 456.9879898 | IT15: 7124.870823 | IU15: 498.1331808 | IV15: 11366.05005 | IW15: 810.1331384 | IX15: 15614.19775 | IY15: 1113.310679 | IZ15: 19864.29192 | JA15: 1414.627738 | JB15: 24101.41371 | JC15: 1714.430966 | JD15: 28428.35195 | JE15: 2012.759422 | JF15: 32895.74464 | JG15: 2309.756021 | JH15: 37432.54601 | JI15: 2605.511122 | JJ15: 41454.35742 | JK15: 2900.31198 | JL15: 45355.04825 | JM15: 3194.237375 | JN15: 49042.92884 | JO15: 3487.10702 | JP15: 52570.82613 | JQ15: 3778.792013 | JR15: 56287.66411 | JS15: 4069.424312 | JT15: 60019.05424 | JU15: 4358.971209 | JV15: 64053.73851 | JW15: 4647.532412 | JX15: 67333.68459 | JY15: 4935.444066 | JZ15: 67649.0889 | KA15: 4958.616169 | KB15: 67963.99892 | KC15: 4981.706402 | KD15: 68275.6124 | KE15: 5004.714009 | KF15: 68584.30231 | KG15: 5027.645521 | KH15: 69978.11688 | KI15: 5050.498527 | KJ15: 70306.4204 | KK15: 5073.275528
A16: Greater Manchester | B16: Bolton | D16: 1155.438853 | E16: 203.1053918 | F16: 2269.812859 | G16: 334.8602196 | H16: 3334.677631 | I16: 386.5749849 | J16: 4627.807606 | K16: 438.6934175 | L16: 6131.506893 | M16: 491.4841588 | N16: 8012.789108 | O16: 545.0277234 | P16: 10103.02702 | Q16: 599.2730088 | R16: 12016.50408 | S16: 654.195001 | T16: 14074.91294 | U16: 707.8664266 | V16: 15843.32668 | W16: 752.2608522 | X16: 17360.84171 | Y16: 796.2280034 | Z16: 18490.28452 | AA16: 839.7691499 | AB16: 21311.70363 | AC16: 882.8666245 | AD16: 29794.18462 | AE16: 1279.999697 | AF16: 38213.80867 | AG16: 1675.830687 | AH16: 46097.74768 | AI16: 2070.667234 | AJ16: 53820.2866 | AK16: 2464.781845 | AL16: 61360.44812 | AM16: 2858.097605 | AN16: 68694.6965 | AO16: 3250.712781 | AP16: 75918.66198 | AQ16: 3642.755001 | AR16: 82743.12618 | AS16: 4034.390119 | AT16: 89382.86886 | AU16: 4425.616323 | AV16: 96267.83131 | AW16: 4815.184554 | AX16: 103044.7225 | AY16: 5204.592827 | AZ16: 110035.1913 | BA16: 5593.403839 | BB16: 117314.1585 | BC16: 5981.639166 | BD16: 125036.169 | BE16: 6369.32846 | BF16: 130150.0695 | BG16: 6756.487953 | BH16: 130652.11 | BI16: 6792.465455 | BK16: 1155.438853 | BL16: 203.1053918 | BM16: 1961.742295 | BN16: 261.0632088 | BO16: 2240.431907 | BP16: 285.9686397 | BQ16: 2851.769537 | BR16: 304.0578052 | BS16: 3505.021085 | BT16: 333.989971 | BU16: 4196.650864 | BV16: 364.8565364 | BW16: 4910.35199 | BX16: 396.0441435 | BY16: 5650.116091 | BZ16: 427.8632177 | CA16: 6414.37819 | CB16: 463.5249555 | CC16: 7188.726786 | CD16: 487.2613769 | CE16: 7964.514732 | CF16: 510.792036 | CG16: 8717.715304 | CH16: 534.1135255 | CI16: 9565.198056 | CJ16: 557.2149845 | CK16: 10694.97286 | CL16: 580.0960452 | CM16: 11892.46232 | CN16: 602.7979148 | CO16: 12718.50326 | CP16: 625.3830998 | CQ16: 13519.88418 | CR16: 647.8726126 | CS16: 14445.41327 | CT16: 670.2173282 | CU16: 15045.97417 | CV16: 692.4214746 | CW16: 15651.87169 | CX16: 714.5032689 | CY16: 16215.80195 | CZ16: 736.4830161 | DA16: 17033.59847 | DB16: 758.3500894 | DC16: 17849.43509 | DD16: 779.9039302 | DE16: 18666.84756 | DF16: 801.3962851 | DG16: 19481.55828 | DH16: 822.7559731 | DI16: 20284.96403 | DJ16: 843.9885201 | DK16: 21088.47159 | DL16: 865.1024614 | DM16: 21819.10536 | DN16: 886.1000372 | DO16: 22229.51075 | DP16: 906.9896072 | DR16: 1155.438853 | DS16: 203.1053918 | DT16: 1962.795288 | DU16: 270.8199295 | DV16: 2605.725476 | DW16: 299.5037417 | DX16: 3516.235087 | DY16: 322.9531581 | DZ16: 4383.616689 | EA16: 356.0215409 | EB16: 5263.243878 | EC16: 390.0389929 | ED16: 6165.136491 | EE16: 424.4947114 | EF16: 7141.842433 | EG16: 459.7284468 | EH16: 8810.235368 | EI16: 498.324724 | EJ16: 10475.07538 | EK16: 530.5193751 | EL16: 12132.55533 | EM16: 562.5197784 | EN16: 13765.27116 | EO16: 594.3164256 | EP16: 15435.846 | EQ16: 625.8927929 | ER16: 17224.97845 | ES16: 657.2600349 | ET16: 19082.00061 | EU16: 688.4563955 | EV16: 20549.07313 | EW16: 719.5514466 | EX16: 22039.05765 | EY16: 750.5794383 | EZ16: 23648.52751 | FA16: 781.4713052 | FB16: 24938.49142 | FC16: 812.2396262 | FD16: 26241.04904 | FE16: 842.8997075 | FF16: 27490.47026 | FG16: 873.4763491 | FH16: 28722.94163 | FI16: 903.9607426 | FJ16: 29898.67537 | FK16: 934.0993662 | FL16: 30303.77697 | FM16: 964.2024561 | FN16: 30721.92978 | FO16: 994.1811503 | FP16: 31142.52777 | FQ16: 1024.038628 | FR16: 31583.38276 | FS16: 1053.781047 | FT16: 32105.4286 | FU16: 1083.414452 | FV16: 32614.25426 | FW16: 1112.941706 | FY16: 1155.438853 | FZ16: 203.1053918 | GA16: 2269.812859 | GB16: 334.8602196 | GC16: 3334.677631 | GD16: 386.5749849 | GE16: 4627.807606 | GF16: 438.6934175 | GG16: 6131.506893 | GH16: 491.4841588 | GI16: 8012.789108 | GJ16: 545.0277234 | GK16: 10103.02702 | GL16: 599.2730088 | GM16: 12016.50408 | GN16: 654.195001 | GO16: 14074.91294 | GP16: 707.8664266 | GQ16: 15843.32668 | GR16: 752.2608522 | GS16: 17360.84171 | GT16: 796.2280034 | GU16: 18490.28452 | GV16: 839.7691499 | GW16: 21311.70363 | GX16: 882.8666245 | GY16: 29794.18462 | GZ16: 1279.999697 | HA16: 38213.80867 | HB16: 1675.830687 | HC16: 46097.74768 | HD16: 2070.667234 | HE16: 53820.2866 | HF16: 2464.781845 | HG16: 61360.44812 | HH16: 2858.097605 | HI16: 68694.6965 | HJ16: 3250.712781 | HK16: 75918.66198 | HL16: 3642.755001 | HM16: 82743.12618 | HN16: 4034.390119 | HO16: 89382.86886 | HP16: 4425.616323 | HQ16: 96267.83131 | HR16: 4815.184554 | HS16: 103044.7225 | HT16: 5204.592827 | HU16: 110035.1913 | HV16: 5593.403839 | HW16: 117314.1585 | HX16: 5981.639166 | HY16: 125036.169 | HZ16: 6369.32846 | IA16: 130150.0695 | IB16: 6756.487953 | IC16: 130652.11 | ID16: 6792.465455 | IF16: 1155.438853 | IG16: 203.1053918 | IH16: 2320.152574 | II16: 334.8602196 | IJ16: 3626.681287 | IK16: 386.5749849 | IL16: 5181.617458 | IM16: 438.6934175 | IN16: 6894.58343 | IO16: 491.4841588 | IP16: 8832.914734 | IQ16: 545.0277234 | IR16: 10972.94236 | IS16: 599.2730088 | IT16: 13776.68865 | IU16: 654.195001 | IV16: 22046.76803 | IW16: 1065.346209 | IX16: 30331.22534 | IY16: 1465.770865 | IZ16: 38613.44478 | JA16: 1864.560911 | JB16: 46843.0993 | JC16: 2261.879863 | JD16: 55220.66827 | JE16: 2657.776184 | JF16: 63770.81459 | JG16: 3052.333267 | JH16: 72223.41051 | JI16: 3445.815769 | JJ16: 80106.68957 | JK16: 3838.646942 | JL16: 87755.72378 | JM16: 4231.120327 | JN16: 94999.1886 | JO16: 4622.951075 | JP16: 102006.7937 | JQ16: 5014.225903 | JR16: 109007.3989 | JS16: 5405.08178 | JT16: 115778.4706 | JU16: 5795.705726 | JV16: 122294.5303 | JW16: 6186.043007 | JX16: 127509.2993 | JY16: 6574.355628 | JZ16: 128096.6389 | KA16: 6611.099384 | KB16: 128681.8336 | KC16: 6647.679269 | KD16: 129260.5726 | KE16: 6684.097949 | KF16: 129836.1185 | KG16: 6720.367534 | KH16: 131120.3363 | KI16: 6756.487953 | KJ16: 131703.1763 | KK16: 6792.465455
A17: Lancashire | B17: Burnley | D17: 311.3678078 | E17: 76.14604175 | F17: 648.4922764 | G17: 125.6382545 | H17: 1002.028794 | I17: 145.4421263 | J17: 1437.086728 | K17: 165.5862933 | L17: 1936.931705 | M17: 185.9996356 | N17: 2547.989315 | O17: 206.6935975 | P17: 3219.576612 | Q17: 227.7079701 | R17: 3845.047077 | S17: 249.0510198 | T17: 4516.205725 | U17: 269.9848044 | V17: 5108.817448 | W17: 287.432419 | X17: 5633.257011 | Y17: 304.7071886 | Z17: 6055.488679 | AA17: 321.8409794 | AB17: 7052.644863 | AC17: 338.857643 | AD17: 9905.692895 | AE17: 491.9051285 | AF17: 12706.04166 | AG17: 644.7872089 | AH17: 15348.47655 | AI17: 797.5584703 | AJ17: 17945.65184 | AK17: 950.2902927 | AL17: 20489.7852 | AM17: 1102.91739 | AN17: 22973.64356 | AO17: 1255.449372 | AP17: 25418.41433 | AQ17: 1407.829781 | AR17: 27744.18157 | AS17: 1560.10387 | AT17: 30014.50939 | AU17: 1712.249697 | AV17: 32355.81536 | AW17: 1864.278702 | AX17: 34664.55586 | AY17: 2016.182481 | AZ17: 37073.85762 | BA17: 2167.965223 | BB17: 39655.17814 | BC17: 2319.62616 | BD17: 42313.29029 | BE17: 2471.168382 | BF17: 43571.5054 | BG17: 2622.590429 | BH17: 43729.78446 | BI17: 2637.716453 | BK17: 311.3678078 | BL17: 76.14604175 | BM17: 561.843831 | BN17: 97.94990257 | BO17: 670.5417162 | BP17: 107.3956757 | BQ17: 924.0760038 | BR17: 114.3603983 | BS17: 1194.914705 | BT17: 125.7402744 | BU17: 1481.773702 | BV17: 137.4125905 | BW17: 1777.674059 | BX17: 149.2654738 | BY17: 2084.239969 | BZ17: 161.4403755 | CA17: 2400.864254 | CB17: 175.1590668 | CC17: 2721.579884 | CD17: 184.4017243 | CE17: 3042.94207 | CF17: 193.5557508 | CG17: 3355.318658 | CH17: 202.6412023 | CI17: 3701.797966 | CJ17: 211.6738376 | CK17: 4150.718045 | CL17: 220.6049027 | CM17: 4551.906205 | CN17: 229.4743786 | CO17: 4829.567938 | CP17: 238.2959774 | CQ17: 5099.872256 | CR17: 247.0795046 | CS17: 5407.854059 | CT17: 255.8054266 | CU17: 5630.513946 | CV17: 264.4754316 | CW17: 5855.921038 | CX17: 273.0807652 | CY17: 6068.485636 | CZ17: 281.6329232 | DA17: 6329.94378 | DB17: 290.1294388 | DC17: 6597.879297 | DD17: 298.5768684 | DE17: 6866.75422 | DF17: 306.9731149 | DG17: 7135.642312 | DH17: 315.3216938 | DI17: 7402.421195 | DJ17: 323.6244392 | DK17: 7670.209846 | DL17: 331.8843603 | DM17: 7917.651069 | DN17: 340.1020723 | DO17: 8075.909823 | DP17: 348.2805561 | DR17: 311.3678078 | DS17: 76.14604175 | DT17: 553.8799167 | DU17: 101.6105863 | DV17: 755.4781261 | DW17: 112.6830828 | DX17: 1082.969671 | DY17: 121.8997465 | DZ17: 1407.439875 | EA17: 134.7345091 | EB17: 1742.112888 | EC17: 147.9164438 | ED17: 2085.863124 | EE17: 161.2968173 | EF17: 2459.665245 | EG17: 175.017905 | EH17: 3032.986715 | EI17: 190.0642524 | EJ17: 3605.840782 | EK17: 202.7069026 | EL17: 4176.58713 | EM17: 215.2697713 | EN17: 4738.017403 | EO17: 227.7713828 | EP17: 5315.806387 | EQ17: 240.2271766 | ER17: 5943.590157 | ES17: 252.5856706 | ET17: 6542.860145 | EU17: 264.8882618 | EV17: 6997.929721 | EW17: 277.1494818 | EX17: 7457.395589 | EY17: 289.3839694 | EZ17: 7941.687706 | FA17: 301.5636312 | FB17: 8342.390431 | FC17: 313.6929642 | FD17: 8748.500998 | FE17: 325.7587485 | FF17: 9140.770523 | FG17: 337.7744323 | FH17: 9524.414025 | FI17: 349.7380691 | FJ17: 9892.870581 | FK17: 361.6520891 | FL17: 10050.97199 | FM17: 373.5178072 | FN17: 10215.48565 | FO17: 385.3378411 | FP17: 10381.48816 | FQ17: 397.1130195 | FR17: 10551.68217 | FS17: 408.8453628 | FT17: 10738.43146 | FU17: 420.5368811 | FV17: 10921.2555 | FW17: 432.1883812 | FY17: 311.3678078 | FZ17: 76.14604175 | GA17: 648.4922764 | GB17: 125.6382545 | GC17: 1002.028794 | GD17: 145.4421263 | GE17: 1437.086728 | GF17: 165.5862933 | GG17: 1936.931705 | GH17: 185.9996356 | GI17: 2547.989315 | GJ17: 206.6935975 | GK17: 3219.576612 | GL17: 227.7079701 | GM17: 3845.047077 | GN17: 249.0510198 | GO17: 4516.205725 | GP17: 269.9848044 | GQ17: 5108.817448 | GR17: 287.432419 | GS17: 5633.257011 | GT17: 304.7071886 | GU17: 6055.488679 | GV17: 321.8409794 | GW17: 7052.644863 | GX17: 338.857643 | GY17: 9905.692895 | GZ17: 491.9051285 | HA17: 12706.04166 | HB17: 644.7872089 | HC17: 15348.47655 | HD17: 797.5584703 | HE17: 17945.65184 | HF17: 950.2902927 | HG17: 20489.7852 | HH17: 1102.91739 | HI17: 22973.64356 | HJ17: 1255.449372 | HK17: 25418.41433 | HL17: 1407.829781 | HM17: 27744.18157 | HN17: 1560.10387 | HO17: 30014.50939 | HP17: 1712.249697 | HQ17: 32355.81536 | HR17: 1864.278702 | HS17: 34664.55586 | HT17: 2016.182481 | HU17: 37073.85762 | HV17: 2167.965223 | HW17: 39655.17814 | HX17: 2319.62616 | HY17: 42313.29029 | HZ17: 2471.168382 | IA17: 43571.5054 | IB17: 2622.590429 | IC17: 43729.78446 | ID17: 2637.716453 | IF17: 311.3678078 | IG17: 76.14604175 | IH17: 668.015608 | II17: 125.6382545 | IJ17: 1104.211058 | IK17: 145.4421263 | IL17: 1614.474802 | IM17: 165.5862933 | IN17: 2173.769213 | IO17: 185.9996356 | IP17: 2799.099208 | IQ17: 206.6935975 | IR17: 3483.058686 | IS17: 227.7079701 | IT17: 4464.472438 | IU17: 249.0510198 | IV17: 7249.573382 | IW17: 406.3298908 | IX17: 10039.489 | IY17: 560.0584746 | IZ17: 12828.94161 | JA17: 713.5457568 | JB17: 15602.33808 | JC17: 866.8639837 | JD17: 18424.9222 | JE17: 1020.094937 | JF17: 21287.6671 | JG17: 1173.014643 | JH17: 24113.44913 | JI17: 1325.800959 | JJ17: 26756.31981 | JK17: 1478.530849 | JL17: 29331.41169 | JM17: 1631.297545 | JN17: 31787.80278 | JO17: 1783.960465 | JP17: 34178.72758 | JQ17: 1936.531211 | JR17: 36639.62048 | JS17: 2088.923108 | JT17: 39094.93123 | JU17: 2241.20689 | JV17: 41429.93721 | JW17: 2393.350324 | JX17: 42756.01691 | JY17: 2545.37101 | JZ17: 42933.57106 | KA17: 2561.042372 | KB17: 43110.10352 | KC17: 2576.595197 | KD17: 43284.94581 | KE17: 2592.033392 | KF17: 43459.39591 | KG17: 2607.364319 | KH17: 43826.3222 | KI17: 2622.590429 | KJ17: 44000.51421 | KK17: 2637.716453
A18: Greater Manchester | B18: Bury | D18: 671.894477 | E18: 126.9906455 | F18: 1391.326458 | G18: 209.6903623 | H18: 2057.894079 | I18: 242.7951565 | J18: 2858.607272 | K18: 276.465282 | L18: 3789.265686 | M18: 310.6476803 | N18: 4953.59306 | O18: 345.3737504 | P18: 6243.248503 | Q18: 380.7468027 | R18: 7430.858331 | S18: 416.7507205 | T18: 8705.314808 | U18: 452.0688203 | V18: 9807.560128 | W18: 481.5993779 | X18: 10752.46319 | Y18: 510.9373569 | Z18: 11434.47924 | AA18: 540.160237 | AB18: 13232.69331 | AC18: 569.2218957 | AD18: 18763.59692 | AE18: 827.1264608 | AF18: 24340.64825 | AG18: 1085.406789 | AH18: 29468.39905 | AI18: 1344.108898 | AJ18: 34496.28077 | AK18: 1603.300398 | AL18: 39409.47332 | AM18: 1862.914351 | AN18: 44191.47052 | AO18: 2122.910631 | AP18: 48907.9391 | AQ18: 2383.309851 | AR18: 53375.33542 | AS18: 2644.129977 | AT18: 57734.49233 | AU18: 2905.34433 | AV18: 62234.97129 | AW18: 3166.885044 | AX18: 66671.45219 | AY18: 3428.842187 | AZ18: 71284.75319 | BA18: 3691.18765 | BB18: 76249.38294 | BC18: 3953.918851 | BD18: 81919.33363 | BE18: 4217.039524 | BF18: 85059.72124 | BG18: 4480.545427 | BH18: 85359.84515 | BI18: 4511.520937 | BK18: 671.894477 | BL18: 126.9906455 | BM18: 1200.275332 | BN18: 163.4784775 | BO18: 1363.19433 | BP18: 179.3700822 | BQ18: 1705.0606 | BR18: 191.1214354 | BS18: 2070.433713 | BT18: 210.301095 | BU18: 2457.167965 | BV18: 230.0382544 | BW18: 2856.347531 | BX18: 250.1336228 | BY18: 3270.190539 | BZ18: 270.7975376 | CA18: 3697.829411 | CB18: 294.0241896 | CC18: 4131.200086 | CD18: 309.7675664 | CE18: 4565.29116 | CF18: 325.4189878 | CG18: 4986.256715 | CH18: 341.0262974 | CI18: 5465.165452 | CJ18: 356.5609314 | CK18: 6117.320449 | CL18: 371.9873115 | CM18: 6820.511052 | CN18: 387.3913722 | CO18: 7311.146395 | CP18: 402.7568047 | CQ18: 7788.829005 | CR18: 418.0824208 | CS18: 8361.163969 | CT18: 433.3476535 | CU18: 8722.413597 | CV18: 448.5418404 | CW18: 9086.016943 | CX18: 463.6744839 | CY18: 9423.022925 | CZ18: 478.7507846 | DA18: 9939.484194 | DB18: 493.7678111 | DC18: 10450.63699 | DD18: 508.721984 | DE18: 10962.71684 | DF18: 523.6271629 | DG18: 11473.36817 | DH18: 538.4831021 | DI18: 11976.50304 | DJ18: 553.2925184 | DK18: 12479.67408 | DL18: 568.060153 | DM18: 12932.86876 | DN18: 582.7866654 | DO18: 13168.17034 | DP18: 597.4767767 | DR18: 671.894477 | DS18: 126.9906455 | DT18: 1204.524788 | DU18: 169.588162 | DV18: 1623.684249 | DW18: 188.1085447 | DX18: 2177.224706 | DY18: 203.5255884 | DZ18: 2685.83344 | EA18: 225.0271221 | EB18: 3191.070538 | EC18: 247.160326 | ED18: 3705.833611 | EE18: 269.7017916 | EF18: 4261.679705 | EG18: 292.8670521 | EH18: 5228.651236 | EI18: 318.2479938 | EJ18: 6195.223491 | EK18: 339.6399005 | EL18: 7158.964732 | EM18: 360.9674209 | EN18: 8109.612319 | EO18: 382.2789887 | EP18: 9082.768653 | EQ18: 403.5398691 | ER18: 10123.09949 | ES18: 424.7166368 | ET18: 11216.1161 | EU18: 445.9013977 | EV18: 12084.99539 | EW18: 467.0743257 | EX18: 12968.53107 | EY18: 488.2396852 | EZ18: 13928.75928 | FA18: 509.3647281 | FB18: 14700.16358 | FC18: 530.4412458 | FD18: 15479.47104 | FE18: 551.4757856 | FF18: 16228.3797 | FG18: 572.4743841 | FH18: 16969.12765 | FI18: 593.4353604 | FJ18: 17677.37784 | FK18: 614.3451572 | FL18: 17923.57692 | FM18: 635.2270328 | FN18: 18175.75643 | FO18: 656.0779964 | FP18: 18427.93104 | FQ18: 676.899011 | FR18: 18693.78312 | FS18: 697.6930699 | FT18: 19015.13957 | FU18: 718.4631571 | FV18: 19328.03009 | FW18: 739.2102088 | FY18: 671.894477 | FZ18: 126.9906455 | GA18: 1391.326458 | GB18: 209.6903623 | GC18: 2057.894079 | GD18: 242.7951565 | GE18: 2858.607272 | GF18: 276.465282 | GG18: 3789.265686 | GH18: 310.6476803 | GI18: 4953.59306 | GJ18: 345.3737504 | GK18: 6243.248503 | GL18: 380.7468027 | GM18: 7430.858331 | GN18: 416.7507205 | GO18: 8705.314808 | GP18: 452.0688203 | GQ18: 9807.560128 | GR18: 481.5993779 | GS18: 10752.46319 | GT18: 510.9373569 | GU18: 11434.47924 | GV18: 540.160237 | GW18: 13232.69331 | GX18: 569.2218957 | GY18: 18763.59692 | GZ18: 827.1264608 | HA18: 24340.64825 | HB18: 1085.406789 | HC18: 29468.39905 | HD18: 1344.108898 | HE18: 34496.28077 | HF18: 1603.300398 | HG18: 39409.47332 | HH18: 1862.914351 | HI18: 44191.47052 | HJ18: 2122.910631 | HK18: 48907.9391 | HL18: 2383.309851 | HM18: 53375.33542 | HN18: 2644.129977 | HO18: 57734.49233 | HP18: 2905.34433 | HQ18: 62234.97129 | HR18: 3166.885044 | HS18: 66671.45219 | HT18: 3428.842187 | HU18: 71284.75319 | HV18: 3691.18765 | HW18: 76249.38294 | HX18: 3953.918851 | HY18: 81919.33363 | HZ18: 4217.039524 | IA18: 85059.72124 | IB18: 4480.545427 | IC18: 85359.84515 | ID18: 4511.520937 | IF18: 671.894477 | IG18: 126.9906455 | IH18: 1418.892166 | II18: 209.6903623 | IJ18: 2226.986464 | IK18: 242.7951565 | IL18: 3197.84883 | IM18: 276.465282 | IN18: 4263.928229 | IO18: 310.6476803 | IP18: 5462.170126 | IQ18: 345.3737504 | IR18: 6782.038604 | IS18: 380.7468027 | IT18: 8555.226418 | IU18: 416.7507205 | IV18: 13922.61136 | IW18: 680.3681962 | IX18: 19298.54043 | IY18: 938.3903665 | IZ18: 24674.4138 | JA18: 1196.483695 | JB18: 30024.41819 | JC18: 1454.896936 | JD18: 35474.99091 | JE18: 1713.582047 | JF18: 41064.4733 | JG18: 1972.395476 | JH18: 46662.19674 | JI18: 2231.795765 | JJ18: 51789.90701 | JK18: 2491.737652 | JL18: 56772.21181 | JM18: 2752.274777 | JN18: 61498.16565 | JO18: 3013.249753 | JP18: 66066.75432 | JQ18: 3274.590587 | JR18: 70730.1806 | JS18: 3536.330235 | JT18: 75437.3137 | JU18: 3798.492162 | JV18: 80175.54691 | JW18: 4061.035494 | JX18: 83473.23593 | JY18: 4323.869267 | JZ18: 83827.95009 | KA18: 4355.463957 | KB18: 84181.69698 | KC18: 4386.922941 | KD18: 84531.68 | KE18: 4418.250608 | KF18: 84879.27597 | KG18: 4449.457377 | KH18: 85980.19119 | KI18: 4480.545427 | KJ18: 86340.38059 | KK18: 4511.520937
A19: Cumberland** | B19: Carlisle | D19: 573.2272049 | E19: 116.4431415 | F19: 1341.035561 | G19: 191.609744 | H19: 2138.084907 | I19: 221.4264981 | J19: 3100.67402 | K19: 251.7405986 | L19: 4203.092014 | M19: 282.3593784 | N19: 5546.133823 | O19: 313.2848656 | P19: 6984.802139 | Q19: 344.5872976 | R19: 8340.693922 | S19: 376.2645082 | T19: 9770.078338 | U19: 407.1227671 | V19: 11061.99362 | W19: 432.5710763 | X19: 12238.30749 | Y19: 457.6905833 | Z19: 13252.92048 | AA19: 482.4030657 | AB19: 14876.4445 | AC19: 506.7299639 | AD19: 18335.24153 | AE19: 733.9732234 | AF19: 21622.25289 | AG19: 959.8927107 | AH19: 24626.35892 | AI19: 1184.566077 | AJ19: 27552.18577 | AK19: 1407.955625 | AL19: 30395.77024 | AM19: 1630.043478 | AN19: 33154.26122 | AO19: 1850.866564 | AP19: 35857.10627 | AQ19: 2070.466919 | AR19: 38385.31002 | AS19: 2288.878776 | AT19: 40823.47725 | AU19: 2506.104397 | AV19: 43392.65733 | AW19: 2721.78227 | AX19: 45912.01852 | AY19: 2936.32891 | AZ19: 48591.84255 | BA19: 3149.621421 | BB19: 51341.12749 | BC19: 3361.663727 | BD19: 54137.31809 | BE19: 3572.465581 | BF19: 56407.73644 | BG19: 3782.030337 | BH19: 56726.42381 | BI19: 3794.46883 | BK19: 573.2272049 | BL19: 116.4431415 | BM19: 1087.393339 | BN19: 149.3824936 | BO19: 1294.930612 | BP19: 163.4219069 | BQ19: 1769.607429 | BR19: 173.6931528 | BS19: 2276.810074 | BT19: 190.6108923 | BU19: 2813.774606 | BV19: 207.8838586 | BW19: 3367.840052 | BX19: 225.3815718 | BY19: 3942.317408 | BZ19: 243.3131003 | CA19: 4535.837878 | CB19: 263.4675599 | CC19: 5137.222944 | CD19: 276.7963561 | CE19: 5739.660241 | CF19: 289.960453 | CG19: 6324.310433 | CH19: 302.9100565 | CI19: 7032.070274 | CJ19: 315.6611791 | CK19: 8108.19561 | CL19: 328.2383912 | CM19: 9164.735644 | CN19: 340.6429278 | CO19: 9946.190183 | CP19: 352.9055549 | CQ19: 10711.04618 | CR19: 365.0084191 | CS19: 11721.11242 | CT19: 376.9554089 | CU19: 12445.78881 | CV19: 388.756511 | CW19: 13170.97573 | CX19: 400.4237047 | CY19: 13850.73423 | CZ19: 411.9635727 | DA19: 14222.252 | DB19: 423.3766822 | DC19: 14668.12272 | DD19: 434.6103042 | DE19: 15115.55694 | DF19: 445.734102 | DG19: 15562.8906 | DH19: 456.7314322 | DI19: 16006.36714 | DJ19: 467.6057549 | DK19: 16450.2856 | DL19: 478.3621979 | DM19: 16867.44782 | DN19: 489.0024036 | DO19: 17161.41982 | DP19: 499.5313974 | DR19: 573.2272049 | DS19: 116.4431415 | DT19: 1105.58352 | DU19: 154.9653686 | DV19: 1587.245305 | DW19: 171.5529129 | DX19: 2260.746396 | DY19: 185.3240056 | DZ19: 2915.64427 | EA19: 204.5356278 | EB19: 3586.632249 | EC19: 224.1965101 | ED19: 4272.145192 | EE19: 244.0882257 | EF19: 5023.391186 | EG19: 264.4158052 | EH19: 6300.007413 | EI19: 286.606813 | EJ19: 7578.005383 | EK19: 305.0635115 | EL19: 8851.934936 | EM19: 323.3495989 | EN19: 10104.79103 | EO19: 341.4034271 | EP19: 11386.3988 | EQ19: 359.2373112 | ER19: 12759.65764 | ES19: 376.883891 | ET19: 14135.21294 | EU19: 394.3383307 | EV19: 15166.13006 | EW19: 411.6336127 | EX19: 16187.10246 | EY19: 428.7529722 | EZ19: 17014.92743 | FA19: 445.6923382 | FB19: 17635.86665 | FC19: 462.4669319 | FD19: 18260.65473 | FE19: 479.0868341 | FF19: 18857.45295 | FG19: 495.5597793 | FH19: 19433.79296 | FI19: 511.8880234 | FJ19: 20042.86853 | FK19: 527.9995118 | FL19: 20308.09823 | FM19: 543.984062 | FN19: 20577.42139 | FO19: 559.81909 | FP19: 20847.35163 | FQ19: 575.5067158 | FR19: 21124.38773 | FS19: 591.0507748 | FT19: 21429.28222 | FU19: 606.4550624 | FV19: 21728.99567 | FW19: 621.7216179 | FY19: 573.2272049 | FZ19: 116.4431415 | GA19: 1341.035561 | GB19: 191.609744 | GC19: 2138.084907 | GD19: 221.4264981 | GE19: 3100.67402 | GF19: 251.7405986 | GG19: 4203.092014 | GH19: 282.3593784 | GI19: 5546.133823 | GJ19: 313.2848656 | GK19: 6984.802139 | GL19: 344.5872976 | GM19: 8340.693922 | GN19: 376.2645082 | GO19: 9770.078338 | GP19: 407.1227671 | GQ19: 11061.99362 | GR19: 432.5710763 | GS19: 12238.30749 | GT19: 457.6905833 | GU19: 13252.92048 | GV19: 482.4030657 | GW19: 14876.4445 | GX19: 506.7299639 | GY19: 18335.24153 | GZ19: 733.9732234 | HA19: 21622.25289 | HB19: 959.8927107 | HC19: 24626.35892 | HD19: 1184.566077 | HE19: 27552.18577 | HF19: 1407.955625 | HG19: 30395.77024 | HH19: 1630.043478 | HI19: 33154.26122 | HJ19: 1850.866564 | HK19: 35857.10627 | HL19: 2070.466919 | HM19: 38385.31002 | HN19: 2288.878776 | HO19: 40823.47725 | HP19: 2506.104397 | HQ19: 43392.65733 | HR19: 2721.78227 | HS19: 45912.01852 | HT19: 2936.32891 | HU19: 48591.84255 | HV19: 3149.621421 | HW19: 51341.12749 | HX19: 3361.663727 | HY19: 54137.31809 | HZ19: 3572.465581 | IA19: 56407.73644 | IB19: 3782.030337 | IC19: 56726.42381 | ID19: 3794.46883 | IF19: 573.2272049 | IG19: 116.4431415 | IH19: 1381.726656 | II19: 191.609744 | IJ19: 2374.258084 | IK19: 221.4264981 | IL19: 3561.111578 | IM19: 251.7405986 | IN19: 4830.40358 | IO19: 282.3593784 | IP19: 6203.265789 | IQ19: 313.2848656 | IR19: 7658.847968 | IS19: 344.5872976 | IT19: 9274.089208 | IU19: 376.2645082 | IV19: 12889.86771 | IW19: 612.7239268 | IX19: 16514.80662 | IY19: 842.8593338 | IZ19: 20139.75795 | JA19: 1071.793466 | JB19: 23738.14703 | JC19: 1299.330632 | JD19: 27197.42906 | JE19: 1525.456725 | JF19: 30607.63613 | JG19: 1750.258919 | JH19: 33893.84428 | JI19: 1973.715761 | JJ19: 36897.72812 | JK19: 2195.973778 | JL19: 39789.75716 | JM19: 2416.939931 | JN19: 42492.47546 | JO19: 2636.582892 | JP19: 45105.22446 | JQ19: 2854.962494 | JR19: 47668.19234 | JS19: 3072.137165 | JT19: 50117.06995 | JU19: 3288.147016 | JV19: 52487.77384 | JW19: 3502.985448 | JX19: 54777.62463 | JY19: 3716.153428 | JZ19: 55129.03765 | KA19: 3729.852246 | KB19: 55478.47275 | KC19: 3743.279339 | KD19: 55824.63016 | KE19: 3756.44351 | KF19: 56169.91499 | KG19: 3769.358395 | KH19: 56668.38325 | KI19: 3782.030337 | KJ19: 57016.45126 | KK19: 3794.46883
A20: Cheshire | B20: Cheshire East | D20: 605.823187 | E20: 121.5697696 | F20: 1358.900175 | G20: 200.9580972 | H20: 2084.421019 | I20: 233.6129549 | J20: 2968.367834 | K20: 267.2432222 | L20: 3978.907974 | M20: 301.4406634 | N20: 5206.26627 | O20: 336.2588076 | P20: 6535.586105 | Q20: 371.8338636 | R20: 7791.669887 | S20: 408.2103395 | T20: 9123.573675 | U20: 443.9523493 | V20: 10324.68123 | W20: 474.0400137 | X20: 11406.71296 | Y20: 503.9928472 | Z20: 12289.71566 | AA20: 533.8321357 | AB20: 13974.20199 | AC20: 563.4668672 | AD20: 18250.58828 | AE20: 819.9030278 | AF20: 22420.88815 | AG20: 1077.144274 | AH20: 26195.12934 | AI20: 1335.117699 | AJ20: 29887.13568 | AK20: 1594.028747 | AL20: 33486.8736 | AM20: 1853.639589 | AN20: 36985.72613 | AO20: 2113.80674 | AP20: 40439.50735 | AQ20: 2374.570886 | AR20: 43696.40412 | AS20: 2635.970927 | AT20: 46862.02342 | AU20: 2898.049075 | AV20: 50151.46112 | AW20: 3160.586808 | AX20: 53392.30021 | AY20: 3423.682603 | AZ20: 56792.85403 | BA20: 3687.294685 | BB20: 60457.07879 | BC20: 3951.402665 | BD20: 64559.00051 | BE20: 4215.993929 | BF20: 67674.58084 | BG20: 4481.049211 | BH20: 68047.64483 | BI20: 4513.535083 | BK20: 605.823187 | BL20: 121.5697696 | BM20: 1173.12818 | BN20: 156.6706424 | BO20: 1387.621669 | BP20: 172.1751043 | BQ20: 1871.682672 | BR20: 183.887208 | BS20: 2388.882702 | BT20: 202.6828741 | BU20: 2936.515527 | BV20: 221.9532243 | BW20: 3501.549104 | BX20: 241.6981903 | BY20: 4087.211115 | BZ20: 262.1883041 | CA20: 4692.232139 | CB20: 285.2900937 | CC20: 5305.206994 | CD20: 301.1427251 | CE20: 5919.348169 | CF20: 316.9306952 | CG20: 6515.806396 | CH20: 332.6683212 | CI20: 7192.540488 | CJ20: 348.3021314 | CK20: 8109.741686 | CL20: 363.8009682 | CM20: 9000.334634 | CN20: 379.2274936 | CO20: 9624.873972 | CP20: 394.5774154 | CQ20: 10232.47718 | CR20: 409.9152922 | CS20: 10949.56087 | CT20: 425.1835528 | CU20: 11454.32074 | CV20: 440.361833 | CW20: 11963.09326 | CX20: 455.4749684 | CY20: 12440.62867 | CZ20: 470.5380334 | DA20: 12946.20166 | DB20: 485.5629231 | DC20: 13475.38907 | DD20: 500.5224734 | DE20: 14006.25866 | DF20: 515.4352437 | DG20: 14536.81707 | DH20: 530.3014078 | DI20: 15061.82258 | DJ20: 545.1231434 | DK20: 15587.23645 | DL20: 559.9046623 | DM20: 16073.00236 | DN20: 574.6461913 | DO20: 16382.0872 | DP20: 589.3519938 | DR20: 605.823187 | DS20: 121.5697696 | DT20: 1165.974286 | DU20: 162.5258975 | DV20: 1613.466585 | DW20: 180.9945207 | DX20: 2288.213563 | DY20: 196.7365799 | DZ20: 2941.605822 | EA20: 218.3577386 | EB20: 3606.944961 | EC20: 240.637386 | ED20: 4287.00552 | EE20: 263.388316 | EF20: 5007.140893 | EG20: 286.8653919 | EH20: 6124.43278 | EI20: 312.53415 | EJ20: 7244.840474 | EK20: 334.3087854 | EL20: 8363.108568 | EM20: 356.0612582 | EN20: 9462.5371 | EO20: 377.8005025 | EP20: 10593.272 | EQ20: 399.4599426 | ER20: 11819.56317 | ES20: 421.0075157 | ET20: 13023.06409 | EU20: 442.5070325 | EV20: 13926.16303 | EW20: 463.9499072 | EX20: 14832.42899 | EY20: 485.4162666 | EZ20: 15729.42755 | FA20: 506.8287894 | FB20: 16439.504 | FC20: 528.1665012 | FD20: 17157.12184 | FE20: 549.4536701 | FF20: 17846.36351 | FG20: 570.7078873 | FH20: 18518.4357 | FI20: 591.9452576 | FJ20: 19192.84679 | FK20: 613.1233603 | FL20: 19493.54437 | FM20: 634.2711688 | FN20: 19797.71306 | FO20: 655.386054 | FP20: 20101.39102 | FQ20: 676.4682475 | FR20: 20415.87152 | FS20: 697.52008 | FT20: 20774.91969 | FU20: 718.5439399 | FV20: 21127.97384 | FW20: 739.5402256 | FY20: 605.823187 | FZ20: 121.5697696 | GA20: 1358.900175 | GB20: 200.9580972 | GC20: 2084.421019 | GD20: 233.6129549 | GE20: 2968.367834 | GF20: 267.2432222 | GG20: 3978.907974 | GH20: 301.4406634 | GI20: 5206.26627 | GJ20: 336.2588076 | GK20: 6535.586105 | GL20: 371.8338636 | GM20: 7791.669887 | GN20: 408.2103395 | GO20: 9123.573675 | GP20: 443.9523493 | GQ20: 10324.68123 | GR20: 474.0400137 | GS20: 11406.71296 | GT20: 503.9928472 | GU20: 12289.71566 | GV20: 533.8321357 | GW20: 13974.20199 | GX20: 563.4668672 | GY20: 18250.58828 | GZ20: 819.9030278 | HA20: 22420.88815 | HB20: 1077.144274 | HC20: 26195.12934 | HD20: 1335.117699 | HE20: 29887.13568 | HF20: 1594.028747 | HG20: 33486.8736 | HH20: 1853.639589 | HI20: 36985.72613 | HJ20: 2113.80674 | HK20: 40439.50735 | HL20: 2374.570886 | HM20: 43696.40412 | HN20: 2635.970927 | HO20: 46862.02342 | HP20: 2898.049075 | HQ20: 50151.46112 | HR20: 3160.586808 | HS20: 53392.30021 | HT20: 3423.682603 | HU20: 56792.85403 | HV20: 3687.294685 | HW20: 60457.07879 | HX20: 3951.402665 | HY20: 64559.00051 | HZ20: 4215.993929 | IA20: 67674.58084 | IB20: 4481.049211 | IC20: 68047.64483 | ID20: 4513.535083 | IF20: 605.823187 | IG20: 121.5697696 | IH20: 1396.999371 | II20: 200.9580972 | IJ20: 2298.088714 | IK20: 233.6129549 | IL20: 3357.546325 | IM20: 267.2432222 | IN20: 4503.70943 | IO20: 301.4406634 | IP20: 5759.801065 | IQ20: 336.2588076 | IR20: 7109.877619 | IS20: 371.8338636 | IT20: 8751.001628 | IU20: 408.2103395 | IV20: 12937.95207 | IW20: 668.1528245 | IX20: 17135.24034 | IY20: 923.6610397 | IZ20: 21334.06463 | JA20: 1180.221442 | JB20: 25508.74055 | JC20: 1437.852484 | JD20: 29721.97113 | JE20: 1696.257145 | JF20: 33972.80675 | JG20: 1955.170218 | JH20: 38145.36956 | JI20: 2214.806516 | JJ20: 41919.31352 | JK20: 2475.069574 | JL20: 45573.68367 | JM20: 2736.358775 | JN20: 49015.76704 | JO20: 2998.247896 | JP20: 52338.62949 | JQ20: 3260.547831 | JR20: 55732.93525 | JS20: 3523.36345 | JT20: 59170.72326 | JU20: 3786.771071 | JV20: 62592.23437 | JW20: 4050.838325 | JX20: 65733.80136 | JY20: 4315.270045 | JZ20: 66157.45405 | KA20: 4348.91003 | KB20: 66579.37184 | KC20: 4382.296208 | KD20: 66997.25205 | KE20: 4415.438931 | KF20: 67413.15616 | KG20: 4448.354155 | KH20: 68231.00734 | KI20: 4481.049211 | KJ20: 68653.93739 | KK20: 4513.535083
A21: Lancashire | B21: Chorley | D21: 493.4292136 | E21: 79.07285649 | F21: 1158.00671 | G21: 131.0722443 | H21: 1865.927637 | I21: 151.9473847 | J21: 2739.171402 | K21: 173.054146 | L21: 3732.939927 | M21: 194.5829762 | N21: 4917.16947 | O21: 216.54316 | P21: 6199.820419 | Q21: 238.878777 | R21: 7392.880768 | S21: 261.6003062 | T21: 8662.160689 | U21: 283.857678 | V21: 9790.164598 | W21: 302.4374726 | X21: 10805.60831 | Y21: 320.8692085 | Z21: 11668.42625 | AA21: 339.1442054 | AB21: 13157.17657 | AC21: 357.2635267 | AD21: 16607.11595 | AE21: 518.9347162 | AF21: 19857.66555 | AG21: 680.6344953 | AH21: 22812.90797 | AI21: 842.4485007 | AJ21: 25690.91423 | AK21: 1004.261212 | AL21: 28485.68911 | AM21: 1166.09765 | AN21: 31193.0436 | AO21: 1327.933639 | AP21: 33843.29123 | AQ21: 1489.824571 | AR21: 36325.50597 | AS21: 1651.8075 | AT21: 38713.11289 | AU21: 1813.870854 | AV21: 41242.07827 | AW21: 1976.183427 | AX21: 43719.96616 | AY21: 2138.58143 | AZ21: 46356.52518 | BA21: 2301.135481 | BB21: 49025.48661 | BC21: 2463.854957 | BD21: 51595.60201 | BE21: 2626.752284 | BF21: 53602.85912 | BG21: 2789.834107 | BH21: 53934.63583 | BI21: 2808.133874 | BK21: 493.4292136 | BL21: 79.07285649 | BM21: 979.1233143 | BN21: 102.1863413 | BO21: 1201.428347 | BP21: 112.5146726 | BQ21: 1726.196434 | BR21: 120.178514 | BS21: 2286.753347 | BT21: 132.6110906 | BU21: 2880.447179 | BV21: 145.5179931 | BW21: 3492.81934 | BX21: 158.5878531 | BY21: 4127.250387 | BZ21: 171.9515502 | CA21: 4782.423863 | CB21: 186.8480797 | CC21: 5445.973891 | CD21: 196.9612214 | CE21: 6110.721572 | CF21: 206.9962356 | CG21: 6756.787514 | CH21: 216.9469407 | CI21: 7476.181553 | CJ21: 226.8150709 | CK21: 8415.922937 | CL21: 236.5982085 | CM21: 9231.503528 | CN21: 246.3264658 | CO21: 9795.90994 | CP21: 256.0212154 | CQ21: 10343.44858 | CR21: 265.6382598 | CS21: 10973.20843 | CT21: 275.1931765 | CU21: 11449.71402 | CV21: 284.6816281 | CW21: 11931.86055 | CX21: 294.1193494 | CY21: 12388.3604 | CZ21: 303.5135245 | DA21: 12787.94869 | DB21: 312.8617275 | DC21: 13221.79846 | DD21: 322.1953034 | DE21: 13656.84706 | DF21: 331.4828358 | DG21: 14091.54923 | DH21: 340.7377281 | DI21: 14523.03248 | DJ21: 349.9619987 | DK21: 14954.80264 | DL21: 359.1589222 | DM21: 15365.02323 | DN21: 368.3291706 | DO21: 15676.38132 | DP21: 377.4759641 | DR21: 493.4292136 | DS21: 79.07285649 | DT21: 979.2933968 | DU21: 106.0053535 | DV21: 1440.060183 | DW21: 117.723112 | DX21: 2171.190328 | DY21: 127.3973594 | DZ21: 2909.164288 | EA21: 140.9521136 | EB21: 3676.55817 | EC21: 154.9651007 | ED21: 4464.374839 | EE21: 169.2096524 | EF21: 5244.048764 | EG21: 183.83678 | EH21: 6455.802316 | EI21: 199.8304959 | EJ21: 7666.712802 | EK21: 213.2889655 | EL21: 8871.149996 | EM21: 226.6879277 | EN21: 10051.24769 | EO21: 240.0171189 | EP21: 11260.55558 | EQ21: 253.2757048 | ER21: 12569.52657 | ES21: 266.4649455 | ET21: 13820.51361 | EU21: 279.614865 | EV21: 14756.82028 | EW21: 292.7486499 | EX21: 15678.39624 | EY21: 305.819283 | EZ21: 16531.04489 | FA21: 318.8386047 | FB21: 17197.06679 | FC21: 331.8042519 | FD21: 17862.99019 | FE21: 344.7315823 | FF21: 18491.4836 | FG21: 357.6289703 | FH21: 19093.98355 | FI21: 370.4948473 | FJ21: 19760.62134 | FK21: 383.3605267 | FL21: 20019.93502 | FM21: 396.1934268 | FN21: 20283.92562 | FO21: 409.00775 | FP21: 20549.07105 | FQ21: 421.8045556 | FR21: 20821.36324 | FS21: 434.5861247 | FT21: 21120.53307 | FU21: 447.3546922 | FV21: 21414.17925 | FW21: 460.1111813 | FY21: 493.4292136 | FZ21: 79.07285649 | GA21: 1158.00671 | GB21: 131.0722443 | GC21: 1865.927637 | GD21: 151.9473847 | GE21: 2739.171402 | GF21: 173.054146 | GG21: 3732.939927 | GH21: 194.5829762 | GI21: 4917.16947 | GJ21: 216.54316 | GK21: 6199.820419 | GL21: 238.878777 | GM21: 7392.880768 | GN21: 261.6003062 | GO21: 8662.160689 | GP21: 283.857678 | GQ21: 9790.164598 | GR21: 302.4374726 | GS21: 10805.60831 | GT21: 320.8692085 | GU21: 11668.42625 | GV21: 339.1442054 | GW21: 13157.17657 | GX21: 357.2635267 | GY21: 16607.11595 | GZ21: 518.9347162 | HA21: 19857.66555 | HB21: 680.6344953 | HC21: 22812.90797 | HD21: 842.4485007 | HE21: 25690.91423 | HF21: 1004.261212 | HG21: 28485.68911 | HH21: 1166.09765 | HI21: 31193.0436 | HJ21: 1327.933639 | HK21: 33843.29123 | HL21: 1489.824571 | HM21: 36325.50597 | HN21: 1651.8075 | HO21: 38713.11289 | HP21: 1813.870854 | HQ21: 41242.07827 | HR21: 1976.183427 | HS21: 43719.96616 | HT21: 2138.58143 | HU21: 46356.52518 | HV21: 2301.135481 | HW21: 49025.48661 | HX21: 2463.854957 | HY21: 51595.60201 | HZ21: 2626.752284 | IA21: 53602.85912 | IB21: 2789.834107 | IC21: 53934.63583 | ID21: 2808.133874 | IF21: 493.4292136 | IG21: 79.07285649 | IH21: 1208.755565 | II21: 131.0722443 | IJ21: 2123.041107 | IK21: 151.9473847 | IL21: 3160.62013 | IM21: 173.054146 | IN21: 4282.035917 | IO21: 194.5829762 | IP21: 5505.149379 | IQ21: 216.54316 | IR21: 6806.31269 | IS21: 238.878777 | IT21: 8251.588344 | IU21: 261.6003062 | IV21: 11648.19027 | IW21: 427.2087074 | IX21: 15054.25501 | IY21: 589.2956339 | IZ21: 18461.08915 | JA21: 751.3930447 | JB21: 21843.67699 | JC21: 913.4694327 | JD21: 25248.17261 | JE21: 1075.503894 | JF21: 28633.46792 | JG21: 1237.470369 | JH21: 31886.58736 | JI21: 1399.509565 | JJ21: 34841.94982 | JK21: 1561.748941 | JL21: 37681.11703 | JM21: 1723.945686 | JN21: 40316.15173 | JO21: 1886.154054 | JP21: 42869.25418 | JQ21: 2048.338225 | JR21: 45328.75432 | JS21: 2210.586121 | JT21: 47701.17242 | JU21: 2372.946071 | JV21: 49885.39079 | JW21: 2535.39446 | JX21: 51906.32278 | JY21: 2698.158812 | JZ21: 52267.37086 | KA21: 2716.518822 | KB21: 52626.78375 | KC21: 2734.866116 | KD21: 52983.3507 | KE21: 2753.199818 | KF21: 53339.2029 | KG21: 2771.52307 | KH21: 53688.92176 | KI21: 2789.834107 | KJ21: 54042.32898 | KK21: 2808.133874
A22: Cumberland** | B22: Copeland | D22: 288.4201192 | E22: 59.72835838 | F22: 741.6630599 | G22: 97.88333001 | H22: 1239.722086 | I22: 112.8792769 | J22: 1833.436378 | K22: 128.1074994 | L22: 2533.008028 | M22: 143.3878169 | N22: 3410.126864 | O22: 158.7485664 | P22: 4370.973544 | Q22: 174.2647779 | R22: 5216.256521 | S22: 189.8995031 | T22: 6124.387991 | U22: 205.0799737 | V22: 6871.254356 | W22: 217.4777862 | X22: 7497.458436 | Y22: 229.6542243 | Z22: 7995.244156 | AA22: 241.634397 | AB22: 8916.712483 | AC22: 253.3785835 | AD22: 11147.77021 | AE22: 366.3694186 | AF22: 13383.2178 | AG22: 478.3847111 | AH22: 15380.5044 | AI22: 589.4633173 | AJ22: 17307.2464 | AK22: 699.587283 | AL22: 19162.59521 | AM22: 808.7576034 | AN22: 20942.53828 | AO22: 917.0344104 | AP22: 22653.48935 | AQ22: 1024.440406 | AR22: 24221.8142 | AS22: 1130.979327 | AT22: 25710.79998 | AU22: 1236.619767 | AV22: 27336.30543 | AW22: 1340.92269 | AX22: 28907.92242 | AY22: 1444.419675 | AZ22: 30677.52082 | BA22: 1546.935813 | BB22: 32308.03867 | BC22: 1648.469753 | BD22: 33539.53297 | BE22: 1749.023523 | BF22: 34314.71942 | BG22: 1848.596484 | BH22: 34421.64302 | BI22: 1851.598175 | BK22: 288.4201192 | BL22: 59.72835838 | BM22: 534.5870877 | BN22: 76.31165104 | BO22: 618.199784 | BP22: 83.17720351 | BQ22: 795.4214142 | BR22: 88.1165874 | BS22: 984.8740623 | BT22: 96.35902593 | BU22: 1185.287032 | BV22: 104.7098019 | BW22: 1392.226026 | BX22: 113.1803665 | BY22: 1606.86378 | BZ22: 121.8592225 | CA22: 1828.652598 | CB22: 131.6636684 | CC22: 2053.389842 | CD22: 138.023723 | CE22: 2278.169631 | CF22: 144.2735197 | CG22: 2495.321337 | CH22: 150.4284786 | CI22: 2782.131548 | CJ22: 156.4645082 | CK22: 3277.174465 | CL22: 162.3953267 | CM22: 3796.310609 | CN22: 168.2487816 | CO22: 4196.150031 | CP22: 174.0262569 | CQ22: 4588.977498 | CR22: 179.7143069 | CS22: 5155.955531 | CT22: 185.3149535 | CU22: 5548.646235 | CV22: 190.8401303 | CW22: 5939.331446 | CX22: 196.2931088 | CY22: 6303.177031 | CZ22: 201.6729159 | DA22: 6431.334032 | DB22: 206.9736392 | DC22: 6605.367612 | DD22: 212.1287172 | DE22: 6779.041542 | DF22: 217.2276002 | DG22: 6951.959061 | DH22: 222.2438163 | DI22: 7122.429334 | DJ22: 227.1791874 | DK22: 7292.490141 | DL22: 232.0363479 | DM22: 7451.029842 | DN22: 236.816241 | DO22: 7557.645388 | DP22: 241.5214528 | DR22: 288.4201192 | DS22: 59.72835838 | DT22: 589.4535012 | DU22: 79.16364795 | DV22: 966.9303779 | DW22: 87.45461325 | DX22: 1383.335777 | DY22: 94.30896351 | DZ22: 1784.200567 | EA22: 103.8673385 | EB22: 2195.373834 | EC22: 113.6054705 | ED22: 2614.686153 | EE22: 123.4403611 | EF22: 2994.930329 | EG22: 133.4498177 | EH22: 3856.213291 | EI22: 144.3724656 | EJ22: 4709.759896 | EK22: 153.3725687 | EL22: 5553.904016 | EM22: 162.2462948 | EN22: 6382.480975 | EO22: 171.0080575 | EP22: 7214.68745 | EQ22: 179.6282982 | ER22: 8074.102603 | ES22: 188.1250264 | ET22: 9032.118098 | EU22: 196.5276185 | EV22: 9809.327175 | EW22: 204.8369606 | EX22: 10561.51826 | EY22: 213.0394748 | EZ22: 11123.66869 | FA22: 221.1334067 | FB22: 11507.58376 | FC22: 229.1348811 | FD22: 11879.68153 | FE22: 237.0460046 | FF22: 12214.44531 | FG22: 244.8656834 | FH22: 12534.78682 | FI22: 252.5875813 | FJ22: 12957.49035 | FK22: 260.1260701 | FL22: 12992.61316 | FM22: 267.593075 | FN22: 13032.23608 | FO22: 274.9550132 | FP22: 13073.45201 | FQ22: 282.2130619 | FR22: 13119.92406 | FS22: 289.3692564 | FT22: 13184.18123 | FU22: 296.4256223 | FV22: 13243.42298 | FW22: 303.3833363 | FY22: 288.4201192 | FZ22: 59.72835838 | GA22: 741.6630599 | GB22: 97.88333001 | GC22: 1239.722086 | GD22: 112.8792769 | GE22: 1833.436378 | GF22: 128.1074994 | GG22: 2533.008028 | GH22: 143.3878169 | GI22: 3410.126864 | GJ22: 158.7485664 | GK22: 4370.973544 | GL22: 174.2647779 | GM22: 5216.256521 | GN22: 189.8995031 | GO22: 6124.387991 | GP22: 205.0799737 | GQ22: 6871.254356 | GR22: 217.4777862 | GS22: 7497.458436 | GT22: 229.6542243 | GU22: 7995.244156 | GV22: 241.634397 | GW22: 8916.712483 | GX22: 253.3785835 | GY22: 11147.77021 | GZ22: 366.3694186 | HA22: 13383.2178 | HB22: 478.3847111 | HC22: 15380.5044 | HD22: 589.4633173 | HE22: 17307.2464 | HF22: 699.587283 | HG22: 19162.59521 | HH22: 808.7576034 | HI22: 20942.53828 | HJ22: 917.0344104 | HK22: 22653.48935 | HL22: 1024.440406 | HM22: 24221.8142 | HN22: 1130.979327 | HO22: 25710.79998 | HP22: 1236.619767 | HQ22: 27336.30543 | HR22: 1340.92269 | HS22: 28907.92242 | HT22: 1444.419675 | HU22: 30677.52082 | HV22: 1546.935813 | HW22: 32308.03867 | HX22: 1648.469753 | HY22: 33539.53297 | HZ22: 1749.023523 | IA22: 34314.71942 | IB22: 1848.596484 | IC22: 34421.64302 | ID22: 1851.598175 | IF22: 288.4201192 | IG22: 59.72835838 | IH22: 775.2231367 | II22: 97.88333001 | IJ22: 1432.784149 | IK22: 112.8792769 | IL22: 2217.605456 | IM22: 128.1074994 | IN22: 3061.689139 | IO22: 143.3878169 | IP22: 3980.567402 | IQ22: 158.7485664 | IR22: 4954.053077 | IS22: 174.2647779 | IT22: 5882.005207 | IU22: 189.8995031 | IV22: 8233.227233 | IW22: 308.6474571 | IX22: 10587.70378 | IY22: 423.7527472 | IZ22: 12941.36106 | JA22: 537.7910446 | JB22: 15282.47718 | JC22: 650.8312157 | JD22: 17514.00007 | JE22: 762.7693088 | JF22: 19749.38343 | JG22: 873.6576787 | JH22: 21978.8963 | JI22: 983.6468527 | JJ22: 23976.5412 | JK22: 1092.75963 | JL22: 25867.4693 | JM22: 1200.933048 | JN22: 27573.18535 | JO22: 1308.159254 | JP22: 29216.24876 | JQ22: 1414.525984 | JR22: 30655.43029 | JS22: 1520.053963 | JT22: 31903.80113 | JU22: 1624.737115 | JV22: 32969.00985 | JW22: 1728.523781 | JX22: 33770.4437 | JY22: 1830.813032 | JZ22: 33887.9453 | KA22: 1834.764475 | KB22: 34004.90181 | KC22: 1838.510759 | KD22: 34120.8502 | KE22: 1842.059173 | KF22: 34236.51377 | KG22: 1845.41918 | KH22: 34458.33028 | KI22: 1848.596484 | KJ22: 34575.71196 | KK22: 1851.598175
A23: North Yorkshire | B23: Craven | D23: 83.82128835 | E23: 24.95501302 | F23: 250.3115108 | G23: 41.20345693 | H23: 436.3228463 | I23: 47.74601068 | J23: 656.8937367 | K23: 54.39043195 | L23: 910.2654788 | M23: 61.16277692 | N23: 1215.695046 | O23: 68.03939971 | P23: 1541.966797 | Q23: 75.05061464 | R23: 1838.240339 | S23: 82.16925532 | T23: 2151.57255 | U23: 89.16460782 | V23: 2421.779696 | W23: 95.00082335 | X23: 2659.291168 | Y23: 100.8003958 | Z23: 2864.167354 | AA23: 106.5552128 | AB23: 3162.075608 | AC23: 112.2564803 | AD23: 3708.814978 | AE23: 163.046026 | AF23: 4239.438574 | AG23: 213.8313283 | AH23: 4691.147015 | AI23: 264.5809931 | AJ23: 5122.55628 | AK23: 315.3457884 | AL23: 5535.113605 | AM23: 366.0790678 | AN23: 5929.526562 | AO23: 416.7642859 | AP23: 6307.197602 | AQ23: 467.4091589 | AR23: 6654.113641 | AS23: 518.0070082 | AT23: 6980.689675 | AU23: 568.5589857 | AV23: 7345.484381 | AW23: 619.1526336 | AX23: 7696.776208 | AY23: 669.6840029 | AZ23: 8103.860102 | BA23: 720.1871648 | BB23: 8464.279779 | BC23: 770.6617743 | BD23: 8636.26695 | BE23: 821.1087681 | BF23: 8823.220849 | BG23: 871.5275722 | BH23: 8867.918001 | BI23: 876.6593187 | BK23: 83.82128835 | BL23: 24.95501302 | BM23: 175.5635876 | BN23: 32.12297565 | BO23: 210.4095113 | BP23: 35.25623134 | BQ23: 287.0591821 | BR23: 37.56455274 | BS23: 368.9913339 | BT23: 41.34815439 | BU23: 455.6673938 | BV23: 45.23441243 | BW23: 545.1443965 | BX23: 49.19785352 | BY23: 637.9902318 | BZ23: 53.26539935 | CA23: 733.9383812 | CB23: 57.84935115 | CC23: 831.1870918 | CD23: 60.94946914 | CE23: 928.5163095 | CF23: 64.03236165 | CG23: 1022.648642 | CH23: 67.09274115 | CI23: 1146.581122 | CJ23: 70.12554577 | CK23: 1359.564008 | CL23: 73.12390861 | CM23: 1575.138639 | CN23: 76.10354355 | CO23: 1740.417456 | CP23: 79.05492439 | CQ23: 1902.384574 | CR23: 81.99434352 | CS23: 2136.888003 | CT23: 84.9099094 | CU23: 2305.277542 | CV23: 87.79981413 | CW23: 2472.930616 | CX23: 90.66827864 | CY23: 2629.708135 | CZ23: 93.51535373 | DA23: 2652.657104 | DB23: 96.34246825 | DC23: 2699.997778 | DD23: 99.16553719 | DE23: 2747.240594 | DF23: 101.9666855 | DG23: 2794.276013 | DH23: 104.7526276 | DI23: 2840.930183 | DJ23: 107.5239628 | DK23: 2887.47582 | DL23: 110.2816814 | DM23: 2934.315669 | DN23: 113.0259787 | DO23: 2979.618812 | DP23: 115.7578362 | DR23: 83.82128835 | DS23: 24.95501302 | DT23: 191.5925657 | DU23: 33.32350829 | DV23: 317.4357723 | DW23: 36.99181119 | DX23: 460.8021016 | DY23: 40.04063218 | DZ23: 598.5835223 | EA23: 44.30512295 | EB23: 739.6661796 | EC23: 48.69113587 | ED23: 883.1739481 | EE23: 53.16206226 | EF23: 1026.2832 | EG23: 57.74355363 | EH23: 1316.734696 | EI23: 62.77021613 | EJ23: 1605.839587 | EK23: 66.99774058 | EL23: 1892.636614 | EM23: 71.21354194 | EN23: 2174.150301 | EO23: 75.41062115 | EP23: 2458.778634 | EQ23: 79.58226079 | ER23: 2756.677646 | ES23: 83.72161098 | ET23: 3074.361272 | EU23: 87.84511862 | EV23: 3318.929655 | EW23: 91.94120288 | EX23: 3555.125868 | EY23: 96.0296203 | EZ23: 3705.297447 | FA23: 100.0946526 | FB23: 3801.961842 | FC23: 104.1348438 | FD23: 3896.033649 | FE23: 108.1541424 | FF23: 3981.415142 | FG23: 112.1524833 | FH23: 4061.476483 | FI23: 116.1318482 | FJ23: 4172.563515 | FK23: 120.1096399 | FL23: 4198.794346 | FM23: 124.0656055 | FN23: 4226.400811 | FO23: 128.0072965 | FP23: 4254.580045 | FQ23: 131.934977 | FR23: 4283.713457 | FS23: 135.8493071 | FT23: 4315.737856 | FU23: 139.7509436 | FV23: 4346.914865 | FW23: 143.6401442 | FY23: 83.82128835 | FZ23: 24.95501302 | GA23: 250.3115108 | GB23: 41.20345693 | GC23: 436.3228463 | GD23: 47.74601068 | GE23: 656.8937367 | GF23: 54.39043195 | GG23: 910.2654788 | GH23: 61.16277692 | GI23: 1215.695046 | GJ23: 68.03939971 | GK23: 1541.966797 | GL23: 75.05061464 | GM23: 1838.240339 | GN23: 82.16925532 | GO23: 2151.57255 | GP23: 89.16460782 | GQ23: 2421.779696 | GR23: 95.00082335 | GS23: 2659.291168 | GT23: 100.8003958 | GU23: 2864.167354 | GV23: 106.5552128 | GW23: 3162.075608 | GX23: 112.2564803 | GY23: 3708.814978 | GZ23: 163.046026 | HA23: 4239.438574 | HB23: 213.8313283 | HC23: 4691.147015 | HD23: 264.5809931 | HE23: 5122.55628 | HF23: 315.3457884 | HG23: 5535.113605 | HH23: 366.0790678 | HI23: 5929.526562 | HJ23: 416.7642859 | HK23: 6307.197602 | HL23: 467.4091589 | HM23: 6654.113641 | HN23: 518.0070082 | HO23: 6980.689675 | HP23: 568.5589857 | HQ23: 7345.484381 | HR23: 619.1526336 | HS23: 7696.776208 | HT23: 669.6840029 | HU23: 8103.860102 | HV23: 720.1871648 | HW23: 8464.279779 | HX23: 770.6617743 | HY23: 8636.26695 | HZ23: 821.1087681 | IA23: 8823.220849 | IB23: 871.5275722 | IC23: 8867.918001 | ID23: 876.6593187 | IF23: 83.82128835 | IG23: 24.95501302 | IH23: 260.531595 | II23: 41.20345693 | IJ23: 495.8350624 | IK23: 47.74601068 | IL23: 773.6801398 | IM23: 54.39043195 | IN23: 1069.222387 | IO23: 61.16277692 | IP23: 1385.27006 | IQ23: 68.03939971 | IR23: 1714.841588 | IS23: 75.05061464 | IT23: 2013.884692 | IU23: 82.16925532 | IV23: 2631.354839 | IW23: 134.1936463 | IX23: 3250.125 | IY23: 185.1079165 | IZ23: 3868.9206 | JA23: 236.0485653 | JB23: 4484.248128 | JC23: 287.0016007 | JD23: 5037.712413 | JE23: 337.9362086 | JF23: 5574.541127 | JG23: 388.8054116 | JH23: 6101.333643 | JI23: 439.6764951 | JJ23: 6553.166378 | JK23: 490.4858701 | JL23: 6976.019336 | JM23: 541.3322797 | JN23: 7353.850533 | JO23: 592.1300998 | JP23: 7722.520508 | JQ23: 642.8590954 | JR23: 8015.922042 | JS23: 693.5368224 | JT23: 8272.407535 | JU23: 744.1561412 | JV23: 8430.666304 | JW23: 794.7210242 | JX23: 8600.267183 | JY23: 845.35277 | JZ23: 8646.715513 | KA23: 850.6616455 | KB23: 8692.853178 | KC23: 855.931991 | KD23: 8738.616938 | KE23: 861.1650823 | KF23: 8784.368372 | KG23: 866.3633446 | KH23: 8771.189109 | KI23: 871.5275722 | KJ23: 8817.100936 | KK23: 876.6593187
A24: Derbyshire | B24: Derbyshire Dales | D24: 0.03957765146 | E24: 0.01276320449 | F24: 0.1101699659 | G24: 0.02107318847 | H24: 0.1871334613 | I24: 0.02442266225 | J24: 0.2782683922 | K24: 0.02784389806 | L24: 0.3847896741 | M24: 0.03132099459 | N24: 0.5175761887 | O24: 0.03486003191 | P24: 0.6614326133 | Q24: 0.03846755228 | R24: 0.7928590902 | S24: 0.04213771998 | T24: 0.9328478895 | U24: 0.04574443725 | V24: 1.054113295 | W24: 0.04876644252 | X24: 1.159726079 | Y24: 0.05176757254 | Z24: 1.24512066 | AA24: 0.05475082801 | AB24: 1.412264275 | AC24: 0.05770788748 | AD24: 1.826869522 | AE24: 0.08386041817 | AF24: 2.251802849 | AG24: 0.1100249754 | AH24: 2.63209556 | AI24: 0.1362043081 | AJ24: 3.003459163 | AK24: 0.1624071067 | AL24: 3.364599355 | AM24: 0.1886245773 | AN24: 3.713930847 | AO24: 0.2148536267 | AP24: 4.054488439 | AQ24: 0.2410923637 | AR24: 4.375469581 | AS24: 0.2673500664 | AT24: 4.686321451 | AU24: 0.2936178652 | AV24: 5.012509928 | AW24: 0.3198973994 | AX24: 5.331667321 | AY24: 0.3461887846 | AZ24: 5.677539694 | BA24: 0.3724917224 | BB24: 6.040727795 | BC24: 0.3988057378 | BD24: 6.345864784 | BE24: 0.4251310282 | BF24: 6.498452704 | BG24: 0.451467019 | BH24: 6.514920862 | BI24: 0.454356591 | BK24: 0.03957765146 | BL24: 0.01276320449 | BM24: 0.0809037324 | BN24: 0.01642904675 | BO24: 0.09400932241 | BP24: 0.01803187367 | BQ24: 0.1204469035 | BR24: 0.01922587357 | BS24: 0.14871482 | BT24: 0.02116696615 | BU24: 0.1786121881 | BV24: 0.02316554887 | BW24: 0.2094947485 | BX24: 0.0252033652 | BY24: 0.2415353169 | BZ24: 0.0272996771 | CA24: 0.2746565664 | CB24: 0.02966096192 | CC24: 0.3082280359 | CD24: 0.03126771274 | CE24: 0.3418069467 | CF24: 0.0328639824 | CG24: 0.3742100145 | CH24: 0.03445166634 | CI24: 0.4194262205 | CJ24: 0.03602576211 | CK24: 0.5028992529 | CL24: 0.03758500334 | CM24: 0.5957719981 | CN24: 0.03913174096 | CO24: 0.6683040888 | CP24: 0.04066886607 | CQ24: 0.7396564576 | CR24: 0.04219878489 | CS24: 0.8421470937 | CT24: 0.04371972585 | CU24: 0.9134099259 | CV24: 0.04523134722 | CW24: 0.9841812297 | CX24: 0.04673409167 | CY24: 1.050070306 | CZ24: 0.04823014907 | DA24: 1.068684693 | DB24: 0.04971814305 | DC24: 1.09611167 | DD24: 0.0511992257 | DE24: 1.123481004 | DF24: 0.05267332524 | DG24: 1.150773882 | DH24: 0.05414090455 | DI24: 1.177748063 | DJ24: 0.05560224958 | DK24: 1.204756647 | DL24: 0.05705784971 | DM24: 1.229721172 | DN24: 0.05850778403 | DO24: 1.245741371 | DP24: 0.05995253959 | DR24: 0.03957765146 | DS24: 0.01276320449 | DT24: 0.08835211749 | DU24: 0.01704304985 | DV24: 0.145032949 | DW24: 0.01892175907 | DX24: 0.2053111964 | DY24: 0.02049785671 | DZ24: 0.260778852 | EA24: 0.02268831773 | EB24: 0.3163317891 | EC24: 0.02494693601 | ED24: 0.3725386552 | EE24: 0.02724846984 | EF24: 0.4296534984 | EG24: 0.02961182603 | EH24: 0.5597593093 | EI24: 0.0322032282 | EJ24: 0.688895132 | EK24: 0.03439171735 | EL24: 0.8168638244 | EM24: 0.03657279486 | EN24: 0.9428010786 | EO24: 0.0387479302 | EP24: 1.069620018 | EQ24: 0.04091099365 | ER24: 1.200763991 | ES24: 0.04306102688 | ET24: 1.348310062 | EU24: 0.04519991106 | EV24: 1.466839405 | EW24: 0.04733064075 | EX24: 1.58270898 | EY24: 0.04945648033 | EZ24: 1.667158684 | FA24: 0.05157440894 | FB24: 1.724518011 | FC24: 0.05368441975 | FD24: 1.780787008 | FE24: 0.05578653597 | FF24: 1.832278034 | FG24: 0.05788333627 | FH24: 1.882148398 | FI24: 0.059973347 | FJ24: 1.941939171 | FK24: 0.06205701042 | FL24: 1.950552273 | FM24: 0.0641349069 | FN24: 1.960193147 | FO24: 0.06620731485 | FP24: 1.970099342 | FQ24: 0.06827434242 | FR24: 1.980743576 | FS24: 0.07033630361 | FT24: 1.994105801 | FU24: 0.07239351215 | FV24: 2.00673148 | FW24: 0.07444607595 | FY24: 0.03957765146 | FZ24: 0.01276320449 | GA24: 0.1101699659 | GB24: 0.02107318847 | GC24: 0.1871334613 | GD24: 0.02442266225 | GE24: 0.2782683922 | GF24: 0.02784389806 | GG24: 0.3847896741 | GH24: 0.03132099459 | GI24: 0.5175761887 | GJ24: 0.03486003191 | GK24: 0.6614326133 | GL24: 0.03846755228 | GM24: 0.7928590902 | GN24: 0.04213771998 | GO24: 0.9328478895 | GP24: 0.04574443725 | GQ24: 1.054113295 | GR24: 0.04876644252 | GS24: 1.159726079 | GT24: 0.05176757254 | GU24: 1.24512066 | GV24: 0.05475082801 | GW24: 1.412264275 | GX24: 0.05770788748 | GY24: 1.826869522 | GZ24: 0.08386041817 | HA24: 2.251802849 | HB24: 0.1100249754 | HC24: 2.63209556 | HD24: 0.1362043081 | HE24: 3.003459163 | HF24: 0.1624071067 | HG24: 3.364599355 | HH24: 0.1886245773 | HI24: 3.713930847 | HJ24: 0.2148536267 | HK24: 4.054488439 | HL24: 0.2410923637 | HM24: 4.375469581 | HN24: 0.2673500664 | HO24: 4.686321451 | HP24: 0.2936178652 | HQ24: 5.012509928 | HR24: 0.3198973994 | HS24: 5.331667321 | HT24: 0.3461887846 | HU24: 5.677539694 | HV24: 0.3724917224 | HW24: 6.040727795 | HX24: 0.3988057378 | HY24: 6.345864784 | HZ24: 0.4251310282 | IA24: 6.498452704 | IB24: 0.451467019 | IC24: 6.514920862 | ID24: 0.454356591 | IF24: 0.03957765146 | IG24: 0.01276320449 | IH24: 0.1144730976 | II24: 0.02107318847 | IJ24: 0.2129985164 | IK24: 0.02442266225 | IL24: 0.3332263822 | IM24: 0.02784389806 | IN24: 0.461283669 | IO24: 0.03132099459 | IP24: 0.5987465814 | IQ24: 0.03486003191 | IR24: 0.7439285734 | IS24: 0.03846755228 | IT24: 0.9114204873 | IU24: 0.04213771998 | IV24: 1.34911783 | IW24: 0.06884584574 | IX24: 1.787296056 | IY24: 0.09502080348 | IZ24: 2.225476378 | JA24: 0.1212263218 | JB24: 2.662339879 | JC24: 0.1474688554 | JD24: 3.077333428 | JE24: 0.1737234648 | JF24: 3.496051891 | JG24: 0.1999765662 | JH24: 3.922498731 | JI24: 0.2262315627 | JJ24: 4.30288668 | JK24: 0.2524984421 | JL24: 4.668982177 | JM24: 0.2787930345 | JN24: 5.00895615 | JO24: 0.305098815 | JP24: 5.339557755 | JQ24: 0.3314118143 | JR24: 5.668033907 | JS24: 0.3577303283 | JT24: 5.991251455 | JU24: 0.384068537 | JV24: 6.259219262 | JW24: 0.410413513 | JX24: 6.41312552 | JY24: 0.4367681538 | JZ24: 6.431927964 | KA24: 0.4397439985 | KB24: 6.450601571 | KC24: 0.4427010049 | KD24: 6.469072114 | KE24: 0.4456398223 | KF24: 6.487488569 | KG24: 0.4485616934 | KH24: 6.504500805 | KI24: 0.451467019 | KJ24: 6.522438435 | KK24: 0.454356591
A25: Westmorland and Furness** | B25: Eden | D25: 350.4343441 | E25: 85.23429333 | F25: 1016.278811 | G25: 140.5277497 | H25: 1720.996605 | I25: 162.3597209 | J25: 2537.757878 | K25: 184.4428672 | L25: 3475.819227 | M25: 206.8044615 | N25: 4636.07876 | O25: 229.4540733 | P25: 5839.042411 | Q25: 252.4099772 | R25: 6996.433913 | S25: 275.6296996 | T25: 8188.911455 | U25: 298.2762407 | V25: 9308.841303 | W25: 317.0111277 | X25: 10369.02884 | Y25: 335.3946129 | Z25: 11354.26501 | AA25: 353.5270923 | AB25: 12515.21338 | AC25: 371.4478002 | AD25: 13888.59729 | AE25: 538.1085622 | AF25: 15194.38994 | AG25: 703.815665 | AH25: 16320.77934 | AI25: 868.7046997 | AJ25: 17406.48067 | AK25: 1032.765521 | AL25: 18455.42407 | AM25: 1195.93575 | AN25: 19471.7869 | AO25: 1358.138543 | AP25: 20462.70385 | AQ25: 1519.495951 | AR25: 21386.01532 | AS25: 1679.980626 | AT25: 22268.73689 | AU25: 1839.689819 | AV25: 23221.32781 | AW25: 1998.666943 | AX25: 24150.38723 | AY25: 2156.817974 | AZ25: 25164.42086 | BA25: 2314.200453 | BB25: 26151.73391 | BC25: 2470.825539 | BD25: 26897.10941 | BE25: 2626.707854 | BF25: 27924.772 | BG25: 2781.856578 | BH25: 28085.50949 | BI25: 2792.134042 | BK25: 350.4343441 | BL25: 85.23429333 | BM25: 705.6387358 | BN25: 109.5580279 | BO25: 815.1681617 | BP25: 120.044103 | BQ25: 1040.064513 | BR25: 127.7089233 | BS25: 1280.690366 | BT25: 140.3282169 | BU25: 1534.9419 | BV25: 153.3028748 | BW25: 1797.719419 | BX25: 166.4274198 | BY25: 2071.140552 | BZ25: 179.8155891 | CA25: 2354.148531 | CB25: 194.8046684 | CC25: 2641.452177 | CD25: 204.780004 | CE25: 2929.043798 | CF25: 214.5594293 | CG25: 3206.079075 | CH25: 224.2078588 | CI25: 3668.089008 | CJ25: 233.7509633 | CK25: 4681.791294 | CL25: 243.1446694 | CM25: 5835.785782 | CN25: 252.3976605 | CO25: 6768.909782 | CP25: 261.562552 | CQ25: 7690.472609 | CR25: 270.6236375 | CS25: 9111.554402 | CT25: 279.5676268 | CU25: 10110.42777 | CV25: 288.3806147 | CW25: 11099.53949 | CX25: 297.0950049 | CY25: 12020.27052 | CZ25: 305.7059032 | DA25: 12042.78968 | DB25: 314.2316923 | DC25: 12220.4466 | DD25: 322.6815305 | DE25: 12399.22481 | DF25: 331.0372978 | DG25: 12578.04677 | DH25: 339.3104384 | DI25: 12755.71307 | DJ25: 347.5036283 | DK25: 12933.6884 | DL25: 355.6207667 | DM25: 13108.51129 | DN25: 363.6631479 | DO25: 13256.60729 | DP25: 371.6345681 | DR25: 350.4343441 | DS25: 85.23429333 | DT25: 770.7063464 | DU25: 113.6525423 | DV25: 1193.013923 | DW25: 125.790198 | DX25: 1598.750398 | DY25: 135.7814002 | DZ25: 1954.44793 | EA25: 149.8051193 | EB25: 2303.741613 | EC25: 164.2045567 | ED25: 2653.600278 | EE25: 178.7944708 | EF25: 3142.833481 | EG25: 193.6957841 | EH25: 4270.343949 | EI25: 209.9808943 | EJ25: 5397.661863 | EK25: 223.5667918 | EL25: 6521.253495 | EM25: 236.9498467 | EN25: 7630.886803 | EO25: 250.1960901 | EP25: 8753.283135 | EQ25: 263.3313964 | ER25: 9917.038655 | ES25: 276.3104187 | ET25: 11211.04482 | EU25: 289.1380374 | EV25: 12189.4426 | EW25: 301.8726104 | EX25: 13147.80722 | EY25: 314.4994621 | EZ25: 13608.70884 | FA25: 326.9970452 | FB25: 13865.80457 | FC25: 339.3514028 | FD25: 14122.57986 | FE25: 351.5972642 | FF25: 14368.46522 | FG25: 363.728668 | FH25: 14603.40049 | FI25: 375.7685379 | FJ25: 14876.73545 | FK25: 387.722112 | FL25: 14991.47596 | FM25: 399.5719276 | FN25: 15108.93306 | FO25: 411.3299405 | FP25: 15227.41979 | FQ25: 422.9978982 | FR25: 15348.7162 | FS25: 434.5787739 | FT25: 15480.21123 | FU25: 446.0754818 | FV25: 15610.65902 | FW25: 457.4896176 | FY25: 350.4343441 | FZ25: 85.23429333 | GA25: 1016.278811 | GB25: 140.5277497 | GC25: 1720.996605 | GD25: 162.3597209 | GE25: 2537.757878 | GF25: 184.4428672 | GG25: 3475.819227 | GH25: 206.8044615 | GI25: 4636.07876 | GJ25: 229.4540733 | GK25: 5839.042411 | GL25: 252.4099772 | GM25: 6996.433913 | GN25: 275.6296996 | GO25: 8188.911455 | GP25: 298.2762407 | GQ25: 9308.841303 | GR25: 317.0111277 | GS25: 10369.02884 | GT25: 335.3946129 | GU25: 11354.26501 | GV25: 353.5270923 | GW25: 12515.21338 | GX25: 371.4478002 | GY25: 13888.59729 | GZ25: 538.1085622 | HA25: 15194.38994 | HB25: 703.815665 | HC25: 16320.77934 | HD25: 868.7046997 | HE25: 17406.48067 | HF25: 1032.765521 | HG25: 18455.42407 | HH25: 1195.93575 | HI25: 19471.7869 | HJ25: 1358.138543 | HK25: 20462.70385 | HL25: 1519.495951 | HM25: 21386.01532 | HN25: 1679.980626 | HO25: 22268.73689 | HP25: 1839.689819 | HQ25: 23221.32781 | HR25: 1998.666943 | HS25: 24150.38723 | HT25: 2156.817974 | HU25: 25164.42086 | HV25: 2314.200453 | HW25: 26151.73391 | HX25: 2470.825539 | HY25: 26897.10941 | HZ25: 2626.707854 | IA25: 27924.772 | IB25: 2781.856578 | IC25: 28085.50949 | ID25: 2792.134042 | IF25: 350.4343441 | IG25: 85.23429333 | IH25: 1035.431909 | II25: 140.5277497 | IJ25: 1887.948296 | IK25: 162.3597209 | IL25: 2980.769845 | IM25: 184.4428672 | IN25: 4113.085286 | IO25: 206.8044615 | IP25: 5290.546576 | IQ25: 229.4540733 | IR25: 6501.040225 | IS25: 252.4099772 | IT25: 7710.712861 | IU25: 275.6296996 | IV25: 9679.244341 | IW25: 448.9087917 | IX25: 11652.37671 | IY25: 617.6922186 | IZ25: 13625.62873 | JA25: 785.4078009 | JB25: 15586.62919 | JC25: 952.209082 | JD25: 17066.59291 | JE25: 1118.204143 | JF25: 18408.32241 | JG25: 1283.193011 | JH25: 19705.27903 | JI25: 1447.174309 | JJ25: 20831.63198 | JK25: 1610.423241 | JL25: 21901.50223 | JM25: 1772.877059 | JN25: 22885.33055 | JO25: 1934.416953 | JP25: 23848.6076 | JQ25: 2094.929303 | JR25: 24713.19454 | JS25: 2254.612203 | JT25: 25532.41774 | JU25: 2413.418893 | JV25: 26170.31443 | JW25: 2571.483723 | JX25: 27119.56763 | JY25: 2728.856416 | JZ25: 27291.88738 | KA25: 2739.683671 | KB25: 27462.7882 | KC25: 2750.393645 | KD25: 27631.73157 | KE25: 2760.988997 | KF25: 27800.31752 | KG25: 2771.476191 | KH25: 27938.59615 | KI25: 2781.856578 | KJ25: 28114.99853 | KK25: 2792.134042
A26: Lancashire | B26: Fylde | D26: 405.3588369 | E26: 68.23098857 | F26: 979.1948799 | G26: 113.1293622 | H26: 1531.720502 | I26: 131.4205138 | J26: 2201.775615 | K26: 150.1089807 | L26: 2959.773529 | M26: 169.161923 | N26: 3851.350068 | O26: 188.6049975 | P26: 4817.642998 | Q26: 208.4428194 | R26: 5726.762783 | S26: 228.6539505 | T26: 6693.98291 | U26: 248.513972 | V26: 7552.61861 | W26: 265.21614 | X26: 8305.538406 | Y26: 281.8096172 | Z26: 8891.300769 | AA26: 298.2798138 | AB26: 9947.831806 | AC26: 314.6633428 | AD26: 12562.07081 | AE26: 457.6461903 | AF26: 15120.89582 | AG26: 600.9031805 | AH26: 17311.90612 | AI26: 744.4589891 | AJ26: 19436.7026 | AK26: 888.3079863 | AL26: 21489.94029 | AM26: 1032.286341 | AN26: 23466.10637 | AO26: 1176.426559 | AP26: 25414.47563 | AQ26: 1320.721139 | AR26: 27245.45685 | AS26: 1465.192129 | AT26: 29009.24334 | AU26: 1609.775513 | AV26: 30866.40916 | AW26: 1754.910532 | AX26: 32684.73702 | AY26: 1900.129479 | AZ26: 34641.88689 | BA26: 2045.581973 | BB26: 36721.78047 | BC26: 2191.26793 | BD26: 38903.91562 | BE26: 2337.19064 | BF26: 40998.83018 | BG26: 2483.348855 | BH26: 41273.61631 | BI26: 2500.643238 | BK26: 405.3588369 | BL26: 68.23098857 | BM26: 835.041911 | BN26: 88.19773917 | BO26: 988.6597831 | BP26: 97.1266041 | BQ26: 1326.843011 | BR26: 103.8480077 | BS26: 1688.197146 | BT26: 114.6431152 | BU26: 2070.787012 | BV26: 125.8026812 | BW26: 2465.577201 | BX26: 137.1699371 | BY26: 2874.750783 | BZ26: 148.8511593 | CA26: 3297.44683 | CB26: 161.9443008 | CC26: 3725.684356 | CD26: 170.9281624 | CE26: 4154.655457 | CF26: 179.8533376 | CG26: 4571.083843 | CH26: 188.711066 | CI26: 5032.550499 | CJ26: 197.5261381 | CK26: 5628.841364 | CL26: 206.2661149 | CM26: 6216.231601 | CN26: 214.9399356 | CO26: 6611.558181 | CP26: 223.5711563 | CQ26: 6991.988065 | CR26: 232.1596139 | CS26: 7415.970487 | CT26: 240.6732185 | CU26: 7712.008098 | CV26: 249.1302952 | CW26: 8011.786049 | CX26: 257.5368599 | CY26: 8293.397119 | CZ26: 265.9014721 | DA26: 8591.768921 | DB26: 274.2159704 | DC26: 8903.729176 | DD26: 282.557806 | DE26: 9215.737425 | DF26: 290.8458964 | DG26: 9525.828584 | DH26: 299.108026 | DI26: 9831.892599 | DJ26: 307.3457232 | DK26: 10137.32484 | DL26: 315.5616382 | DM26: 10425.92731 | DN26: 323.7561518 | DO26: 10635.34889 | DP26: 331.931899 | DR26: 405.3588369 | DS26: 68.23098857 | DT26: 837.2472526 | DU26: 91.49395509 | DV26: 1202.826588 | DW26: 101.8196654 | DX26: 1718.294758 | DY26: 110.5058053 | DZ26: 2210.493252 | EA26: 122.5375984 | EB26: 2708.174066 | EC26: 134.9716723 | ED26: 3214.848268 | EE26: 147.6503583 | EF26: 3713.631058 | EG26: 160.6840856 | EH26: 4473.802138 | EI26: 174.949188 | EJ26: 5234.731173 | EK26: 187.0392437 | EL26: 5992.588274 | EM26: 199.0930773 | EN26: 6735.435159 | EO26: 211.0968149 | EP26: 7498.471326 | EQ26: 223.0750523 | ER26: 8326.811922 | ES26: 234.994236 | ET26: 9147.172859 | EU26: 246.8600443 | EV26: 9756.692002 | EW26: 258.697551 | EX26: 10361.92379 | EY26: 270.5090151 | EZ26: 10951.48696 | FA26: 282.2514364 | FB26: 11399.08554 | FC26: 293.9479225 | FD26: 11847.8391 | FE26: 305.6026171 | FF26: 12271.16082 | FG26: 317.2253138 | FH26: 12680.32553 | FI26: 328.8070546 | FJ26: 13123.55079 | FK26: 340.4357189 | FL26: 13309.6205 | FM26: 352.0178372 | FN26: 13497.97574 | FO26: 363.5852331 | FP26: 13686.37913 | FQ26: 375.1384766 | FR26: 13882.76266 | FS26: 386.6792575 | FT26: 14111.70392 | FU26: 398.2092555 | FV26: 14337.42586 | FW26: 409.7290107 | FY26: 405.3588369 | FZ26: 68.23098857 | GA26: 979.1948799 | GB26: 113.1293622 | GC26: 1531.720502 | GD26: 131.4205138 | GE26: 2201.775615 | GF26: 150.1089807 | GG26: 2959.773529 | GH26: 169.161923 | GI26: 3851.350068 | GJ26: 188.6049975 | GK26: 4817.642998 | GL26: 208.4428194 | GM26: 5726.762783 | GN26: 228.6539505 | GO26: 6693.98291 | GP26: 248.513972 | GQ26: 7552.61861 | GR26: 265.21614 | GS26: 8305.538406 | GT26: 281.8096172 | GU26: 8891.300769 | GV26: 298.2798138 | GW26: 9947.831806 | GX26: 314.6633428 | GY26: 12562.07081 | GZ26: 457.6461903 | HA26: 15120.89582 | HB26: 600.9031805 | HC26: 17311.90612 | HD26: 744.4589891 | HE26: 19436.7026 | HF26: 888.3079863 | HG26: 21489.94029 | HH26: 1032.286341 | HI26: 23466.10637 | HJ26: 1176.426559 | HK26: 25414.47563 | HL26: 1320.721139 | HM26: 27245.45685 | HN26: 1465.192129 | HO26: 29009.24334 | HP26: 1609.775513 | HQ26: 30866.40916 | HR26: 1754.910532 | HS26: 32684.73702 | HT26: 1900.129479 | HU26: 34641.88689 | HV26: 2045.581973 | HW26: 36721.78047 | HX26: 2191.26793 | HY26: 38903.91562 | HZ26: 2337.19064 | IA26: 40998.83018 | IB26: 2483.348855 | IC26: 41273.61631 | ID26: 2500.643238 | IF26: 405.3588369 | IG26: 68.23098857 | IH26: 1009.330874 | II26: 113.1293622 | IJ26: 1689.910996 | IK26: 131.4205138 | IL26: 2460.384241 | IM26: 150.1089807 | IN26: 3295.687762 | IO26: 169.161923 | IP26: 4207.642752 | IQ26: 188.6049975 | IR26: 5182.195712 | IS26: 208.4428194 | IT26: 6196.11789 | IU26: 228.6539505 | IV26: 8717.340631 | IW26: 374.0160686 | IX26: 11245.7776 | IY26: 516.7703328 | IZ26: 13776.09625 | JA26: 659.925542 | JB26: 16293.0604 | JC26: 803.4030598 | JD26: 18846.5908 | JE26: 947.2605662 | JF26: 21426.34414 | JG26: 1091.319548 | JH26: 23963.84473 | JI26: 1235.567335 | JJ26: 26154.25633 | JK26: 1380.093901 | JL26: 28251.82528 | JM26: 1524.896812 | JN26: 30195.21752 | JO26: 1669.715283 | JP26: 32072.50635 | JQ26: 1814.638488 | JR26: 33959.50382 | JS26: 1959.672216 | JT26: 35778.21894 | JU26: 2104.859015 | JV26: 37556.65454 | JW26: 2250.113843 | JX26: 39567.42808 | JY26: 2396.046465 | JZ26: 39876.49853 | KA26: 2413.626818 | KB26: 40185.02536 | KC26: 2431.144481 | KD26: 40490.83889 | KE26: 2448.601306 | KF26: 40795.01942 | KG26: 2466.002529 | KH26: 41052.49598 | KI26: 2483.348855 | KJ26: 41358.72572 | KK26: 2500.643238
A27: Derbyshire | B27: High Peak | D27: 328.6751608 | E27: 70.35101691 | F27: 758.454366 | G27: 116.1639905 | H27: 1218.468431 | I27: 134.6305105 | J27: 1774.971126 | K27: 153.4888172 | L27: 2418.390943 | M27: 172.652733 | N27: 3205.156793 | O27: 192.1618073 | P27: 4067.942185 | Q27: 212.0476975 | R27: 4852.426677 | S27: 232.2782807 | T27: 5694.330689 | U27: 252.1580183 | V27: 6413.345599 | W27: 268.8146468 | X27: 7028.72117 | Y27: 285.3556839 | Z27: 7506.03299 | AA27: 301.7980258 | AB27: 8516.322536 | AC27: 318.0982953 | AD27: 11253.63225 | AE27: 462.2603557 | AF27: 13970.24212 | AG27: 606.4862866 | AH27: 16435.90624 | AI27: 750.7910836 | AJ27: 18838.42498 | AK27: 895.2354539 | AL27: 21172.18587 | AM27: 1039.769741 | AN27: 23430.12163 | AO27: 1184.371636 | AP27: 25633.17121 | AQ27: 1329.034213 | AR27: 27698.70906 | AS27: 1473.808769 | AT27: 29693.89427 | AU27: 1618.642163 | AV27: 31793.23928 | AW27: 1763.547366 | AX27: 33848.02873 | AY27: 1908.524345 | AZ27: 36053.48084 | BA27: 2053.571521 | BB27: 38323.11878 | BC27: 2198.6864 | BD27: 40404.24958 | BE27: 2343.870184 | BF27: 41725.34494 | BG27: 2489.119801 | BH27: 41882.7676 | BI27: 2505.104049 | BK27: 328.6751608 | BL27: 70.35101691 | BM27: 615.6599133 | BN27: 90.56359143 | BO27: 726.593738 | BP27: 99.40589693 | BQ27: 972.1279714 | BR27: 105.9920984 | BS27: 1234.474922 | BT27: 116.6960349 | BU27: 1512.220898 | BV27: 127.7206092 | BW27: 1798.813307 | BX27: 138.960261 | BY27: 2095.798659 | BZ27: 150.5209404 | CA27: 2402.560481 | CB27: 163.5405813 | CC27: 2713.303721 | CD27: 172.4000066 | CE27: 3024.469576 | CF27: 181.201298 | CG27: 3326.310295 | CH27: 189.9551279 | CI27: 3674.671073 | CJ27: 198.6354833 | CK27: 4162.413437 | CL27: 207.2353593 | CM27: 4643.510709 | CN27: 215.7646995 | CO27: 4986.267824 | CP27: 224.2402065 | CQ27: 5319.821458 | CR27: 232.6787871 | CS27: 5727.591562 | CT27: 241.0694542 | CU27: 6014.034806 | CV27: 249.4087973 | CW27: 6301.926693 | CX27: 257.6999662 | CY27: 6571.70488 | CZ27: 265.9549357 | DA27: 6804.788847 | DB27: 274.165306 | DC27: 7056.391281 | DD27: 282.338133 | DE27: 7308.08962 | DF27: 290.4728578 | DG27: 7559.177724 | DH27: 298.5720202 | DI27: 7807.457427 | DJ27: 306.637196 | DK27: 8055.8567 | DL27: 314.6710822 | DM27: 8286.284472 | DN27: 322.6741133 | DO27: 8437.437634 | DP27: 330.6489733 | DR27: 328.6751608 | DS27: 70.35101691 | DT27: 632.5291913 | DU27: 93.9482264 | DV27: 941.0038711 | DW27: 104.30665 | DX27: 1348.106014 | DY27: 112.9939413 | DZ27: 1740.881753 | EA27: 125.0662731 | EB27: 2141.89575 | EC27: 137.5170374 | ED27: 2551.47504 | EE27: 150.2038717 | EF27: 2954.940546 | EG27: 163.2310444 | EH27: 3669.7594 | EI27: 177.5145284 | EJ27: 4381.846019 | EK27: 189.5770304 | EL27: 5089.094469 | EM27: 201.5983053 | EN27: 5783.672286 | EO27: 213.5867029 | EP27: 6491.041882 | EQ27: 225.5102016 | ER27: 7243.806975 | ES27: 237.3635386 | ET27: 8022.026961 | EU27: 249.1536681 | EV27: 8631.336552 | EW27: 260.8979373 | EX27: 9234.138155 | EY27: 272.6185789 | EZ27: 9790.236953 | FA27: 284.2975745 | FB27: 10212.193 | FC27: 295.9331198 | FD27: 10632.67822 | FE27: 307.5261852 | FF27: 11026.95962 | FG27: 319.0908823 | FH27: 11409.73672 | FI27: 330.6181252 | FJ27: 11828.46374 | FK27: 342.1111814 | FL27: 11953.23391 | FM27: 353.5730694 | FN27: 12083.008 | FO27: 365.005309 | FP27: 12213.91236 | FQ27: 376.4084963 | FR27: 12349.69451 | FS27: 387.7843626 | FT27: 12504.18 | FU27: 399.1346366 | FV27: 12653.81513 | FW27: 410.459912 | FY27: 328.6751608 | FZ27: 70.35101691 | GA27: 758.454366 | GB27: 116.1639905 | GC27: 1218.468431 | GD27: 134.6305105 | GE27: 1774.971126 | GF27: 153.4888172 | GG27: 2418.390943 | GH27: 172.652733 | GI27: 3205.156793 | GJ27: 192.1618073 | GK27: 4067.942185 | GL27: 212.0476975 | GM27: 4852.426677 | GN27: 232.2782807 | GO27: 5694.330689 | GP27: 252.1580183 | GQ27: 6413.345599 | GR27: 268.8146468 | GS27: 7028.72117 | GT27: 285.3556839 | GU27: 7506.03299 | GV27: 301.7980258 | GW27: 8516.322536 | GX27: 318.0982953 | GY27: 11253.63225 | GZ27: 462.2603557 | HA27: 13970.24212 | HB27: 606.4862866 | HC27: 16435.90624 | HD27: 750.7910836 | HE27: 18838.42498 | HF27: 895.2354539 | HG27: 21172.18587 | HH27: 1039.769741 | HI27: 23430.12163 | HJ27: 1184.371636 | HK27: 25633.17121 | HL27: 1329.034213 | HM27: 27698.70906 | HN27: 1473.808769 | HO27: 29693.89427 | HP27: 1618.642163 | HQ27: 31793.23928 | HR27: 1763.547366 | HS27: 33848.02873 | HT27: 1908.524345 | HU27: 36053.48084 | HV27: 2053.571521 | HW27: 38323.11878 | HX27: 2198.6864 | HY27: 40404.24958 | HZ27: 2343.870184 | IA27: 41725.34494 | IB27: 2489.119801 | IC27: 41882.7676 | ID27: 2505.104049 | IF27: 328.6751608 | IG27: 70.35101691 | IH27: 786.0305372 | II27: 116.1639905 | IJ27: 1366.586301 | IK27: 134.6305105 | IL27: 2044.307776 | IM27: 153.4888172 | IN27: 2781.336319 | IO27: 172.652733 | IP27: 3594.310368 | IQ27: 192.1618073 | IR27: 4469.568944 | IS27: 212.0476975 | IT27: 5466.306291 | IU27: 232.2782807 | IV27: 8179.267489 | IW27: 379.5003956 | IX27: 10896.81447 | IY27: 523.7819782 | IZ27: 13613.93212 | JA27: 668.229517 | JB27: 16316.03977 | JC27: 812.879203 | JD27: 19021.04235 | JE27: 957.6011257 | JF27: 21761.29564 | JG27: 1102.322653 | JH27: 24481.14323 | JI27: 1247.047226 | JJ27: 26946.90576 | JK27: 1391.832473 | JL27: 29319.72351 | JM27: 1536.788716 | JN27: 31532.96781 | JO27: 1681.819625 | JP27: 33675.60936 | JQ27: 1826.893773 | JR27: 35772.70775 | JS27: 1972.007068 | JT27: 37776.47425 | JU27: 2117.237468 | JV27: 39566.10605 | JW27: 2262.507479 | JX27: 40912.49477 | JY27: 2407.838665 | JZ27: 41090.00639 | KA27: 2424.290341 | KB27: 41266.42218 | KC27: 2440.639943 | KD27: 41441.02037 | KE27: 2456.890971 | KF27: 41615.21611 | KG27: 2473.050211 | KH27: 41803.45303 | KI27: 2489.119801 | KJ27: 41973.79581 | KK27: 2505.104049
A28: Lancashire | B28: Hyndburn | D28: 198.7720896 | E28: 70.0466514 | F28: 412.0612202 | G28: 115.4172044 | H28: 634.127012 | I28: 133.1947836 | J28: 902.174039 | K28: 151.1142168 | L28: 1218.574571 | M28: 169.2386993 | N28: 1622.29234 | O28: 187.6168685 | P28: 2075.687068 | Q28: 206.2254864 | R28: 2482.294979 | S28: 225.1041552 | T28: 2925.195682 | U28: 243.5488463 | V28: 3296.330554 | W28: 258.7870083 | X28: 3606.645424 | Y28: 273.8281093 | Z28: 3829.70461 | AA28: 288.7456967 | AB28: 4584.824808 | AC28: 303.5114835 | AD28: 7071.171778 | AE28: 439.9965167 | AF28: 9603.811233 | AG28: 576.0244509 | AH28: 11991.26895 | AI28: 711.6937439 | AJ28: 14341.85803 | AK28: 847.0719812 | AL28: 16647.73976 | AM28: 982.1097182 | AN28: 18900.09387 | AO28: 1116.872078 | AP28: 21114.54379 | AQ28: 1251.337534 | AR28: 23227.09548 | AS28: 1385.526762 | AT28: 25295.70934 | AU28: 1519.462291 | AV28: 27422.54951 | AW28: 1653.001679 | AX28: 29519.89474 | AY28: 1786.326252 | AZ28: 31697.71651 | BA28: 1919.391149 | BB28: 34049.20567 | BC28: 2052.203783 | BD28: 36403.78356 | BE28: 2184.774372 | BF28: 37168.46552 | BG28: 2317.108557 | BH28: 37234.50297 | BI28: 2328.976082 | BK28: 198.7720896 | BL28: 70.0466514 | BM28: 344.1796169 | BN28: 89.98138321 | BO28: 394.4171835 | BP28: 98.51883749 | BQ28: 502.6968633 | BR28: 104.7122075 | BS28: 618.4090838 | BT28: 114.9668592 | BU28: 740.9137868 | BV28: 125.5379668 | BW28: 867.3479508 | BX28: 136.2151523 | BY28: 998.3633774 | BZ28: 147.1374253 | CA28: 1133.718904 | CB28: 159.3821095 | CC28: 1270.858475 | CD28: 167.5169429 | CE28: 1408.198073 | CF28: 175.5495062 | CG28: 1541.361801 | CH28: 183.5258724 | CI28: 1694.907531 | CJ28: 191.4278133 | CK28: 1909.488786 | CL28: 199.2674754 | CM28: 2121.53452 | CN28: 207.0500463 | CO28: 2274.844805 | CP28: 214.7920008 | CQ28: 2425.495708 | CR28: 222.4935804 | CS28: 2614.886769 | CT28: 230.1346802 | CU28: 2739.29769 | CV28: 237.7260268 | CW28: 2864.21514 | CX28: 245.2609605 | CY28: 2980.418887 | CZ28: 252.7424364 | DA28: 3144.072659 | DB28: 260.1736841 | DC28: 3307.541319 | DD28: 267.5336145 | DE28: 3471.291473 | DF28: 274.8513917 | DG28: 3635.047256 | DH28: 282.1206781 | DI28: 3797.07643 | DJ28: 289.3434048 | DK28: 3959.946121 | DL28: 296.5225335 | DM28: 4105.528816 | DN28: 303.658867 | DO28: 4177.631679 | DP28: 310.7553044 | DR28: 198.7720896 | DS28: 70.0466514 | DT28: 349.3697005 | DU28: 93.34425928 | DV28: 487.6652794 | DW28: 103.1943029 | DX28: 666.3068625 | DY28: 111.2458305 | DZ28: 834.1128621 | EA28: 122.5932137 | EB28: 1003.54758 | EC28: 134.2645361 | ED28: 1177.03791 | EE28: 146.0797117 | EF28: 1370.153857 | EG28: 158.1895054 | EH28: 1743.378675 | EI28: 171.4538324 | EJ28: 2113.87788 | EK28: 182.5052062 | EL28: 2481.77369 | EM28: 193.4542954 | EN28: 2844.980081 | EO28: 204.3493863 | EP28: 3214.523224 | EQ28: 215.1691375 | ER28: 3604.448378 | ES28: 225.9314018 | ET28: 4016.245748 | EU28: 236.6394889 | EV28: 4355.642125 | EW28: 247.311714 | EX28: 4699.73746 | EY28: 257.9517587 | EZ28: 5066.838591 | FA28: 268.5319641 | FB28: 5367.993696 | FC28: 279.067337 | FD28: 5671.451957 | FE28: 289.5478946 | FF28: 5962.830173 | FG28: 299.977152 | FH28: 6251.430317 | FI28: 310.3599952 | FJ28: 6524.204435 | FK28: 320.6663843 | FL28: 6597.071832 | FM28: 330.9346604 | FN28: 6676.049086 | FO28: 341.1558605 | FP28: 6756.412771 | FQ28: 351.3311131 | FR28: 6840.317112 | FS28: 361.4625687 | FT28: 6938.222857 | FU28: 371.5523381 | FV28: 7032.203798 | FW28: 381.6014421 | FY28: 198.7720896 | FZ28: 70.0466514 | GA28: 412.0612202 | GB28: 115.4172044 | GC28: 634.127012 | GD28: 133.1947836 | GE28: 902.174039 | GF28: 151.1142168 | GG28: 1218.574571 | GH28: 169.2386993 | GI28: 1622.29234 | GJ28: 187.6168685 | GK28: 2075.687068 | GL28: 206.2254864 | GM28: 2482.294979 | GN28: 225.1041552 | GO28: 2925.195682 | GP28: 243.5488463 | GQ28: 3296.330554 | GR28: 258.7870083 | GS28: 3606.645424 | GT28: 273.8281093 | GU28: 3829.70461 | GV28: 288.7456967 | GW28: 4584.824808 | GX28: 303.5114835 | GY28: 7071.171778 | GZ28: 439.9965167 | HA28: 9603.811233 | HB28: 576.0244509 | HC28: 11991.26895 | HD28: 711.6937439 | HE28: 14341.85803 | HF28: 847.0719812 | HG28: 16647.73976 | HH28: 982.1097182 | HI28: 18900.09387 | HJ28: 1116.872078 | HK28: 21114.54379 | HL28: 1251.337534 | HM28: 23227.09548 | HN28: 1385.526762 | HO28: 25295.70934 | HP28: 1519.462291 | HQ28: 27422.54951 | HR28: 1653.001679 | HS28: 29519.89474 | HT28: 1786.326252 | HU28: 31697.71651 | HV28: 1919.391149 | HW28: 34049.20567 | HX28: 2052.203783 | HY28: 36403.78356 | HZ28: 2184.774372 | IA28: 37168.46552 | IB28: 2317.108557 | IC28: 37234.50297 | ID28: 2328.976082 | IF28: 198.7720896 | IG28: 70.0466514 | IH28: 422.6481458 | II28: 115.4172044 | IJ28: 695.4549265 | IK28: 133.1947836 | IL28: 1027.627653 | IM28: 151.1142168 | IN28: 1395.270492 | IO28: 169.2386993 | IP28: 1813.206938 | IQ28: 187.6168685 | IR28: 2278.779262 | IS28: 206.2254864 | IT28: 3028.507916 | IU28: 225.1041552 | IV28: 5460.681078 | IW28: 366.5435037 | IX28: 7895.091675 | IY28: 504.2432501 | IZ28: 10328.8745 | JA28: 641.2349062 | JB28: 12753.48421 | JC28: 777.7233506 | JD28: 15215.67939 | JE28: 913.6890784 | JF28: 17746.68488 | JG28: 1049.231502 | JH28: 20308.33075 | JI28: 1184.412096 | JJ28: 22696.5256 | JK28: 1319.352993 | JL28: 25027.21182 | JM28: 1454.109817 | JN28: 27254.15667 | JO28: 1588.554978 | JP28: 29423.18559 | JQ28: 1722.775675 | JR28: 31645.62334 | JS28: 1856.721548 | JT28: 33896.23243 | JU28: 1990.413706 | JV28: 35973.25802 | JW28: 2123.875725 | JX28: 36821.67052 | JY28: 2256.906411 | JZ28: 36900.37737 | KA28: 2269.069027 | KB28: 36978.57268 | KC28: 2281.168519 | KD28: 37055.88847 | KE28: 2293.206045 | KF28: 37132.88771 | KG28: 2305.185994 | KH28: 37491.46949 | KI28: 2317.108557 | KJ28: 37570.28569 | KK28: 2328.976082
A29: Lancashire | B29: Lancaster | D29: 560.78383 | E29: 124.8077332 | F29: 1372.025824 | G29: 206.2585169 | H29: 2203.219603 | I29: 239.0760868 | J29: 3205.173612 | K29: 272.6294264 | L29: 4365.30508 | M29: 306.8707585 | N29: 5782.537831 | O29: 341.8537052 | P29: 7331.715089 | Q29: 377.4045858 | R29: 8740.606539 | S29: 413.5482603 | T29: 10250.82299 | U29: 449.0246022 | V29: 11538.46307 | W29: 478.7659436 | X29: 12634.11257 | Y29: 507.9511596 | Z29: 13477.18319 | AA29: 536.5620896 | AB29: 15123.11108 | AC29: 564.7341792 | AD29: 19378.87895 | AE29: 819.7052675 | AF29: 23672.14982 | AG29: 1074.053069 | AH29: 27422.9841 | AI29: 1327.337863 | AJ29: 31058.0838 | AK29: 1579.3036 | AL29: 34569.87209 | AM29: 1830.756195 | AN29: 37947.26352 | AO29: 2081.89606 | AP29: 41235.05741 | AQ29: 2332.630866 | AR29: 44291.33343 | AS29: 2582.831613 | AT29: 47228.44171 | AU29: 2832.697092 | AV29: 50351.01866 | AW29: 3081.185206 | AX29: 53395.25905 | AY29: 3329.476248 | AZ29: 56711.89754 | BA29: 3577.205824 | BB29: 60083.3696 | BC29: 3824.381759 | BD29: 63305.55004 | BE29: 4071.017671 | BF29: 66408.10425 | BG29: 4317.119163 | BH29: 66718.95822 | BI29: 4338.702134 | BK29: 560.78383 | BL29: 124.8077332 | BM29: 1094.77531 | BN29: 160.8029474 | BO29: 1280.220767 | BP29: 176.6792037 | BQ29: 1671.483355 | BR29: 188.5881114 | BS29: 2089.734126 | BT29: 207.9354178 | BU29: 2532.330297 | BV29: 227.9720937 | BW29: 2989.232214 | BX29: 248.2949382 | BY29: 3463.180572 | BZ29: 269.1403058 | CA29: 3953.064599 | CB29: 292.5230208 | CC29: 4449.669927 | CD29: 308.4669219 | CE29: 4947.022439 | CF29: 324.0809081 | CG29: 5428.97604 | CH29: 339.3593299 | CI29: 6000.326799 | CJ29: 354.3942826 | CK29: 6838.605191 | CL29: 369.3330911 | CM29: 7790.084301 | CN29: 384.0602449 | CO29: 8465.859942 | CP29: 398.4889509 | CQ29: 9120.46342 | CR29: 412.6174394 | CS29: 9908.496576 | CT29: 426.6936743 | CU29: 10447.67264 | CV29: 440.7358268 | CW29: 10988.82292 | CX29: 454.7069154 | CY29: 11494.01679 | CZ29: 468.5753008 | DA29: 11875.85982 | DB29: 482.374912 | DC29: 12299.85484 | DD29: 495.9380462 | DE29: 12726.85905 | DF29: 509.4636873 | DG29: 13150.93133 | DH29: 522.8932845 | DI29: 13569.84917 | DJ29: 536.230329 | DK29: 13988.65978 | DL29: 549.4802329 | DM29: 14380.34982 | DN29: 562.6444177 | DO29: 14643.62863 | DP29: 575.7281986 | DR29: 560.78383 | DS29: 124.8077332 | DT29: 1139.654283 | DU29: 166.8126393 | DV29: 1728.410963 | DW29: 185.2271496 | DX29: 2448.932307 | DY29: 200.7017446 | DZ29: 3133.576756 | EA29: 222.2911936 | EB29: 3827.806428 | EC29: 244.6412708 | ED29: 4534.724091 | EE29: 267.3343341 | EF29: 5213.767137 | EG29: 290.6165579 | EH29: 6486.654766 | EI29: 316.1049212 | EJ29: 7753.890365 | EK29: 337.6416684 | EL29: 9011.515521 | EM29: 358.8577299 | EN29: 10246.01398 | EO29: 379.7325292 | EP29: 11499.07191 | EQ29: 400.3583813 | ER29: 12822.52286 | ES29: 420.9059689 | ET29: 14267.21957 | EU29: 441.2371191 | EV29: 15401.93697 | EW29: 461.2464347 | EX29: 16523.00944 | EY29: 480.9321404 | EZ29: 17522.53982 | FA29: 500.5719296 | FB29: 18235.10489 | FC29: 520.1931364 | FD29: 18941.13572 | FE29: 539.7491388 | FF29: 19597.69416 | FG29: 559.2028192 | FH29: 20236.35546 | FI29: 578.5966926 | FJ29: 20958.96983 | FK29: 597.7202153 | FL29: 21148.16025 | FM29: 616.8185068 | FN29: 21343.61449 | FO29: 635.8186719 | FP29: 21540.57837 | FQ29: 654.7226506 | FR29: 21747.67533 | FS29: 673.5343125 | FT29: 21993.3946 | FU29: 692.257475 | FV29: 22232.04806 | FW29: 710.8939436 | FY29: 560.78383 | FZ29: 124.8077332 | GA29: 1372.025824 | GB29: 206.2585169 | GC29: 2203.219603 | GD29: 239.0760868 | GE29: 3205.173612 | GF29: 272.6294264 | GG29: 4365.30508 | GH29: 306.8707585 | GI29: 5782.537831 | GJ29: 341.8537052 | GK29: 7331.715089 | GL29: 377.4045858 | GM29: 8740.606539 | GN29: 413.5482603 | GO29: 10250.82299 | GP29: 449.0246022 | GQ29: 11538.46307 | GR29: 478.7659436 | GS29: 12634.11257 | GT29: 507.9511596 | GU29: 13477.18319 | GV29: 536.5620896 | GW29: 15123.11108 | GX29: 564.7341792 | GY29: 19378.87895 | GZ29: 819.7052675 | HA29: 23672.14982 | HB29: 1074.053069 | HC29: 27422.9841 | HD29: 1327.337863 | HE29: 31058.0838 | HF29: 1579.3036 | HG29: 34569.87209 | HH29: 1830.756195 | HI29: 37947.26352 | HJ29: 2081.89606 | HK29: 41235.05741 | HL29: 2332.630866 | HM29: 44291.33343 | HN29: 2582.831613 | HO29: 47228.44171 | HP29: 2832.697092 | HQ29: 50351.01866 | HR29: 3081.185206 | HS29: 53395.25905 | HT29: 3329.476248 | HU29: 56711.89754 | HV29: 3577.205824 | HW29: 60083.3696 | HX29: 3824.381759 | HY29: 63305.55004 | HZ29: 4071.017671 | IA29: 66408.10425 | IB29: 4317.119163 | IC29: 66718.95822 | ID29: 4338.702134 | IF29: 560.78383 | IG29: 124.8077332 | IH29: 1418.492579 | II29: 206.2585169 | IJ29: 2473.626365 | IK29: 239.0760868 | IL29: 3710.493216 | IM29: 272.6294264 | IN29: 5049.701734 | IO29: 306.8707585 | IP29: 6514.900939 | IQ29: 341.8537052 | IR29: 8081.465309 | IS29: 377.4045858 | IT29: 9699.065982 | IU29: 413.5482603 | IV29: 13938.53011 | IW29: 675.7866169 | IX29: 18186.29135 | IY29: 932.8694551 | IZ29: 22434.70061 | JA29: 1189.49079 | JB29: 26661.88617 | JC29: 1445.20549 | JD29: 30849.2904 | JE29: 1700.072253 | JF29: 35107.24887 | JG29: 1954.698632 | JH29: 39374.81923 | JI29: 2208.45043 | JJ29: 43124.81738 | JK29: 2460.64715 | JL29: 46704.84641 | JM29: 2711.081135 | JN29: 49993.88855 | JO29: 2961.23418 | JP29: 53171.68724 | JQ29: 3211.325593 | JR29: 56233.26428 | JS29: 3461.133288 | JT29: 59065.70023 | JU29: 3710.43244 | JV29: 61757.49627 | JW29: 3959.490556 | JX29: 64794.43234 | JY29: 4206.860001 | JZ29: 65151.71268 | KA29: 4229.245035 | KB29: 65507.41533 | KC29: 4251.457195 | KD29: 65858.26754 | KE29: 4273.501219 | KF29: 66208.11316 | KG29: 4295.387678 | KH29: 66115.20531 | KI29: 4317.119163 | KJ29: 66453.7619 | KK29: 4338.702134
A30: Greater Manchester | B30: Manchester | D30: 2894.446811 | E30: 432.62914 | F30: 5897.121724 | G30: 714.0499572 | H30: 8579.766563 | I30: 827.1511507 | J30: 11846.45057 | K30: 942.6632281 | L30: 15563.51337 | M30: 1060.38955 | N30: 20014.88723 | O30: 1180.583958 | P30: 24908.05298 | Q30: 1303.135029 | R30: 29490.12453 | S30: 1428.214696 | T30: 34385.36714 | U30: 1551.645675 | V30: 38661.73447 | W30: 1655.836218 | X30: 42328.11917 | Y30: 1759.144938 | Z30: 44995.01899 | AA30: 1861.442537 | AB30: 50382.74009 | AC30: 1962.911611 | AD30: 65345.45151 | AE30: 2854.362521 | AF30: 80218.09516 | AG30: 3747.117878 | AH30: 93376.10553 | AI30: 4639.83735 | AJ30: 106138.2085 | AK30: 5531.474355 | AL30: 118466.9112 | AM30: 6423.139038 | AN30: 130314.3759 | AO30: 7315.090677 | AP30: 141969.5712 | AQ30: 8206.865916 | AR30: 152865.4101 | AS30: 9098.023914 | AT30: 163394.759 | AU30: 9988.591651 | AV30: 174419.8232 | AW30: 10881.14908 | AX30: 185230.7046 | AY30: 11772.87788 | AZ30: 196409.0646 | BA30: 12664.64768 | BB30: 207733.8985 | BC30: 13556.44825 | BD30: 219589.7247 | BE30: 14448.29194 | BF30: 237771.7073 | BG30: 15340.16455 | BH30: 239376.7145 | BI30: 15435.19657 | BK30: 2894.446811 | BL30: 432.62914 | BM30: 5154.142962 | BN30: 556.6865283 | BO30: 5896.606368 | BP30: 610.7852148 | BQ30: 7453.048642 | BR30: 651.0611172 | BS30: 9116.897471 | BT30: 716.8828982 | BU30: 10877.82526 | BV30: 784.9168221 | BW30: 12695.6051 | BX30: 854.2849021 | BY30: 14581.39451 | BZ30: 925.8755799 | CA30: 16530.78812 | CB30: 1006.752108 | CC30: 18507.17794 | CD30: 1062.391219 | CE30: 20488.19629 | CF30: 1117.54222 | CG30: 22411.85697 | CH30: 1172.130569 | CI30: 24522.85533 | CJ30: 1226.28543 | CK30: 27191.62379 | CL30: 1280.22022 | CM30: 30749.00349 | CN30: 1333.69848 | CO30: 33052.62518 | CP30: 1386.437311 | CQ30: 35239.31117 | CR30: 1438.352973 | CS30: 37301.5551 | CT30: 1489.906472 | CU30: 38565.51939 | CV30: 1541.173249 | CW30: 39880.97051 | CX30: 1592.07879 | CY30: 41107.99814 | CZ30: 1642.569798 | DA30: 42907.33696 | DB30: 1692.685848 | DC30: 44708.8529 | DD30: 1742.881969 | DE30: 46620.50584 | DF30: 1792.674719 | DG30: 48441.60235 | DH30: 1842.228165 | DI30: 50236.68328 | DJ30: 1891.552402 | DK30: 52027.71398 | DL30: 1940.664423 | DM30: 53707.1837 | DN30: 1989.567249 | DO30: 54835.67708 | DP30: 2038.277758 | DR30: 2894.446811 | DS30: 432.62914 | DT30: 5113.106377 | DU30: 577.4915854 | DV30: 6754.168739 | DW30: 640.8455649 | DX30: 9039.236031 | DY30: 693.960872 | DZ30: 11178.71906 | EA30: 768.1255128 | EB30: 13325.04608 | EC30: 844.8630378 | ED30: 15515.63302 | EE30: 923.0749926 | EF30: 17818.50522 | EG30: 1003.662399 | EH30: 21318.09762 | EI30: 1092.329532 | EJ30: 24818.89082 | EK30: 1167.750778 | EL30: 28306.66662 | EM30: 1242.802083 | EN30: 31730.76051 | EO30: 1317.369035 | EP30: 35254.76703 | EQ30: 1391.571724 | ER30: 39085.94165 | ES30: 1465.670979 | ET30: 43259.25923 | EU30: 1539.372257 | EV30: 46396.08561 | EW30: 1612.33134 | EX30: 49613.34669 | EY30: 1684.453706 | EZ30: 53206.4129 | FA30: 1756.237729 | FB30: 55849.32463 | FC30: 1827.785756 | FD30: 58523.82391 | FE30: 1898.992625 | FF30: 61070.10009 | FG30: 1969.791834 | FH30: 63587.01676 | FI30: 2040.234414 | FJ30: 65978.67641 | FK30: 2110.837984 | FL30: 67037.24317 | FM30: 2181.042426 | FN30: 68118.91282 | FO30: 2251.036106 | FP30: 69207.20715 | FQ30: 2320.823153 | FR30: 70337.38794 | FS30: 2390.414674 | FT30: 71636.23343 | FU30: 2459.821742 | FV30: 72917.1321 | FW30: 2529.048416 | FY30: 2894.446811 | FZ30: 432.62914 | GA30: 5897.121724 | GB30: 714.0499572 | GC30: 8579.766563 | GD30: 827.1511507 | GE30: 11846.45057 | GF30: 942.6632281 | GG30: 15563.51337 | GH30: 1060.38955 | GI30: 20014.88723 | GJ30: 1180.583958 | GK30: 24908.05298 | GL30: 1303.135029 | GM30: 29490.12453 | GN30: 1428.214696 | GO30: 34385.36714 | GP30: 1551.645675 | GQ30: 38661.73447 | GR30: 1655.836218 | GS30: 42328.11917 | GT30: 1759.144938 | GU30: 44995.01899 | GV30: 1861.442537 | GW30: 50382.74009 | GX30: 1962.911611 | GY30: 65345.45151 | GZ30: 2854.362521 | HA30: 80218.09516 | HB30: 3747.117878 | HC30: 93376.10553 | HD30: 4639.83735 | HE30: 106138.2085 | HF30: 5531.474355 | HG30: 118466.9112 | HH30: 6423.139038 | HI30: 130314.3759 | HJ30: 7315.090677 | HK30: 141969.5712 | HL30: 8206.865916 | HM30: 152865.4101 | HN30: 9098.023914 | HO30: 163394.759 | HP30: 9988.591651 | HQ30: 174419.8232 | HR30: 10881.14908 | HS30: 185230.7046 | HT30: 11772.87788 | HU30: 196409.0646 | HV30: 12664.64768 | HW30: 207733.8985 | HX30: 13556.44825 | HY30: 219589.7247 | HZ30: 14448.29194 | IA30: 237771.7073 | IB30: 15340.16455 | IC30: 239376.7145 | ID30: 15435.19657 | IF30: 2894.446811 | IG30: 432.62914 | IH30: 5980.391627 | II30: 714.0499572 | IJ30: 9196.137509 | IK30: 827.1511507 | IL30: 12878.51521 | IM30: 942.6632281 | IN30: 16926.08766 | IO30: 1060.38955 | IP30: 21466.22682 | IQ30: 1180.583958 | IR30: 26431.61416 | IS30: 1303.135029 | IT30: 31735.5295 | IU30: 1428.214696 | IV30: 46072.2551 | IW30: 2335.242604 | IX30: 60447.61199 | IY30: 3226.376167 | IZ30: 74821.79145 | JA30: 4119.464369 | JB30: 89075.67802 | JC30: 5013.710484 | JD30: 103654.9254 | JE30: 5909.136881 | JF30: 118607.7763 | JG30: 6806.61542 | JH30: 133302.7096 | JI30: 7704.762762 | JJ30: 146448.4106 | JK30: 8601.429124 | JL30: 159050.5387 | JM30: 9495.499013 | JN30: 170781.6108 | JO30: 10389.3784 | JP30: 182111.9749 | JQ30: 11283.5306 | JR30: 193119.6464 | JS30: 12177.26183 | JT30: 202982.1385 | JU30: 13069.99763 | JV30: 212482.6393 | JW30: 13961.86497 | JX30: 229515.267 | JY30: 14856.44898 | JZ30: 231313.0847 | KA30: 14954.41974 | KB30: 233162.3608 | KC30: 15051.74993 | KD30: 234986.3968 | KE30: 15148.46105 | KF30: 236807.9558 | KG30: 15244.59488 | KH30: 234200.7143 | KI30: 15340.16455 | KJ30: 235957.7229 | KK30: 15435.19657
